Workbook

Sheet Lactation #1
P1: Cow Movement Through Time
J2: 1 | K2: 2 | L2: 3 | M2: 4 | N2: 5 | O2: 6 | P2: 7 | Q2: 8 | R2: 9 | S2: 10 | T2: 11 | U2: 12 | V2: 13
J3: ='Forecast Sheet'!D9 -> 6
K4: ='Forecast Sheet'!E10 -> 5.61
L5: ='Forecast Sheet'!F11 -> 5.5539
M6: ='Forecast Sheet'!G12 -> 5.498361
D7: Herd Criteria | N7: ='Forecast Sheet'!H13 -> 5.44337739
O8: ='Forecast Sheet'!I14 -> 5.388943616
P9: ='Forecast Sheet'!J15 -> 5.33505418
A10: Stage | B10: DIM | C10: Lactation State | D10: Reproductive State | E10: Inventory | Q10: ='Forecast Sheet'!K16 -> 5.281703638
R11: ='Forecast Sheet'!L17 -> 5.228886602
A12: 1 | B12: 0-30 | C12: Milking | D12: Open | E12: =$E$59 -> 6 | F12: (# of Cows) | S12: ='Forecast Sheet'!M18 -> 5.176597736
T13: ='Forecast Sheet'!N19 -> 5.124831758
A14: 2 | B14: 31-60 | C14: Milking | D14: Open | E14: 6 | U14: ='Forecast Sheet'!O20 -> 5.124831758
V15: ='Forecast Sheet'!P21 -> 5.124831758
A16: 3 | B16: 61-90 | C16: Milking | D16: Open | E16: 6
A18: 4 | B18: 91-120 | C18: Milking | D18: Open | E18: 6
A20: 5 | B20: 121-150 | C20: Milking | D20: Pregnant | E20: 6 | I20: 47
L21: 1st Lactation Monthly Production, Cow Flow, & Cash Flow
A22: 6 | B22: 151-180 | C22: Milking | D22: Pregnant | E22: 6
A24: 7 | B24: 181-210 | C24: Milking | D24: Pregnant | E24: 6 | I24: Month | J24: 1 | K24: 2 | L24: 3 | M24: 4 | N24: 5 | O24: 6 | P24: 7 | Q24: 8 | R24: 9 | S24: 10 | T24: 11 | U24: 12 | V24: 13 | W24: 14 | X24: 15 | Y24: 16 | Z24: 17 | AA24: 18 | AB24: 19 | AC24: 20 | AD24: 21 | AE24: 22 | AF24: 23 | AG24: 24 | AH24: 25 | AI24: 26 | AJ24: 27 | AK24: 28 | AL24: 29 | AM24: 30 | AN24: 31 | AO24: 32 | AP24: 33 | AQ24: 34 | AR24: 35 | AS24: 36 | AT24: 37 | AU24: 38 | AV24: 39 | AW24: 40 | AX24: 41 | AY24: 42 | AZ24: 43 | BA24: 44 | BB24: 45 | BC24: 46 | BD24: 47 | BE24: 48 | BF24: 49 | BG24: 50 | BH24: 51 | BI24: 52 | BJ24: 53 | BK24: 54 | BL24: 55
I25: Lactation #1 Cows | J25: =HLOOKUP('Forecast Sheet'!D2,'Forecast Sheet'!D2:BF56,'Lactation #1'!$I$20,FALSE) -> 78 | K25: =HLOOKUP('Forecast Sheet'!E2,'Forecast Sheet'!E2:BG59,'Lactation #1'!$I$20,FALSE) -> 77.07 | L25: =HLOOKUP('Forecast Sheet'!F2,'Forecast Sheet'!F2:BH59,'Lactation #1'!$I$20,FALSE) -> 73.14624545 | M25: =HLOOKUP('Forecast Sheet'!G2,'Forecast Sheet'!G2:BI59,'Lactation #1'!$I$20,FALSE) -> 69.42321692 | N25: =HLOOKUP('Forecast Sheet'!H2,'Forecast Sheet'!H2:BJ59,'Lactation #1'!$I$20,FALSE) -> 68.78596335 | O25: =HLOOKUP('Forecast Sheet'!I2,'Forecast Sheet'!I2:BK59,'Lactation #1'!$I$20,FALSE) -> 65.05316662 | P25: =HLOOKUP('Forecast Sheet'!J2,'Forecast Sheet'!J2:BL59,'Lactation #1'!$I$20,FALSE) -> 62.57295651 | Q25: =HLOOKUP('Forecast Sheet'!K2,'Forecast Sheet'!K2:BM59,'Lactation #1'!$I$20,FALSE) -> 59.12103621 | R25: =HLOOKUP('Forecast Sheet'!L2,'Forecast Sheet'!L2:BN59,'Lactation #1'!$I$20,FALSE) -> 59.78917338 | S25: =HLOOKUP('Forecast Sheet'!M2,'Forecast Sheet'!M2:BO59,'Lactation #1'!$I$20,FALSE) -> 56.30779754 | T25: =HLOOKUP('Forecast Sheet'!N2,'Forecast Sheet'!N2:BP59,'Lactation #1'!$I$20,FALSE) -> 53.13248527 | U25: =HLOOKUP('Forecast Sheet'!O2,'Forecast Sheet'!O2:BQ59,'Lactation #1'!$I$20,FALSE) -> 50.03787204 | V25: =HLOOKUP('Forecast Sheet'!P2,'Forecast Sheet'!P2:BR59,'Lactation #1'!$I$20,FALSE) -> 49.00522618 | W25: =HLOOKUP('Forecast Sheet'!Q2,'Forecast Sheet'!Q2:BS59,'Lactation #1'!$I$20,FALSE) -> 46.21658453 | X25: =HLOOKUP('Forecast Sheet'!R2,'Forecast Sheet'!R2:BT59,'Lactation #1'!$I$20,FALSE) -> 44.52629619 | Y25: =HLOOKUP('Forecast Sheet'!S2,'Forecast Sheet'!S2:BU59,'Lactation #1'!$I$20,FALSE) -> 48.3255937 | Z25: =HLOOKUP('Forecast Sheet'!T2,'Forecast Sheet'!T2:BV59,'Lactation #1'!$I$20,FALSE) -> 47.96913705 | AA25: =HLOOKUP('Forecast Sheet'!U2,'Forecast Sheet'!U2:BW59,'Lactation #1'!$I$20,FALSE) -> 45.28585259 | AB25: =HLOOKUP('Forecast Sheet'!V2,'Forecast Sheet'!V2:BX59,'Lactation #1'!$I$20,FALSE) -> 45.15971055 | AC25: =HLOOKUP('Forecast Sheet'!W2,'Forecast Sheet'!W2:BY59,'Lactation #1'!$I$20,FALSE) -> 47.1740139 | AD25: =HLOOKUP('Forecast Sheet'!X2,'Forecast Sheet'!X2:BZ59,'Lactation #1'!$I$20,FALSE) -> 46.89134678 | AE25: =HLOOKUP('Forecast Sheet'!Y2,'Forecast Sheet'!Y2:CA59,'Lactation #1'!$I$20,FALSE) -> 43.37679829 | AF25: =HLOOKUP('Forecast Sheet'!Z2,'Forecast Sheet'!Z2:CB59,'Lactation #1'!$I$20,FALSE) -> 45.22611623 | AG25: =HLOOKUP('Forecast Sheet'!AA2,'Forecast Sheet'!AA2:CC59,'Lactation #1'!$I$20,FALSE) -> 44.99956968 | AH25: =HLOOKUP('Forecast Sheet'!AB2,'Forecast Sheet'!AB2:CD59,'Lactation #1'!$I$20,FALSE) -> 45.79896847 | AI25: =HLOOKUP('Forecast Sheet'!AC2,'Forecast Sheet'!AC2:CE59,'Lactation #1'!$I$20,FALSE) -> 50.86964891 | AJ25: =HLOOKUP('Forecast Sheet'!AD2,'Forecast Sheet'!AD2:CF59,'Lactation #1'!$I$20,FALSE) -> 56.45667135 | AK25: =HLOOKUP('Forecast Sheet'!AE2,'Forecast Sheet'!AE2:CG59,'Lactation #1'!$I$20,FALSE) -> 60.83995726 | AL25: =HLOOKUP('Forecast Sheet'!AF2,'Forecast Sheet'!AF2:CH59,'Lactation #1'!$I$20,FALSE) -> 64.55051195 | AM25: =HLOOKUP('Forecast Sheet'!AG2,'Forecast Sheet'!AG2:CI59,'Lactation #1'!$I$20,FALSE) -> 67.94733132 | AN25: =HLOOKUP('Forecast Sheet'!AH2,'Forecast Sheet'!AH2:CJ59,'Lactation #1'!$I$20,FALSE) -> 72.27363929 | AO25: =HLOOKUP('Forecast Sheet'!AI2,'Forecast Sheet'!AI2:CK59,'Lactation #1'!$I$20,FALSE) -> 77.55620771 | AP25: =HLOOKUP('Forecast Sheet'!AJ2,'Forecast Sheet'!AJ2:CL59,'Lactation #1'!$I$20,FALSE) -> 81.6462997 | AQ25: =HLOOKUP('Forecast Sheet'!AK2,'Forecast Sheet'!AK2:CM59,'Lactation #1'!$I$20,FALSE) -> 85.7779432 | AR25: =HLOOKUP('Forecast Sheet'!AL2,'Forecast Sheet'!AL2:CN59,'Lactation #1'!$I$20,FALSE) -> 90.36615762 | AS25: =HLOOKUP('Forecast Sheet'!AM2,'Forecast Sheet'!AM2:CO59,'Lactation #1'!$I$20,FALSE) -> 93.04142462 | AT25: =HLOOKUP('Forecast Sheet'!AN2,'Forecast Sheet'!AN2:CP59,'Lactation #1'!$I$20,FALSE) -> 97.85103264 | AU25: =HLOOKUP('Forecast Sheet'!AO2,'Forecast Sheet'!AO2:CQ59,'Lactation #1'!$I$20,FALSE) -> 100.5322474 | AV25: =HLOOKUP('Forecast Sheet'!AP2,'Forecast Sheet'!AP2:CR59,'Lactation #1'!$I$20,FALSE) -> 99.3264036 | AW25: =HLOOKUP('Forecast Sheet'!AQ2,'Forecast Sheet'!AQ2:CS59,'Lactation #1'!$I$20,FALSE) -> 98.67705154 | AX25: =HLOOKUP('Forecast Sheet'!AR2,'Forecast Sheet'!AR2:CT59,'Lactation #1'!$I$20,FALSE) -> 96.48184607 | AY25: =HLOOKUP('Forecast Sheet'!AS2,'Forecast Sheet'!AS2:CU59,'Lactation #1'!$I$20,FALSE) -> 94.48450794 | AZ25: =HLOOKUP('Forecast Sheet'!AT2,'Forecast Sheet'!AT2:CV59,'Lactation #1'!$I$20,FALSE) -> 93.35243298 | BA25: =HLOOKUP('Forecast Sheet'!AU2,'Forecast Sheet'!AU2:CW59,'Lactation #1'!$I$20,FALSE) -> 93.46861233 | BB25: =HLOOKUP('Forecast Sheet'!AV2,'Forecast Sheet'!AV2:CX59,'Lactation #1'!$I$20,FALSE) -> 91.33148137 | BC25: =HLOOKUP('Forecast Sheet'!AW2,'Forecast Sheet'!AW2:CY59,'Lactation #1'!$I$20,FALSE) -> 89.58657359 | BD25: =HLOOKUP('Forecast Sheet'!AX2,'Forecast Sheet'!AX2:CZ59,'Lactation #1'!$I$20,FALSE) -> 88.80057104 | BE25: =HLOOKUP('Forecast Sheet'!AY2,'Forecast Sheet'!AY2:DA59,'Lactation #1'!$I$20,FALSE) -> 87.07543245 | BF25: =HLOOKUP('Forecast Sheet'!AZ2,'Forecast Sheet'!AZ2:DB59,'Lactation #1'!$I$20,FALSE) -> 85.67581007 | BG25: =HLOOKUP('Forecast Sheet'!BA2,'Forecast Sheet'!BA2:DC59,'Lactation #1'!$I$20,FALSE) -> 87.20832025 | BH25: =HLOOKUP('Forecast Sheet'!BB2,'Forecast Sheet'!BB2:DD59,'Lactation #1'!$I$20,FALSE) -> 88.2969449 | BI25: =HLOOKUP('Forecast Sheet'!BC2,'Forecast Sheet'!BC2:DE59,'Lactation #1'!$I$20,FALSE) -> 88.82713436 | BJ25: =HLOOKUP('Forecast Sheet'!BD2,'Forecast Sheet'!BD2:DF59,'Lactation #1'!$I$20,FALSE) -> 90.51165075 | BK25: =HLOOKUP('Forecast Sheet'!BE2,'Forecast Sheet'!BE2:DG59,'Lactation #1'!$I$20,FALSE) -> 90.46545431 | BL25: =HLOOKUP('Forecast Sheet'!BF2,'Forecast Sheet'!BF2:DH59,'Lactation #1'!$I$20,FALSE) -> 90.43627756
A26: 8 | B26: 211-240 | C26: Milking | D26: Pregnant | E26: 6 | I26: Monthly Milk Production (lbs) | J26: =HLOOKUP(J24,'RHA Data'!JM8:LO21,'Lactation #1'!$E$41,FALSE) -> 148595.1 | K26: =HLOOKUP(K24,'RHA Data'!JN8:LP21,'Lactation #1'!$E$41,FALSE) -> 146460.258 | L26: =HLOOKUP(L24,'RHA Data'!JO8:LQ21,'Lactation #1'!$E$41,FALSE) -> 138833.2485 | M26: =HLOOKUP(M24,'RHA Data'!JP8:LR21,'Lactation #1'!$E$41,FALSE) -> 130494.1221 | N26: =HLOOKUP(N24,'RHA Data'!JQ8:LS21,'Lactation #1'!$E$41,FALSE) -> 127684.2768 | O26: =HLOOKUP(O24,'RHA Data'!JR8:LT21,'Lactation #1'!$E$41,FALSE) -> 120272.565 | P26: =HLOOKUP(P24,'RHA Data'!JS8:LU21,'Lactation #1'!$E$41,FALSE) -> 114397.125 | Q26: =HLOOKUP(Q24,'RHA Data'!JT8:LV21,'Lactation #1'!$E$41,FALSE) -> 107043.8598 | R26: =HLOOKUP(R24,'RHA Data'!JU8:LW21,'Lactation #1'!$E$41,FALSE) -> 107118.7917 | S26: =HLOOKUP(S24,'RHA Data'!JV8:LX21,'Lactation #1'!$E$41,FALSE) -> 101182.4362 | T26: =HLOOKUP(T24,'RHA Data'!JW8:LY21,'Lactation #1'!$E$41,FALSE) -> 94753.02313 | U26: =HLOOKUP(U24,'RHA Data'!JX8:LZ21,'Lactation #1'!$E$41,FALSE) -> 89076.25604 | V26: =HLOOKUP(V24,'RHA Data'!JY8:MA21,'Lactation #1'!$E$41,FALSE) -> 86994.22636 | W26: =HLOOKUP(W24,'RHA Data'!JZ8:MB21,'Lactation #1'!$E$41,FALSE) -> 86898.94155 | X26: =HLOOKUP(X24,'RHA Data'!KA8:MC21,'Lactation #1'!$E$41,FALSE) -> 88291.56999 | Y26: =HLOOKUP(Y24,'RHA Data'!KB8:MD21,'Lactation #1'!$E$41,FALSE) -> 90357.54524 | Z26: =HLOOKUP(Z24,'RHA Data'!KC8:ME21,'Lactation #1'!$E$41,FALSE) -> 90958.86281 | AA26: =HLOOKUP(AA24,'RHA Data'!KD8:MF21,'Lactation #1'!$E$41,FALSE) -> 88946.4789 | AB26: =HLOOKUP(AB24,'RHA Data'!KE8:MG21,'Lactation #1'!$E$41,FALSE) -> 88480.77996 | AC26: =HLOOKUP(AC24,'RHA Data'!KF8:MH21,'Lactation #1'!$E$41,FALSE) -> 86701.64915 | AD26: =HLOOKUP(AD24,'RHA Data'!KG8:MI21,'Lactation #1'!$E$41,FALSE) -> 87033.36076 | AE26: =HLOOKUP(AE24,'RHA Data'!KH8:MJ21,'Lactation #1'!$E$41,FALSE) -> 86658.63178 | AF26: =HLOOKUP(AF24,'RHA Data'!KI8:MK21,'Lactation #1'!$E$41,FALSE) -> 89790.73627 | AG26: =HLOOKUP(AG24,'RHA Data'!KJ8:ML21,'Lactation #1'!$E$41,FALSE) -> 86230.31468 | AH26: =HLOOKUP(AH24,'RHA Data'!KK8:MM21,'Lactation #1'!$E$41,FALSE) -> 87380.82146 | AI26: =HLOOKUP(AI24,'RHA Data'!KL8:MN21,'Lactation #1'!$E$41,FALSE) -> 98396.78332 | AJ26: =HLOOKUP(AJ24,'RHA Data'!KM8:MO21,'Lactation #1'!$E$41,FALSE) -> 104697.4314 | AK26: =HLOOKUP(AK24,'RHA Data'!KN8:MP21,'Lactation #1'!$E$41,FALSE) -> 117338.2655 | AL26: =HLOOKUP(AL24,'RHA Data'!KO8:MQ21,'Lactation #1'!$E$41,FALSE) -> 133292.6756 | AM26: =HLOOKUP(AM24,'RHA Data'!KP8:MR21,'Lactation #1'!$E$41,FALSE) -> 142980.0662 | AN26: =HLOOKUP(AN24,'RHA Data'!KQ8:MS21,'Lactation #1'!$E$41,FALSE) -> 147901.2572 | AO26: =HLOOKUP(AO24,'RHA Data'!KR8:MT21,'Lactation #1'!$E$41,FALSE) -> 159416.653 | AP26: =HLOOKUP(AP24,'RHA Data'!KS8:MU21,'Lactation #1'!$E$41,FALSE) -> 173514.772 | AQ26: =HLOOKUP(AQ24,'RHA Data'!KT8:MV21,'Lactation #1'!$E$41,FALSE) -> 179883.8577 | AR26: =HLOOKUP(AR24,'RHA Data'!KU8:MW21,'Lactation #1'!$E$41,FALSE) -> 189177.5679 | AS26: =HLOOKUP(AS24,'RHA Data'!KV8:MX21,'Lactation #1'!$E$41,FALSE) -> 196223.0247 | AT26: =HLOOKUP(AT24,'RHA Data'!KW8:MY21,'Lactation #1'!$E$41,FALSE) -> 193615.8393 | AU26: =HLOOKUP(AU24,'RHA Data'!KX8:MZ21,'Lactation #1'!$E$41,FALSE) -> 190118.7002 | AV26: =HLOOKUP(AV24,'RHA Data'!KY8:NA21,'Lactation #1'!$E$41,FALSE) -> 189178.6837 | AW26: =HLOOKUP(AW24,'RHA Data'!KZ8:NB21,'Lactation #1'!$E$41,FALSE) -> 185113.5959 | AX26: =HLOOKUP(AX24,'RHA Data'!LA8:NC21,'Lactation #1'!$E$41,FALSE) -> 183573.98 | AY26: =HLOOKUP(AY24,'RHA Data'!LB8:ND21,'Lactation #1'!$E$41,FALSE) -> 183425.7728 | AZ26: =HLOOKUP(AZ24,'RHA Data'!LC8:NE21,'Lactation #1'!$E$41,FALSE) -> 178117.1526 | BA26: =HLOOKUP(BA24,'RHA Data'!LD8:NF21,'Lactation #1'!$E$41,FALSE) -> 173219.8883 | BB26: =HLOOKUP(BB24,'RHA Data'!LE8:NG21,'Lactation #1'!$E$41,FALSE) -> 170433.8979 | BC26: =HLOOKUP(BC24,'RHA Data'!LF8:NH21,'Lactation #1'!$E$41,FALSE) -> 169676.1459 | BD26: =HLOOKUP(BD24,'RHA Data'!LG8:NI21,'Lactation #1'!$E$41,FALSE) -> 167907.482 | BE26: =HLOOKUP(BE24,'RHA Data'!LH8:NJ21,'Lactation #1'!$E$41,FALSE) -> 163948.2869 | BF26: =HLOOKUP(BF24,'RHA Data'!LI8:NK21,'Lactation #1'!$E$41,FALSE) -> 162363.5397 | BG26: =HLOOKUP(BG24,'RHA Data'!LJ8:NL21,'Lactation #1'!$E$41,FALSE) -> 164969.6525 | BH26: =HLOOKUP(BH24,'RHA Data'!LK8:NM21,'Lactation #1'!$E$41,FALSE) -> 166163.1057 | BI26: =HLOOKUP(BI24,'RHA Data'!LL8:NN21,'Lactation #1'!$E$41,FALSE) -> 171115.7749 | BJ26: =HLOOKUP(BJ24,'RHA Data'!LM8:NO21,'Lactation #1'!$E$41,FALSE) -> 175269.1682 | BK26: =HLOOKUP(BK24,'RHA Data'!LN8:NP21,'Lactation #1'!$E$41,FALSE) -> 177143.321 | BL26: =HLOOKUP(BL24,'RHA Data'!LO8:NQ21,'Lactation #1'!$E$41,FALSE) -> 177530.8835
I27: Projected Feed Intake (lbs DM) | J27: =HLOOKUP(J24,'Projected DMI & Feed Cost'!JL6:LN19,'Lactation #1'!$E$41,FALSE) -> 100412.766 | K27: =HLOOKUP(K24,'Projected DMI & Feed Cost'!JM6:LO19,'Lactation #1'!$E$41,FALSE) -> 98975.87028 | L27: =HLOOKUP(L24,'Projected DMI & Feed Cost'!JN6:LP19,'Lactation #1'!$E$41,FALSE) -> 93824.33137 | M27: =HLOOKUP(M24,'Projected DMI & Feed Cost'!JO6:LQ19,'Lactation #1'!$E$41,FALSE) -> 88208.81707 | N27: =HLOOKUP(N24,'Projected DMI & Feed Cost'!JP6:LR19,'Lactation #1'!$E$41,FALSE) -> 86335.2016 | O27: =HLOOKUP(O24,'Projected DMI & Feed Cost'!JQ6:LS19,'Lactation #1'!$E$41,FALSE) -> 81331.48792 | P27: =HLOOKUP(P24,'Projected DMI & Feed Cost'!JR6:LT19,'Lactation #1'!$E$41,FALSE) -> 77379.29121 | Q27: =HLOOKUP(Q24,'Projected DMI & Feed Cost'!JS6:LU19,'Lactation #1'!$E$41,FALSE) -> 72422.57853 | R27: =HLOOKUP(R24,'Projected DMI & Feed Cost'!JT6:LV19,'Lactation #1'!$E$41,FALSE) -> 72492.07771 | S27: =HLOOKUP(S24,'Projected DMI & Feed Cost'!JU6:LW19,'Lactation #1'!$E$41,FALSE) -> 68469.64179 | T27: =HLOOKUP(T24,'Projected DMI & Feed Cost'!JV6:LX19,'Lactation #1'!$E$41,FALSE) -> 64130.96983 | U27: =HLOOKUP(U24,'Projected DMI & Feed Cost'!JW6:LY19,'Lactation #1'!$E$41,FALSE) -> 60291.46514 | V27: =HLOOKUP(V24,'Projected DMI & Feed Cost'!JX6:LZ19,'Lactation #1'!$E$41,FALSE) -> 58886.34619 | W27: =HLOOKUP(W24,'Projected DMI & Feed Cost'!JY6:MA19,'Lactation #1'!$E$41,FALSE) -> 58739.79896 | X27: =HLOOKUP(X24,'Projected DMI & Feed Cost'!JZ6:MB19,'Lactation #1'!$E$41,FALSE) -> 59608.22508 | Y27: =HLOOKUP(Y24,'Projected DMI & Feed Cost'!KA6:MC19,'Lactation #1'!$E$41,FALSE) -> 61085.74767 | Z27: =HLOOKUP(Z24,'Projected DMI & Feed Cost'!KB6:MD19,'Lactation #1'!$E$41,FALSE) -> 61471.92356 | AA27: =HLOOKUP(AA24,'Projected DMI & Feed Cost'!KC6:ME19,'Lactation #1'!$E$41,FALSE) -> 60063.25165 | AB27: =HLOOKUP(AB24,'Projected DMI & Feed Cost'!KD6:MF19,'Lactation #1'!$E$41,FALSE) -> 59752.10609 | AC27: =HLOOKUP(AC24,'Projected DMI & Feed Cost'!KE6:MG19,'Lactation #1'!$E$41,FALSE) -> 58638.30885 | AD27: =HLOOKUP(AD24,'Projected DMI & Feed Cost'!KF6:MH19,'Lactation #1'!$E$41,FALSE) -> 58848.75851 | AE27: =HLOOKUP(AE24,'Projected DMI & Feed Cost'!KG6:MI19,'Lactation #1'!$E$41,FALSE) -> 58496.00092 | AF27: =HLOOKUP(AF24,'Projected DMI & Feed Cost'!KH6:MJ19,'Lactation #1'!$E$41,FALSE) -> 60618.66943 | AG27: =HLOOKUP(AG24,'Projected DMI & Feed Cost'!KI6:MK19,'Lactation #1'!$E$41,FALSE) -> 58261.99478 | AH27: =HLOOKUP(AH24,'Projected DMI & Feed Cost'!KJ6:ML19,'Lactation #1'!$E$41,FALSE) -> 59045.31122 | AI27: =HLOOKUP(AI24,'Projected DMI & Feed Cost'!KK6:MM19,'Lactation #1'!$E$41,FALSE) -> 66467.96646 | AJ27: =HLOOKUP(AJ24,'Projected DMI & Feed Cost'!KL6:MN19,'Lactation #1'!$E$41,FALSE) -> 70794.00489 | AK27: =HLOOKUP(AK24,'Projected DMI & Feed Cost'!KM6:MO19,'Lactation #1'!$E$41,FALSE) -> 79268.45394 | AL27: =HLOOKUP(AL24,'Projected DMI & Feed Cost'!KN6:MP19,'Lactation #1'!$E$41,FALSE) -> 89909.68126 | AM27: =HLOOKUP(AM24,'Projected DMI & Feed Cost'!KO6:MQ19,'Lactation #1'!$E$41,FALSE) -> 96405.2636 | AN27: =HLOOKUP(AN24,'Projected DMI & Feed Cost'!KP6:MR19,'Lactation #1'!$E$41,FALSE) -> 99783.03893 | AO27: =HLOOKUP(AO24,'Projected DMI & Feed Cost'!KQ6:MS19,'Lactation #1'!$E$41,FALSE) -> 107541.6772 | AP27: =HLOOKUP(AP24,'Projected DMI & Feed Cost'!KR6:MT19,'Lactation #1'!$E$41,FALSE) -> 116969.1385 | AQ27: =HLOOKUP(AQ24,'Projected DMI & Feed Cost'!KS6:MU19,'Lactation #1'!$E$41,FALSE) -> 121296.6844 | AR27: =HLOOKUP(AR24,'Projected DMI & Feed Cost'!KT6:MV19,'Lactation #1'!$E$41,FALSE) -> 127568.1796 | AS27: =HLOOKUP(AS24,'Projected DMI & Feed Cost'!KU6:MW19,'Lactation #1'!$E$41,FALSE) -> 132298.4391 | AT27: =HLOOKUP(AT24,'Projected DMI & Feed Cost'!KV6:MX19,'Lactation #1'!$E$41,FALSE) -> 130721.9849 | AU27: =HLOOKUP(AU24,'Projected DMI & Feed Cost'!KW6:MY19,'Lactation #1'!$E$41,FALSE) -> 128494.3095 | AV27: =HLOOKUP(AV24,'Projected DMI & Feed Cost'!KX6:MZ19,'Lactation #1'!$E$41,FALSE) -> 127837.7233 | AW27: =HLOOKUP(AW24,'Projected DMI & Feed Cost'!KY6:NA19,'Lactation #1'!$E$41,FALSE) -> 125135.2849 | AX27: =HLOOKUP(AX24,'Projected DMI & Feed Cost'!KZ6:NB19,'Lactation #1'!$E$41,FALSE) -> 124053.2821 | AY27: =HLOOKUP(AY24,'Projected DMI & Feed Cost'!LA6:NC19,'Lactation #1'!$E$41,FALSE) -> 123895.5453 | AZ27: =HLOOKUP(AZ24,'Projected DMI & Feed Cost'!LB6:ND19,'Lactation #1'!$E$41,FALSE) -> 120357.8937 | BA27: =HLOOKUP(BA24,'Projected DMI & Feed Cost'!LC6:NE19,'Lactation #1'!$E$41,FALSE) -> 117129.1846 | BB27: =HLOOKUP(BB24,'Projected DMI & Feed Cost'!LD6:NF19,'Lactation #1'!$E$41,FALSE) -> 115226.317 | BC27: =HLOOKUP(BC24,'Projected DMI & Feed Cost'!LE6:NG19,'Lactation #1'!$E$41,FALSE) -> 114673.8535 | BD27: =HLOOKUP(BD24,'Projected DMI & Feed Cost'!LF6:NH19,'Lactation #1'!$E$41,FALSE) -> 113482.9552 | BE27: =HLOOKUP(BE24,'Projected DMI & Feed Cost'!LG6:NI19,'Lactation #1'!$E$41,FALSE) -> 110818.1323 | BF27: =HLOOKUP(BF24,'Projected DMI & Feed Cost'!LH6:NJ19,'Lactation #1'!$E$41,FALSE) -> 109730.2105 | BG27: =HLOOKUP(BG24,'Projected DMI & Feed Cost'!LI6:NK19,'Lactation #1'!$E$41,FALSE) -> 111496.2202 | BH27: =HLOOKUP(BH24,'Projected DMI & Feed Cost'!LJ6:NL19,'Lactation #1'!$E$41,FALSE) -> 112316.5581 | BI27: =HLOOKUP(BI24,'Projected DMI & Feed Cost'!LK6:NM19,'Lactation #1'!$E$41,FALSE) -> 115601.2255 | BJ27: =HLOOKUP(BJ24,'Projected DMI & Feed Cost'!LL6:NN19,'Lactation #1'!$E$41,FALSE) -> 118393.0005 | BK27: =HLOOKUP(BK24,'Projected DMI & Feed Cost'!LM6:NO19,'Lactation #1'!$E$41,FALSE) -> 119628.5555 | BL27: =HLOOKUP(BL24,'Projected DMI & Feed Cost'!LN6:NP19,'Lactation #1'!$E$41,FALSE) -> 119883.4714
A28: 9 | B28: 241-270 | C28: Milking | D28: Pregnant | E28: 6 | I28: Feed Cost ($) | J28: =HLOOKUP(J24,'Projected DMI & Feed Cost'!VK3:XN16,'Lactation #1'!$E$41,FALSE) -> 9037.14894 | K28: =HLOOKUP(K24,'Projected DMI & Feed Cost'!UL3:XN16,'Lactation #1'!$E$41,FALSE) -> 8907.828325 | L28: =HLOOKUP(L24,'Projected DMI & Feed Cost'!UL3:XN16,'Lactation #1'!$E$41,FALSE) -> 8444.189823 | M28: =HLOOKUP(M24,'Projected DMI & Feed Cost'!UL3:XN16,'Lactation #1'!$E$41,FALSE) -> 7938.793536 | N28: =HLOOKUP(N24,'Projected DMI & Feed Cost'!UL3:XN16,'Lactation #1'!$E$41,FALSE) -> 7770.168144 | O28: =HLOOKUP(O24,'Projected DMI & Feed Cost'!UL3:XN16,'Lactation #1'!$E$41,FALSE) -> 7319.833913 | P28: =HLOOKUP(P24,'Projected DMI & Feed Cost'!UL3:XN16,'Lactation #1'!$E$41,FALSE) -> 6964.136209 | Q28: =HLOOKUP(Q24,'Projected DMI & Feed Cost'!UL3:XN16,'Lactation #1'!$E$41,FALSE) -> 6518.032068 | R28: =HLOOKUP(R24,'Projected DMI & Feed Cost'!UL3:XN16,'Lactation #1'!$E$41,FALSE) -> 6524.286994 | S28: =HLOOKUP(S24,'Projected DMI & Feed Cost'!UL3:XN16,'Lactation #1'!$E$41,FALSE) -> 6162.267761 | T28: =HLOOKUP(T24,'Projected DMI & Feed Cost'!UL3:XN16,'Lactation #1'!$E$41,FALSE) -> 5771.787284 | U28: =HLOOKUP(U24,'Projected DMI & Feed Cost'!UL3:XN16,'Lactation #1'!$E$41,FALSE) -> 5426.231863 | V28: =HLOOKUP(V24,'Projected DMI & Feed Cost'!UL3:XN16,'Lactation #1'!$E$41,FALSE) -> 5299.771157 | W28: =HLOOKUP(W24,'Projected DMI & Feed Cost'!UL3:XN16,'Lactation #1'!$E$41,FALSE) -> 5286.581906 | X28: =HLOOKUP(X24,'Projected DMI & Feed Cost'!UL3:XN16,'Lactation #1'!$E$41,FALSE) -> 5364.740257 | Y28: =HLOOKUP(Y24,'Projected DMI & Feed Cost'!UL3:XN16,'Lactation #1'!$E$41,FALSE) -> 5497.71729 | Z28: =HLOOKUP(Z24,'Projected DMI & Feed Cost'!UL3:XN16,'Lactation #1'!$E$41,FALSE) -> 5532.473121 | AA28: =HLOOKUP(AA24,'Projected DMI & Feed Cost'!UL3:XN16,'Lactation #1'!$E$41,FALSE) -> 5405.692649 | AB28: =HLOOKUP(AB24,'Projected DMI & Feed Cost'!UL3:XN16,'Lactation #1'!$E$41,FALSE) -> 5377.689548 | AC28: =HLOOKUP(AC24,'Projected DMI & Feed Cost'!UL3:XN16,'Lactation #1'!$E$41,FALSE) -> 5277.447797 | AD28: =HLOOKUP(AD24,'Projected DMI & Feed Cost'!UL3:XN16,'Lactation #1'!$E$41,FALSE) -> 5296.388266 | AE28: =HLOOKUP(AE24,'Projected DMI & Feed Cost'!UL3:XN16,'Lactation #1'!$E$41,FALSE) -> 5264.640083 | AF28: =HLOOKUP(AF24,'Projected DMI & Feed Cost'!UL3:XN16,'Lactation #1'!$E$41,FALSE) -> 5455.680248 | AG28: =HLOOKUP(AG24,'Projected DMI & Feed Cost'!UL3:XN16,'Lactation #1'!$E$41,FALSE) -> 5243.57953 | AH28: =HLOOKUP(AH24,'Projected DMI & Feed Cost'!UL3:XN16,'Lactation #1'!$E$41,FALSE) -> 5314.07801 | AI28: =HLOOKUP(AI24,'Projected DMI & Feed Cost'!UL3:XN16,'Lactation #1'!$E$41,FALSE) -> 5982.116981 | AJ28: =HLOOKUP(AJ24,'Projected DMI & Feed Cost'!UL3:XN16,'Lactation #1'!$E$41,FALSE) -> 6371.46044 | AK28: =HLOOKUP(AK24,'Projected DMI & Feed Cost'!UL3:XN16,'Lactation #1'!$E$41,FALSE) -> 7134.160854 | AL28: =HLOOKUP(AL24,'Projected DMI & Feed Cost'!UL3:XN16,'Lactation #1'!$E$41,FALSE) -> 8091.871313 | AM28: =HLOOKUP(AM24,'Projected DMI & Feed Cost'!UL3:XN16,'Lactation #1'!$E$41,FALSE) -> 8676.473724 | AN28: =HLOOKUP(AN24,'Projected DMI & Feed Cost'!UL3:XN16,'Lactation #1'!$E$41,FALSE) -> 8980.473504 | AO28: =HLOOKUP(AO24,'Projected DMI & Feed Cost'!UL3:XN16,'Lactation #1'!$E$41,FALSE) -> 9678.750951 | AP28: =HLOOKUP(AP24,'Projected DMI & Feed Cost'!UL3:XN16,'Lactation #1'!$E$41,FALSE) -> 10527.22247 | AQ28: =HLOOKUP(AQ24,'Projected DMI & Feed Cost'!UM3:XO16,'Lactation #1'!$E$41,FALSE) -> 10916.70159 | AR28: =HLOOKUP(AR24,'Projected DMI & Feed Cost'!UN3:XP16,'Lactation #1'!$E$41,FALSE) -> 11481.13616 | AS28: =HLOOKUP(AS24,'Projected DMI & Feed Cost'!UO3:XQ16,'Lactation #1'!$E$41,FALSE) -> 11906.85952 | AT28: =HLOOKUP(AT24,'Projected DMI & Feed Cost'!UP3:XR16,'Lactation #1'!$E$41,FALSE) -> 11764.97864 | AU28: =HLOOKUP(AU24,'Projected DMI & Feed Cost'!UQ3:XS16,'Lactation #1'!$E$41,FALSE) -> 11564.48786 | AV28: =HLOOKUP(AV24,'Projected DMI & Feed Cost'!UR3:XT16,'Lactation #1'!$E$41,FALSE) -> 11505.3951 | AW28: =HLOOKUP(AW24,'Projected DMI & Feed Cost'!US3:XU16,'Lactation #1'!$E$41,FALSE) -> 11262.17564 | AX28: =HLOOKUP(AX24,'Projected DMI & Feed Cost'!UT3:XV16,'Lactation #1'!$E$41,FALSE) -> 11164.79539 | AY28: =HLOOKUP(AY24,'Projected DMI & Feed Cost'!UU3:XW16,'Lactation #1'!$E$41,FALSE) -> 11150.59907 | AZ28: =HLOOKUP(AZ24,'Projected DMI & Feed Cost'!UV3:XX16,'Lactation #1'!$E$41,FALSE) -> 10832.21044 | BA28: =HLOOKUP(BA24,'Projected DMI & Feed Cost'!UW3:XY16,'Lactation #1'!$E$41,FALSE) -> 10541.62662 | BB28: =HLOOKUP(BB24,'Projected DMI & Feed Cost'!UX3:XZ16,'Lactation #1'!$E$41,FALSE) -> 10370.36853 | BC28: =HLOOKUP(BC24,'Projected DMI & Feed Cost'!UY3:YA16,'Lactation #1'!$E$41,FALSE) -> 10320.64681 | BD28: =HLOOKUP(BD24,'Projected DMI & Feed Cost'!UZ3:YB16,'Lactation #1'!$E$41,FALSE) -> 10213.46597 | BE28: =HLOOKUP(BE24,'Projected DMI & Feed Cost'!VA3:YC16,'Lactation #1'!$E$41,FALSE) -> 9973.631907 | BF28: =HLOOKUP(BF24,'Projected DMI & Feed Cost'!VB3:YD16,'Lactation #1'!$E$41,FALSE) -> 9875.718946 | BG28: =HLOOKUP(BG24,'Projected DMI & Feed Cost'!VC3:YE16,'Lactation #1'!$E$41,FALSE) -> 10034.65982 | BH28: =HLOOKUP(BH24,'Projected DMI & Feed Cost'!VD3:YF16,'Lactation #1'!$E$41,FALSE) -> 10108.49023 | BI28: =HLOOKUP(BI24,'Projected DMI & Feed Cost'!VE3:YG16,'Lactation #1'!$E$41,FALSE) -> 10404.11029 | BJ28: =HLOOKUP(BJ24,'Projected DMI & Feed Cost'!VF3:YH16,'Lactation #1'!$E$41,FALSE) -> 10655.37005 | BK28: =HLOOKUP(BK24,'Projected DMI & Feed Cost'!VG3:YI16,'Lactation #1'!$E$41,FALSE) -> 10766.56999 | BL28: =HLOOKUP(BL24,'Projected DMI & Feed Cost'!VH3:YJ16,'Lactation #1'!$E$41,FALSE) -> 10789.51243
I29: Labor Cost ($) | J29: =HLOOKUP(J24,'Labor Cost'!JL7:LN20,'Lactation #1'!$E$41,FALSE) -> 5372.34435 | K29: =HLOOKUP(K24,'Labor Cost'!JM7:LO20,'Lactation #1'!$E$41,FALSE) -> 5295.16074 | L29: =HLOOKUP(L24,'Labor Cost'!JN7:LP20,'Lactation #1'!$E$41,FALSE) -> 5019.411933 | M29: =HLOOKUP(M24,'Labor Cost'!JO7:LQ20,'Lactation #1'!$E$41,FALSE) -> 4717.917074 | N29: =HLOOKUP(N24,'Labor Cost'!JP7:LR20,'Lactation #1'!$E$41,FALSE) -> 4616.329228 | O29: =HLOOKUP(O24,'Labor Cost'!JQ7:LS20,'Lactation #1'!$E$41,FALSE) -> 4348.364349 | P29: =HLOOKUP(P24,'Labor Cost'!JR7:LT20,'Lactation #1'!$E$41,FALSE) -> 4135.942223 | Q29: =HLOOKUP(Q24,'Labor Cost'!JS7:LU20,'Lactation #1'!$E$41,FALSE) -> 3870.090435 | R29: =HLOOKUP(R24,'Labor Cost'!JT7:LV20,'Lactation #1'!$E$41,FALSE) -> 3872.799542 | S29: =HLOOKUP(S24,'Labor Cost'!JU7:LW20,'Lactation #1'!$E$41,FALSE) -> 3658.175063 | T29: =HLOOKUP(T24,'Labor Cost'!JV7:LX20,'Lactation #1'!$E$41,FALSE) -> 3425.724459 | U29: =HLOOKUP(U24,'Labor Cost'!JW7:LY20,'Lactation #1'!$E$41,FALSE) -> 3220.485203 | V29: =HLOOKUP(V24,'Labor Cost'!JX7:LZ20,'Lactation #1'!$E$41,FALSE) -> 3145.210983 | W29: =HLOOKUP(W24,'Labor Cost'!JY7:MA20,'Lactation #1'!$E$41,FALSE) -> 3141.766032 | X29: =HLOOKUP(X24,'Labor Cost'!JZ7:MB20,'Lactation #1'!$E$41,FALSE) -> 3192.115468 | Y29: =HLOOKUP(Y24,'Labor Cost'!KA7:MC20,'Lactation #1'!$E$41,FALSE) -> 3266.809253 | Z29: =HLOOKUP(Z24,'Labor Cost'!KB7:MD20,'Lactation #1'!$E$41,FALSE) -> 3288.549439 | AA29: =HLOOKUP(AA24,'Labor Cost'!KC7:ME20,'Lactation #1'!$E$41,FALSE) -> 3215.793208 | AB29: =HLOOKUP(AB24,'Labor Cost'!KD7:MF20,'Lactation #1'!$E$41,FALSE) -> 3198.956213 | AC29: =HLOOKUP(AC24,'Labor Cost'!KE7:MG20,'Lactation #1'!$E$41,FALSE) -> 3134.633073 | AD29: =HLOOKUP(AD24,'Labor Cost'!KF7:MH20,'Lactation #1'!$E$41,FALSE) -> 3146.625858 | AE29: =HLOOKUP(AE24,'Labor Cost'!KG7:MI20,'Lactation #1'!$E$41,FALSE) -> 3133.077812 | AF29: =HLOOKUP(AF24,'Labor Cost'!KH7:MJ20,'Lactation #1'!$E$41,FALSE) -> 3246.3167 | AG29: =HLOOKUP(AG24,'Labor Cost'!KI7:MK20,'Lactation #1'!$E$41,FALSE) -> 3117.592329 | AH29: =HLOOKUP(AH24,'Labor Cost'!KJ7:ML20,'Lactation #1'!$E$41,FALSE) -> 3159.188039 | AI29: =HLOOKUP(AI24,'Labor Cost'!KK7:MM20,'Lactation #1'!$E$41,FALSE) -> 3557.461874 | AJ29: =HLOOKUP(AJ24,'Labor Cost'!KL7:MN20,'Lactation #1'!$E$41,FALSE) -> 3785.25708 | AK29: =HLOOKUP(AK24,'Labor Cost'!KM7:MO20,'Lactation #1'!$E$41,FALSE) -> 4242.27695 | AL29: =HLOOKUP(AL24,'Labor Cost'!KN7:MP20,'Lactation #1'!$E$41,FALSE) -> 4819.096678 | AM29: =HLOOKUP(AM24,'Labor Cost'!KO7:MQ20,'Lactation #1'!$E$41,FALSE) -> 5169.337014 | AN29: =HLOOKUP(AN24,'Labor Cost'!KP7:MR20,'Lactation #1'!$E$41,FALSE) -> 5347.258984 | AO29: =HLOOKUP(AO24,'Labor Cost'!KQ7:MS20,'Lactation #1'!$E$41,FALSE) -> 5763.589481 | AP29: =HLOOKUP(AP24,'Labor Cost'!KR7:MT20,'Lactation #1'!$E$41,FALSE) -> 6273.296395 | AQ29: =HLOOKUP(AQ24,'Labor Cost'!KS7:MU20,'Lactation #1'!$E$41,FALSE) -> 6503.565908 | AR29: =HLOOKUP(AR24,'Labor Cost'!KT7:MV20,'Lactation #1'!$E$41,FALSE) -> 6839.573029 | AS29: =HLOOKUP(AS24,'Labor Cost'!KU7:MW20,'Lactation #1'!$E$41,FALSE) -> 7094.296234 | AT29: =HLOOKUP(AT24,'Labor Cost'!KV7:MX20,'Lactation #1'!$E$41,FALSE) -> 7000.035402 | AU29: =HLOOKUP(AU24,'Labor Cost'!KW7:MY20,'Lactation #1'!$E$41,FALSE) -> 6873.59896 | AV29: =HLOOKUP(AV24,'Labor Cost'!KX7:MZ20,'Lactation #1'!$E$41,FALSE) -> 6839.613368 | AW29: =HLOOKUP(AW24,'Labor Cost'!KY7:NA20,'Lactation #1'!$E$41,FALSE) -> 6692.643171 | AX29: =HLOOKUP(AX24,'Labor Cost'!KZ7:NB20,'Lactation #1'!$E$41,FALSE) -> 6636.97951 | AY29: =HLOOKUP(AY24,'Labor Cost'!LA7:NC20,'Lactation #1'!$E$41,FALSE) -> 6631.621191 | AZ29: =HLOOKUP(AZ24,'Labor Cost'!LB7:ND20,'Lactation #1'!$E$41,FALSE) -> 6439.692013 | BA29: =HLOOKUP(BA24,'Labor Cost'!LC7:NE20,'Lactation #1'!$E$41,FALSE) -> 6262.635094 | BB29: =HLOOKUP(BB24,'Labor Cost'!LD7:NF20,'Lactation #1'!$E$41,FALSE) -> 6161.909702 | BC29: =HLOOKUP(BC24,'Labor Cost'!LE7:NG20,'Lactation #1'!$E$41,FALSE) -> 6134.513747 | BD29: =HLOOKUP(BD24,'Labor Cost'!LF7:NH20,'Lactation #1'!$E$41,FALSE) -> 6070.569031 | BE29: =HLOOKUP(BE24,'Labor Cost'!LG7:NI20,'Lactation #1'!$E$41,FALSE) -> 5927.427302 | BF29: =HLOOKUP(BF24,'Labor Cost'!LH7:NJ20,'Lactation #1'!$E$41,FALSE) -> 5870.131957 | BG29: =HLOOKUP(BG24,'Labor Cost'!LI7:NK20,'Lactation #1'!$E$41,FALSE) -> 5964.354009 | BH29: =HLOOKUP(BH24,'Labor Cost'!LJ7:NL20,'Lactation #1'!$E$41,FALSE) -> 6007.502414 | BI29: =HLOOKUP(BI24,'Labor Cost'!LK7:NM20,'Lactation #1'!$E$41,FALSE) -> 6186.562454 | BJ29: =HLOOKUP(BJ24,'Labor Cost'!LL7:NN20,'Lactation #1'!$E$41,FALSE) -> 6336.725273 | BK29: =HLOOKUP(BK24,'Labor Cost'!LM7:NO20,'Lactation #1'!$E$41,FALSE) -> 6404.483861 | BL29: =HLOOKUP(BL24,'Labor Cost'!LN7:NP20,'Lactation #1'!$E$41,FALSE) -> 6418.495892
A30: 10 | B30: 271-300 | C30: Milking | D30: Pregnant | E30: 6 | I30: Milk Income ($) | J30: =HLOOKUP(J24,'Milk Income'!JL6:LN19,'Lactation #1'!$E$41,FALSE) -> 22289.265 | K30: =HLOOKUP(K24,'Milk Income'!JM6:LO19,'Lactation #1'!$E$41,FALSE) -> 21969.0387 | L30: =HLOOKUP(L24,'Milk Income'!JN6:LP19,'Lactation #1'!$E$41,FALSE) -> 20824.98727 | M30: =HLOOKUP(M24,'Milk Income'!JO6:LQ19,'Lactation #1'!$E$41,FALSE) -> 19574.11831 | N30: =HLOOKUP(N24,'Milk Income'!JP6:LR19,'Lactation #1'!$E$41,FALSE) -> 19152.64152 | O30: =HLOOKUP(O24,'Milk Income'!JQ6:LS19,'Lactation #1'!$E$41,FALSE) -> 18040.88475 | P30: =HLOOKUP(P24,'Milk Income'!JR6:LT19,'Lactation #1'!$E$41,FALSE) -> 17159.56875 | Q30: =HLOOKUP(Q24,'Milk Income'!JS6:LU19,'Lactation #1'!$E$41,FALSE) -> 16056.57897 | R30: =HLOOKUP(R24,'Milk Income'!JT6:LV19,'Lactation #1'!$E$41,FALSE) -> 16067.81875 | S30: =HLOOKUP(S24,'Milk Income'!JU6:LW19,'Lactation #1'!$E$41,FALSE) -> 15177.36542 | T30: =HLOOKUP(T24,'Milk Income'!JV6:LX19,'Lactation #1'!$E$41,FALSE) -> 14212.95347 | U30: =HLOOKUP(U24,'Milk Income'!JW6:LY19,'Lactation #1'!$E$41,FALSE) -> 13361.43841 | V30: =HLOOKUP(V24,'Milk Income'!JX6:LZ19,'Lactation #1'!$E$41,FALSE) -> 13049.13395 | W30: =HLOOKUP(W24,'Milk Income'!JY6:MA19,'Lactation #1'!$E$41,FALSE) -> 13034.84123 | X30: =HLOOKUP(X24,'Milk Income'!JZ6:MB19,'Lactation #1'!$E$41,FALSE) -> 13243.7355 | Y30: =HLOOKUP(Y24,'Milk Income'!KA6:MC19,'Lactation #1'!$E$41,FALSE) -> 13553.63179 | Z30: =HLOOKUP(Z24,'Milk Income'!KB6:MD19,'Lactation #1'!$E$41,FALSE) -> 13643.82942 | AA30: =HLOOKUP(AA24,'Milk Income'!KC6:ME19,'Lactation #1'!$E$41,FALSE) -> 13341.97183 | AB30: =HLOOKUP(AB24,'Milk Income'!KD6:MF19,'Lactation #1'!$E$41,FALSE) -> 13272.11699 | AC30: =HLOOKUP(AC24,'Milk Income'!KE6:MG19,'Lactation #1'!$E$41,FALSE) -> 13005.24737 | AD30: =HLOOKUP(AD24,'Milk Income'!KF6:MH19,'Lactation #1'!$E$41,FALSE) -> 13055.00411 | AE30: =HLOOKUP(AE24,'Milk Income'!KG6:MI19,'Lactation #1'!$E$41,FALSE) -> 12998.79477 | AF30: =HLOOKUP(AF24,'Milk Income'!KH6:MJ19,'Lactation #1'!$E$41,FALSE) -> 13468.61044 | AG30: =HLOOKUP(AG24,'Milk Income'!KI6:MK19,'Lactation #1'!$E$41,FALSE) -> 12934.5472 | AH30: =HLOOKUP(AH24,'Milk Income'!KJ6:ML19,'Lactation #1'!$E$41,FALSE) -> 13107.12322 | AI30: =HLOOKUP(AI24,'Milk Income'!KK6:MM19,'Lactation #1'!$E$41,FALSE) -> 14759.5175 | AJ30: =HLOOKUP(AJ24,'Milk Income'!KL6:MN19,'Lactation #1'!$E$41,FALSE) -> 15704.61472 | AK30: =HLOOKUP(AK24,'Milk Income'!KM6:MO19,'Lactation #1'!$E$41,FALSE) -> 17600.73982 | AL30: =HLOOKUP(AL24,'Milk Income'!KN6:MP19,'Lactation #1'!$E$41,FALSE) -> 19993.90134 | AM30: =HLOOKUP(AM24,'Milk Income'!KO6:MQ19,'Lactation #1'!$E$41,FALSE) -> 21447.00992 | AN30: =HLOOKUP(AN24,'Milk Income'!KP6:MR19,'Lactation #1'!$E$41,FALSE) -> 22185.18858 | AO30: =HLOOKUP(AO24,'Milk Income'!KQ6:MS19,'Lactation #1'!$E$41,FALSE) -> 23912.49796 | AP30: =HLOOKUP(AP24,'Milk Income'!KR6:MT19,'Lactation #1'!$E$41,FALSE) -> 26027.2158 | AQ30: =HLOOKUP(AQ24,'Milk Income'!KS6:MU19,'Lactation #1'!$E$41,FALSE) -> 26982.57865 | AR30: =HLOOKUP(AR24,'Milk Income'!KT6:MV19,'Lactation #1'!$E$41,FALSE) -> 28376.63519 | AS30: =HLOOKUP(AS24,'Milk Income'!KU6:MW19,'Lactation #1'!$E$41,FALSE) -> 29433.45371 | AT30: =HLOOKUP(AT24,'Milk Income'!KV6:MX19,'Lactation #1'!$E$41,FALSE) -> 29042.3759 | AU30: =HLOOKUP(AU24,'Milk Income'!KW6:MY19,'Lactation #1'!$E$41,FALSE) -> 28517.80503 | AV30: =HLOOKUP(AV24,'Milk Income'!KX6:MZ19,'Lactation #1'!$E$41,FALSE) -> 28376.80255 | AW30: =HLOOKUP(AW24,'Milk Income'!KY6:NA19,'Lactation #1'!$E$41,FALSE) -> 27767.03939 | AX30: =HLOOKUP(AX24,'Milk Income'!KZ6:NB19,'Lactation #1'!$E$41,FALSE) -> 27536.09699 | AY30: =HLOOKUP(AY24,'Milk Income'!LA6:NC19,'Lactation #1'!$E$41,FALSE) -> 27513.86591 | AZ30: =HLOOKUP(AZ24,'Milk Income'!LB6:ND19,'Lactation #1'!$E$41,FALSE) -> 26717.5729 | BA30: =HLOOKUP(BA24,'Milk Income'!LC6:NE19,'Lactation #1'!$E$41,FALSE) -> 25982.98324 | BB30: =HLOOKUP(BB24,'Milk Income'!LD6:NF19,'Lactation #1'!$E$41,FALSE) -> 25565.08468 | BC30: =HLOOKUP(BC24,'Milk Income'!LE6:NG19,'Lactation #1'!$E$41,FALSE) -> 25451.42188 | BD30: =HLOOKUP(BD24,'Milk Income'!LF6:NH19,'Lactation #1'!$E$41,FALSE) -> 25186.1223 | BE30: =HLOOKUP(BE24,'Milk Income'!LG6:NI19,'Lactation #1'!$E$41,FALSE) -> 24592.24303 | BF30: =HLOOKUP(BF24,'Milk Income'!LH6:NJ19,'Lactation #1'!$E$41,FALSE) -> 24354.53096 | BG30: =HLOOKUP(BG24,'Milk Income'!LI6:NK19,'Lactation #1'!$E$41,FALSE) -> 24745.44787 | BH30: =HLOOKUP(BH24,'Milk Income'!LJ6:NL19,'Lactation #1'!$E$41,FALSE) -> 24924.46585 | BI30: =HLOOKUP(BI24,'Milk Income'!LK6:NM19,'Lactation #1'!$E$41,FALSE) -> 25667.36624 | BJ30: =HLOOKUP(BJ24,'Milk Income'!LL6:NN19,'Lactation #1'!$E$41,FALSE) -> 26290.37523 | BK30: =HLOOKUP(BK24,'Milk Income'!LM6:NO19,'Lactation #1'!$E$41,FALSE) -> 26571.49815 | BL30: =HLOOKUP(BL24,'Milk Income'!LN6:NP19,'Lactation #1'!$E$41,FALSE) -> 26629.63252
I31: Loan Ammortization ($) | J31: =IF('Final Summary'!$D$52<='Lactation #1'!J24,'Final Summary'!$D$59,0) -> 0 | K31: =IF('Final Summary'!$D$52<='Lactation #1'!K24,'Final Summary'!$D$59,0) -> 0 | L31: =IF('Final Summary'!$D$52<='Lactation #1'!L24,'Final Summary'!$D$59,0) -> 0 | M31: =IF('Final Summary'!$D$52<='Lactation #1'!M24,'Final Summary'!$D$59,0) -> 0 | N31: =IF('Final Summary'!$D$52<='Lactation #1'!N24,'Final Summary'!$D$59,0) -> 0 | O31: =IF('Final Summary'!$D$52<='Lactation #1'!O24,'Final Summary'!$D$59,0) -> 0 | P31: =IF('Final Summary'!$D$52<='Lactation #1'!P24,'Final Summary'!$D$59,0) -> 0 | Q31: =IF('Final Summary'!$D$52<='Lactation #1'!Q24,'Final Summary'!$D$59,0) -> 0 | R31: =IF('Final Summary'!$D$52<='Lactation #1'!R24,'Final Summary'!$D$59,0) -> 0 | S31: =IF('Final Summary'!$D$52<='Lactation #1'!S24,'Final Summary'!$D$59,0) -> 0 | T31: =IF('Final Summary'!$D$52<='Lactation #1'!T24,'Final Summary'!$D$59,0) -> 0 | U31: =IF('Final Summary'!$D$52<='Lactation #1'!U24,'Final Summary'!$D$59,0) -> 2451.26 | V31: =IF('Final Summary'!$D$52<='Lactation #1'!V24,'Final Summary'!$D$59,0) -> 2451.26 | W31: =IF('Final Summary'!$D$52<='Lactation #1'!W24,'Final Summary'!$D$59,0) -> 2451.26 | X31: =IF('Final Summary'!$D$52<='Lactation #1'!X24,'Final Summary'!$D$59,0) -> 2451.26 | Y31: =IF('Final Summary'!$D$52<='Lactation #1'!Y24,'Final Summary'!$D$59,0) -> 2451.26 | Z31: =IF('Final Summary'!$D$52<='Lactation #1'!Z24,'Final Summary'!$D$59,0) -> 2451.26 | AA31: =IF('Final Summary'!$D$52<='Lactation #1'!AA24,'Final Summary'!$D$59,0) -> 2451.26 | AB31: =IF('Final Summary'!$D$52<='Lactation #1'!AB24,'Final Summary'!$D$59,0) -> 2451.26 | AC31: =IF('Final Summary'!$D$52<='Lactation #1'!AC24,'Final Summary'!$D$59,0) -> 2451.26 | AD31: =IF('Final Summary'!$D$52<='Lactation #1'!AD24,'Final Summary'!$D$59,0) -> 2451.26 | AE31: =IF('Final Summary'!$D$52<='Lactation #1'!AE24,'Final Summary'!$D$59,0) -> 2451.26 | AF31: =IF('Final Summary'!$D$52<='Lactation #1'!AF24,'Final Summary'!$D$59,0) -> 2451.26 | AG31: =IF('Final Summary'!$D$52<='Lactation #1'!AG24,'Final Summary'!$D$59,0) -> 2451.26 | AH31: =IF('Final Summary'!$D$52<='Lactation #1'!AH24,'Final Summary'!$D$59,0) -> 2451.26 | AI31: =IF('Final Summary'!$D$52<='Lactation #1'!AI24,'Final Summary'!$D$59,0) -> 2451.26 | AJ31: =IF('Final Summary'!$D$52<='Lactation #1'!AJ24,'Final Summary'!$D$59,0) -> 2451.26 | AK31: =IF('Final Summary'!$D$52<='Lactation #1'!AK24,'Final Summary'!$D$59,0) -> 2451.26 | AL31: =IF('Final Summary'!$D$52<='Lactation #1'!AL24,'Final Summary'!$D$59,0) -> 2451.26 | AM31: =IF('Final Summary'!$D$52<='Lactation #1'!AM24,'Final Summary'!$D$59,0) -> 2451.26 | AN31: =IF('Final Summary'!$D$52<='Lactation #1'!AN24,'Final Summary'!$D$59,0) -> 2451.26 | AO31: =IF('Final Summary'!$D$52<='Lactation #1'!AO24,'Final Summary'!$D$59,0) -> 2451.26 | AP31: =IF('Final Summary'!$D$52<='Lactation #1'!AP24,'Final Summary'!$D$59,0) -> 2451.26 | AQ31: =IF('Final Summary'!$D$52<='Lactation #1'!AQ24,'Final Summary'!$D$59,0) -> 2451.26 | AR31: =IF('Final Summary'!$D$52<='Lactation #1'!AR24,'Final Summary'!$D$59,0) -> 2451.26 | AS31: =IF('Final Summary'!$D$52<='Lactation #1'!AS24,'Final Summary'!$D$59,0) -> 2451.26 | AT31: =IF('Final Summary'!$D$52<='Lactation #1'!AT24,'Final Summary'!$D$59,0) -> 2451.26 | AU31: =IF('Final Summary'!$D$52<='Lactation #1'!AU24,'Final Summary'!$D$59,0) -> 2451.26 | AV31: =IF('Final Summary'!$D$52<='Lactation #1'!AV24,'Final Summary'!$D$59,0) -> 2451.26 | AW31: =IF('Final Summary'!$D$52<='Lactation #1'!AW24,'Final Summary'!$D$59,0) -> 2451.26 | AX31: =IF('Final Summary'!$D$52<='Lactation #1'!AX24,'Final Summary'!$D$59,0) -> 2451.26 | AY31: =IF('Final Summary'!$D$52<='Lactation #1'!AY24,'Final Summary'!$D$59,0) -> 2451.26 | AZ31: =IF('Final Summary'!$D$52<='Lactation #1'!AZ24,'Final Summary'!$D$59,0) -> 2451.26 | BA31: =IF('Final Summary'!$D$52<='Lactation #1'!BA24,'Final Summary'!$D$59,0) -> 2451.26 | BB31: =IF('Final Summary'!$D$52<='Lactation #1'!BB24,'Final Summary'!$D$59,0) -> 2451.26 | BC31: =IF('Final Summary'!$D$52<='Lactation #1'!BC24,'Final Summary'!$D$59,0) -> 2451.26 | BD31: =IF('Final Summary'!$D$52<='Lactation #1'!BD24,'Final Summary'!$D$59,0) -> 2451.26 | BE31: =IF('Final Summary'!$D$52<='Lactation #1'!BE24,'Final Summary'!$D$59,0) -> 2451.26 | BF31: =IF('Final Summary'!$D$52<='Lactation #1'!BF24,'Final Summary'!$D$59,0) -> 2451.26 | BG31: =IF('Final Summary'!$D$52<='Lactation #1'!BG24,'Final Summary'!$D$59,0) -> 2451.26 | BH31: =IF('Final Summary'!$D$52<='Lactation #1'!BH24,'Final Summary'!$D$59,0) -> 2451.26 | BI31: =IF('Final Summary'!$D$52<='Lactation #1'!BI24,'Final Summary'!$D$59,0) -> 2451.26 | BJ31: =IF('Final Summary'!$D$52<='Lactation #1'!BJ24,'Final Summary'!$D$59,0) -> 2451.26 | BK31: =IF('Final Summary'!$D$52<='Lactation #1'!BK24,'Final Summary'!$D$59,0) -> 2451.26 | BL31: =IF('Final Summary'!$D$52<='Lactation #1'!BL24,'Final Summary'!$D$59,0) -> 2451.26
A32: 11 | B32: 301-330 | C32: Milking | D32: Pregnant | E32: 6 | I32: % 1st Lact. Cows in Herd | J32: ='Forecast Sheet'!D48/'Forecast Sheet'!D51 -> 0.3661971831 | K32: ='Forecast Sheet'!E48/'Forecast Sheet'!E51 -> 0.362418001 | L32: ='Forecast Sheet'!F48/'Forecast Sheet'!F51 -> 0.3546043278 | M32: ='Forecast Sheet'!G48/'Forecast Sheet'!G51 -> 0.3451802196 | N32: ='Forecast Sheet'!H48/'Forecast Sheet'!H51 -> 0.3441114256 | O32: ='Forecast Sheet'!I48/'Forecast Sheet'!I51 -> 0.329184867 | P32: ='Forecast Sheet'!J48/'Forecast Sheet'!J51 -> 0.3196194635 | Q32: ='Forecast Sheet'!K48/'Forecast Sheet'!K51 -> 0.3096908154 | R32: ='Forecast Sheet'!L48/'Forecast Sheet'!L51 -> 0.3130139178 | S32: ='Forecast Sheet'!M48/'Forecast Sheet'!M51 -> 0.3010650819 | T32: ='Forecast Sheet'!N48/'Forecast Sheet'!N51 -> 0.2898076591 | U32: ='Forecast Sheet'!O48/'Forecast Sheet'!O51 -> 0.2798561133 | V32: ='Forecast Sheet'!P48/'Forecast Sheet'!P51 -> 0.2777289556 | W32: ='Forecast Sheet'!Q48/'Forecast Sheet'!Q51 -> 0.2680799942 | X32: ='Forecast Sheet'!R48/'Forecast Sheet'!R51 -> 0.2648032217 | Y32: ='Forecast Sheet'!S48/'Forecast Sheet'!S51 -> 0.2880040994 | Z32: ='Forecast Sheet'!T48/'Forecast Sheet'!T51 -> 0.2934844101 | AA32: ='Forecast Sheet'!U48/'Forecast Sheet'!U51 -> 0.2872383119 | AB32: ='Forecast Sheet'!V48/'Forecast Sheet'!V51 -> 0.292593219 | AC32: ='Forecast Sheet'!W48/'Forecast Sheet'!W51 -> 0.3059651073 | AD32: ='Forecast Sheet'!X48/'Forecast Sheet'!X51 -> 0.3138270905 | AE32: ='Forecast Sheet'!Y48/'Forecast Sheet'!Y51 -> 0.2996841693 | AF32: ='Forecast Sheet'!Z48/'Forecast Sheet'!Z51 -> 0.3165134923 | AG32: ='Forecast Sheet'!AA48/'Forecast Sheet'!AA51 -> 0.3249882608 | AH32: ='Forecast Sheet'!AB48/'Forecast Sheet'!AB51 -> 0.3370530543 | AI32: ='Forecast Sheet'!AC48/'Forecast Sheet'!AC51 -> 0.3634795715 | AJ32: ='Forecast Sheet'!AD48/'Forecast Sheet'!AD51 -> 0.3944873588 | AK32: ='Forecast Sheet'!AE48/'Forecast Sheet'!AE51 -> 0.4179881604 | AL32: ='Forecast Sheet'!AF48/'Forecast Sheet'!AF51 -> 0.4309214677 | AM32: ='Forecast Sheet'!AG48/'Forecast Sheet'!AG51 -> 0.4513750516 | AN32: ='Forecast Sheet'!AH48/'Forecast Sheet'!AH51 -> 0.474513479 | AO32: ='Forecast Sheet'!AI48/'Forecast Sheet'!AI51 -> 0.5000009794 | AP32: ='Forecast Sheet'!AJ48/'Forecast Sheet'!AJ51 -> 0.5127602224 | AQ32: ='Forecast Sheet'!AK48/'Forecast Sheet'!AK51 -> 0.5330030954 | AR32: ='Forecast Sheet'!AL48/'Forecast Sheet'!AL51 -> 0.5539149504 | AS32: ='Forecast Sheet'!AM48/'Forecast Sheet'!AM51 -> 0.5636393398 | AT32: ='Forecast Sheet'!AN48/'Forecast Sheet'!AN51 -> 0.5835716855 | AU32: ='Forecast Sheet'!AO48/'Forecast Sheet'!AO51 -> 0.5947878671 | AV32: ='Forecast Sheet'!AP48/'Forecast Sheet'!AP51 -> 0.5801535055 | AW32: ='Forecast Sheet'!AQ48/'Forecast Sheet'!AQ51 -> 0.5695938234 | AX32: ='Forecast Sheet'!AR48/'Forecast Sheet'!AR51 -> 0.5561926252 | AY32: ='Forecast Sheet'!AS48/'Forecast Sheet'!AS51 -> 0.5342407302 | AZ32: ='Forecast Sheet'!AT48/'Forecast Sheet'!AT51 -> 0.5238312237 | BA32: ='Forecast Sheet'!AU48/'Forecast Sheet'!AU51 -> 0.5190659853 | BB32: ='Forecast Sheet'!AV48/'Forecast Sheet'!AV51 -> 0.5016230182 | BC32: ='Forecast Sheet'!AW48/'Forecast Sheet'!AW51 -> 0.4845708334 | BD32: ='Forecast Sheet'!AX48/'Forecast Sheet'!AX51 -> 0.474332872 | BE32: ='Forecast Sheet'!AY48/'Forecast Sheet'!AY51 -> 0.4658706077 | BF32: ='Forecast Sheet'!AZ48/'Forecast Sheet'!AZ51 -> 0.4537302519 | BG32: ='Forecast Sheet'!BA48/'Forecast Sheet'!BA51 -> 0.4494011794 | BH32: ='Forecast Sheet'!BB48/'Forecast Sheet'!BB51 -> 0.4464080597 | BI32: ='Forecast Sheet'!BC48/'Forecast Sheet'!BC51 -> 0.4428172512 | BJ32: ='Forecast Sheet'!BD48/'Forecast Sheet'!BD51 -> 0.4408218869 | BK32: ='Forecast Sheet'!BE48/'Forecast Sheet'!BE51 -> 0.4384693052 | BL32: ='Forecast Sheet'!BF48/'Forecast Sheet'!BF51 -> 0.4367565814
A34: 12 | B34: 0-30 | C34: Dry | D34: Pregnant | E34: 6 | I34: IOVC for each Lact. 1 Cow ($) | J34: =J35/J25 -> 101.0227142 | K34: =K35/K25 -> 100.7661819 | L34: 100.6392806 | M34: 99.64112881 | N34: 98.36518705 | O34: 97.9612035 | P34: 96.83880479 | Q34: 95.87884154 | R34: 94.84546941 | S34: 95.13642577 | T34: 94.39501467 | U34: 80.51344069 | V34: 80.0601536 | W34: 85.45329708 | X34: 90.68300247 | Y34: 84.49212934 | Z34: 85.54250751 | AA34: 88.6897334 | AB34: 88.09288479 | AC34: 81.46787088 | AD34: 81.94940989 | AE34: 89.13689361 | AF34: 88.24009139 | AG34: 83.92846077 | AH34: 83.13838998 | AI34: 85.0989893 | AJ34: 81.14020901 | AK34: 85.46528621 | AL34: 93.36305183 | AM34: 95.58523417 | AN34: 92.62436825 | AO34: 93.4099969 | AP34: 97.6135887 | AQ34: 96.2459774 | AR34: 96.25435746 | AS34: 97.27571809 | AT34: 90.41167665 | AU34: 85.76092471 | AV34: 86.68074841 | AW34: 85.28830052 | AX34: 86.76191113 | AY34: 89.13718134 | AZ34: 87.42807938 | BA34: 84.58835159 | BB34: 85.43820695 | BC34: 87.16096516 | BD34: 87.15455326 | BE34: 86.69740272 | BF34: 87.49808411 | BG34: 87.66176075 | BH34: 87.36668066 | BI34: 89.9638757 | BJ34: 90.79174651 | BK34: 92.03117465 | BL34: 92.34148607
I35: IOVC for all Lact. 1 Cows ($) | J35: =J30-(J31*J32)-J28-J29 -> 7879.77171 | K35: =K30-(K31*K32)-K28-K29 -> 7766.049635 | L35: 7361.385518 | M35: 6917.407699 | N35: 6766.144152 | O35: 6372.686493 | P35: 6059.490321 | Q35: 5668.456462 | R35: 5670.732215 | S35: 5356.9226 | T35: 5015.441727 | U35: 4028.721243 | V35: 3923.365935 | W35: 3949.359528 | X35: 4037.778228 | Y35: 4083.132314 | Z35: 4103.400266 | AA35: 4016.390193 | AB35: 3978.249179 | AC35: 3843.166473 | AD35: 3842.718197 | AE35: 3866.473054 | AF35: 3990.756629 | AG35: 3776.744619 | AH35: 3807.652501 | AI35: 4328.955708 | AJ35: 4580.906113 | AK35: 5199.70436 | AL35: 6026.632793 | AM35: 6494.761575 | AN35: 6694.300181 | AO35: 7244.525122 | AP35: 7969.788317 | AQ35: 8255.781983 | AR35: 8698.136438 | AS35: 9050.671393 | AT35: 8846.875923 | AU35: 8621.738501 | AV35: 8609.687001 | AW35: 8415.998026 | AX35: 8370.949354 | AY35: 8422.082718 | AZ35: 8161.623921 | BA35: 7906.355842 | BB35: 7803.198006 | BC35: 7808.452219 | BD35: 7739.374099 | BE35: 7549.213834 | BF35: 7496.469235 | BG35: 7644.834905 | BH35: 7714.210988 | BI35: 7991.233274 | BJ35: 8217.710851 | BK35: 8325.642026 | BL35: 8351.020264
A36: 13 | B36: 31-60 | C36: Dry | D36: Pregnant | E36: 6
D38: Total | E38: =SUM(E12:E36) -> 78
A41: RHA KEY: | D41: RHA Level (lb/cow/yr) | E41: 10
A42: 2 | B42: 18000
A43: 3 | B43: 19000 | D43: Milk Price ($ per cwt) | E43: ='Final Summary'!D12 -> 15
A44: 4 | B44: 20000
A45: 5 | B45: 21000 | D45: Feed Cost ($ per lb of DM) | E45: ='Final Summary'!D14 -> 0.09
A46: 6 | B46: 22000
A47: 7 | B47: 23000 | D47: Labor Cost ($ per Hour) | E47: ='Final Summary'!D16 -> 12
A48: 8 | B48: 24000
A49: 9 | B49: 25000 | D49: Cull Rate % (0-60 DIM) | E49: 0.13
A50: 10 | B50: 26000
A51: 11 | B51: 27000 | D51: Cull Rate % (61-330 DIM) | E51: 0.09
A52: 12 | B52: 28000
A53: 13 | B53: 29000 | D53: Cull Rate % (Dry Period) | E53: 0
A54: 14 | B54: 30000
D55: Heifers Calving This Month | E55: 6
D57: Purch. Heifers Calving This Month | E57: ='Final Summary'!H68 -> 0
D59: Total Cows Entering This Month | E59: =SUM(E55:E57)-'Final Summary'!H70 -> 6

Sheet Lactation #2
P1: Cow Movement Through Time
J2: 1 | K2: 2 | L2: 3 | M2: 4 | N2: 5 | O2: 6 | P2: 7 | Q2: 8 | R2: 9 | S2: 10 | T2: 11 | U2: 12 | V2: 13
J3: ='Forecast Sheet'!D22 -> 5
K4: ='Forecast Sheet'!E23 -> 4.675
L5: ='Forecast Sheet'!F24 -> 4.62825
M6: ='Forecast Sheet'!G25 -> 4.5819675
D7: Herd Criteria | N7: ='Forecast Sheet'!H26 -> 4.536147825
O8: ='Forecast Sheet'!I27 -> 4.490786347
P9: ='Forecast Sheet'!J28 -> 4.445878483
A10: Stage | B10: DIM | C10: Lactation State | D10: Reproductive State | E10: Inventory | Q10: ='Forecast Sheet'!K29 -> 4.401419698
R11: ='Forecast Sheet'!L30 -> 4.357405501
A12: 1 | B12: 0-30 | C12: Milking | D12: Open | E12: 5 | F12: (# of Cows) | S12: ='Forecast Sheet'!M31 -> 4.313831446
T13: ='Forecast Sheet'!N32 -> 4.270693132
A14: 2 | B14: 31-60 | C14: Milking | D14: Open | E14: 5 | U14: ='Forecast Sheet'!O33 -> 4.270693132
V15: ='Forecast Sheet'!P34 -> 4.270693132
A16: 3 | B16: 61-90 | C16: Milking | D16: Open | E16: 6
A18: 4 | B18: 91-120 | C18: Milking | D18: Open | E18: 7
A20: 5 | B20: 121-150 | C20: Milking | D20: Pregnant | E20: 6 | I20: 48
L21: 2nd Lactation Monthly Production, Cow Flow, & Cash Flow
A22: 6 | B22: 151-180 | C22: Milking | D22: Pregnant | E22: 7
A24: 7 | B24: 181-210 | C24: Milking | D24: Pregnant | E24: 7 | I24: Month | J24: 1 | K24: 2 | L24: 3 | M24: 4 | N24: 5 | O24: 6 | P24: 7 | Q24: 8 | R24: 9 | S24: 10 | T24: 11 | U24: 12 | V24: 13 | W24: 14 | X24: 15 | Y24: 16 | Z24: 17 | AA24: 18 | AB24: 19 | AC24: 20 | AD24: 21 | AE24: 22 | AF24: 23 | AG24: 24 | AH24: 25 | AI24: 26 | AJ24: 27 | AK24: 28 | AL24: 29 | AM24: 30 | AN24: 31 | AO24: 32 | AP24: 33 | AQ24: 34 | AR24: 35 | AS24: 36 | AT24: 37 | AU24: 38 | AV24: 39 | AW24: 40 | AX24: 41 | AY24: 42 | AZ24: 43 | BA24: 44 | BB24: 45 | BC24: 46 | BD24: 47 | BE24: 48 | BF24: 49 | BG24: 50 | BH24: 51 | BI24: 52 | BJ24: 53 | BK24: 54 | BL24: 55
I25: Lactation #2 Cows | J25: =HLOOKUP('Forecast Sheet'!D2,'Forecast Sheet'!D2:BF56,'Lactation #2'!$I$20,FALSE) -> 80 | K25: =HLOOKUP('Forecast Sheet'!E2,'Forecast Sheet'!E2:BG59,'Lactation #2'!$I$20,FALSE) -> 77.725 | L25: =HLOOKUP('Forecast Sheet'!F2,'Forecast Sheet'!F2:BH59,'Lactation #2'!$I$20,FALSE) -> 76.4484 | M25: =HLOOKUP('Forecast Sheet'!G2,'Forecast Sheet'!G2:BI59,'Lactation #2'!$I$20,FALSE) -> 75.173571 | N25: =HLOOKUP('Forecast Sheet'!H2,'Forecast Sheet'!H2:BJ59,'Lactation #2'!$I$20,FALSE) -> 71.92390524 | O25: =HLOOKUP('Forecast Sheet'!I2,'Forecast Sheet'!I2:BK59,'Lactation #2'!$I$20,FALSE) -> 71.66182436 | P25: =HLOOKUP('Forecast Sheet'!J2,'Forecast Sheet'!J2:BL59,'Lactation #2'!$I$20,FALSE) -> 71.41700462 | Q25: =HLOOKUP('Forecast Sheet'!K2,'Forecast Sheet'!K2:BM59,'Lactation #2'!$I$20,FALSE) -> 69.2585202 | R25: =HLOOKUP('Forecast Sheet'!L2,'Forecast Sheet'!L2:BN59,'Lactation #2'!$I$20,FALSE) -> 67.13596962 | S25: =HLOOKUP('Forecast Sheet'!M2,'Forecast Sheet'!M2:BO59,'Lactation #2'!$I$20,FALSE) -> 65.98110275 | T25: =HLOOKUP('Forecast Sheet'!N2,'Forecast Sheet'!N2:BP59,'Lactation #2'!$I$20,FALSE) -> 63.9015123 | U25: =HLOOKUP('Forecast Sheet'!O2,'Forecast Sheet'!O2:BQ59,'Lactation #2'!$I$20,FALSE) -> 62.75878546 | V25: =HLOOKUP('Forecast Sheet'!P2,'Forecast Sheet'!P2:BR59,'Lactation #2'!$I$20,FALSE) -> 62.54003022 | W25: =HLOOKUP('Forecast Sheet'!Q2,'Forecast Sheet'!Q2:BS59,'Lactation #2'!$I$20,FALSE) -> 62.29233002 | X25: =HLOOKUP('Forecast Sheet'!R2,'Forecast Sheet'!R2:BT59,'Lactation #2'!$I$20,FALSE) -> 61.54961378 | Y25: =HLOOKUP('Forecast Sheet'!S2,'Forecast Sheet'!S2:BU59,'Lactation #2'!$I$20,FALSE) -> 58.41602643 | Z25: =HLOOKUP('Forecast Sheet'!T2,'Forecast Sheet'!T2:BV59,'Lactation #2'!$I$20,FALSE) -> 55.44274281 | AA25: =HLOOKUP('Forecast Sheet'!U2,'Forecast Sheet'!U2:BW59,'Lactation #2'!$I$20,FALSE) -> 54.93381962 | AB25: =HLOOKUP('Forecast Sheet'!V2,'Forecast Sheet'!V2:BX59,'Lactation #2'!$I$20,FALSE) -> 51.95273492 | AC25: =HLOOKUP('Forecast Sheet'!W2,'Forecast Sheet'!W2:BY59,'Lactation #2'!$I$20,FALSE) -> 49.97199048 | AD25: =HLOOKUP('Forecast Sheet'!X2,'Forecast Sheet'!X2:BZ59,'Lactation #2'!$I$20,FALSE) -> 47.21521921 | AE25: =HLOOKUP('Forecast Sheet'!Y2,'Forecast Sheet'!Y2:CA59,'Lactation #2'!$I$20,FALSE) -> 47.74880667 | AF25: =HLOOKUP('Forecast Sheet'!Z2,'Forecast Sheet'!Z2:CB59,'Lactation #2'!$I$20,FALSE) -> 44.96851163 | AG25: =HLOOKUP('Forecast Sheet'!AA2,'Forecast Sheet'!AA2:CC59,'Lactation #2'!$I$20,FALSE) -> 42.43264497 | AH25: =HLOOKUP('Forecast Sheet'!AB2,'Forecast Sheet'!AB2:CD59,'Lactation #2'!$I$20,FALSE) -> 39.96122614 | AI25: =HLOOKUP('Forecast Sheet'!AC2,'Forecast Sheet'!AC2:CE59,'Lactation #2'!$I$20,FALSE) -> 39.1365349 | AJ25: =HLOOKUP('Forecast Sheet'!AD2,'Forecast Sheet'!AD2:CF59,'Lactation #2'!$I$20,FALSE) -> 36.90947098 | AK25: =HLOOKUP('Forecast Sheet'!AE2,'Forecast Sheet'!AE2:CG59,'Lactation #2'!$I$20,FALSE) -> 35.55957355 | AL25: =HLOOKUP('Forecast Sheet'!AF2,'Forecast Sheet'!AF2:CH59,'Lactation #2'!$I$20,FALSE) -> 38.59376707 | AM25: =HLOOKUP('Forecast Sheet'!AG2,'Forecast Sheet'!AG2:CI59,'Lactation #2'!$I$20,FALSE) -> 38.3090938 | AN25: =HLOOKUP('Forecast Sheet'!AH2,'Forecast Sheet'!AH2:CJ59,'Lactation #2'!$I$20,FALSE) -> 36.16617019 | AO25: =HLOOKUP('Forecast Sheet'!AI2,'Forecast Sheet'!AI2:CK59,'Lactation #2'!$I$20,FALSE) -> 36.06543069 | AP25: =HLOOKUP('Forecast Sheet'!AJ2,'Forecast Sheet'!AJ2:CL59,'Lactation #2'!$I$20,FALSE) -> 37.67409285 | AQ25: =HLOOKUP('Forecast Sheet'!AK2,'Forecast Sheet'!AK2:CM59,'Lactation #2'!$I$20,FALSE) -> 37.44834934 | AR25: =HLOOKUP('Forecast Sheet'!AL2,'Forecast Sheet'!AL2:CN59,'Lactation #2'!$I$20,FALSE) -> 34.64156198 | AS25: =HLOOKUP('Forecast Sheet'!AM2,'Forecast Sheet'!AM2:CO59,'Lactation #2'!$I$20,FALSE) -> 36.11846356 | AT25: =HLOOKUP('Forecast Sheet'!AN2,'Forecast Sheet'!AN2:CP59,'Lactation #2'!$I$20,FALSE) -> 35.93753904 | AU25: =HLOOKUP('Forecast Sheet'!AO2,'Forecast Sheet'!AO2:CQ59,'Lactation #2'!$I$20,FALSE) -> 36.5759546 | AV25: =HLOOKUP('Forecast Sheet'!AP2,'Forecast Sheet'!AP2:CR59,'Lactation #2'!$I$20,FALSE) -> 40.62549946 | AW25: =HLOOKUP('Forecast Sheet'!AQ2,'Forecast Sheet'!AQ2:CS59,'Lactation #2'!$I$20,FALSE) -> 45.08740518 | AX25: =HLOOKUP('Forecast Sheet'!AR2,'Forecast Sheet'!AR2:CT59,'Lactation #2'!$I$20,FALSE) -> 48.58798328 | AY25: =HLOOKUP('Forecast Sheet'!AS2,'Forecast Sheet'!AS2:CU59,'Lactation #2'!$I$20,FALSE) -> 51.55130505 | AZ25: =HLOOKUP('Forecast Sheet'!AT2,'Forecast Sheet'!AT2:CV59,'Lactation #2'!$I$20,FALSE) -> 54.26407163 | BA25: =HLOOKUP('Forecast Sheet'!AU2,'Forecast Sheet'!AU2:CW59,'Lactation #2'!$I$20,FALSE) -> 57.71914604 | BB25: =HLOOKUP('Forecast Sheet'!AV2,'Forecast Sheet'!AV2:CX59,'Lactation #2'!$I$20,FALSE) -> 61.9379088 | BC25: =HLOOKUP('Forecast Sheet'!AW2,'Forecast Sheet'!AW2:CY59,'Lactation #2'!$I$20,FALSE) -> 65.20433649 | BD25: =HLOOKUP('Forecast Sheet'!AX2,'Forecast Sheet'!AX2:CZ59,'Lactation #2'!$I$20,FALSE) -> 68.50394804 | BE25: =HLOOKUP('Forecast Sheet'!AY2,'Forecast Sheet'!AY2:DA59,'Lactation #2'!$I$20,FALSE) -> 72.16818607 | BF25: =HLOOKUP('Forecast Sheet'!AZ2,'Forecast Sheet'!AZ2:DB59,'Lactation #2'!$I$20,FALSE) -> 74.30470678 | BG25: =HLOOKUP('Forecast Sheet'!BA2,'Forecast Sheet'!BA2:DC59,'Lactation #2'!$I$20,FALSE) -> 78.14575408 | BH25: =HLOOKUP('Forecast Sheet'!BB2,'Forecast Sheet'!BB2:DD59,'Lactation #2'!$I$20,FALSE) -> 80.28702479 | BI25: =HLOOKUP('Forecast Sheet'!BC2,'Forecast Sheet'!BC2:DE59,'Lactation #2'!$I$20,FALSE) -> 79.32401427 | BJ25: =HLOOKUP('Forecast Sheet'!BD2,'Forecast Sheet'!BD2:DF59,'Lactation #2'!$I$20,FALSE) -> 78.80542898 | BK25: =HLOOKUP('Forecast Sheet'!BE2,'Forecast Sheet'!BE2:DG59,'Lactation #2'!$I$20,FALSE) -> 77.05229483 | BL25: =HLOOKUP('Forecast Sheet'!BF2,'Forecast Sheet'!BF2:DH59,'Lactation #2'!$I$20,FALSE) -> 75.45718142
A26: 8 | B26: 211-240 | C26: Milking | D26: Pregnant | E26: 5 | I26: Monthly Milk Production (lbs) | J26: =HLOOKUP(J24,'RHA Data'!JM24:LO37,'Lactation #2'!$E$41,FALSE) -> 175953 | K26: =HLOOKUP(K24,'RHA Data'!JN24:LP37,'Lactation #2'!$E$41,FALSE) -> 171713.6273 | L26: =HLOOKUP(L24,'RHA Data'!JO24:LQ37,'Lactation #2'!$E$41,FALSE) -> 164244.8719 | M26: =HLOOKUP(M24,'RHA Data'!JP24:LR37,'Lactation #2'!$E$41,FALSE) -> 162681.5186 | N26: =HLOOKUP(N24,'RHA Data'!JQ24:LS37,'Lactation #2'!$E$41,FALSE) -> 161172.2611 | O26: =HLOOKUP(O24,'RHA Data'!JR24:LT37,'Lactation #2'!$E$41,FALSE) -> 156213.3611 | P26: =HLOOKUP(P24,'RHA Data'!JS24:LU37,'Lactation #2'!$E$41,FALSE) -> 151590.692 | Q26: =HLOOKUP(Q24,'RHA Data'!JT24:LV37,'Lactation #2'!$E$41,FALSE) -> 149034.4299 | R26: =HLOOKUP(R24,'RHA Data'!JU24:LW37,'Lactation #2'!$E$41,FALSE) -> 144940.2247 | S26: =HLOOKUP(S24,'RHA Data'!JV24:LX37,'Lactation #2'!$E$41,FALSE) -> 142732.4276 | T26: =HLOOKUP(T24,'RHA Data'!JW24:LY37,'Lactation #2'!$E$41,FALSE) -> 142234.7541 | U26: =HLOOKUP(U24,'RHA Data'!JX24:LZ37,'Lactation #2'!$E$41,FALSE) -> 142124.6746 | V26: =HLOOKUP(V24,'RHA Data'!JY24:MA37,'Lactation #2'!$E$41,FALSE) -> 140897.9486 | W26: =HLOOKUP(W24,'RHA Data'!JZ24:MB37,'Lactation #2'!$E$41,FALSE) -> 138833.791 | X26: =HLOOKUP(X24,'RHA Data'!KA24:MC37,'Lactation #2'!$E$41,FALSE) -> 136754.8671 | Y26: =HLOOKUP(Y24,'RHA Data'!KB24:MD37,'Lactation #2'!$E$41,FALSE) -> 128473.4066 | Z26: =HLOOKUP(Z24,'RHA Data'!KC24:ME37,'Lactation #2'!$E$41,FALSE) -> 119787.3489 | AA26: =HLOOKUP(AA24,'RHA Data'!KD24:MF37,'Lactation #2'!$E$41,FALSE) -> 117687.5843 | AB26: =HLOOKUP(AB24,'RHA Data'!KE24:MG37,'Lactation #2'!$E$41,FALSE) -> 110274.0724 | AC26: =HLOOKUP(AC24,'RHA Data'!KF24:MH37,'Lactation #2'!$E$41,FALSE) -> 104784.1676 | AD26: =HLOOKUP(AD24,'RHA Data'!KG24:MI37,'Lactation #2'!$E$41,FALSE) -> 97687.81333 | AE26: =HLOOKUP(AE24,'RHA Data'!KH24:MJ37,'Lactation #2'!$E$41,FALSE) -> 99346.71234 | AF26: =HLOOKUP(AF24,'RHA Data'!KI24:MK37,'Lactation #2'!$E$41,FALSE) -> 93759.91166 | AG26: =HLOOKUP(AG24,'RHA Data'!KJ24:ML37,'Lactation #2'!$E$41,FALSE) -> 87879.13208 | AH26: =HLOOKUP(AH24,'RHA Data'!KK24:MM37,'Lactation #2'!$E$41,FALSE) -> 82639.56184 | AI26: =HLOOKUP(AI24,'RHA Data'!KL24:MN37,'Lactation #2'!$E$41,FALSE) -> 81824.30054 | AJ26: =HLOOKUP(AJ24,'RHA Data'!KM24:MO37,'Lactation #2'!$E$41,FALSE) -> 81144.96194 | AK26: =HLOOKUP(AK24,'RHA Data'!KN24:MP37,'Lactation #2'!$E$41,FALSE) -> 82174.33978 | AL26: =HLOOKUP(AL24,'RHA Data'!KO24:MQ37,'Lactation #2'!$E$41,FALSE) -> 85867.89712 | AM26: =HLOOKUP(AM24,'RHA Data'!KP24:MR37,'Lactation #2'!$E$41,FALSE) -> 85654.48756 | AN26: =HLOOKUP(AN24,'RHA Data'!KQ24:MS37,'Lactation #2'!$E$41,FALSE) -> 83326.41282 | AO26: =HLOOKUP(AO24,'RHA Data'!KR24:MT37,'Lactation #2'!$E$41,FALSE) -> 82153.47688 | AP26: =HLOOKUP(AP24,'RHA Data'!KS24:MU37,'Lactation #2'!$E$41,FALSE) -> 82318.02638 | AQ26: =HLOOKUP(AQ24,'RHA Data'!KT24:MV37,'Lactation #2'!$E$41,FALSE) -> 81942.08868 | AR26: =HLOOKUP(AR24,'RHA Data'!KU24:MW37,'Lactation #2'!$E$41,FALSE) -> 80921.47692 | AS26: =HLOOKUP(AS24,'RHA Data'!KV24:MX37,'Lactation #2'!$E$41,FALSE) -> 83876.95809 | AT26: =HLOOKUP(AT24,'RHA Data'!KW24:MY37,'Lactation #2'!$E$41,FALSE) -> 80534.39811 | AU26: =HLOOKUP(AU24,'RHA Data'!KX24:MZ37,'Lactation #2'!$E$41,FALSE) -> 81388.63291 | AV26: =HLOOKUP(AV24,'RHA Data'!KY24:NA37,'Lactation #2'!$E$41,FALSE) -> 93930.69262 | AW26: =HLOOKUP(AW24,'RHA Data'!KZ24:NB37,'Lactation #2'!$E$41,FALSE) -> 102347.4396 | AX26: =HLOOKUP(AX24,'RHA Data'!LA24:NC37,'Lactation #2'!$E$41,FALSE) -> 114821.0595 | AY26: =HLOOKUP(AY24,'RHA Data'!LB24:ND37,'Lactation #2'!$E$41,FALSE) -> 130669.1509 | AZ26: =HLOOKUP(AZ24,'RHA Data'!LC24:NE37,'Lactation #2'!$E$41,FALSE) -> 138912.2195 | BA26: =HLOOKUP(BA24,'RHA Data'!LD24:NF37,'Lactation #2'!$E$41,FALSE) -> 143621.9671 | BB26: =HLOOKUP(BB24,'RHA Data'!LE24:NG37,'Lactation #2'!$E$41,FALSE) -> 153799.3345 | BC26: =HLOOKUP(BC24,'RHA Data'!LF24:NH37,'Lactation #2'!$E$41,FALSE) -> 166616.6367 | BD26: =HLOOKUP(BD24,'RHA Data'!LG24:NI37,'Lactation #2'!$E$41,FALSE) -> 171415.8981 | BE26: =HLOOKUP(BE24,'RHA Data'!LH24:NJ37,'Lactation #2'!$E$41,FALSE) -> 178383.8152 | BF26: =HLOOKUP(BF24,'RHA Data'!LI24:NK37,'Lactation #2'!$E$41,FALSE) -> 183287.8492 | BG26: =HLOOKUP(BG24,'RHA Data'!LJ24:NL37,'Lactation #2'!$E$41,FALSE) -> 181220.8589 | BH26: =HLOOKUP(BH24,'RHA Data'!LK24:NM37,'Lactation #2'!$E$41,FALSE) -> 177622.8306 | BI26: =HLOOKUP(BI24,'RHA Data'!LL24:NN37,'Lactation #2'!$E$41,FALSE) -> 176787.9304 | BJ26: =HLOOKUP(BJ24,'RHA Data'!LM24:NO37,'Lactation #2'!$E$41,FALSE) -> 173637.4207 | BK26: =HLOOKUP(BK24,'RHA Data'!LN24:NP37,'Lactation #2'!$E$41,FALSE) -> 171153.6856 | BL26: =HLOOKUP(BL24,'RHA Data'!LO24:NQ37,'Lactation #2'!$E$41,FALSE) -> 170929.1861
I27: Projected Feed Intake (lbs DM) | J27: =HLOOKUP(J24,'Projected DMI & Feed Cost'!JL22:LN35,'Lactation #2'!$E$41,FALSE) -> 118528.98 | K27: =HLOOKUP(K24,'Projected DMI & Feed Cost'!JM22:LO35,'Lactation #2'!$E$41,FALSE) -> 115662.744 | L27: =HLOOKUP(L24,'Projected DMI & Feed Cost'!JN22:LP35,'Lactation #2'!$E$41,FALSE) -> 110695.0674 | M27: =HLOOKUP(M24,'Projected DMI & Feed Cost'!JO22:LQ35,'Lactation #2'!$E$41,FALSE) -> 109625.0094 | N27: =HLOOKUP(N24,'Projected DMI & Feed Cost'!JP22:LR35,'Lactation #2'!$E$41,FALSE) -> 108531.4095 | O27: =HLOOKUP(O24,'Projected DMI & Feed Cost'!JQ22:LS35,'Lactation #2'!$E$41,FALSE) -> 105250.673 | P27: =HLOOKUP(P24,'Projected DMI & Feed Cost'!JR22:LT35,'Lactation #2'!$E$41,FALSE) -> 102192.3669 | Q27: =HLOOKUP(Q24,'Projected DMI & Feed Cost'!JS22:LU35,'Lactation #2'!$E$41,FALSE) -> 100440.4793 | R27: =HLOOKUP(R24,'Projected DMI & Feed Cost'!JT22:LV35,'Lactation #2'!$E$41,FALSE) -> 97674.62741 | S27: =HLOOKUP(S24,'Projected DMI & Feed Cost'!JU22:LW35,'Lactation #2'!$E$41,FALSE) -> 96182.83532 | T27: =HLOOKUP(T24,'Projected DMI & Feed Cost'!JV22:LX35,'Lactation #2'!$E$41,FALSE) -> 95791.98307 | U27: =HLOOKUP(U24,'Projected DMI & Feed Cost'!JW22:LY35,'Lactation #2'!$E$41,FALSE) -> 95685.0488 | V27: =HLOOKUP(V24,'Projected DMI & Feed Cost'!JX22:LZ35,'Lactation #2'!$E$41,FALSE) -> 94868.847 | W27: =HLOOKUP(W24,'Projected DMI & Feed Cost'!JY22:MA35,'Lactation #2'!$E$41,FALSE) -> 93499.07193 | X27: =HLOOKUP(X24,'Projected DMI & Feed Cost'!JZ22:MB35,'Lactation #2'!$E$41,FALSE) -> 92104.7007 | Y27: =HLOOKUP(Y24,'Projected DMI & Feed Cost'!KA22:MC35,'Lactation #2'!$E$41,FALSE) -> 86544.92917 | Z27: =HLOOKUP(Z24,'Projected DMI & Feed Cost'!KB22:MD35,'Lactation #2'!$E$41,FALSE) -> 80722.93258 | AA27: =HLOOKUP(AA24,'Projected DMI & Feed Cost'!KC22:ME35,'Lactation #2'!$E$41,FALSE) -> 79321.82024 | AB27: =HLOOKUP(AB24,'Projected DMI & Feed Cost'!KD22:MF35,'Lactation #2'!$E$41,FALSE) -> 74339.46985 | AC27: =HLOOKUP(AC24,'Projected DMI & Feed Cost'!KE22:MG35,'Lactation #2'!$E$41,FALSE) -> 70656.7103 | AD27: =HLOOKUP(AD24,'Projected DMI & Feed Cost'!KF22:MH35,'Lactation #2'!$E$41,FALSE) -> 65890.41338 | AE27: =HLOOKUP(AE24,'Projected DMI & Feed Cost'!KG22:MI35,'Lactation #2'!$E$41,FALSE) -> 67001.29435 | AF27: =HLOOKUP(AF24,'Projected DMI & Feed Cost'!KH22:MJ35,'Lactation #2'!$E$41,FALSE) -> 63230.59705 | AG27: =HLOOKUP(AG24,'Projected DMI & Feed Cost'!KI22:MK35,'Lactation #2'!$E$41,FALSE) -> 59273.20652 | AH27: =HLOOKUP(AH24,'Projected DMI & Feed Cost'!KJ22:ML35,'Lactation #2'!$E$41,FALSE) -> 55740.9476 | AI27: =HLOOKUP(AI24,'Projected DMI & Feed Cost'!KK22:MM35,'Lactation #2'!$E$41,FALSE) -> 55178.13441 | AJ27: =HLOOKUP(AJ24,'Projected DMI & Feed Cost'!KL22:MN35,'Lactation #2'!$E$41,FALSE) -> 54662.95901 | AK27: =HLOOKUP(AK24,'Projected DMI & Feed Cost'!KM22:MO35,'Lactation #2'!$E$41,FALSE) -> 55301.85146 | AL27: =HLOOKUP(AL24,'Projected DMI & Feed Cost'!KN22:MP35,'Lactation #2'!$E$41,FALSE) -> 57830.62511 | AM27: =HLOOKUP(AM24,'Projected DMI & Feed Cost'!KO22:MQ35,'Lactation #2'!$E$41,FALSE) -> 57681.23461 | AN27: =HLOOKUP(AN24,'Projected DMI & Feed Cost'!KP22:MR35,'Lactation #2'!$E$41,FALSE) -> 56080.41756 | AO27: =HLOOKUP(AO24,'Projected DMI & Feed Cost'!KQ22:MS35,'Lactation #2'!$E$41,FALSE) -> 55303.25766 | AP27: =HLOOKUP(AP24,'Projected DMI & Feed Cost'!KR22:MT35,'Lactation #2'!$E$41,FALSE) -> 55460.1202 | AQ27: =HLOOKUP(AQ24,'Projected DMI & Feed Cost'!KS22:MU35,'Lactation #2'!$E$41,FALSE) -> 55205.22901 | AR27: =HLOOKUP(AR24,'Projected DMI & Feed Cost'!KT22:MV35,'Lactation #2'!$E$41,FALSE) -> 54447.42163 | AS27: =HLOOKUP(AS24,'Projected DMI & Feed Cost'!KU22:MW35,'Lactation #2'!$E$41,FALSE) -> 56442.34625 | AT27: =HLOOKUP(AT24,'Projected DMI & Feed Cost'!KV22:MX35,'Lactation #2'!$E$41,FALSE) -> 54230.82892 | AU27: =HLOOKUP(AU24,'Projected DMI & Feed Cost'!KW22:MY35,'Lactation #2'!$E$41,FALSE) -> 54813.77636 | AV27: =HLOOKUP(AV24,'Projected DMI & Feed Cost'!KX22:MZ35,'Lactation #2'!$E$41,FALSE) -> 63213.02212 | AW27: =HLOOKUP(AW24,'Projected DMI & Feed Cost'!KY22:NA35,'Lactation #2'!$E$41,FALSE) -> 68901.93229 | AX27: =HLOOKUP(AX24,'Projected DMI & Feed Cost'!KZ22:NB35,'Lactation #2'!$E$41,FALSE) -> 77239.53877 | AY27: =HLOOKUP(AY24,'Projected DMI & Feed Cost'!LA22:NC35,'Lactation #2'!$E$41,FALSE) -> 87788.17878 | AZ27: =HLOOKUP(AZ24,'Projected DMI & Feed Cost'!LB22:ND35,'Lactation #2'!$E$41,FALSE) -> 93309.98702 | BA27: =HLOOKUP(BA24,'Projected DMI & Feed Cost'!LC22:NE35,'Lactation #2'!$E$41,FALSE) -> 96522.07268 | BB27: =HLOOKUP(BB24,'Projected DMI & Feed Cost'!LD22:NF35,'Lactation #2'!$E$41,FALSE) -> 103365.698 | BC27: =HLOOKUP(BC24,'Projected DMI & Feed Cost'!LE22:NG35,'Lactation #2'!$E$41,FALSE) -> 111923.1103 | BD27: =HLOOKUP(BD24,'Projected DMI & Feed Cost'!LF22:NH35,'Lactation #2'!$E$41,FALSE) -> 115189.6112 | BE27: =HLOOKUP(BE24,'Projected DMI & Feed Cost'!LG22:NI35,'Lactation #2'!$E$41,FALSE) -> 119898.3636 | BF27: =HLOOKUP(BF24,'Projected DMI & Feed Cost'!LH22:NJ35,'Lactation #2'!$E$41,FALSE) -> 123199.1217 | BG27: =HLOOKUP(BG24,'Projected DMI & Feed Cost'!LI22:NK35,'Lactation #2'!$E$41,FALSE) -> 121950.1395 | BH27: =HLOOKUP(BH24,'Projected DMI & Feed Cost'!LJ22:NL35,'Lactation #2'!$E$41,FALSE) -> 119639.679 | BI27: =HLOOKUP(BI24,'Projected DMI & Feed Cost'!LK22:NM35,'Lactation #2'!$E$41,FALSE) -> 119059.7545 | BJ27: =HLOOKUP(BJ24,'Projected DMI & Feed Cost'!LL22:NN35,'Lactation #2'!$E$41,FALSE) -> 116964.8605 | BK27: =HLOOKUP(BK24,'Projected DMI & Feed Cost'!LM22:NO35,'Lactation #2'!$E$41,FALSE) -> 115273.0013 | BL27: =HLOOKUP(BL24,'Projected DMI & Feed Cost'!LN22:NP35,'Lactation #2'!$E$41,FALSE) -> 115076.9783
A28: 9 | B28: 241-270 | C28: Milking | D28: Pregnant | E28: 5 | I28: Feed Cost ($) | J28: =HLOOKUP(J24,'Projected DMI & Feed Cost'!VK19:XN32,'Lactation #2'!$E$41,FALSE) -> 10667.6082 | K28: =HLOOKUP(K24,'Projected DMI & Feed Cost'!UL19:XN32,'Lactation #2'!$E$41,FALSE) -> 10409.64696 | L28: =HLOOKUP(L24,'Projected DMI & Feed Cost'!UL19:XN32,'Lactation #2'!$E$41,FALSE) -> 9962.55607 | M28: =HLOOKUP(M24,'Projected DMI & Feed Cost'!UL19:XN32,'Lactation #2'!$E$41,FALSE) -> 9866.250848 | N28: =HLOOKUP(N24,'Projected DMI & Feed Cost'!UL19:XN32,'Lactation #2'!$E$41,FALSE) -> 9767.826855 | O28: =HLOOKUP(O24,'Projected DMI & Feed Cost'!UL19:XN32,'Lactation #2'!$E$41,FALSE) -> 9472.560572 | P28: =HLOOKUP(P24,'Projected DMI & Feed Cost'!UL19:XN32,'Lactation #2'!$E$41,FALSE) -> 9197.313017 | Q28: =HLOOKUP(Q24,'Projected DMI & Feed Cost'!UL19:XN32,'Lactation #2'!$E$41,FALSE) -> 9039.643139 | R28: =HLOOKUP(R24,'Projected DMI & Feed Cost'!UL19:XN32,'Lactation #2'!$E$41,FALSE) -> 8790.716467 | S28: =HLOOKUP(S24,'Projected DMI & Feed Cost'!UL19:XN32,'Lactation #2'!$E$41,FALSE) -> 8656.455179 | T28: =HLOOKUP(T24,'Projected DMI & Feed Cost'!UL19:XN32,'Lactation #2'!$E$41,FALSE) -> 8621.278477 | U28: =HLOOKUP(U24,'Projected DMI & Feed Cost'!UL19:XN32,'Lactation #2'!$E$41,FALSE) -> 8611.654392 | V28: =HLOOKUP(V24,'Projected DMI & Feed Cost'!UL19:XN32,'Lactation #2'!$E$41,FALSE) -> 8538.19623 | W28: =HLOOKUP(W24,'Projected DMI & Feed Cost'!UL19:XN32,'Lactation #2'!$E$41,FALSE) -> 8414.916474 | X28: =HLOOKUP(X24,'Projected DMI & Feed Cost'!UL19:XN32,'Lactation #2'!$E$41,FALSE) -> 8289.423063 | Y28: =HLOOKUP(Y24,'Projected DMI & Feed Cost'!UL19:XN32,'Lactation #2'!$E$41,FALSE) -> 7789.043626 | Z28: =HLOOKUP(Z24,'Projected DMI & Feed Cost'!UL19:XN32,'Lactation #2'!$E$41,FALSE) -> 7265.063932 | AA28: =HLOOKUP(AA24,'Projected DMI & Feed Cost'!UL19:XN32,'Lactation #2'!$E$41,FALSE) -> 7138.963821 | AB28: =HLOOKUP(AB24,'Projected DMI & Feed Cost'!UL19:XN32,'Lactation #2'!$E$41,FALSE) -> 6690.552286 | AC28: =HLOOKUP(AC24,'Projected DMI & Feed Cost'!UL19:XN32,'Lactation #2'!$E$41,FALSE) -> 6359.103927 | AD28: =HLOOKUP(AD24,'Projected DMI & Feed Cost'!UL19:XN32,'Lactation #2'!$E$41,FALSE) -> 5930.137204 | AE28: =HLOOKUP(AE24,'Projected DMI & Feed Cost'!UL19:XN32,'Lactation #2'!$E$41,FALSE) -> 6030.116491 | AF28: =HLOOKUP(AF24,'Projected DMI & Feed Cost'!UL19:XN32,'Lactation #2'!$E$41,FALSE) -> 5690.753734 | AG28: =HLOOKUP(AG24,'Projected DMI & Feed Cost'!UL19:XN32,'Lactation #2'!$E$41,FALSE) -> 5334.588587 | AH28: =HLOOKUP(AH24,'Projected DMI & Feed Cost'!UL19:XN32,'Lactation #2'!$E$41,FALSE) -> 5016.685284 | AI28: =HLOOKUP(AI24,'Projected DMI & Feed Cost'!UL19:XN32,'Lactation #2'!$E$41,FALSE) -> 4966.032097 | AJ28: =HLOOKUP(AJ24,'Projected DMI & Feed Cost'!UL19:XN32,'Lactation #2'!$E$41,FALSE) -> 4919.666311 | AK28: =HLOOKUP(AK24,'Projected DMI & Feed Cost'!UL19:XN32,'Lactation #2'!$E$41,FALSE) -> 4977.166632 | AL28: =HLOOKUP(AL24,'Projected DMI & Feed Cost'!UL19:XN32,'Lactation #2'!$E$41,FALSE) -> 5204.75626 | AM28: =HLOOKUP(AM24,'Projected DMI & Feed Cost'!UL19:XN32,'Lactation #2'!$E$41,FALSE) -> 5191.311115 | AN28: =HLOOKUP(AN24,'Projected DMI & Feed Cost'!UL19:XN32,'Lactation #2'!$E$41,FALSE) -> 5047.237581 | AO28: =HLOOKUP(AO24,'Projected DMI & Feed Cost'!UL19:XN32,'Lactation #2'!$E$41,FALSE) -> 4977.29319 | AP28: =HLOOKUP(AP24,'Projected DMI & Feed Cost'!UL19:XN32,'Lactation #2'!$E$41,FALSE) -> 4991.410818 | AQ28: =HLOOKUP(AQ24,'Projected DMI & Feed Cost'!UL19:XN32,'Lactation #2'!$E$41,FALSE) -> 4968.470611 | AR28: =HLOOKUP(AR24,'Projected DMI & Feed Cost'!UL19:XN32,'Lactation #2'!$E$41,FALSE) -> 4900.267946 | AS28: =HLOOKUP(AS24,'Projected DMI & Feed Cost'!UL19:XN32,'Lactation #2'!$E$41,FALSE) -> 5079.811162 | AT28: =HLOOKUP(AT24,'Projected DMI & Feed Cost'!UL19:XN32,'Lactation #2'!$E$41,FALSE) -> 4880.774603 | AU28: =HLOOKUP(AU24,'Projected DMI & Feed Cost'!UL19:XN32,'Lactation #2'!$E$41,FALSE) -> 4933.239873 | AV28: =HLOOKUP(AV24,'Projected DMI & Feed Cost'!UL19:XN32,'Lactation #2'!$E$41,FALSE) -> 5689.17199 | AW28: =HLOOKUP(AW24,'Projected DMI & Feed Cost'!UL19:XN32,'Lactation #2'!$E$41,FALSE) -> 6201.173906 | AX28: =HLOOKUP(AX24,'Projected DMI & Feed Cost'!UL19:XN32,'Lactation #2'!$E$41,FALSE) -> 6951.55849 | AY28: =HLOOKUP(AY24,'Projected DMI & Feed Cost'!UL19:XN32,'Lactation #2'!$E$41,FALSE) -> 7900.93609 | AZ28: =HLOOKUP(AZ24,'Projected DMI & Feed Cost'!UL19:XN32,'Lactation #2'!$E$41,FALSE) -> 8397.898832 | BA28: =HLOOKUP(BA24,'Projected DMI & Feed Cost'!UL19:XN32,'Lactation #2'!$E$41,FALSE) -> 8686.986541 | BB28: =HLOOKUP(BB24,'Projected DMI & Feed Cost'!UL19:XN32,'Lactation #2'!$E$41,FALSE) -> 9302.912823 | BC28: =HLOOKUP(BC24,'Projected DMI & Feed Cost'!UL19:XN32,'Lactation #2'!$E$41,FALSE) -> 10073.07993 | BD28: =HLOOKUP(BD24,'Projected DMI & Feed Cost'!UL19:XN32,'Lactation #2'!$E$41,FALSE) -> 10367.065 | BE28: =HLOOKUP(BE24,'Projected DMI & Feed Cost'!UL19:XN32,'Lactation #2'!$E$41,FALSE) -> 10790.85272 | BF28: =HLOOKUP(BF24,'Projected DMI & Feed Cost'!UL19:XN32,'Lactation #2'!$E$41,FALSE) -> 11087.92095 | BG28: =HLOOKUP(BG24,'Projected DMI & Feed Cost'!UL19:XN32,'Lactation #2'!$E$41,FALSE) -> 10975.51256 | BH28: =HLOOKUP(BH24,'Projected DMI & Feed Cost'!UL19:XN32,'Lactation #2'!$E$41,FALSE) -> 10767.57111 | BI28: =HLOOKUP(BI24,'Projected DMI & Feed Cost'!UL19:XN32,'Lactation #2'!$E$41,FALSE) -> 10715.37791 | BJ28: =HLOOKUP(BJ24,'Projected DMI & Feed Cost'!UL19:XN32,'Lactation #2'!$E$41,FALSE) -> 10526.83745 | BK28: =HLOOKUP(BK24,'Projected DMI & Feed Cost'!UL19:XN32,'Lactation #2'!$E$41,FALSE) -> 10374.57012 | BL28: =HLOOKUP(BL24,'Projected DMI & Feed Cost'!UL19:XN32,'Lactation #2'!$E$41,FALSE) -> 10356.92804
I29: Labor Cost ($) | J29: =HLOOKUP(J24,'Labor Cost'!JL23:LN36,'Lactation #2'!$E$41,FALSE) -> 6361.448698 | K29: =HLOOKUP(K24,'Labor Cost'!JM23:LO36,'Lactation #2'!$E$41,FALSE) -> 6208.177357 | L29: =HLOOKUP(L24,'Labor Cost'!JN23:LP36,'Lactation #2'!$E$41,FALSE) -> 5938.150111 | M29: =HLOOKUP(M24,'Labor Cost'!JO23:LQ36,'Lactation #2'!$E$41,FALSE) -> 5881.628247 | N29: =HLOOKUP(N24,'Labor Cost'!JP23:LR36,'Lactation #2'!$E$41,FALSE) -> 5827.062174 | O29: =HLOOKUP(O24,'Labor Cost'!JQ23:LS36,'Lactation #2'!$E$41,FALSE) -> 5647.776863 | P29: =HLOOKUP(P24,'Labor Cost'!JR23:LT36,'Lactation #2'!$E$41,FALSE) -> 5480.647731 | Q29: =HLOOKUP(Q24,'Labor Cost'!JS23:LU36,'Lactation #2'!$E$41,FALSE) -> 5388.227992 | R29: =HLOOKUP(R24,'Labor Cost'!JT23:LV36,'Lactation #2'!$E$41,FALSE) -> 5240.205077 | S29: =HLOOKUP(S24,'Labor Cost'!JU23:LW36,'Lactation #2'!$E$41,FALSE) -> 5160.38383 | T29: =HLOOKUP(T24,'Labor Cost'!JV23:LX36,'Lactation #2'!$E$41,FALSE) -> 5142.390816 | U29: =HLOOKUP(U24,'Labor Cost'!JW23:LY36,'Lactation #2'!$E$41,FALSE) -> 5138.410975 | V29: =HLOOKUP(V24,'Labor Cost'!JX23:LZ36,'Lactation #2'!$E$41,FALSE) -> 5094.059617 | W29: =HLOOKUP(W24,'Labor Cost'!JY23:MA36,'Lactation #2'!$E$41,FALSE) -> 5019.431546 | X29: =HLOOKUP(X24,'Labor Cost'!JZ23:MB36,'Lactation #2'!$E$41,FALSE) -> 4944.269613 | Y29: =HLOOKUP(Y24,'Labor Cost'!KA23:MC36,'Lactation #2'!$E$41,FALSE) -> 4644.859624 | Z29: =HLOOKUP(Z24,'Labor Cost'!KB23:MD36,'Lactation #2'!$E$41,FALSE) -> 4330.821725 | AA29: =HLOOKUP(AA24,'Labor Cost'!KC23:ME36,'Lactation #2'!$E$41,FALSE) -> 4254.90631 | AB29: =HLOOKUP(AB24,'Labor Cost'!KD23:MF36,'Lactation #2'!$E$41,FALSE) -> 3986.87635 | AC29: =HLOOKUP(AC24,'Labor Cost'!KE23:MG36,'Lactation #2'!$E$41,FALSE) -> 3788.392959 | AD29: =HLOOKUP(AD24,'Labor Cost'!KF23:MH36,'Lactation #2'!$E$41,FALSE) -> 3531.829596 | AE29: =HLOOKUP(AE24,'Labor Cost'!KG23:MI36,'Lactation #2'!$E$41,FALSE) -> 3591.805845 | AF29: =HLOOKUP(AF24,'Labor Cost'!KH23:MJ36,'Lactation #2'!$E$41,FALSE) -> 3389.819258 | AG29: =HLOOKUP(AG24,'Labor Cost'!KI23:MK36,'Lactation #2'!$E$41,FALSE) -> 3177.204085 | AH29: =HLOOKUP(AH24,'Labor Cost'!KJ23:ML36,'Lactation #2'!$E$41,FALSE) -> 2987.771354 | AI29: =HLOOKUP(AI24,'Labor Cost'!KK23:MM36,'Lactation #2'!$E$41,FALSE) -> 2958.296194 | AJ29: =HLOOKUP(AJ24,'Labor Cost'!KL23:MN36,'Lactation #2'!$E$41,FALSE) -> 2933.735216 | AK29: =HLOOKUP(AK24,'Labor Cost'!KM23:MO36,'Lactation #2'!$E$41,FALSE) -> 2970.9516 | AL29: =HLOOKUP(AL24,'Labor Cost'!KN23:MP36,'Lactation #2'!$E$41,FALSE) -> 3104.489394 | AM29: =HLOOKUP(AM24,'Labor Cost'!KO23:MQ36,'Lactation #2'!$E$41,FALSE) -> 3096.773732 | AN29: =HLOOKUP(AN24,'Labor Cost'!KP23:MR36,'Lactation #2'!$E$41,FALSE) -> 3012.603936 | AO29: =HLOOKUP(AO24,'Labor Cost'!KQ23:MS36,'Lactation #2'!$E$41,FALSE) -> 2970.197317 | AP29: =HLOOKUP(AP24,'Labor Cost'!KR23:MT36,'Lactation #2'!$E$41,FALSE) -> 2976.146481 | AQ29: =HLOOKUP(AQ24,'Labor Cost'!KS23:MU36,'Lactation #2'!$E$41,FALSE) -> 2962.554735 | AR29: =HLOOKUP(AR24,'Labor Cost'!KT23:MV36,'Lactation #2'!$E$41,FALSE) -> 2925.655283 | AS29: =HLOOKUP(AS24,'Labor Cost'!KU23:MW36,'Lactation #2'!$E$41,FALSE) -> 3032.508487 | AT29: =HLOOKUP(AT24,'Labor Cost'!KV23:MX36,'Lactation #2'!$E$41,FALSE) -> 2911.660739 | AU29: =HLOOKUP(AU24,'Labor Cost'!KW23:MY36,'Lactation #2'!$E$41,FALSE) -> 2942.544958 | AV29: =HLOOKUP(AV24,'Labor Cost'!KX23:MZ36,'Lactation #2'!$E$41,FALSE) -> 3395.993716 | AW29: =HLOOKUP(AW24,'Labor Cost'!KY23:NA36,'Lactation #2'!$E$41,FALSE) -> 3700.294888 | AX29: =HLOOKUP(AX24,'Labor Cost'!KZ23:NB36,'Lactation #2'!$E$41,FALSE) -> 4151.269257 | AY29: =HLOOKUP(AY24,'Labor Cost'!LA23:NC36,'Lactation #2'!$E$41,FALSE) -> 4724.245112 | AZ29: =HLOOKUP(AZ24,'Labor Cost'!LB23:ND36,'Lactation #2'!$E$41,FALSE) -> 5022.267071 | BA29: =HLOOKUP(BA24,'Labor Cost'!LC23:NE36,'Lactation #2'!$E$41,FALSE) -> 5192.544462 | BB29: =HLOOKUP(BB24,'Labor Cost'!LD23:NF36,'Lactation #2'!$E$41,FALSE) -> 5560.499544 | BC29: =HLOOKUP(BC24,'Labor Cost'!LE23:NG36,'Lactation #2'!$E$41,FALSE) -> 6023.899487 | BD29: =HLOOKUP(BD24,'Labor Cost'!LF23:NH36,'Lactation #2'!$E$41,FALSE) -> 6197.413182 | BE29: =HLOOKUP(BE24,'Labor Cost'!LG23:NI36,'Lactation #2'!$E$41,FALSE) -> 6449.332997 | BF29: =HLOOKUP(BF24,'Labor Cost'!LH23:NJ36,'Lactation #2'!$E$41,FALSE) -> 6626.634669 | BG29: =HLOOKUP(BG24,'Labor Cost'!LI23:NK36,'Lactation #2'!$E$41,FALSE) -> 6551.904185 | BH29: =HLOOKUP(BH24,'Labor Cost'!LJ23:NL36,'Lactation #2'!$E$41,FALSE) -> 6421.820172 | BI29: =HLOOKUP(BI24,'Labor Cost'!LK23:NM36,'Lactation #2'!$E$41,FALSE) -> 6391.634982 | BJ29: =HLOOKUP(BJ24,'Labor Cost'!LL23:NN36,'Lactation #2'!$E$41,FALSE) -> 6277.730665 | BK29: =HLOOKUP(BK24,'Labor Cost'!LM23:NO36,'Lactation #2'!$E$41,FALSE) -> 6187.933086 | BL29: =HLOOKUP(BL24,'Labor Cost'!LN23:NP36,'Lactation #2'!$E$41,FALSE) -> 6179.816476
A30: 10 | B30: 271-300 | C30: Milking | D30: Pregnant | E30: 8 | I30: Milk Income ($) | J30: =HLOOKUP(J24,'Milk Income'!JL22:LN35,'Lactation #2'!$E$41,FALSE) -> 26392.95 | K30: =HLOOKUP(K24,'Milk Income'!JM22:LO35,'Lactation #2'!$E$41,FALSE) -> 25757.04409 | L30: =HLOOKUP(L24,'Milk Income'!JN22:LP35,'Lactation #2'!$E$41,FALSE) -> 24636.73078 | M30: =HLOOKUP(M24,'Milk Income'!JO22:LQ35,'Lactation #2'!$E$41,FALSE) -> 24402.22779 | N30: =HLOOKUP(N24,'Milk Income'!JP22:LR35,'Lactation #2'!$E$41,FALSE) -> 24175.83917 | O30: =HLOOKUP(O24,'Milk Income'!JQ22:LS35,'Lactation #2'!$E$41,FALSE) -> 23432.00416 | P30: =HLOOKUP(P24,'Milk Income'!JR22:LT35,'Lactation #2'!$E$41,FALSE) -> 22738.6038 | Q30: =HLOOKUP(Q24,'Milk Income'!JS22:LU35,'Lactation #2'!$E$41,FALSE) -> 22355.16448 | R30: =HLOOKUP(R24,'Milk Income'!JT22:LV35,'Lactation #2'!$E$41,FALSE) -> 21741.03371 | S30: =HLOOKUP(S24,'Milk Income'!JU22:LW35,'Lactation #2'!$E$41,FALSE) -> 21409.86414 | T30: =HLOOKUP(T24,'Milk Income'!JV22:LX35,'Lactation #2'!$E$41,FALSE) -> 21335.21311 | U30: =HLOOKUP(U24,'Milk Income'!JW22:LY35,'Lactation #2'!$E$41,FALSE) -> 21318.70119 | V30: =HLOOKUP(V24,'Milk Income'!JX22:LZ35,'Lactation #2'!$E$41,FALSE) -> 21134.69229 | W30: =HLOOKUP(W24,'Milk Income'!JY22:MA35,'Lactation #2'!$E$41,FALSE) -> 20825.06864 | X30: =HLOOKUP(X24,'Milk Income'!JZ22:MB35,'Lactation #2'!$E$41,FALSE) -> 20513.23006 | Y30: =HLOOKUP(Y24,'Milk Income'!KA22:MC35,'Lactation #2'!$E$41,FALSE) -> 19271.011 | Z30: =HLOOKUP(Z24,'Milk Income'!KB22:MD35,'Lactation #2'!$E$41,FALSE) -> 17968.10234 | AA30: =HLOOKUP(AA24,'Milk Income'!KC22:ME35,'Lactation #2'!$E$41,FALSE) -> 17653.13765 | AB30: =HLOOKUP(AB24,'Milk Income'!KD22:MF35,'Lactation #2'!$E$41,FALSE) -> 16541.11086 | AC30: =HLOOKUP(AC24,'Milk Income'!KE22:MG35,'Lactation #2'!$E$41,FALSE) -> 15717.62513 | AD30: =HLOOKUP(AD24,'Milk Income'!KF22:MH35,'Lactation #2'!$E$41,FALSE) -> 14653.172 | AE30: =HLOOKUP(AE24,'Milk Income'!KG22:MI35,'Lactation #2'!$E$41,FALSE) -> 14902.00685 | AF30: =HLOOKUP(AF24,'Milk Income'!KH22:MJ35,'Lactation #2'!$E$41,FALSE) -> 14063.98675 | AG30: =HLOOKUP(AG24,'Milk Income'!KI22:MK35,'Lactation #2'!$E$41,FALSE) -> 13181.86981 | AH30: =HLOOKUP(AH24,'Milk Income'!KJ22:ML35,'Lactation #2'!$E$41,FALSE) -> 12395.93428 | AI30: =HLOOKUP(AI24,'Milk Income'!KK22:MM35,'Lactation #2'!$E$41,FALSE) -> 12273.64508 | AJ30: =HLOOKUP(AJ24,'Milk Income'!KL22:MN35,'Lactation #2'!$E$41,FALSE) -> 12171.74429 | AK30: =HLOOKUP(AK24,'Milk Income'!KM22:MO35,'Lactation #2'!$E$41,FALSE) -> 12326.15097 | AL30: =HLOOKUP(AL24,'Milk Income'!KN22:MP35,'Lactation #2'!$E$41,FALSE) -> 12880.18457 | AM30: =HLOOKUP(AM24,'Milk Income'!KO22:MQ35,'Lactation #2'!$E$41,FALSE) -> 12848.17313 | AN30: =HLOOKUP(AN24,'Milk Income'!KP22:MR35,'Lactation #2'!$E$41,FALSE) -> 12498.96192 | AO30: =HLOOKUP(AO24,'Milk Income'!KQ22:MS35,'Lactation #2'!$E$41,FALSE) -> 12323.02153 | AP30: =HLOOKUP(AP24,'Milk Income'!KR22:MT35,'Lactation #2'!$E$41,FALSE) -> 12347.70396 | AQ30: =HLOOKUP(AQ24,'Milk Income'!KS22:MU35,'Lactation #2'!$E$41,FALSE) -> 12291.3133 | AR30: =HLOOKUP(AR24,'Milk Income'!KT22:MV35,'Lactation #2'!$E$41,FALSE) -> 12138.22154 | AS30: =HLOOKUP(AS24,'Milk Income'!KU22:MW35,'Lactation #2'!$E$41,FALSE) -> 12581.54371 | AT30: =HLOOKUP(AT24,'Milk Income'!KV22:MX35,'Lactation #2'!$E$41,FALSE) -> 12080.15972 | AU30: =HLOOKUP(AU24,'Milk Income'!KW22:MY35,'Lactation #2'!$E$41,FALSE) -> 12208.29494 | AV30: =HLOOKUP(AV24,'Milk Income'!KX22:MZ35,'Lactation #2'!$E$41,FALSE) -> 14089.60389 | AW30: =HLOOKUP(AW24,'Milk Income'!KY22:NA35,'Lactation #2'!$E$41,FALSE) -> 15352.11594 | AX30: =HLOOKUP(AX24,'Milk Income'!KZ22:NB35,'Lactation #2'!$E$41,FALSE) -> 17223.15893 | AY30: =HLOOKUP(AY24,'Milk Income'!LA22:NC35,'Lactation #2'!$E$41,FALSE) -> 19600.37264 | AZ30: =HLOOKUP(AZ24,'Milk Income'!LB22:ND35,'Lactation #2'!$E$41,FALSE) -> 20836.83293 | BA30: =HLOOKUP(BA24,'Milk Income'!LC22:NE35,'Lactation #2'!$E$41,FALSE) -> 21543.29507 | BB30: =HLOOKUP(BB24,'Milk Income'!LD22:NF35,'Lactation #2'!$E$41,FALSE) -> 23069.90017 | BC30: =HLOOKUP(BC24,'Milk Income'!LE22:NG35,'Lactation #2'!$E$41,FALSE) -> 24992.4955 | BD30: =HLOOKUP(BD24,'Milk Income'!LF22:NH35,'Lactation #2'!$E$41,FALSE) -> 25712.38471 | BE30: =HLOOKUP(BE24,'Milk Income'!LG22:NI35,'Lactation #2'!$E$41,FALSE) -> 26757.57227 | BF30: =HLOOKUP(BF24,'Milk Income'!LH22:NJ35,'Lactation #2'!$E$41,FALSE) -> 27493.17738 | BG30: =HLOOKUP(BG24,'Milk Income'!LI22:NK35,'Lactation #2'!$E$41,FALSE) -> 27183.12884 | BH30: =HLOOKUP(BH24,'Milk Income'!LJ22:NL35,'Lactation #2'!$E$41,FALSE) -> 26643.42459 | BI30: =HLOOKUP(BI24,'Milk Income'!LK22:NM35,'Lactation #2'!$E$41,FALSE) -> 26518.18957 | BJ30: =HLOOKUP(BJ24,'Milk Income'!LL22:NN35,'Lactation #2'!$E$41,FALSE) -> 26045.6131 | BK30: =HLOOKUP(BK24,'Milk Income'!LM22:NO35,'Lactation #2'!$E$41,FALSE) -> 25673.05284 | BL30: =HLOOKUP(BL24,'Milk Income'!LN22:NP35,'Lactation #2'!$E$41,FALSE) -> 25639.37791
I31: Loan Ammortization ($) | J31: =IF('Final Summary'!$D$52<='Lactation #2'!J24,'Final Summary'!$D$59,0) -> 0 | K31: =IF('Final Summary'!$D$52<='Lactation #2'!K24,'Final Summary'!$D$59,0) -> 0 | L31: =IF('Final Summary'!$D$52<='Lactation #2'!L24,'Final Summary'!$D$59,0) -> 0 | M31: =IF('Final Summary'!$D$52<='Lactation #2'!M24,'Final Summary'!$D$59,0) -> 0 | N31: =IF('Final Summary'!$D$52<='Lactation #2'!N24,'Final Summary'!$D$59,0) -> 0 | O31: =IF('Final Summary'!$D$52<='Lactation #2'!O24,'Final Summary'!$D$59,0) -> 0 | P31: =IF('Final Summary'!$D$52<='Lactation #2'!P24,'Final Summary'!$D$59,0) -> 0 | Q31: =IF('Final Summary'!$D$52<='Lactation #2'!Q24,'Final Summary'!$D$59,0) -> 0 | R31: =IF('Final Summary'!$D$52<='Lactation #2'!R24,'Final Summary'!$D$59,0) -> 0 | S31: =IF('Final Summary'!$D$52<='Lactation #2'!S24,'Final Summary'!$D$59,0) -> 0 | T31: =IF('Final Summary'!$D$52<='Lactation #2'!T24,'Final Summary'!$D$59,0) -> 0 | U31: =IF('Final Summary'!$D$52<='Lactation #2'!U24,'Final Summary'!$D$59,0) -> 2451.26 | V31: =IF('Final Summary'!$D$52<='Lactation #2'!V24,'Final Summary'!$D$59,0) -> 2451.26 | W31: =IF('Final Summary'!$D$52<='Lactation #2'!W24,'Final Summary'!$D$59,0) -> 2451.26 | X31: =IF('Final Summary'!$D$52<='Lactation #2'!X24,'Final Summary'!$D$59,0) -> 2451.26 | Y31: =IF('Final Summary'!$D$52<='Lactation #2'!Y24,'Final Summary'!$D$59,0) -> 2451.26 | Z31: =IF('Final Summary'!$D$52<='Lactation #2'!Z24,'Final Summary'!$D$59,0) -> 2451.26 | AA31: =IF('Final Summary'!$D$52<='Lactation #2'!AA24,'Final Summary'!$D$59,0) -> 2451.26 | AB31: =IF('Final Summary'!$D$52<='Lactation #2'!AB24,'Final Summary'!$D$59,0) -> 2451.26 | AC31: =IF('Final Summary'!$D$52<='Lactation #2'!AC24,'Final Summary'!$D$59,0) -> 2451.26 | AD31: =IF('Final Summary'!$D$52<='Lactation #2'!AD24,'Final Summary'!$D$59,0) -> 2451.26 | AE31: =IF('Final Summary'!$D$52<='Lactation #2'!AE24,'Final Summary'!$D$59,0) -> 2451.26 | AF31: =IF('Final Summary'!$D$52<='Lactation #2'!AF24,'Final Summary'!$D$59,0) -> 2451.26 | AG31: =IF('Final Summary'!$D$52<='Lactation #2'!AG24,'Final Summary'!$D$59,0) -> 2451.26 | AH31: =IF('Final Summary'!$D$52<='Lactation #2'!AH24,'Final Summary'!$D$59,0) -> 2451.26 | AI31: =IF('Final Summary'!$D$52<='Lactation #2'!AI24,'Final Summary'!$D$59,0) -> 2451.26 | AJ31: =IF('Final Summary'!$D$52<='Lactation #2'!AJ24,'Final Summary'!$D$59,0) -> 2451.26 | AK31: =IF('Final Summary'!$D$52<='Lactation #2'!AK24,'Final Summary'!$D$59,0) -> 2451.26 | AL31: =IF('Final Summary'!$D$52<='Lactation #2'!AL24,'Final Summary'!$D$59,0) -> 2451.26 | AM31: =IF('Final Summary'!$D$52<='Lactation #2'!AM24,'Final Summary'!$D$59,0) -> 2451.26 | AN31: =IF('Final Summary'!$D$52<='Lactation #2'!AN24,'Final Summary'!$D$59,0) -> 2451.26 | AO31: =IF('Final Summary'!$D$52<='Lactation #2'!AO24,'Final Summary'!$D$59,0) -> 2451.26 | AP31: =IF('Final Summary'!$D$52<='Lactation #2'!AP24,'Final Summary'!$D$59,0) -> 2451.26 | AQ31: =IF('Final Summary'!$D$52<='Lactation #2'!AQ24,'Final Summary'!$D$59,0) -> 2451.26 | AR31: =IF('Final Summary'!$D$52<='Lactation #2'!AR24,'Final Summary'!$D$59,0) -> 2451.26 | AS31: =IF('Final Summary'!$D$52<='Lactation #2'!AS24,'Final Summary'!$D$59,0) -> 2451.26 | AT31: =IF('Final Summary'!$D$52<='Lactation #2'!AT24,'Final Summary'!$D$59,0) -> 2451.26 | AU31: =IF('Final Summary'!$D$52<='Lactation #2'!AU24,'Final Summary'!$D$59,0) -> 2451.26 | AV31: =IF('Final Summary'!$D$52<='Lactation #2'!AV24,'Final Summary'!$D$59,0) -> 2451.26 | AW31: =IF('Final Summary'!$D$52<='Lactation #2'!AW24,'Final Summary'!$D$59,0) -> 2451.26 | AX31: =IF('Final Summary'!$D$52<='Lactation #2'!AX24,'Final Summary'!$D$59,0) -> 2451.26 | AY31: =IF('Final Summary'!$D$52<='Lactation #2'!AY24,'Final Summary'!$D$59,0) -> 2451.26 | AZ31: =IF('Final Summary'!$D$52<='Lactation #2'!AZ24,'Final Summary'!$D$59,0) -> 2451.26 | BA31: =IF('Final Summary'!$D$52<='Lactation #2'!BA24,'Final Summary'!$D$59,0) -> 2451.26 | BB31: =IF('Final Summary'!$D$52<='Lactation #2'!BB24,'Final Summary'!$D$59,0) -> 2451.26 | BC31: =IF('Final Summary'!$D$52<='Lactation #2'!BC24,'Final Summary'!$D$59,0) -> 2451.26 | BD31: =IF('Final Summary'!$D$52<='Lactation #2'!BD24,'Final Summary'!$D$59,0) -> 2451.26 | BE31: =IF('Final Summary'!$D$52<='Lactation #2'!BE24,'Final Summary'!$D$59,0) -> 2451.26 | BF31: =IF('Final Summary'!$D$52<='Lactation #2'!BF24,'Final Summary'!$D$59,0) -> 2451.26 | BG31: =IF('Final Summary'!$D$52<='Lactation #2'!BG24,'Final Summary'!$D$59,0) -> 2451.26 | BH31: =IF('Final Summary'!$D$52<='Lactation #2'!BH24,'Final Summary'!$D$59,0) -> 2451.26 | BI31: =IF('Final Summary'!$D$52<='Lactation #2'!BI24,'Final Summary'!$D$59,0) -> 2451.26 | BJ31: =IF('Final Summary'!$D$52<='Lactation #2'!BJ24,'Final Summary'!$D$59,0) -> 2451.26 | BK31: =IF('Final Summary'!$D$52<='Lactation #2'!BK24,'Final Summary'!$D$59,0) -> 2451.26 | BL31: =IF('Final Summary'!$D$52<='Lactation #2'!BL24,'Final Summary'!$D$59,0) -> 2451.26
A32: 11 | B32: 301-330 | C32: Milking | D32: Pregnant | E32: 6 | I32: % 2nd Lact. Cows in Herd | J32: ='Forecast Sheet'!D49/'Forecast Sheet'!D51 -> 0.3755868545 | K32: ='Forecast Sheet'!E49/'Forecast Sheet'!E51 -> 0.3654981073 | L32: ='Forecast Sheet'!F49/'Forecast Sheet'!F51 -> 0.3706127816 | M32: ='Forecast Sheet'!G49/'Forecast Sheet'!G51 -> 0.3737716415 | N32: ='Forecast Sheet'!H49/'Forecast Sheet'!H51 -> 0.3598094199 | O32: ='Forecast Sheet'!I49/'Forecast Sheet'!I51 -> 0.3626262847 | P32: ='Forecast Sheet'!J49/'Forecast Sheet'!J51 -> 0.3647944092 | Q32: ='Forecast Sheet'!K49/'Forecast Sheet'!K51 -> 0.3627934991 | R32: ='Forecast Sheet'!L49/'Forecast Sheet'!L51 -> 0.3514765581 | S32: ='Forecast Sheet'!M49/'Forecast Sheet'!M51 -> 0.3527860611 | T32: ='Forecast Sheet'!N49/'Forecast Sheet'!N51 -> 0.3485466114 | U32: ='Forecast Sheet'!O49/'Forecast Sheet'!O51 -> 0.3510027317 | V32: ='Forecast Sheet'!P49/'Forecast Sheet'!P51 -> 0.3544352027 | W32: ='Forecast Sheet'!Q49/'Forecast Sheet'!Q51 -> 0.3613275978 | X32: ='Forecast Sheet'!R49/'Forecast Sheet'!R51 -> 0.3660429323 | Y32: ='Forecast Sheet'!S49/'Forecast Sheet'!S51 -> 0.348139646 | Z32: ='Forecast Sheet'!T49/'Forecast Sheet'!T51 -> 0.3392093681 | AA32: ='Forecast Sheet'!U49/'Forecast Sheet'!U51 -> 0.348433268 | AB32: ='Forecast Sheet'!V49/'Forecast Sheet'!V51 -> 0.3366057435 | AC32: ='Forecast Sheet'!W49/'Forecast Sheet'!W51 -> 0.3241124543 | AD32: ='Forecast Sheet'!X49/'Forecast Sheet'!X51 -> 0.3159946534 | AE32: ='Forecast Sheet'!Y49/'Forecast Sheet'!Y51 -> 0.3298897573 | AF32: ='Forecast Sheet'!Z49/'Forecast Sheet'!Z51 -> 0.3147106549 | AG32: ='Forecast Sheet'!AA49/'Forecast Sheet'!AA51 -> 0.3064498525 | AH32: ='Forecast Sheet'!AB49/'Forecast Sheet'!AB51 -> 0.2940907574 | AI32: ='Forecast Sheet'!AC49/'Forecast Sheet'!AC51 -> 0.2796427977 | AJ32: ='Forecast Sheet'!AD49/'Forecast Sheet'!AD51 -> 0.2579025538 | AK32: ='Forecast Sheet'!AE49/'Forecast Sheet'!AE51 -> 0.2443045887 | AL32: ='Forecast Sheet'!AF49/'Forecast Sheet'!AF51 -> 0.2576413765 | AM32: ='Forecast Sheet'!AG49/'Forecast Sheet'!AG51 -> 0.2544878342 | AN32: ='Forecast Sheet'!AH49/'Forecast Sheet'!AH51 -> 0.2374494409 | AO32: ='Forecast Sheet'!AI49/'Forecast Sheet'!AI51 -> 0.2325120219 | AP32: ='Forecast Sheet'!AJ49/'Forecast Sheet'!AJ51 -> 0.2366032056 | AQ32: ='Forecast Sheet'!AK49/'Forecast Sheet'!AK51 -> 0.2326948557 | AR32: ='Forecast Sheet'!AL49/'Forecast Sheet'!AL51 -> 0.2123414295 | AS32: ='Forecast Sheet'!AM49/'Forecast Sheet'!AM51 -> 0.2188034743 | AT32: ='Forecast Sheet'!AN49/'Forecast Sheet'!AN51 -> 0.2143271222 | AU32: ='Forecast Sheet'!AO49/'Forecast Sheet'!AO51 -> 0.2163975698 | AV32: ='Forecast Sheet'!AP49/'Forecast Sheet'!AP51 -> 0.2372886269 | AW32: ='Forecast Sheet'!AQ49/'Forecast Sheet'!AQ51 -> 0.2602581563 | AX32: ='Forecast Sheet'!AR49/'Forecast Sheet'!AR51 -> 0.2800970242 | AY32: ='Forecast Sheet'!AS49/'Forecast Sheet'!AS51 -> 0.2914848947 | AZ32: ='Forecast Sheet'!AT49/'Forecast Sheet'!AT51 -> 0.3044935642 | BA32: ='Forecast Sheet'!AU49/'Forecast Sheet'!AU51 -> 0.3205358961 | BB32: ='Forecast Sheet'!AV49/'Forecast Sheet'!AV51 -> 0.3401836945 | BC32: ='Forecast Sheet'!AW49/'Forecast Sheet'!AW51 -> 0.352688114 | BD32: ='Forecast Sheet'!AX49/'Forecast Sheet'!AX51 -> 0.3659174038 | BE32: ='Forecast Sheet'!AY49/'Forecast Sheet'!AY51 -> 0.3861139216 | BF32: ='Forecast Sheet'!AZ49/'Forecast Sheet'!AZ51 -> 0.3935100619 | BG32: ='Forecast Sheet'!BA49/'Forecast Sheet'!BA51 -> 0.40270004 | BH32: ='Forecast Sheet'!BB49/'Forecast Sheet'!BB51 -> 0.4059118353 | BI32: ='Forecast Sheet'!BC49/'Forecast Sheet'!BC51 -> 0.3954427012 | BJ32: ='Forecast Sheet'!BD49/'Forecast Sheet'!BD51 -> 0.3838086878 | BK32: ='Forecast Sheet'!BE49/'Forecast Sheet'!BE51 -> 0.3734582049 | BL32: ='Forecast Sheet'!BF49/'Forecast Sheet'!BF51 -> 0.3644159345
A34: 12 | B34: 0-30 | C34: Dry | D34: Pregnant | E34: 6 | I34: IOVC for each Lact. 2 Cow ($) | J34: =J35/J25 -> 117.0486638 | K34: =K35/K25 -> 117.5840434 | L34: 114.2734786 | M34: 115.1248848 | N34: 119.3059541 | O34: 115.9845817 | P34: 112.8672799 | Q34: 114.4594676 | R34: 114.8432384 | S34: 115.078785 | T34: 118.4877094 | U34: 106.8892079 | V34: 106.0700417 | W34: 104.427186 | X34: 103.6931119 | Y34: 102.4329678 | Z34: 99.93600688 | AA34: 98.39415902 | AB34: 96.98380729 | AC34: 95.56642244 | AD34: 93.54229885 | AE34: 93.64504079 | AF34: 93.66501056 | AG34: 92.35551726 | AH34: 91.85365622 | AI34: 93.616862 | AJ34: 99.87020817 | AK34: 106.2773901 | AL34: 102.0732935 | AM34: 102.7503407 | AN34: 106.6485632 | AO34: 105.5188732 | AP34: 100.8696002 | AQ34: 101.2031887 | AR34: 109.457947 | AS34: 108.8883488 | AT34: 104.6914444 | AU34: 103.9498064 | AV34: 108.8671432 | AW34: 106.7412666 | AX34: 111.8330126 | AY34: 121.4457359 | AZ34: 122.9224776 | BA34: 119.1640507 | BB34: 119.0322578 | BC34: 123.1664373 | BD34: 120.4448512 | BE34: 118.7631477 | BF34: 118.6200265 | BG34: 110.9284785 | BH34: 105.3599619 | BI34: 106.422297 | BJ34: 105.3256129 | BK34: 106.3577209 | BL34: 108.7948826
I35: IOVC for all Lact. 2 Cows ($) | J35: =J30-(J31*J32)-J28-J29 -> 9363.893102 | K35: =K30-(K31*K32)-K28-K29 -> 9139.219772 | L35: 8736.024602 | M35: 8654.348699 | N35: 8580.95014 | O35: 8311.666723 | P35: 8060.643051 | Q35: 7927.293349 | R35: 7710.112166 | S35: 7593.025137 | T35: 7571.543822 | U35: 6708.236867 | V35: 6633.623611 | W35: 6505.012736 | X35: 6382.27099 | Y35: 5983.726958 | Z35: 5540.726327 | AA35: 5405.166983 | AB35: 5038.574032 | AC35: 4775.644353 | AD35: 4416.620146 | AE35: 4471.438948 | AF35: 4211.976117 | AG35: 3918.888875 | AH35: 3670.584728 | AI35: 3663.839587 | AJ35: 3686.15655 | AK35: 3779.17867 | AL35: 3939.392913 | AM35: 3936.27244 | AN35: 3857.070089 | AO35: 3805.583607 | AP35: 3800.170685 | AQ35: 3789.892364 | AR35: 3791.794256 | AS35: 3932.87986 | AT35: 3762.352872 | AU35: 3802.0634 | AV35: 4422.782068 | AW35: 4812.686738 | AX35: 5433.740548 | AY35: 6260.686177 | AZ35: 6670.274128 | BA35: 6878.047244 | BB35: 7372.609125 | BC35: 8030.985821 | BD35: 8250.947828 | BE35: 8570.920943 | BF35: 8814.026289 | BG35: 8668.589598 | BH35: 8459.037871 | BI35: 8441.843802 | BJ35: 8300.230105 | BK35: 8195.106472 | BL35: 8209.355191
A36: 13 | B36: 31-60 | C36: Dry | D36: Pregnant | E36: 7
D38: Total | E38: =SUM(E12:E36) -> 80
A41: RHA KEY: | D41: RHA Level (lb/cow/yr) | E41: 11
A42: 2 | B42: 18000
A43: 3 | B43: 19000 | D43: Milk Price ($ per cwt) | E43: ='Final Summary'!D12 -> 15
A44: 4 | B44: 20000
A45: 5 | B45: 21000 | D45: Feed Cost ($ per lb of DM) | E45: ='Final Summary'!D14 -> 0.09
A46: 6 | B46: 22000
A47: 7 | B47: 23000 | D47: Labor Cost ($ per Hour) | E47: ='Final Summary'!D16 -> 12
A48: 8 | B48: 24000
A49: 9 | B49: 25000 | D49: Cull Rate % (0-60 DIM) | E49: 0.13
A50: 10 | B50: 26000
A51: 11 | B51: 27000 | D51: Cull Rate % (61-330 DIM) | E51: 0.09
A52: 12 | B52: 28000
A53: 13 | B53: 29000 | D53: Cull Rate % (Dry Period) | E53: 0
A54: 14 | B54: 30000

Sheet Lactation #3
P1: Cow Movement Through Time
J2: 1 | K2: 2 | L2: 3 | M2: 4 | N2: 5 | O2: 6 | P2: 7 | Q2: 8 | R2: 9 | S2: 10 | T2: 11 | U2: 12 | V2: 13
J3: ='Forecast Sheet'!D35 -> 5
K4: ='Forecast Sheet'!E36 -> 4.675
L5: ='Forecast Sheet'!F37 -> 4.62825
M6: ='Forecast Sheet'!G38 -> 4.5819675
D7: Herd Criteria | N7: ='Forecast Sheet'!H39 -> 4.536147825
O8: ='Forecast Sheet'!I40 -> 4.490786347
P9: ='Forecast Sheet'!J41 -> 4.445878483
A10: Stage | B10: DIM | C10: Lactation State | D10: Reproductive State | E10: Inventory | Q10: ='Forecast Sheet'!K42 -> 4.401419698
R11: ='Forecast Sheet'!L43 -> 4.357405501
A12: 1 | B12: 0-30 | C12: Milking | D12: Open | E12: 5 | F12: (# of Cows) | S12: ='Forecast Sheet'!M44 -> 4.313831446
T13: ='Forecast Sheet'!N45 -> 4.270693132
A14: 2 | B14: 31-60 | C14: Milking | D14: Open | E14: 5 | U14: ='Forecast Sheet'!O46 -> 4.270693132
V15: ='Forecast Sheet'!P47 -> 4.270693132
A16: 3 | B16: 61-90 | C16: Milking | D16: Open | E16: 5
A18: 4 | B18: 91-120 | C18: Milking | D18: Open | E18: 4
A20: 5 | B20: 121-150 | C20: Milking | D20: Pregnant | E20: 4 | I20: 49
L21: 3rd Lactation(+) Monthly Production, Cow Flow, & Cash Flow
A22: 6 | B22: 151-180 | C22: Milking | D22: Pregnant | E22: 4
A24: 7 | B24: 181-210 | C24: Milking | D24: Pregnant | E24: 5 | I24: Month | J24: 1 | K24: 2 | L24: 3 | M24: 4 | N24: 5 | O24: 6 | P24: 7 | Q24: 8 | R24: 9 | S24: 10 | T24: 11 | U24: 12 | V24: 13 | W24: 14 | X24: 15 | Y24: 16 | Z24: 17 | AA24: 18 | AB24: 19 | AC24: 20 | AD24: 21 | AE24: 22 | AF24: 23 | AG24: 24 | AH24: 25 | AI24: 26 | AJ24: 27 | AK24: 28 | AL24: 29 | AM24: 30 | AN24: 31 | AO24: 32 | AP24: 33 | AQ24: 34 | AR24: 35 | AS24: 36 | AT24: 37 | AU24: 38 | AV24: 39 | AW24: 40 | AX24: 41 | AY24: 42 | AZ24: 43 | BA24: 44 | BB24: 45 | BC24: 46 | BD24: 47 | BE24: 48 | BF24: 49 | BG24: 50 | BH24: 51 | BI24: 52 | BJ24: 53 | BK24: 54 | BL24: 55
I25: Lactation #3 Cows | J25: =HLOOKUP('Forecast Sheet'!D2,'Forecast Sheet'!D2:BF56,'Lactation #3'!$I$20,FALSE) -> 55 | K25: =HLOOKUP('Forecast Sheet'!E2,'Forecast Sheet'!E2:BG59,'Lactation #3'!$I$20,FALSE) -> 57.86 | L25: =HLOOKUP('Forecast Sheet'!F2,'Forecast Sheet'!F2:BH59,'Lactation #3'!$I$20,FALSE) -> 56.681025 | M25: =HLOOKUP('Forecast Sheet'!G2,'Forecast Sheet'!G2:BI59,'Lactation #3'!$I$20,FALSE) -> 56.52486675 | N25: =HLOOKUP('Forecast Sheet'!H2,'Forecast Sheet'!H2:BJ59,'Lactation #3'!$I$20,FALSE) -> 59.18457905 | O25: =HLOOKUP('Forecast Sheet'!I2,'Forecast Sheet'!I2:BK59,'Lactation #3'!$I$20,FALSE) -> 60.90395553 | P25: =HLOOKUP('Forecast Sheet'!J2,'Forecast Sheet'!J2:BL59,'Lactation #3'!$I$20,FALSE) -> 61.78333696 | Q25: =HLOOKUP('Forecast Sheet'!K2,'Forecast Sheet'!K2:BM59,'Lactation #3'!$I$20,FALSE) -> 62.52386491 | R25: =HLOOKUP('Forecast Sheet'!L2,'Forecast Sheet'!L2:BN59,'Lactation #3'!$I$20,FALSE) -> 64.08608681 | S25: =HLOOKUP('Forecast Sheet'!M2,'Forecast Sheet'!M2:BO59,'Lactation #3'!$I$20,FALSE) -> 64.73975539 | T25: =HLOOKUP('Forecast Sheet'!N2,'Forecast Sheet'!N2:BP59,'Lactation #3'!$I$20,FALSE) -> 66.30306616 | U25: =HLOOKUP('Forecast Sheet'!O2,'Forecast Sheet'!O2:BQ59,'Lactation #3'!$I$20,FALSE) -> 66.00190957 | V25: =HLOOKUP('Forecast Sheet'!P2,'Forecast Sheet'!P2:BR59,'Lactation #3'!$I$20,FALSE) -> 64.90457066 | W25: =HLOOKUP('Forecast Sheet'!Q2,'Forecast Sheet'!Q2:BS59,'Lactation #3'!$I$20,FALSE) -> 63.88956925 | X25: =HLOOKUP('Forecast Sheet'!R2,'Forecast Sheet'!R2:BT59,'Lactation #3'!$I$20,FALSE) -> 62.07270963 | Y25: =HLOOKUP('Forecast Sheet'!S2,'Forecast Sheet'!S2:BU59,'Lactation #3'!$I$20,FALSE) -> 61.05319183 | Z25: =HLOOKUP('Forecast Sheet'!T2,'Forecast Sheet'!T2:BV59,'Lactation #3'!$I$20,FALSE) -> 60.03508838 | AA25: =HLOOKUP('Forecast Sheet'!U2,'Forecast Sheet'!U2:BW59,'Lactation #3'!$I$20,FALSE) -> 57.43984156 | AB25: =HLOOKUP('Forecast Sheet'!V2,'Forecast Sheet'!V2:BX59,'Lactation #3'!$I$20,FALSE) -> 57.23053863 | AC25: =HLOOKUP('Forecast Sheet'!W2,'Forecast Sheet'!W2:BY59,'Lactation #3'!$I$20,FALSE) -> 57.03502079 | AD25: =HLOOKUP('Forecast Sheet'!X2,'Forecast Sheet'!X2:BZ59,'Lactation #3'!$I$20,FALSE) -> 55.31121279 | AE25: =HLOOKUP('Forecast Sheet'!Y2,'Forecast Sheet'!Y2:CA59,'Lactation #3'!$I$20,FALSE) -> 53.61610225 | AF25: =HLOOKUP('Forecast Sheet'!Z2,'Forecast Sheet'!Z2:CB59,'Lactation #3'!$I$20,FALSE) -> 52.69380292 | AG25: =HLOOKUP('Forecast Sheet'!AA2,'Forecast Sheet'!AA2:CC59,'Lactation #3'!$I$20,FALSE) -> 51.0330012 | AH25: =HLOOKUP('Forecast Sheet'!AB2,'Forecast Sheet'!AB2:CD59,'Lactation #3'!$I$20,FALSE) -> 50.12039713 | AI25: =HLOOKUP('Forecast Sheet'!AC2,'Forecast Sheet'!AC2:CE59,'Lactation #3'!$I$20,FALSE) -> 49.9456949 | AJ25: =HLOOKUP('Forecast Sheet'!AD2,'Forecast Sheet'!AD2:CF59,'Lactation #3'!$I$20,FALSE) -> 49.74787666 | AK25: =HLOOKUP('Forecast Sheet'!AE2,'Forecast Sheet'!AE2:CG59,'Lactation #3'!$I$20,FALSE) -> 49.1547289 | AL25: =HLOOKUP('Forecast Sheet'!AF2,'Forecast Sheet'!AF2:CH59,'Lactation #3'!$I$20,FALSE) -> 46.65218458 | AM25: =HLOOKUP('Forecast Sheet'!AG2,'Forecast Sheet'!AG2:CI59,'Lactation #3'!$I$20,FALSE) -> 44.27766196 | AN25: =HLOOKUP('Forecast Sheet'!AH2,'Forecast Sheet'!AH2:CJ59,'Lactation #3'!$I$20,FALSE) -> 43.87122591 | AO25: =HLOOKUP('Forecast Sheet'!AI2,'Forecast Sheet'!AI2:CK59,'Lactation #3'!$I$20,FALSE) -> 41.4904732 | AP25: =HLOOKUP('Forecast Sheet'!AJ2,'Forecast Sheet'!AJ2:CL59,'Lactation #3'!$I$20,FALSE) -> 39.90861183 | AQ25: =HLOOKUP('Forecast Sheet'!AK2,'Forecast Sheet'!AK2:CM59,'Lactation #3'!$I$20,FALSE) -> 37.70700022 | AR25: =HLOOKUP('Forecast Sheet'!AL2,'Forecast Sheet'!AL2:CN59,'Lactation #3'!$I$20,FALSE) -> 38.13313363 | AS25: =HLOOKUP('Forecast Sheet'!AM2,'Forecast Sheet'!AM2:CO59,'Lactation #3'!$I$20,FALSE) -> 35.91273547 | AT25: =HLOOKUP('Forecast Sheet'!AN2,'Forecast Sheet'!AN2:CP59,'Lactation #3'!$I$20,FALSE) -> 33.88754262 | AU25: =HLOOKUP('Forecast Sheet'!AO2,'Forecast Sheet'!AO2:CQ59,'Lactation #3'!$I$20,FALSE) -> 31.91381906 | AV25: =HLOOKUP('Forecast Sheet'!AP2,'Forecast Sheet'!AP2:CR59,'Lactation #3'!$I$20,FALSE) -> 31.25520446 | AW25: =HLOOKUP('Forecast Sheet'!AQ2,'Forecast Sheet'!AQ2:CS59,'Lactation #3'!$I$20,FALSE) -> 29.47662753 | AX25: =HLOOKUP('Forecast Sheet'!AR2,'Forecast Sheet'!AR2:CT59,'Lactation #3'!$I$20,FALSE) -> 28.39857297 | AY25: =HLOOKUP('Forecast Sheet'!AS2,'Forecast Sheet'!AS2:CU59,'Lactation #3'!$I$20,FALSE) -> 30.82173942 | AZ25: =HLOOKUP('Forecast Sheet'!AT2,'Forecast Sheet'!AT2:CV59,'Lactation #3'!$I$20,FALSE) -> 30.59439377 | BA25: =HLOOKUP('Forecast Sheet'!AU2,'Forecast Sheet'!AU2:CW59,'Lactation #3'!$I$20,FALSE) -> 28.88301294 | BB25: =HLOOKUP('Forecast Sheet'!AV2,'Forecast Sheet'!AV2:CX59,'Lactation #3'!$I$20,FALSE) -> 28.80256039 | BC25: =HLOOKUP('Forecast Sheet'!AW2,'Forecast Sheet'!AW2:CY59,'Lactation #3'!$I$20,FALSE) -> 30.08726956 | BD25: =HLOOKUP('Forecast Sheet'!AX2,'Forecast Sheet'!AX2:CZ59,'Lactation #3'!$I$20,FALSE) -> 29.90698636 | BE25: =HLOOKUP('Forecast Sheet'!AY2,'Forecast Sheet'!AY2:DA59,'Lactation #3'!$I$20,FALSE) -> 27.66543092 | BF25: =HLOOKUP('Forecast Sheet'!AZ2,'Forecast Sheet'!AZ2:DB59,'Lactation #3'!$I$20,FALSE) -> 28.84491349 | BG25: =HLOOKUP('Forecast Sheet'!BA2,'Forecast Sheet'!BA2:DC59,'Lactation #3'!$I$20,FALSE) -> 28.70042362 | BH25: =HLOOKUP('Forecast Sheet'!BB2,'Forecast Sheet'!BB2:DD59,'Lactation #3'!$I$20,FALSE) -> 29.2102748 | BI25: =HLOOKUP('Forecast Sheet'!BC2,'Forecast Sheet'!BC2:DE59,'Lactation #3'!$I$20,FALSE) -> 32.44432077 | BJ25: =HLOOKUP('Forecast Sheet'!BD2,'Forecast Sheet'!BD2:DF59,'Lactation #3'!$I$20,FALSE) -> 36.0076862 | BK25: =HLOOKUP('Forecast Sheet'!BE2,'Forecast Sheet'!BE2:DG59,'Lactation #3'!$I$20,FALSE) -> 38.80331654 | BL25: =HLOOKUP('Forecast Sheet'!BF2,'Forecast Sheet'!BF2:DH59,'Lactation #3'!$I$20,FALSE) -> 41.16988342
A26: 8 | B26: 211-240 | C26: Milking | D26: Pregnant | E26: 3 | I26: Monthly Milk Production (lbs) | J26: =HLOOKUP(J24,'RHA Data'!JM40:LO53,'Lactation #3'!$E$41,FALSE) -> 124659.25 | K26: =HLOOKUP(K24,'RHA Data'!JN40:LP53,'Lactation #3'!$E$41,FALSE) -> 128494.4155 | L26: =HLOOKUP(L24,'RHA Data'!JO40:LQ53,'Lactation #3'!$E$41,FALSE) -> 131960.3371 | M26: =HLOOKUP(M24,'RHA Data'!JP40:LR53,'Lactation #3'!$E$41,FALSE) -> 138499.121 | N26: =HLOOKUP(N24,'RHA Data'!JQ40:LS53,'Lactation #3'!$E$41,FALSE) -> 147730.3429 | O26: =HLOOKUP(O24,'RHA Data'!JR40:LT53,'Lactation #3'!$E$41,FALSE) -> 146231.6253 | P26: =HLOOKUP(P24,'RHA Data'!JS40:LU53,'Lactation #3'!$E$41,FALSE) -> 145339.4747 | Q26: =HLOOKUP(Q24,'RHA Data'!JT40:LV53,'Lactation #3'!$E$41,FALSE) -> 148816.1712 | R26: =HLOOKUP(R24,'RHA Data'!JU40:LW53,'Lactation #3'!$E$41,FALSE) -> 152618.2627 | S26: =HLOOKUP(S24,'RHA Data'!JV40:LX53,'Lactation #3'!$E$41,FALSE) -> 152223.8342 | T26: =HLOOKUP(T24,'RHA Data'!JW40:LY53,'Lactation #3'!$E$41,FALSE) -> 153672.681 | U26: =HLOOKUP(U24,'RHA Data'!JX40:LZ53,'Lactation #3'!$E$41,FALSE) -> 153439.2717 | V26: =HLOOKUP(V24,'RHA Data'!JY40:MA53,'Lactation #3'!$E$41,FALSE) -> 147949.1234 | W26: =HLOOKUP(W24,'RHA Data'!JZ40:MB53,'Lactation #3'!$E$41,FALSE) -> 143024.8668 | X26: =HLOOKUP(X24,'RHA Data'!KA40:MC53,'Lactation #3'!$E$41,FALSE) -> 139504.8071 | Y26: =HLOOKUP(Y24,'RHA Data'!KB40:MD53,'Lactation #3'!$E$41,FALSE) -> 133493.2314 | Z26: =HLOOKUP(Z24,'RHA Data'!KC40:ME53,'Lactation #3'!$E$41,FALSE) -> 132104.9471 | AA26: =HLOOKUP(AA24,'RHA Data'!KD40:MF53,'Lactation #3'!$E$41,FALSE) -> 130840.384 | AB26: =HLOOKUP(AB24,'RHA Data'!KE40:MG53,'Lactation #3'!$E$41,FALSE) -> 126858.3253 | AC26: =HLOOKUP(AC24,'RHA Data'!KF40:MH53,'Lactation #3'!$E$41,FALSE) -> 123141.8137 | AD26: =HLOOKUP(AD24,'RHA Data'!KG40:MI53,'Lactation #3'!$E$41,FALSE) -> 121090.9586 | AE26: =HLOOKUP(AE24,'RHA Data'!KH40:MJ53,'Lactation #3'!$E$41,FALSE) -> 117862.3869 | AF26: =HLOOKUP(AF24,'RHA Data'!KI40:MK53,'Lactation #3'!$E$41,FALSE) -> 116109.1983 | AG26: =HLOOKUP(AG24,'RHA Data'!KJ40:ML53,'Lactation #3'!$E$41,FALSE) -> 115684.3683 | AH26: =HLOOKUP(AH24,'RHA Data'!KK40:MM53,'Lactation #3'!$E$41,FALSE) -> 115562.4864 | AI26: =HLOOKUP(AI24,'RHA Data'!KL40:MN53,'Lactation #3'!$E$41,FALSE) -> 114560.0477 | AJ26: =HLOOKUP(AJ24,'RHA Data'!KM40:MO53,'Lactation #3'!$E$41,FALSE) -> 112885.0117 | AK26: =HLOOKUP(AK24,'RHA Data'!KN40:MP53,'Lactation #3'!$E$41,FALSE) -> 111181.7936 | AL26: =HLOOKUP(AL24,'RHA Data'!KO40:MQ53,'Lactation #3'!$E$41,FALSE) -> 104486.3196 | AM26: =HLOOKUP(AM24,'RHA Data'!KP40:MR53,'Lactation #3'!$E$41,FALSE) -> 97311.32643 | AN26: =HLOOKUP(AN24,'RHA Data'!KQ40:MS53,'Lactation #3'!$E$41,FALSE) -> 95462.57666 | AO26: =HLOOKUP(AO24,'RHA Data'!KR40:MT53,'Lactation #3'!$E$41,FALSE) -> 89463.74904 | AP26: =HLOOKUP(AP24,'RHA Data'!KS40:MU53,'Lactation #3'!$E$41,FALSE) -> 84962.59076 | AQ26: =HLOOKUP(AQ24,'RHA Data'!KT40:MV53,'Lactation #3'!$E$41,FALSE) -> 79253.05693 | AR26: =HLOOKUP(AR24,'RHA Data'!KU40:MW53,'Lactation #3'!$E$41,FALSE) -> 80472.49367 | AS26: =HLOOKUP(AS24,'RHA Data'!KV40:MX53,'Lactation #3'!$E$41,FALSE) -> 76163.58933 | AT26: =HLOOKUP(AT24,'RHA Data'!KW40:MY53,'Lactation #3'!$E$41,FALSE) -> 71371.10891 | AU26: =HLOOKUP(AU24,'RHA Data'!KX40:MZ53,'Lactation #3'!$E$41,FALSE) -> 67266.72075 | AV26: =HLOOKUP(AV24,'RHA Data'!KY40:NA53,'Lactation #3'!$E$41,FALSE) -> 66481.77078 | AW26: =HLOOKUP(AW24,'RHA Data'!KZ40:NB53,'Lactation #3'!$E$41,FALSE) -> 65977.16088 | AX26: =HLOOKUP(AX24,'RHA Data'!LA40:NC53,'Lactation #3'!$E$41,FALSE) -> 66728.70227 | AY26: =HLOOKUP(AY24,'RHA Data'!LB40:ND53,'Lactation #3'!$E$41,FALSE) -> 69833.16284 | AZ26: =HLOOKUP(AZ24,'RHA Data'!LC40:NE53,'Lactation #3'!$E$41,FALSE) -> 69729.90492 | BA26: =HLOOKUP(BA24,'RHA Data'!LD40:NF53,'Lactation #3'!$E$41,FALSE) -> 67803.13897 | BB26: =HLOOKUP(BB24,'RHA Data'!LE40:NG53,'Lactation #3'!$E$41,FALSE) -> 66835.07025 | BC26: =HLOOKUP(BC24,'RHA Data'!LF40:NH53,'Lactation #3'!$E$41,FALSE) -> 66933.34579 | BD26: =HLOOKUP(BD24,'RHA Data'!LG40:NI53,'Lactation #3'!$E$41,FALSE) -> 66726.10921 | BE26: =HLOOKUP(BE24,'RHA Data'!LH40:NJ53,'Lactation #3'!$E$41,FALSE) -> 65801.48013 | BF26: =HLOOKUP(BF24,'RHA Data'!LI40:NK53,'Lactation #3'!$E$41,FALSE) -> 68202.96082 | BG26: =HLOOKUP(BG24,'RHA Data'!LJ40:NL53,'Lactation #3'!$E$41,FALSE) -> 65473.98719 | BH26: =HLOOKUP(BH24,'RHA Data'!LK40:NM53,'Lactation #3'!$E$41,FALSE) -> 66083.29082 | BI26: =HLOOKUP(BI24,'RHA Data'!LL40:NN53,'Lactation #3'!$E$41,FALSE) -> 76234.36384 | BJ26: =HLOOKUP(BJ24,'RHA Data'!LM40:NO53,'Lactation #3'!$E$41,FALSE) -> 83402.9494 | BK26: =HLOOKUP(BK24,'RHA Data'!LN40:NP53,'Lactation #3'!$E$41,FALSE) -> 93705.39822 | BL26: =HLOOKUP(BL24,'RHA Data'!LO40:NQ53,'Lactation #3'!$E$41,FALSE) -> 106697.5831
I27: Projected Feed Intake (lbs DM) | J27: =HLOOKUP(J24,'Projected DMI & Feed Cost'!JL38:LN51,'Lactation #3'!$E$41,FALSE) -> 83925.105 | K27: =HLOOKUP(K24,'Projected DMI & Feed Cost'!JM38:LO51,'Lactation #3'!$E$41,FALSE) -> 86542.11423 | L27: =HLOOKUP(L24,'Projected DMI & Feed Cost'!JN38:LP51,'Lactation #3'!$E$41,FALSE) -> 88794.25324 | M27: =HLOOKUP(M24,'Projected DMI & Feed Cost'!JO38:LQ51,'Lactation #3'!$E$41,FALSE) -> 93105.16587 | N27: =HLOOKUP(N24,'Projected DMI & Feed Cost'!JP38:LR51,'Lactation #3'!$E$41,FALSE) -> 99277.56367 | O27: =HLOOKUP(O24,'Projected DMI & Feed Cost'!JQ38:LS51,'Lactation #3'!$E$41,FALSE) -> 98339.99136 | P27: =HLOOKUP(P24,'Projected DMI & Feed Cost'!JR38:LT51,'Lactation #3'!$E$41,FALSE) -> 97777.55344 | Q27: =HLOOKUP(Q24,'Projected DMI & Feed Cost'!JS38:LU51,'Lactation #3'!$E$41,FALSE) -> 100094.389 | R27: =HLOOKUP(R24,'Projected DMI & Feed Cost'!JT38:LV51,'Lactation #3'!$E$41,FALSE) -> 102650.636 | S27: =HLOOKUP(S24,'Projected DMI & Feed Cost'!JU38:LW51,'Lactation #3'!$E$41,FALSE) -> 102409.9233 | T27: =HLOOKUP(T24,'Projected DMI & Feed Cost'!JV38:LX51,'Lactation #3'!$E$41,FALSE) -> 103413.0614 | U27: =HLOOKUP(U24,'Projected DMI & Feed Cost'!JW38:LY51,'Lactation #3'!$E$41,FALSE) -> 103249.9766 | V27: =HLOOKUP(V24,'Projected DMI & Feed Cost'!JX38:LZ51,'Lactation #3'!$E$41,FALSE) -> 99593.5586 | W27: =HLOOKUP(W24,'Projected DMI & Feed Cost'!JY38:MA51,'Lactation #3'!$E$41,FALSE) -> 96313.09919 | X27: =HLOOKUP(X24,'Projected DMI & Feed Cost'!JZ38:MB51,'Lactation #3'!$E$41,FALSE) -> 93935.35399 | Y27: =HLOOKUP(Y24,'Projected DMI & Feed Cost'!KA38:MC51,'Lactation #3'!$E$41,FALSE) -> 89937.12849 | Z27: =HLOOKUP(Z24,'Projected DMI & Feed Cost'!KB38:MD51,'Lactation #3'!$E$41,FALSE) -> 88990.31771 | AA27: =HLOOKUP(AA24,'Projected DMI & Feed Cost'!KC38:ME51,'Lactation #3'!$E$41,FALSE) -> 88077.84869 | AB27: =HLOOKUP(AB24,'Projected DMI & Feed Cost'!KD38:MF51,'Lactation #3'!$E$41,FALSE) -> 85443.41086 | AC27: =HLOOKUP(AC24,'Projected DMI & Feed Cost'!KE38:MG51,'Lactation #3'!$E$41,FALSE) -> 82984.64767 | AD27: =HLOOKUP(AD24,'Projected DMI & Feed Cost'!KF38:MH51,'Lactation #3'!$E$41,FALSE) -> 81579.36907 | AE27: =HLOOKUP(AE24,'Projected DMI & Feed Cost'!KG38:MI51,'Lactation #3'!$E$41,FALSE) -> 79397.65841 | AF27: =HLOOKUP(AF24,'Projected DMI & Feed Cost'!KH38:MJ51,'Lactation #3'!$E$41,FALSE) -> 78212.88499 | AG27: =HLOOKUP(AG24,'Projected DMI & Feed Cost'!KI38:MK51,'Lactation #3'!$E$41,FALSE) -> 77882.67309 | AH27: =HLOOKUP(AH24,'Projected DMI & Feed Cost'!KJ38:ML51,'Lactation #3'!$E$41,FALSE) -> 77774.85295 | AI27: =HLOOKUP(AI24,'Projected DMI & Feed Cost'!KK38:MM51,'Lactation #3'!$E$41,FALSE) -> 77108.00234 | AJ27: =HLOOKUP(AJ24,'Projected DMI & Feed Cost'!KL38:MN51,'Lactation #3'!$E$41,FALSE) -> 75996.54399 | AK27: =HLOOKUP(AK24,'Projected DMI & Feed Cost'!KM38:MO51,'Lactation #3'!$E$41,FALSE) -> 74854.62564 | AL27: =HLOOKUP(AL24,'Projected DMI & Feed Cost'!KN38:MP51,'Lactation #3'!$E$41,FALSE) -> 70360.53646 | AM27: =HLOOKUP(AM24,'Projected DMI & Feed Cost'!KO38:MQ51,'Lactation #3'!$E$41,FALSE) -> 65553.8053 | AN27: =HLOOKUP(AN24,'Projected DMI & Feed Cost'!KP38:MR51,'Lactation #3'!$E$41,FALSE) -> 64321.43737 | AO27: =HLOOKUP(AO24,'Projected DMI & Feed Cost'!KQ38:MS51,'Lactation #3'!$E$41,FALSE) -> 60290.78856 | AP27: =HLOOKUP(AP24,'Projected DMI & Feed Cost'!KR38:MT51,'Lactation #3'!$E$41,FALSE) -> 57272.56826 | AQ27: =HLOOKUP(AQ24,'Projected DMI & Feed Cost'!KS38:MU51,'Lactation #3'!$E$41,FALSE) -> 53438.22758 | AR27: =HLOOKUP(AR24,'Projected DMI & Feed Cost'!KT38:MV51,'Lactation #3'!$E$41,FALSE) -> 54255.83983 | AS27: =HLOOKUP(AS24,'Projected DMI & Feed Cost'!KU38:MW51,'Lactation #3'!$E$41,FALSE) -> 51345.35102 | AT27: =HLOOKUP(AT24,'Projected DMI & Feed Cost'!KV38:MX51,'Lactation #3'!$E$41,FALSE) -> 48121.55816 | AU27: =HLOOKUP(AU24,'Projected DMI & Feed Cost'!KW38:MY51,'Lactation #3'!$E$41,FALSE) -> 45353.45027 | AV27: =HLOOKUP(AV24,'Projected DMI & Feed Cost'!KX38:MZ51,'Lactation #3'!$E$41,FALSE) -> 44815.62485 | AW27: =HLOOKUP(AW24,'Projected DMI & Feed Cost'!KY38:NA51,'Lactation #3'!$E$41,FALSE) -> 44429.22501 | AX27: =HLOOKUP(AX24,'Projected DMI & Feed Cost'!KZ38:NB51,'Lactation #3'!$E$41,FALSE) -> 44892.90069 | AY27: =HLOOKUP(AY24,'Projected DMI & Feed Cost'!LA38:NC51,'Lactation #3'!$E$41,FALSE) -> 47014.53966 | AZ27: =HLOOKUP(AZ24,'Projected DMI & Feed Cost'!LB38:ND51,'Lactation #3'!$E$41,FALSE) -> 46939.56906 | BA27: =HLOOKUP(BA24,'Projected DMI & Feed Cost'!LC38:NE51,'Lactation #3'!$E$41,FALSE) -> 45616.56211 | BB27: =HLOOKUP(BB24,'Projected DMI & Feed Cost'!LD38:NF51,'Lactation #3'!$E$41,FALSE) -> 44975.22318 | BC27: =HLOOKUP(BC24,'Projected DMI & Feed Cost'!LE38:NG51,'Lactation #3'!$E$41,FALSE) -> 45078.62631 | BD27: =HLOOKUP(BD24,'Projected DMI & Feed Cost'!LF38:NH51,'Lactation #3'!$E$41,FALSE) -> 44936.44167 | BE27: =HLOOKUP(BE24,'Projected DMI & Feed Cost'!LG38:NI51,'Lactation #3'!$E$41,FALSE) -> 44258.93981 | BF27: =HLOOKUP(BF24,'Projected DMI & Feed Cost'!LH38:NJ51,'Lactation #3'!$E$41,FALSE) -> 45879.30155 | BG27: =HLOOKUP(BG24,'Projected DMI & Feed Cost'!LI38:NK51,'Lactation #3'!$E$41,FALSE) -> 44073.84425 | BH27: =HLOOKUP(BH24,'Projected DMI & Feed Cost'!LJ38:NL51,'Lactation #3'!$E$41,FALSE) -> 44491.28019 | BI27: =HLOOKUP(BI24,'Projected DMI & Feed Cost'!LK38:NM51,'Lactation #3'!$E$41,FALSE) -> 51288.00976 | BJ27: =HLOOKUP(BJ24,'Projected DMI & Feed Cost'!LL38:NN51,'Lactation #3'!$E$41,FALSE) -> 56126.17719 | BK27: =HLOOKUP(BK24,'Projected DMI & Feed Cost'!LM38:NO51,'Lactation #3'!$E$41,FALSE) -> 63009.66232 | BL27: =HLOOKUP(BL24,'Projected DMI & Feed Cost'!LN38:NP51,'Lactation #3'!$E$41,FALSE) -> 71655.50134
A28: 9 | B28: 241-270 | C28: Milking | D28: Pregnant | E28: 2 | I28: Feed Cost ($) | J28: =HLOOKUP(J24,'Projected DMI & Feed Cost'!VK35:XN48,'Lactation #3'!$E$41,FALSE) -> 7553.25945 | K28: =HLOOKUP(K24,'Projected DMI & Feed Cost'!UL35:XN48,'Lactation #3'!$E$41,FALSE) -> 7788.790281 | L28: =HLOOKUP(L24,'Projected DMI & Feed Cost'!UL35:XN48,'Lactation #3'!$E$41,FALSE) -> 7991.482792 | M28: =HLOOKUP(M24,'Projected DMI & Feed Cost'!UL35:XN48,'Lactation #3'!$E$41,FALSE) -> 8379.464929 | N28: =HLOOKUP(N24,'Projected DMI & Feed Cost'!UL35:XN48,'Lactation #3'!$E$41,FALSE) -> 8934.98073 | O28: =HLOOKUP(O24,'Projected DMI & Feed Cost'!UL35:XN48,'Lactation #3'!$E$41,FALSE) -> 8850.599222 | P28: =HLOOKUP(P24,'Projected DMI & Feed Cost'!UL35:XN48,'Lactation #3'!$E$41,FALSE) -> 8799.97981 | Q28: =HLOOKUP(Q24,'Projected DMI & Feed Cost'!UL35:XN48,'Lactation #3'!$E$41,FALSE) -> 9008.495006 | R28: =HLOOKUP(R24,'Projected DMI & Feed Cost'!UL35:XN48,'Lactation #3'!$E$41,FALSE) -> 9238.557238 | S28: =HLOOKUP(S24,'Projected DMI & Feed Cost'!UL35:XN48,'Lactation #3'!$E$41,FALSE) -> 9216.893093 | T28: =HLOOKUP(T24,'Projected DMI & Feed Cost'!UL35:XN48,'Lactation #3'!$E$41,FALSE) -> 9307.175528 | U28: =HLOOKUP(U24,'Projected DMI & Feed Cost'!UL35:XN48,'Lactation #3'!$E$41,FALSE) -> 9292.497895 | V28: =HLOOKUP(V24,'Projected DMI & Feed Cost'!UL35:XN48,'Lactation #3'!$E$41,FALSE) -> 8963.420274 | W28: =HLOOKUP(W24,'Projected DMI & Feed Cost'!UL35:XN48,'Lactation #3'!$E$41,FALSE) -> 8668.178927 | X28: =HLOOKUP(X24,'Projected DMI & Feed Cost'!UL35:XN48,'Lactation #3'!$E$41,FALSE) -> 8454.181859 | Y28: =HLOOKUP(Y24,'Projected DMI & Feed Cost'!UL35:XN48,'Lactation #3'!$E$41,FALSE) -> 8094.341564 | Z28: =HLOOKUP(Z24,'Projected DMI & Feed Cost'!UL35:XN48,'Lactation #3'!$E$41,FALSE) -> 8009.128594 | AA28: =HLOOKUP(AA24,'Projected DMI & Feed Cost'!UL35:XN48,'Lactation #3'!$E$41,FALSE) -> 7927.006382 | AB28: =HLOOKUP(AB24,'Projected DMI & Feed Cost'!UL35:XN48,'Lactation #3'!$E$41,FALSE) -> 7689.906978 | AC28: =HLOOKUP(AC24,'Projected DMI & Feed Cost'!UL35:XN48,'Lactation #3'!$E$41,FALSE) -> 7468.61829 | AD28: =HLOOKUP(AD24,'Projected DMI & Feed Cost'!UL35:XN48,'Lactation #3'!$E$41,FALSE) -> 7342.143216 | AE28: =HLOOKUP(AE24,'Projected DMI & Feed Cost'!UL35:XN48,'Lactation #3'!$E$41,FALSE) -> 7145.789257 | AF28: =HLOOKUP(AF24,'Projected DMI & Feed Cost'!UL35:XN48,'Lactation #3'!$E$41,FALSE) -> 7039.159649 | AG28: =HLOOKUP(AG24,'Projected DMI & Feed Cost'!UL35:XN48,'Lactation #3'!$E$41,FALSE) -> 7009.440578 | AH28: =HLOOKUP(AH24,'Projected DMI & Feed Cost'!UL35:XN48,'Lactation #3'!$E$41,FALSE) -> 6999.736766 | AI28: =HLOOKUP(AI24,'Projected DMI & Feed Cost'!UL35:XN48,'Lactation #3'!$E$41,FALSE) -> 6939.720211 | AJ28: =HLOOKUP(AJ24,'Projected DMI & Feed Cost'!UL35:XN48,'Lactation #3'!$E$41,FALSE) -> 6839.688959 | AK28: =HLOOKUP(AK24,'Projected DMI & Feed Cost'!UL35:XN48,'Lactation #3'!$E$41,FALSE) -> 6736.916308 | AL28: =HLOOKUP(AL24,'Projected DMI & Feed Cost'!UL35:XN48,'Lactation #3'!$E$41,FALSE) -> 6332.448281 | AM28: =HLOOKUP(AM24,'Projected DMI & Feed Cost'!UL35:XN48,'Lactation #3'!$E$41,FALSE) -> 5899.842477 | AN28: =HLOOKUP(AN24,'Projected DMI & Feed Cost'!UL35:XN48,'Lactation #3'!$E$41,FALSE) -> 5788.929364 | AO28: =HLOOKUP(AO24,'Projected DMI & Feed Cost'!UL35:XN48,'Lactation #3'!$E$41,FALSE) -> 5426.17097 | AP28: =HLOOKUP(AP24,'Projected DMI & Feed Cost'!UL35:XN48,'Lactation #3'!$E$41,FALSE) -> 5154.531143 | AQ28: =HLOOKUP(AQ24,'Projected DMI & Feed Cost'!UL35:XN48,'Lactation #3'!$E$41,FALSE) -> 4809.440482 | AR28: =HLOOKUP(AR24,'Projected DMI & Feed Cost'!UL35:XN48,'Lactation #3'!$E$41,FALSE) -> 4883.025585 | AS28: =HLOOKUP(AS24,'Projected DMI & Feed Cost'!UL35:XN48,'Lactation #3'!$E$41,FALSE) -> 4621.081592 | AT28: =HLOOKUP(AT24,'Projected DMI & Feed Cost'!UL35:XN48,'Lactation #3'!$E$41,FALSE) -> 4330.940235 | AU28: =HLOOKUP(AU24,'Projected DMI & Feed Cost'!UL35:XN48,'Lactation #3'!$E$41,FALSE) -> 4081.810524 | AV28: =HLOOKUP(AV24,'Projected DMI & Feed Cost'!UL35:XN48,'Lactation #3'!$E$41,FALSE) -> 4033.406236 | AW28: =HLOOKUP(AW24,'Projected DMI & Feed Cost'!UL35:XN48,'Lactation #3'!$E$41,FALSE) -> 3998.630251 | AX28: =HLOOKUP(AX24,'Projected DMI & Feed Cost'!UL35:XN48,'Lactation #3'!$E$41,FALSE) -> 4040.361062 | AY28: =HLOOKUP(AY24,'Projected DMI & Feed Cost'!UL35:XN48,'Lactation #3'!$E$41,FALSE) -> 4231.308569 | AZ28: =HLOOKUP(AZ24,'Projected DMI & Feed Cost'!UL35:XN48,'Lactation #3'!$E$41,FALSE) -> 4224.561215 | BA28: =HLOOKUP(BA24,'Projected DMI & Feed Cost'!UL35:XN48,'Lactation #3'!$E$41,FALSE) -> 4105.49059 | BB28: =HLOOKUP(BB24,'Projected DMI & Feed Cost'!UL35:XN48,'Lactation #3'!$E$41,FALSE) -> 4047.770086 | BC28: =HLOOKUP(BC24,'Projected DMI & Feed Cost'!UL35:XN48,'Lactation #3'!$E$41,FALSE) -> 4057.076368 | BD28: =HLOOKUP(BD24,'Projected DMI & Feed Cost'!UL35:XN48,'Lactation #3'!$E$41,FALSE) -> 4044.279751 | BE28: =HLOOKUP(BE24,'Projected DMI & Feed Cost'!UL35:XN48,'Lactation #3'!$E$41,FALSE) -> 3983.304583 | BF28: =HLOOKUP(BF24,'Projected DMI & Feed Cost'!UL35:XN48,'Lactation #3'!$E$41,FALSE) -> 4129.137139 | BG28: =HLOOKUP(BG24,'Projected DMI & Feed Cost'!UL35:XN48,'Lactation #3'!$E$41,FALSE) -> 3966.645983 | BH28: =HLOOKUP(BH24,'Projected DMI & Feed Cost'!UL35:XN48,'Lactation #3'!$E$41,FALSE) -> 4004.215217 | BI28: =HLOOKUP(BI24,'Projected DMI & Feed Cost'!UL35:XN48,'Lactation #3'!$E$41,FALSE) -> 4615.920878 | BJ28: =HLOOKUP(BJ24,'Projected DMI & Feed Cost'!UL35:XN48,'Lactation #3'!$E$41,FALSE) -> 5051.355947 | BK28: =HLOOKUP(BK24,'Projected DMI & Feed Cost'!UL35:XN48,'Lactation #3'!$E$41,FALSE) -> 5670.869609 | BL28: =HLOOKUP(BL24,'Projected DMI & Feed Cost'!UL35:XN48,'Lactation #3'!$E$41,FALSE) -> 6448.995121
I29: Labor Cost ($) | J29: =HLOOKUP(J24,'Labor Cost'!JL39:LN52,'Lactation #3'!$E$41,FALSE) -> 4506.961652 | K29: =HLOOKUP(K24,'Labor Cost'!JM39:LO52,'Lactation #3'!$E$41,FALSE) -> 4645.619184 | L29: =HLOOKUP(L24,'Labor Cost'!JN39:LP52,'Lactation #3'!$E$41,FALSE) -> 4770.926979 | M29: =HLOOKUP(M24,'Labor Cost'!JO39:LQ52,'Lactation #3'!$E$41,FALSE) -> 5007.331805 | N29: =HLOOKUP(N24,'Labor Cost'!JP39:LR52,'Lactation #3'!$E$41,FALSE) -> 5341.079705 | O29: =HLOOKUP(O24,'Labor Cost'!JQ39:LS52,'Lactation #3'!$E$41,FALSE) -> 5286.894695 | P29: =HLOOKUP(P24,'Labor Cost'!JR39:LT52,'Lactation #3'!$E$41,FALSE) -> 5254.639662 | Q29: =HLOOKUP(Q24,'Labor Cost'!JS39:LU52,'Lactation #3'!$E$41,FALSE) -> 5380.337015 | R29: =HLOOKUP(R24,'Labor Cost'!JT39:LV52,'Lactation #3'!$E$41,FALSE) -> 5517.798779 | S29: =HLOOKUP(S24,'Labor Cost'!JU39:LW52,'Lactation #3'!$E$41,FALSE) -> 5503.538514 | T29: =HLOOKUP(T24,'Labor Cost'!JV39:LX52,'Lactation #3'!$E$41,FALSE) -> 5555.92048 | U29: =HLOOKUP(U24,'Labor Cost'!JW39:LY52,'Lactation #3'!$E$41,FALSE) -> 5547.481744 | V29: =HLOOKUP(V24,'Labor Cost'!JX39:LZ52,'Lactation #3'!$E$41,FALSE) -> 5348.989553 | W29: =HLOOKUP(W24,'Labor Cost'!JY39:MA52,'Lactation #3'!$E$41,FALSE) -> 5170.956749 | X29: =HLOOKUP(X24,'Labor Cost'!JZ39:MB52,'Lactation #3'!$E$41,FALSE) -> 5043.691632 | Y29: =HLOOKUP(Y24,'Labor Cost'!KA39:MC52,'Lactation #3'!$E$41,FALSE) -> 4826.347622 | Z29: =HLOOKUP(Z24,'Labor Cost'!KB39:MD52,'Lactation #3'!$E$41,FALSE) -> 4776.155243 | AA29: =HLOOKUP(AA24,'Labor Cost'!KC39:ME52,'Lactation #3'!$E$41,FALSE) -> 4730.435915 | AB29: =HLOOKUP(AB24,'Labor Cost'!KD39:MF52,'Lactation #3'!$E$41,FALSE) -> 4586.46757 | AC29: =HLOOKUP(AC24,'Labor Cost'!KE39:MG52,'Lactation #3'!$E$41,FALSE) -> 4452.099882 | AD29: =HLOOKUP(AD24,'Labor Cost'!KF39:MH52,'Lactation #3'!$E$41,FALSE) -> 4377.952755 | AE29: =HLOOKUP(AE24,'Labor Cost'!KG39:MI52,'Lactation #3'!$E$41,FALSE) -> 4261.226166 | AF29: =HLOOKUP(AF24,'Labor Cost'!KH39:MJ52,'Lactation #3'!$E$41,FALSE) -> 4197.84095 | AG29: =HLOOKUP(AG24,'Labor Cost'!KI39:MK52,'Lactation #3'!$E$41,FALSE) -> 4182.481537 | AH29: =HLOOKUP(AH24,'Labor Cost'!KJ39:ML52,'Lactation #3'!$E$41,FALSE) -> 4178.074991 | AI29: =HLOOKUP(AI24,'Labor Cost'!KK39:MM52,'Lactation #3'!$E$41,FALSE) -> 4141.832571 | AJ29: =HLOOKUP(AJ24,'Labor Cost'!KL39:MN52,'Lactation #3'!$E$41,FALSE) -> 4081.272899 | AK29: =HLOOKUP(AK24,'Labor Cost'!KM39:MO52,'Lactation #3'!$E$41,FALSE) -> 4019.694328 | AL29: =HLOOKUP(AL24,'Labor Cost'!KN39:MP52,'Lactation #3'!$E$41,FALSE) -> 3777.624489 | AM29: =HLOOKUP(AM24,'Labor Cost'!KO39:MQ52,'Lactation #3'!$E$41,FALSE) -> 3518.217995 | AN29: =HLOOKUP(AN24,'Labor Cost'!KP39:MR52,'Lactation #3'!$E$41,FALSE) -> 3451.377834 | AO29: =HLOOKUP(AO24,'Labor Cost'!KQ39:MS52,'Lactation #3'!$E$41,FALSE) -> 3234.494722 | AP29: =HLOOKUP(AP24,'Labor Cost'!KR39:MT52,'Lactation #3'!$E$41,FALSE) -> 3071.758722 | AQ29: =HLOOKUP(AQ24,'Labor Cost'!KS39:MU52,'Lactation #3'!$E$41,FALSE) -> 2865.33481 | AR29: =HLOOKUP(AR24,'Labor Cost'!KT39:MV52,'Lactation #3'!$E$41,FALSE) -> 2909.422631 | AS29: =HLOOKUP(AS24,'Labor Cost'!KU39:MW52,'Lactation #3'!$E$41,FALSE) -> 2753.637427 | AT29: =HLOOKUP(AT24,'Labor Cost'!KV39:MX52,'Lactation #3'!$E$41,FALSE) -> 2580.368893 | AU29: =HLOOKUP(AU24,'Labor Cost'!KW39:MY52,'Lactation #3'!$E$41,FALSE) -> 2431.977819 | AV29: =HLOOKUP(AV24,'Labor Cost'!KX39:MZ52,'Lactation #3'!$E$41,FALSE) -> 2403.598542 | AW29: =HLOOKUP(AW24,'Labor Cost'!KY39:NA52,'Lactation #3'!$E$41,FALSE) -> 2385.354749 | AX29: =HLOOKUP(AX24,'Labor Cost'!KZ39:NB52,'Lactation #3'!$E$41,FALSE) -> 2412.526164 | AY29: =HLOOKUP(AY24,'Labor Cost'!LA39:NC52,'Lactation #3'!$E$41,FALSE) -> 2524.765607 | AZ29: =HLOOKUP(AZ24,'Labor Cost'!LB39:ND52,'Lactation #3'!$E$41,FALSE) -> 2521.032394 | BA29: =HLOOKUP(BA24,'Labor Cost'!LC39:NE52,'Lactation #3'!$E$41,FALSE) -> 2451.371617 | BB29: =HLOOKUP(BB24,'Labor Cost'!LD39:NF52,'Lactation #3'!$E$41,FALSE) -> 2416.371819 | BC29: =HLOOKUP(BC24,'Labor Cost'!LE39:NG52,'Lactation #3'!$E$41,FALSE) -> 2419.924897 | BD29: =HLOOKUP(BD24,'Labor Cost'!LF39:NH52,'Lactation #3'!$E$41,FALSE) -> 2412.432414 | BE29: =HLOOKUP(BE24,'Labor Cost'!LG39:NI52,'Lactation #3'!$E$41,FALSE) -> 2379.003144 | BF29: =HLOOKUP(BF24,'Labor Cost'!LH39:NJ52,'Lactation #3'!$E$41,FALSE) -> 2465.826876 | BG29: =HLOOKUP(BG24,'Labor Cost'!LI39:NK52,'Lactation #3'!$E$41,FALSE) -> 2367.162882 | BH29: =HLOOKUP(BH24,'Labor Cost'!LJ39:NL52,'Lactation #3'!$E$41,FALSE) -> 2389.191798 | BI29: =HLOOKUP(BI24,'Labor Cost'!LK39:NM52,'Lactation #3'!$E$41,FALSE) -> 2756.196226 | BJ29: =HLOOKUP(BJ24,'Labor Cost'!LL39:NN52,'Lactation #3'!$E$41,FALSE) -> 3015.371059 | BK29: =HLOOKUP(BK24,'Labor Cost'!LM39:NO52,'Lactation #3'!$E$41,FALSE) -> 3387.848366 | BL29: =HLOOKUP(BL24,'Labor Cost'!LN39:NP52,'Lactation #3'!$E$41,FALSE) -> 3857.571062
A30: 10 | B30: 271-300 | C30: Milking | D30: Pregnant | E30: 4 | I30: Milk Income ($) | J30: =HLOOKUP(J24,'Milk Income'!JL38:LN51,'Lactation #3'!$E$41,FALSE) -> 18698.8875 | K30: =HLOOKUP(K24,'Milk Income'!JM38:LO51,'Lactation #3'!$E$41,FALSE) -> 19274.16232 | L30: =HLOOKUP(L24,'Milk Income'!JN38:LP51,'Lactation #3'!$E$41,FALSE) -> 19794.05057 | M30: =HLOOKUP(M24,'Milk Income'!JO38:LQ51,'Lactation #3'!$E$41,FALSE) -> 20774.86815 | N30: =HLOOKUP(N24,'Milk Income'!JP38:LR51,'Lactation #3'!$E$41,FALSE) -> 22159.55143 | O30: =HLOOKUP(O24,'Milk Income'!JQ38:LS51,'Lactation #3'!$E$41,FALSE) -> 21934.74379 | P30: =HLOOKUP(P24,'Milk Income'!JR38:LT51,'Lactation #3'!$E$41,FALSE) -> 21800.92121 | Q30: =HLOOKUP(Q24,'Milk Income'!JS38:LU51,'Lactation #3'!$E$41,FALSE) -> 22322.42568 | R30: =HLOOKUP(R24,'Milk Income'!JT38:LV51,'Lactation #3'!$E$41,FALSE) -> 22892.7394 | S30: =HLOOKUP(S24,'Milk Income'!JU38:LW51,'Lactation #3'!$E$41,FALSE) -> 22833.57513 | T30: =HLOOKUP(T24,'Milk Income'!JV38:LX51,'Lactation #3'!$E$41,FALSE) -> 23050.90214 | U30: =HLOOKUP(U24,'Milk Income'!JW38:LY51,'Lactation #3'!$E$41,FALSE) -> 23015.89076 | V30: =HLOOKUP(V24,'Milk Income'!JX38:LZ51,'Lactation #3'!$E$41,FALSE) -> 22192.36852 | W30: =HLOOKUP(W24,'Milk Income'!JY38:MA51,'Lactation #3'!$E$41,FALSE) -> 21453.73003 | X30: =HLOOKUP(X24,'Milk Income'!JZ38:MB51,'Lactation #3'!$E$41,FALSE) -> 20925.72107 | Y30: =HLOOKUP(Y24,'Milk Income'!KA38:MC51,'Lactation #3'!$E$41,FALSE) -> 20023.98471 | Z30: =HLOOKUP(Z24,'Milk Income'!KB38:MD51,'Lactation #3'!$E$41,FALSE) -> 19815.74206 | AA30: =HLOOKUP(AA24,'Milk Income'!KC38:ME51,'Lactation #3'!$E$41,FALSE) -> 19626.0576 | AB30: =HLOOKUP(AB24,'Milk Income'!KD38:MF51,'Lactation #3'!$E$41,FALSE) -> 19028.7488 | AC30: =HLOOKUP(AC24,'Milk Income'!KE38:MG51,'Lactation #3'!$E$41,FALSE) -> 18471.27206 | AD30: =HLOOKUP(AD24,'Milk Income'!KF38:MH51,'Lactation #3'!$E$41,FALSE) -> 18163.64379 | AE30: =HLOOKUP(AE24,'Milk Income'!KG38:MI51,'Lactation #3'!$E$41,FALSE) -> 17679.35803 | AF30: =HLOOKUP(AF24,'Milk Income'!KH38:MJ51,'Lactation #3'!$E$41,FALSE) -> 17416.37975 | AG30: =HLOOKUP(AG24,'Milk Income'!KI38:MK51,'Lactation #3'!$E$41,FALSE) -> 17352.65524 | AH30: =HLOOKUP(AH24,'Milk Income'!KJ38:ML51,'Lactation #3'!$E$41,FALSE) -> 17334.37296 | AI30: =HLOOKUP(AI24,'Milk Income'!KK38:MM51,'Lactation #3'!$E$41,FALSE) -> 17184.00716 | AJ30: =HLOOKUP(AJ24,'Milk Income'!KL38:MN51,'Lactation #3'!$E$41,FALSE) -> 16932.75175 | AK30: =HLOOKUP(AK24,'Milk Income'!KM38:MO51,'Lactation #3'!$E$41,FALSE) -> 16677.26904 | AL30: =HLOOKUP(AL24,'Milk Income'!KN38:MP51,'Lactation #3'!$E$41,FALSE) -> 15672.94794 | AM30: =HLOOKUP(AM24,'Milk Income'!KO38:MQ51,'Lactation #3'!$E$41,FALSE) -> 14596.69896 | AN30: =HLOOKUP(AN24,'Milk Income'!KP38:MR51,'Lactation #3'!$E$41,FALSE) -> 14319.3865 | AO30: =HLOOKUP(AO24,'Milk Income'!KQ38:MS51,'Lactation #3'!$E$41,FALSE) -> 13419.56236 | AP30: =HLOOKUP(AP24,'Milk Income'!KR38:MT51,'Lactation #3'!$E$41,FALSE) -> 12744.38861 | AQ30: =HLOOKUP(AQ24,'Milk Income'!KS38:MU51,'Lactation #3'!$E$41,FALSE) -> 11887.95854 | AR30: =HLOOKUP(AR24,'Milk Income'!KT38:MV51,'Lactation #3'!$E$41,FALSE) -> 12070.87405 | AS30: =HLOOKUP(AS24,'Milk Income'!KU38:MW51,'Lactation #3'!$E$41,FALSE) -> 11424.5384 | AT30: =HLOOKUP(AT24,'Milk Income'!KV38:MX51,'Lactation #3'!$E$41,FALSE) -> 10705.66634 | AU30: =HLOOKUP(AU24,'Milk Income'!KW38:MY51,'Lactation #3'!$E$41,FALSE) -> 10090.00811 | AV30: =HLOOKUP(AV24,'Milk Income'!KX38:MZ51,'Lactation #3'!$E$41,FALSE) -> 9972.265617 | AW30: =HLOOKUP(AW24,'Milk Income'!KY38:NA51,'Lactation #3'!$E$41,FALSE) -> 9896.574132 | AX30: =HLOOKUP(AX24,'Milk Income'!KZ38:NB51,'Lactation #3'!$E$41,FALSE) -> 10009.30534 | AY30: =HLOOKUP(AY24,'Milk Income'!LA38:NC51,'Lactation #3'!$E$41,FALSE) -> 10474.97443 | AZ30: =HLOOKUP(AZ24,'Milk Income'!LB38:ND51,'Lactation #3'!$E$41,FALSE) -> 10459.48574 | BA30: =HLOOKUP(BA24,'Milk Income'!LC38:NE51,'Lactation #3'!$E$41,FALSE) -> 10170.47085 | BB30: =HLOOKUP(BB24,'Milk Income'!LD38:NF51,'Lactation #3'!$E$41,FALSE) -> 10025.26054 | BC30: =HLOOKUP(BC24,'Milk Income'!LE38:NG51,'Lactation #3'!$E$41,FALSE) -> 10040.00187 | BD30: =HLOOKUP(BD24,'Milk Income'!LF38:NH51,'Lactation #3'!$E$41,FALSE) -> 10008.91638 | BE30: =HLOOKUP(BE24,'Milk Income'!LG38:NI51,'Lactation #3'!$E$41,FALSE) -> 9870.22202 | BF30: =HLOOKUP(BF24,'Milk Income'!LH38:NJ51,'Lactation #3'!$E$41,FALSE) -> 10230.44412 | BG30: =HLOOKUP(BG24,'Milk Income'!LI38:NK51,'Lactation #3'!$E$41,FALSE) -> 9821.098078 | BH30: =HLOOKUP(BH24,'Milk Income'!LJ38:NL51,'Lactation #3'!$E$41,FALSE) -> 9912.493623 | BI30: =HLOOKUP(BI24,'Milk Income'!LK38:NM51,'Lactation #3'!$E$41,FALSE) -> 11435.15458 | BJ30: =HLOOKUP(BJ24,'Milk Income'!LL38:NN51,'Lactation #3'!$E$41,FALSE) -> 12510.44241 | BK30: =HLOOKUP(BK24,'Milk Income'!LM38:NO51,'Lactation #3'!$E$41,FALSE) -> 14055.80973 | BL30: =HLOOKUP(BL24,'Milk Income'!LN38:NP51,'Lactation #3'!$E$41,FALSE) -> 16004.63746
I31: Loan Ammortization ($) | J31: =IF('Final Summary'!$D$52<='Lactation #3'!J24,'Final Summary'!$D$59,0) -> 0 | K31: =IF('Final Summary'!$D$52<='Lactation #3'!K24,'Final Summary'!$D$59,0) -> 0 | L31: =IF('Final Summary'!$D$52<='Lactation #3'!L24,'Final Summary'!$D$59,0) -> 0 | M31: =IF('Final Summary'!$D$52<='Lactation #3'!M24,'Final Summary'!$D$59,0) -> 0 | N31: =IF('Final Summary'!$D$52<='Lactation #3'!N24,'Final Summary'!$D$59,0) -> 0 | O31: =IF('Final Summary'!$D$52<='Lactation #3'!O24,'Final Summary'!$D$59,0) -> 0 | P31: =IF('Final Summary'!$D$52<='Lactation #3'!P24,'Final Summary'!$D$59,0) -> 0 | Q31: =IF('Final Summary'!$D$52<='Lactation #3'!Q24,'Final Summary'!$D$59,0) -> 0 | R31: =IF('Final Summary'!$D$52<='Lactation #3'!R24,'Final Summary'!$D$59,0) -> 0 | S31: =IF('Final Summary'!$D$52<='Lactation #3'!S24,'Final Summary'!$D$59,0) -> 0 | T31: =IF('Final Summary'!$D$52<='Lactation #3'!T24,'Final Summary'!$D$59,0) -> 0 | U31: =IF('Final Summary'!$D$52<='Lactation #3'!U24,'Final Summary'!$D$59,0) -> 2451.26 | V31: =IF('Final Summary'!$D$52<='Lactation #3'!V24,'Final Summary'!$D$59,0) -> 2451.26 | W31: =IF('Final Summary'!$D$52<='Lactation #3'!W24,'Final Summary'!$D$59,0) -> 2451.26 | X31: =IF('Final Summary'!$D$52<='Lactation #3'!X24,'Final Summary'!$D$59,0) -> 2451.26 | Y31: =IF('Final Summary'!$D$52<='Lactation #3'!Y24,'Final Summary'!$D$59,0) -> 2451.26 | Z31: =IF('Final Summary'!$D$52<='Lactation #3'!Z24,'Final Summary'!$D$59,0) -> 2451.26 | AA31: =IF('Final Summary'!$D$52<='Lactation #3'!AA24,'Final Summary'!$D$59,0) -> 2451.26 | AB31: =IF('Final Summary'!$D$52<='Lactation #3'!AB24,'Final Summary'!$D$59,0) -> 2451.26 | AC31: =IF('Final Summary'!$D$52<='Lactation #3'!AC24,'Final Summary'!$D$59,0) -> 2451.26 | AD31: =IF('Final Summary'!$D$52<='Lactation #3'!AD24,'Final Summary'!$D$59,0) -> 2451.26 | AE31: =IF('Final Summary'!$D$52<='Lactation #3'!AE24,'Final Summary'!$D$59,0) -> 2451.26 | AF31: =IF('Final Summary'!$D$52<='Lactation #3'!AF24,'Final Summary'!$D$59,0) -> 2451.26 | AG31: =IF('Final Summary'!$D$52<='Lactation #3'!AG24,'Final Summary'!$D$59,0) -> 2451.26 | AH31: =IF('Final Summary'!$D$52<='Lactation #3'!AH24,'Final Summary'!$D$59,0) -> 2451.26 | AI31: =IF('Final Summary'!$D$52<='Lactation #3'!AI24,'Final Summary'!$D$59,0) -> 2451.26 | AJ31: =IF('Final Summary'!$D$52<='Lactation #3'!AJ24,'Final Summary'!$D$59,0) -> 2451.26 | AK31: =IF('Final Summary'!$D$52<='Lactation #3'!AK24,'Final Summary'!$D$59,0) -> 2451.26 | AL31: =IF('Final Summary'!$D$52<='Lactation #3'!AL24,'Final Summary'!$D$59,0) -> 2451.26 | AM31: =IF('Final Summary'!$D$52<='Lactation #3'!AM24,'Final Summary'!$D$59,0) -> 2451.26 | AN31: =IF('Final Summary'!$D$52<='Lactation #3'!AN24,'Final Summary'!$D$59,0) -> 2451.26 | AO31: =IF('Final Summary'!$D$52<='Lactation #3'!AO24,'Final Summary'!$D$59,0) -> 2451.26 | AP31: =IF('Final Summary'!$D$52<='Lactation #3'!AP24,'Final Summary'!$D$59,0) -> 2451.26 | AQ31: =IF('Final Summary'!$D$52<='Lactation #3'!AQ24,'Final Summary'!$D$59,0) -> 2451.26 | AR31: =IF('Final Summary'!$D$52<='Lactation #3'!AR24,'Final Summary'!$D$59,0) -> 2451.26 | AS31: =IF('Final Summary'!$D$52<='Lactation #3'!AS24,'Final Summary'!$D$59,0) -> 2451.26 | AT31: =IF('Final Summary'!$D$52<='Lactation #3'!AT24,'Final Summary'!$D$59,0) -> 2451.26 | AU31: =IF('Final Summary'!$D$52<='Lactation #3'!AU24,'Final Summary'!$D$59,0) -> 2451.26 | AV31: =IF('Final Summary'!$D$52<='Lactation #3'!AV24,'Final Summary'!$D$59,0) -> 2451.26 | AW31: =IF('Final Summary'!$D$52<='Lactation #3'!AW24,'Final Summary'!$D$59,0) -> 2451.26 | AX31: =IF('Final Summary'!$D$52<='Lactation #3'!AX24,'Final Summary'!$D$59,0) -> 2451.26 | AY31: =IF('Final Summary'!$D$52<='Lactation #3'!AY24,'Final Summary'!$D$59,0) -> 2451.26 | AZ31: =IF('Final Summary'!$D$52<='Lactation #3'!AZ24,'Final Summary'!$D$59,0) -> 2451.26 | BA31: =IF('Final Summary'!$D$52<='Lactation #3'!BA24,'Final Summary'!$D$59,0) -> 2451.26 | BB31: =IF('Final Summary'!$D$52<='Lactation #3'!BB24,'Final Summary'!$D$59,0) -> 2451.26 | BC31: =IF('Final Summary'!$D$52<='Lactation #3'!BC24,'Final Summary'!$D$59,0) -> 2451.26 | BD31: =IF('Final Summary'!$D$52<='Lactation #3'!BD24,'Final Summary'!$D$59,0) -> 2451.26 | BE31: =IF('Final Summary'!$D$52<='Lactation #3'!BE24,'Final Summary'!$D$59,0) -> 2451.26 | BF31: =IF('Final Summary'!$D$52<='Lactation #3'!BF24,'Final Summary'!$D$59,0) -> 2451.26 | BG31: =IF('Final Summary'!$D$52<='Lactation #3'!BG24,'Final Summary'!$D$59,0) -> 2451.26 | BH31: =IF('Final Summary'!$D$52<='Lactation #3'!BH24,'Final Summary'!$D$59,0) -> 2451.26 | BI31: =IF('Final Summary'!$D$52<='Lactation #3'!BI24,'Final Summary'!$D$59,0) -> 2451.26 | BJ31: =IF('Final Summary'!$D$52<='Lactation #3'!BJ24,'Final Summary'!$D$59,0) -> 2451.26 | BK31: =IF('Final Summary'!$D$52<='Lactation #3'!BK24,'Final Summary'!$D$59,0) -> 2451.26 | BL31: =IF('Final Summary'!$D$52<='Lactation #3'!BL24,'Final Summary'!$D$59,0) -> 2451.26
A32: 11 | B32: 301-330 | C32: Milking | D32: Pregnant | E32: 5 | I32: % 3rd Lact. Cows in Herd | J32: ='Forecast Sheet'!D50/'Forecast Sheet'!D51 -> 0.2582159624 | K32: ='Forecast Sheet'!E50/'Forecast Sheet'!E51 -> 0.2720838917 | L32: ='Forecast Sheet'!F50/'Forecast Sheet'!F51 -> 0.2747828907 | M32: ='Forecast Sheet'!G50/'Forecast Sheet'!G51 -> 0.281048139 | N32: ='Forecast Sheet'!H50/'Forecast Sheet'!H51 -> 0.2960791545 | O32: ='Forecast Sheet'!I50/'Forecast Sheet'!I51 -> 0.3081888483 | P32: ='Forecast Sheet'!J50/'Forecast Sheet'!J51 -> 0.3155861272 | Q32: ='Forecast Sheet'!K50/'Forecast Sheet'!K51 -> 0.3275156856 | R32: ='Forecast Sheet'!L50/'Forecast Sheet'!L51 -> 0.3355095241 | S32: ='Forecast Sheet'!M50/'Forecast Sheet'!M51 -> 0.346148857 | T32: ='Forecast Sheet'!N50/'Forecast Sheet'!N51 -> 0.3616457295 | U32: ='Forecast Sheet'!O50/'Forecast Sheet'!O51 -> 0.369141155 | V32: ='Forecast Sheet'!P50/'Forecast Sheet'!P51 -> 0.3678358417 | W32: ='Forecast Sheet'!Q50/'Forecast Sheet'!Q51 -> 0.370592408 | X32: ='Forecast Sheet'!R50/'Forecast Sheet'!R51 -> 0.369153846 | Y32: ='Forecast Sheet'!S50/'Forecast Sheet'!S51 -> 0.3638562546 | Z32: ='Forecast Sheet'!T50/'Forecast Sheet'!T51 -> 0.3673062219 | AA32: ='Forecast Sheet'!U50/'Forecast Sheet'!U51 -> 0.3643284201 | AB32: ='Forecast Sheet'!V50/'Forecast Sheet'!V51 -> 0.3708010374 | AC32: ='Forecast Sheet'!W50/'Forecast Sheet'!W51 -> 0.3699224384 | AD32: ='Forecast Sheet'!X50/'Forecast Sheet'!X51 -> 0.3701782561 | AE32: ='Forecast Sheet'!Y50/'Forecast Sheet'!Y51 -> 0.3704260733 | AF32: ='Forecast Sheet'!Z50/'Forecast Sheet'!Z51 -> 0.3687758528 | AG32: ='Forecast Sheet'!AA50/'Forecast Sheet'!AA51 -> 0.3685618867 | AH32: ='Forecast Sheet'!AB50/'Forecast Sheet'!AB51 -> 0.3688561883 | AI32: ='Forecast Sheet'!AC50/'Forecast Sheet'!AC51 -> 0.3568776308 | AJ32: ='Forecast Sheet'!AD50/'Forecast Sheet'!AD51 -> 0.3476100875 | AK32: ='Forecast Sheet'!AE50/'Forecast Sheet'!AE51 -> 0.3377072509 | AL32: ='Forecast Sheet'!AF50/'Forecast Sheet'!AF51 -> 0.3114371558 | AM32: ='Forecast Sheet'!AG50/'Forecast Sheet'!AG51 -> 0.2941371142 | AN32: ='Forecast Sheet'!AH50/'Forecast Sheet'!AH51 -> 0.2880370801 | AO32: ='Forecast Sheet'!AI50/'Forecast Sheet'!AI51 -> 0.2674869987 | AP32: ='Forecast Sheet'!AJ50/'Forecast Sheet'!AJ51 -> 0.2506365721 | AQ32: ='Forecast Sheet'!AK50/'Forecast Sheet'!AK51 -> 0.2343020488 | AR32: ='Forecast Sheet'!AL50/'Forecast Sheet'!AL51 -> 0.2337436202 | AS32: ='Forecast Sheet'!AM50/'Forecast Sheet'!AM51 -> 0.2175571859 | AT32: ='Forecast Sheet'!AN50/'Forecast Sheet'!AN51 -> 0.2021011923 | AU32: ='Forecast Sheet'!AO50/'Forecast Sheet'!AO51 -> 0.1888145631 | AV32: ='Forecast Sheet'!AP50/'Forecast Sheet'!AP51 -> 0.1825578676 | AW32: ='Forecast Sheet'!AQ50/'Forecast Sheet'!AQ51 -> 0.1701480203 | AX32: ='Forecast Sheet'!AR50/'Forecast Sheet'!AR51 -> 0.1637103506 | AY32: ='Forecast Sheet'!AS50/'Forecast Sheet'!AS51 -> 0.1742743751 | AZ32: ='Forecast Sheet'!AT50/'Forecast Sheet'!AT51 -> 0.171675212 | BA32: ='Forecast Sheet'!AU50/'Forecast Sheet'!AU51 -> 0.1603981186 | BB32: ='Forecast Sheet'!AV50/'Forecast Sheet'!AV51 -> 0.1581932874 | BC32: ='Forecast Sheet'!AW50/'Forecast Sheet'!AW51 -> 0.1627410526 | BD32: ='Forecast Sheet'!AX50/'Forecast Sheet'!AX51 -> 0.1597497242 | BE32: ='Forecast Sheet'!AY50/'Forecast Sheet'!AY51 -> 0.1480154706 | BF32: ='Forecast Sheet'!AZ50/'Forecast Sheet'!AZ51 -> 0.1527596862 | BG32: ='Forecast Sheet'!BA50/'Forecast Sheet'!BA51 -> 0.1478987806 | BH32: ='Forecast Sheet'!BB50/'Forecast Sheet'!BB51 -> 0.147680105 | BI32: ='Forecast Sheet'!BC50/'Forecast Sheet'!BC51 -> 0.1617400476 | BJ32: ='Forecast Sheet'!BD50/'Forecast Sheet'!BD51 -> 0.1753694253 | BK32: ='Forecast Sheet'!BE50/'Forecast Sheet'!BE51 -> 0.1880724899 | BL32: ='Forecast Sheet'!BF50/'Forecast Sheet'!BF51 -> 0.1988274841
A34: 12 | B34: 0-30 | C34: Dry | D34: Pregnant | E34: 6 | I34: IOVC for each Lact. 3 Cow ($) | J34: =J35/J25 -> 120.7030254 | K34: =K35/K25 -> 118.212113 | L34: 124.0563451 | M34: 130.7048003 | N34: 133.2017752 | O34: 128.0253443 | P34: 125.378494 | Q34: 126.8890475 | R34: 126.9602154 | S34: 125.3193417 | T34: 123.4906108 | U34: 110.1642394 | V34: 107.516271 | W34: 104.9651153 | X34: 105.0857222 | Y34: 101.7373385 | Z34: 102.1085392 | AA34: 105.77243 | AB34: 102.1036083 | AC34: 98.95284914 | AD34: 100.0908205 | AE34: 100.050764 | AF34: 100.1144985 | AG34: 103.0174983 | AH34: 104.7956339 | AI34: 104.6667691 | AJ34: 103.7171339 | AK34: 103.6085488 | AL34: 102.8775344 | AM34: 100.6745106 | AN34: 99.67867179 | AO34: 98.8953889 | AP34: 97.81656555 | AQ34: 96.50324836 | AR34: 97.17164828 | AS34: 97.91874961 | AT34: 97.35006984 | AU34: 97.55605175 | AV34: 98.7919962 | AW34: 105.0158161 | AX34: 111.1014094 | AY34: 106.7982699 | AZ34: 107.6364374 | BA34: 111.4991415 | BB34: 110.1758216 | BC34: 105.1634135 | BD34: 105.6815311 | BE34: 113.6830256 | BF34: 113.0537764 | BG34: 108.8747292 | BH34: 108.0812932 | BI34: 113.0111673 | BJ34: 111.4717376 | BK34: 116.8992136 | BL34: 126.5656589
I35: IOVC for all Lact. 3 Cows ($) | J35: =J30-(J31*J32)-J28-J29 -> 6638.666398 | K35: =K30-(K31*K32)-K28-K29 -> 6839.752861 | L35: 7031.640796 | M35: 7388.071419 | N35: 7883.490996 | O35: 7797.249876 | P35: 7746.30174 | Q35: 7933.593664 | R35: 8136.383387 | S35: 8113.143528 | T35: 8187.806136 | U35: 7271.050169 | V35: 6978.297406 | W35: 6706.176003 | X35: 6522.955521 | Y35: 6211.389243 | Z35: 6130.095172 | AA35: 6075.551621 | AB35: 5843.444497 | AC35: 5643.777807 | AD35: 5536.144669 | AE35: 5364.331992 | AF35: 5275.413655 | AG35: 5257.292114 | AH35: 5252.398787 | AI35: 5227.654514 | AJ35: 5159.707187 | AK35: 5092.850128 | AL35: 4799.461724 | AM35: 4457.63195 | AN35: 4373.025528 | AO35: 4103.216482 | AP35: 3903.723345 | AQ35: 3638.848007 | AR35: 3705.459449 | AS35: 3516.530153 | AT35: 3298.954641 | AU35: 3113.386184 | AV35: 3087.764041 | AW35: 3095.512096 | AX35: 3155.12148 | AY35: 3291.708445 | AZ35: 3293.071548 | BA35: 3220.431146 | BB35: 3173.345755 | BC35: 3164.079971 | BD35: 3160.616108 | BE35: 3145.08989 | BF35: 3261.026399 | BG35: 3124.750849 | BH35: 3157.084275 | BI35: 3666.570563 | BJ35: 4013.839347 | BK35: 4536.077187 | BL35: 5210.693422
A36: 13 | B36: 31-60 | C36: Dry | D36: Pregnant | E36: 3
D38: Total | E38: =SUM(E12:E36) -> 55
A41: RHA KEY: | D41: RHA Level (lb/cow/yr) | E41: 11
A42: 2 | B42: 18000
A43: 3 | B43: 19000 | D43: Milk Price ($ per cwt) | E43: ='Final Summary'!D12 -> 15
A44: 4 | B44: 20000
A45: 5 | B45: 21000 | D45: Feed Cost ($ per lb of DM) | E45: ='Final Summary'!D14 -> 0.09
A46: 6 | B46: 22000
A47: 7 | B47: 23000 | D47: Labor Cost ($ per Hour) | E47: ='Final Summary'!D16 -> 12
A48: 8 | B48: 24000
A49: 9 | B49: 25000 | D49: Cull Rate % (0-60 DIM) | E49: 0.13
A50: 10 | B50: 26000
A51: 11 | B51: 27000 | D51: Cull Rate % (61-330 DIM) | E51: 0.19
A52: 12 | B52: 28000
A53: 13 | B53: 29000 | D53: Cull Rate % (Dry Period) | E53: 0
A54: 14 | B54: 30000

Sheet Forecast Sheet
A1: COW FLOW
C2: Month # | D2: 1 | E2: 2 | F2: 3 | G2: 4 | H2: 5 | I2: 6 | J2: 7 | K2: 8 | L2: 9 | M2: 10 | N2: 11 | O2: 12 | P2: 13 | Q2: 14 | R2: 15 | S2: 16 | T2: 17 | U2: 18 | V2: 19 | W2: 20 | X2: 21 | Y2: 22 | Z2: 23 | AA2: 24 | AB2: 25 | AC2: 26 | AD2: 27 | AE2: 28 | AF2: 29 | AG2: 30 | AH2: 31 | AI2: 32 | AJ2: 33 | AK2: 34 | AL2: 35 | AM2: 36 | AN2: 37 | AO2: 38 | AP2: 39 | AQ2: 40 | AR2: 41 | AS2: 42 | AT2: 43 | AU2: 44 | AV2: 45 | AW2: 46 | AX2: 47 | AY2: 48 | AZ2: 49 | BA2: 50 | BB2: 51 | BC2: 52 | BD2: 53 | BE2: 54 | BF2: 55
C4: Cows Calving | E4: =SUM(D21,D34,0.75*D47) -> 15.25 | F4: =SUM(E21,E34,0.75*E47) -> 16.5 | G4: 15.75 | H4: 16.83 | I4: 12.25125 | J4: 12.85646175 | K4: 16.08998317 | L4: 15.2158408 | M4: 14.12220224 | N4: 14.91304557 | O4: 14.53322894 | P4: 13.4743794 | Q4: 12.59854474 | R4: 14.10930243 | S4: 10.94582532 | T4: 10.94373052 | U4: 14.59986395 | V4: 10.18562916 | W4: 10.95787374 | X4: 11.18030913 | Y4: 14.48895334 | Z4: 10.44047906 | AA4: 10.9177226 | AB4: 10.27920882 | AC4: 11.34555348 | AD4: 9.188156168 | AE4: 10.34325363 | AF4: 10.8256381 | AG4: 7.444265636 | AH4: 9.453199136 | AI4: 7.379669261 | AJ4: 10.55208898 | AK4: 7.316221701 | AL4: 9.997860365 | AM4: 8.933065168 | AN4: 7.223154991 | AO4: 7.97491484 | AP4: 14.43389636 | AQ4: 12.21441101 | AR4: 12.58909364 | AS4: 14.99828499 | AT4: 9.29290657 | AU4: 11.1473169 | AV4: 10.80885795 | AW4: 14.45987353 | AX4: 10.02081021 | AY4: 11.95595549 | AZ4: 11.5176935 | BA4: 10.53940444 | BB4: 10.02649388 | BC4: 15.92740287 | BD4: 14.48153619 | BE4: 13.07544624 | BF4: 17.02546391
C5: Raised Heifers Calving | E5: =D86 -> 6 | F5: 2.997545455 | G5: 2.995092917 | H5: 5.985284774 | I5: 2.990193861 | J5: 3.983663119 | K5: 2.985302818 | L5: 6.960007362 | M5: 2.980419776 | N5: 2.977981251 | O5: 2.97554472 | P5: 4.95518364 | Q5: 2.970677639 | R5: 3.95766278 | S5: 6.920243211 | T5: 2.96339194 | U5: 2.960967347 | V5: 2.958544737 | W5: 5.912248219 | X5: 2.953705463 | Y5: 2.951288794 | Z5: 4.914790173 | AA5: 2.946461388 | AB5: 3.859864419 | AC5: 9.871874648 | AD5: 9.057756455 | AE5: 8.708198002 | AF5: 10.59904148 | AG5: 7.080546977 | AH5: 7.823228318 | AI5: 8.8615921 | AJ5: 10.30198556 | AK5: =AJ86 -> 7.94517368 | AL5: 8.311434074 | AM5: 8.133855002 | AN5: 8.561615819 | AO5: 7.232819374 | AP5: 8.393167806 | AQ5: 8.299839483 | AR5: 6.460676216 | AS5: 8.158038836 | AT5: 6.106241744 | AU5: 7.837163729 | AV5: 6.566080958 | AW5: 8.102018081 | AX5: 7.133425556 | AY5: 6.440728774 | AZ5: 6.568430995 | BA5: 9.856743098 | BB5: 8.4762994 | BC5: 8.85051964 | BD5: 9.953023583 | BE5: 6.747629619 | BF5: 8.025916527
C6: Purchased Heifers Calving | D6: ='Final Summary'!H68 -> 0 | E6: ='Final Summary'!I68 -> 0 | F6: ='Final Summary'!J68 -> 0 | G6: ='Final Summary'!K68 -> 0 | H6: ='Final Summary'!L68 -> 0 | I6: ='Final Summary'!M68 -> 0 | J6: ='Final Summary'!N68 -> 0 | K6: ='Final Summary'!O68 -> 0 | L6: ='Final Summary'!P68 -> 0 | M6: ='Final Summary'!Q68 -> 0 | N6: ='Final Summary'!R68 -> 0 | O6: ='Final Summary'!S68 -> 0 | P6: ='Final Summary'!T68 -> 0 | Q6: ='Final Summary'!U68 -> 0 | R6: ='Final Summary'!V68 -> 0 | S6: ='Final Summary'!W68 -> 0 | T6: ='Final Summary'!X68 -> 0 | U6: ='Final Summary'!Y68 -> 0 | V6: ='Final Summary'!Z68 -> 0 | W6: ='Final Summary'!AA68 -> 0 | X6: ='Final Summary'!AB68 -> 0 | Y6: ='Final Summary'!AC68 -> 0 | Z6: ='Final Summary'!AD68 -> 0 | AA6: ='Final Summary'!AE68 -> 0 | AB6: ='Final Summary'!AF68 -> 0 | AC6: ='Final Summary'!AG68 -> 0 | AD6: ='Final Summary'!AH68 -> 0 | AE6: ='Final Summary'!AI68 -> 0 | AF6: ='Final Summary'!AJ68 -> 0 | AG6: ='Final Summary'!AK68 -> 0 | AH6: ='Final Summary'!AL68 -> 0 | AI6: ='Final Summary'!AM68 -> 0 | AJ6: ='Final Summary'!AN68 -> 0 | AK6: ='Final Summary'!AO68 -> 0 | AL6: ='Final Summary'!AP68 -> 0 | AM6: ='Final Summary'!AQ68 -> 0 | AN6: ='Final Summary'!AR68 -> 0 | AO6: ='Final Summary'!AS68 -> 0 | AP6: ='Final Summary'!AT68 -> 0 | AQ6: ='Final Summary'!AU68 -> 0 | AR6: ='Final Summary'!AV68 -> 0 | AS6: ='Final Summary'!AW68 -> 0 | AT6: ='Final Summary'!AX68 -> 0 | AU6: ='Final Summary'!AY68 -> 0 | AV6: ='Final Summary'!AZ68 -> 0 | AW6: ='Final Summary'!BA68 -> 0 | AX6: ='Final Summary'!BB68 -> 0 | AY6: ='Final Summary'!BC68 -> 0 | AZ6: ='Final Summary'!BD68 -> 0 | BA6: ='Final Summary'!BE68 -> 0 | BB6: ='Final Summary'!BF68 -> 0 | BC6: ='Final Summary'!BG68 -> 0 | BD6: ='Final Summary'!BH68 -> 0 | BE6: ='Final Summary'!BI68 -> 0 | BF6: ='Final Summary'!BJ68 -> 0
B8: Lactation Status | C8: Reproductive Status | D8: # of Cows
A9: 1 | B9: Milking | C9: Open | D9: ='Lactation #1'!E59 -> 6 | E9: =SUM(E5:E6)-'Final Summary'!I70 -> 6 | F9: =SUM(F5:F6)-'Final Summary'!J70 -> 2.997545455 | G9: =SUM(G5:G6)-'Final Summary'!K70 -> 2.995092917 | H9: =SUM(H5:H6)-'Final Summary'!L70 -> 5.985284774 | I9: =SUM(I5:I6)-'Final Summary'!M70 -> 2.990193861 | J9: =SUM(J5:J6)-'Final Summary'!N70 -> 3.983663119 | K9: =SUM(K5:K6)-'Final Summary'!O70 -> 2.985302818 | L9: =SUM(L5:L6)-'Final Summary'!P70 -> 6.960007362 | M9: =SUM(M5:M6)-'Final Summary'!Q70 -> 2.980419776 | N9: =SUM(N5:N6)-'Final Summary'!R70 -> 2.977981251 | O9: =SUM(O5:O6)-'Final Summary'!S70 -> 2.97554472 | P9: =SUM(P5:P6)-'Final Summary'!T70 -> 4.95518364 | Q9: =SUM(Q5:Q6)-'Final Summary'!U70 -> 2.970677639 | R9: =SUM(R5:R6)-'Final Summary'!V70 -> 3.95766278 | S9: =SUM(S5:S6)-'Final Summary'!W70 -> 6.920243211 | T9: =SUM(T5:T6)-'Final Summary'!X70 -> 2.96339194 | U9: =SUM(U5:U6)-'Final Summary'!Y70 -> 2.960967347 | V9: =SUM(V5:V6)-'Final Summary'!Z70 -> 2.958544737 | W9: =SUM(W5:W6)-'Final Summary'!AA70 -> 5.912248219 | X9: =SUM(X5:X6)-'Final Summary'!AB70 -> 2.953705463 | Y9: =SUM(Y5:Y6)-'Final Summary'!AC70 -> 2.951288794 | Z9: =SUM(Z5:Z6)-'Final Summary'!AD70 -> 4.914790173 | AA9: =SUM(AA5:AA6)-'Final Summary'!AE70 -> 2.946461388 | AB9: =SUM(AB5:AB6)-'Final Summary'!AF70 -> 3.859864419 | AC9: =SUM(AC5:AC6)-'Final Summary'!AG70 -> 9.871874648 | AD9: =SUM(AD5:AD6)-'Final Summary'!AH70 -> 9.057756455 | AE9: =SUM(AE5:AE6)-'Final Summary'!AI70 -> 8.708198002 | AF9: =SUM(AF5:AF6)-'Final Summary'!AJ70 -> 10.59904148 | AG9: =SUM(AG5:AG6)-'Final Summary'!AK70 -> 7.080546977 | AH9: =SUM(AH5:AH6)-'Final Summary'!AL70 -> 7.823228318 | AI9: =SUM(AI5:AI6)-'Final Summary'!AM70 -> 8.8615921 | AJ9: =SUM(AJ5:AJ6)-'Final Summary'!AN70 -> 10.30198556 | AK9: =SUM(AK5:AK6)-'Final Summary'!AO70 -> 7.94517368 | AL9: =SUM(AL5:AL6)-'Final Summary'!AP70 -> 8.311434074 | AM9: =SUM(AM5:AM6)-'Final Summary'!AQ70 -> 8.133855002 | AN9: =SUM(AN5:AN6)-'Final Summary'!AR70 -> 8.561615819 | AO9: =SUM(AO5:AO6)-'Final Summary'!AS70 -> 7.232819374 | AP9: =SUM(AP5:AP6)-'Final Summary'!AT70 -> 8.393167806 | AQ9: =SUM(AQ5:AQ6)-'Final Summary'!AU70 -> 8.299839483 | AR9: =SUM(AR5:AR6)-'Final Summary'!AV70 -> 6.460676216 | AS9: =SUM(AS5:AS6)-'Final Summary'!AW70 -> 8.158038836 | AT9: =SUM(AT5:AT6)-'Final Summary'!AX70 -> 6.106241744 | AU9: =SUM(AU5:AU6)-'Final Summary'!AY70 -> 7.837163729 | AV9: =SUM(AV5:AV6)-'Final Summary'!AZ70 -> 6.566080958 | AW9: =SUM(AW5:AW6)-'Final Summary'!BA70 -> 8.102018081 | AX9: =SUM(AX5:AX6)-'Final Summary'!BB70 -> 7.133425556 | AY9: =SUM(AY5:AY6)-'Final Summary'!BC70 -> 6.440728774 | AZ9: =SUM(AZ5:AZ6)-'Final Summary'!BD70 -> 6.568430995 | BA9: =SUM(BA5:BA6)-'Final Summary'!BE70 -> 9.856743098 | BB9: =SUM(BB5:BB6)-'Final Summary'!BF70 -> 8.4762994 | BC9: =SUM(BC5:BC6)-'Final Summary'!BG70 -> 8.85051964 | BD9: =SUM(BD5:BD6)-'Final Summary'!BH70 -> 9.953023583 | BE9: =SUM(BE5:BE6)-'Final Summary'!BI70 -> 6.747629619 | BF9: =SUM(BF5:BF6)-'Final Summary'!BJ70 -> 8.025916527
A10: 2 | B10: Milking | C10: Open | D10: ='Lactation #1'!E14 -> 6 | E10: =(1-Culling!C7)*D9 -> 5.61 | F10: =(1-Culling!D7)*E9 -> 5.61 | G10: =(1-Culling!E7)*F9 -> 2.802705 | H10: =(1-Culling!F7)*G9 -> 2.800411878 | I10: =(1-Culling!G7)*H9 -> 5.596241263 | J10: =(1-Culling!H7)*I9 -> 2.79583126 | K10: =(1-Culling!I7)*J9 -> 3.724725016 | L10: =(1-Culling!J7)*K9 -> 2.791258135 | M10: =(1-Culling!K7)*L9 -> 6.507606883 | N10: =(1-Culling!L7)*M9 -> 2.78669249 | O10: =(1-Culling!M7)*N9 -> 2.784412469 | P10: =(1-Culling!N7)*O9 -> 2.782134314 | Q10: =(1-Culling!O7)*P9 -> 4.633096703 | R10: =(1-Culling!P7)*Q9 -> 2.777583593 | S10: =(1-Culling!Q7)*R9 -> 3.700414699 | T10: =(1-Culling!R7)*S9 -> 6.470427402 | U10: =(1-Culling!S7)*T9 -> 2.770771464 | V10: =(1-Culling!T7)*U9 -> 2.768504469 | W10: =(1-Culling!U7)*V9 -> 2.766239329 | X10: =(1-Culling!V7)*W9 -> 5.527952085 | Y10: =(1-Culling!W7)*X9 -> 2.761714608 | Z10: =(1-Culling!X7)*Y9 -> 2.759455023 | AA10: =(1-Culling!Y7)*Z9 -> 4.595328812 | AB10: =(1-Culling!Z7)*AA9 -> 2.754941398 | AC10: =(1-Culling!AA7)*AB9 -> 3.608973232 | AD10: =(1-Culling!AB7)*AC9 -> 9.230202796 | AE10: =(1-Culling!AC7)*AD9 -> 8.469002286 | AF10: =(1-Culling!AD7)*AE9 -> 8.142165132 | AG10: =(1-Culling!AE7)*AF9 -> 9.910103779 | AH10: =(1-Culling!AF7)*AG9 -> 6.620311423 | AI10: =(1-Culling!AG7)*AH9 -> 7.314718477 | AJ10: =(1-Culling!AH7)*AI9 -> 8.285588614 | AK10: =(1-Culling!AI7)*AJ9 -> 9.632356503 | AL10: =(1-Culling!AJ7)*AK9 -> 7.428737391 | AM10: =(1-Culling!AK7)*AL9 -> 7.771190859 | AN10: =(1-Culling!AL7)*AM9 -> 7.605154427 | AO10: =(1-Culling!AM7)*AN9 -> 8.005110791 | AP10: =(1-Culling!AN7)*AO9 -> 6.762686114 | AQ10: =(1-Culling!AO7)*AP9 -> 7.847611898 | AR10: =(1-Culling!AP7)*AQ9 -> 7.760349916 | AS10: =(1-Culling!AQ7)*AR9 -> 6.040732262 | AT10: =(1-Culling!AR7)*AS9 -> 7.627766312 | AU10: =(1-Culling!AS7)*AT9 -> 5.709336031 | AV10: =(1-Culling!AT7)*AU9 -> 7.327748086 | AW10: =(1-Culling!AU7)*AV9 -> 6.139285696 | AX10: =(1-Culling!AV7)*AW9 -> 7.575386906 | AY10: =(1-Culling!AW7)*AX9 -> 6.669752895 | AZ10: =(1-Culling!AX7)*AY9 -> 6.022081404 | BA10: =(1-Culling!AY7)*AZ9 -> 6.14148298 | BB10: =(1-Culling!AZ7)*BA9 -> 9.216054797 | BC10: =(1-Culling!BA7)*BB9 -> 7.925339939 | BD10: =(1-Culling!BB7)*BC9 -> 8.275235863 | BE10: =(1-Culling!BC7)*BD9 -> 9.30607705 | BF10: =(1-Culling!BD7)*BE9 -> 6.309033694
A11: 3 | B11: Milking | C11: Open | D11: ='Lactation #1'!E16 -> 6 | E11: =(1-Culling!C8)*D10 -> 5.94 | F11: =(1-Culling!D8)*E10 -> 5.5539 | G11: =(1-Culling!E8)*F10 -> 5.5539 | H11: =(1-Culling!F8)*G10 -> 2.77467795 | I11: =(1-Culling!G8)*H10 -> 2.772407759 | J11: =(1-Culling!H8)*I10 -> 5.540278851 | K11: =(1-Culling!I8)*J10 -> 2.767872948 | L11: =(1-Culling!J8)*K10 -> 3.687477766 | M11: =(1-Culling!K8)*L10 -> 2.763345554 | N11: =(1-Culling!L8)*M10 -> 6.442530814 | O11: =(1-Culling!M8)*N10 -> 2.758825566 | P11: =(1-Culling!N8)*O10 -> 2.756568345 | Q11: =(1-Culling!O8)*P10 -> 2.75431297 | R11: =(1-Culling!P8)*Q10 -> 4.586765736 | S11: =(1-Culling!Q8)*R10 -> 2.749807757 | T11: =(1-Culling!R8)*S10 -> 3.663410552 | U11: =(1-Culling!S8)*T10 -> 6.405723128 | V11: =(1-Culling!T8)*U10 -> 2.743063749 | W11: =(1-Culling!U8)*V10 -> 2.740819425 | X11: =(1-Culling!V8)*W10 -> 2.738576936 | Y11: =(1-Culling!W8)*X10 -> 5.472672564 | Z11: =(1-Culling!X8)*Y10 -> 2.734097461 | AA11: =(1-Culling!Y8)*Z10 -> 2.731860473 | AB11: =(1-Culling!Z8)*AA10 -> 4.549375523 | AC11: =(1-Culling!AA8)*AB10 -> 2.727391984 | AD11: =(1-Culling!AB8)*AC10 -> 3.572883499 | AE11: =(1-Culling!AC8)*AD10 -> 9.137900768 | AF11: =(1-Culling!AD8)*AE10 -> 8.384312263 | AG11: =(1-Culling!AE8)*AF10 -> 8.060743481 | AH11: =(1-Culling!AF8)*AG10 -> 9.811002741 | AI11: =(1-Culling!AG8)*AH10 -> 6.554108309 | AJ11: =(1-Culling!AH8)*AI10 -> 7.241571293 | AK11: =(1-Culling!AI8)*AJ10 -> 8.202732728 | AL11: =(1-Culling!AJ8)*AK10 -> 9.536032938 | AM11: =(1-Culling!AK8)*AL10 -> 7.354450017 | AN11: =(1-Culling!AL8)*AM10 -> 7.69347895 | AO11: =(1-Culling!AM8)*AN10 -> 7.529102883 | AP11: =(1-Culling!AN8)*AO10 -> 7.925059683 | AQ11: =(1-Culling!AO8)*AP10 -> 6.695059253 | AR11: =(1-Culling!AP8)*AQ10 -> 7.769135779 | AS11: =(1-Culling!AQ8)*AR10 -> 7.682746417 | AT11: =(1-Culling!AR8)*AS10 -> 5.980324939 | AU11: =(1-Culling!AS8)*AT10 -> 7.551488649 | AV11: =(1-Culling!AT8)*AU10 -> 5.65224267 | AW11: =(1-Culling!AU8)*AV10 -> 7.254470605 | AX11: =(1-Culling!AV8)*AW10 -> 6.077892839 | AY11: =(1-Culling!AW8)*AX10 -> 7.499633037 | AZ11: =(1-Culling!AX8)*AY10 -> 6.603055366 | BA11: =(1-Culling!AY8)*AZ10 -> 5.96186059 | BB11: =(1-Culling!AZ8)*BA10 -> 6.080068151 | BC11: =(1-Culling!BA8)*BB10 -> 9.123894249 | BD11: =(1-Culling!BB8)*BC10 -> 7.84608654 | BE11: =(1-Culling!BC8)*BD10 -> 8.192483505 | BF11: =(1-Culling!BD8)*BE10 -> 9.213016279
A12: 4 | B12: Milking | C12: Open | D12: ='Lactation #1'!E18 -> 6 | E12: =(1-Culling!C9)*D11 -> 5.94 | F12: =(1-Culling!D9)*E11 -> 5.8806 | G12: =(1-Culling!E9)*F11 -> 5.498361 | H12: =(1-Culling!F9)*G11 -> 5.498361 | I12: =(1-Culling!G9)*H11 -> 2.74693117 | J12: =(1-Culling!H9)*I11 -> 2.744683681 | K12: =(1-Culling!I9)*J11 -> 5.484876062 | L12: =(1-Culling!J9)*K11 -> 2.740194218 | M12: =(1-Culling!K9)*L11 -> 3.650602988 | N12: =(1-Culling!L9)*M11 -> 2.735712098 | O12: =(1-Culling!M9)*N11 -> 6.378105506 | P12: =(1-Culling!N9)*O11 -> 2.73123731 | Q12: =(1-Culling!O9)*P11 -> 2.729002661 | R12: =(1-Culling!P9)*Q11 -> 2.726769841 | S12: =(1-Culling!Q9)*R11 -> 4.540898079 | T12: =(1-Culling!R9)*S11 -> 2.722309679 | U12: =(1-Culling!S9)*T11 -> 3.626776446 | V12: =(1-Culling!T9)*U11 -> 6.341665897 | W12: =(1-Culling!U9)*V11 -> 2.715633112 | X12: =(1-Culling!V9)*W11 -> 2.71341123 | Y12: =(1-Culling!W9)*X11 -> 2.711191167 | Z12: =(1-Culling!X9)*Y11 -> 5.417945838 | AA12: =(1-Culling!Y9)*Z11 -> 2.706756487 | AB12: =(1-Culling!Z9)*AA11 -> 2.704541868 | AC12: =(1-Culling!AA9)*AB11 -> 4.503881768 | AD12: =(1-Culling!AB9)*AC11 -> 2.700118064 | AE12: =(1-Culling!AC9)*AD11 -> 3.537154664 | AF12: =(1-Culling!AD9)*AE11 -> 9.04652176 | AG12: =(1-Culling!AE9)*AF11 -> 8.30046914 | AH12: =(1-Culling!AF9)*AG11 -> 7.980136046 | AI12: =(1-Culling!AG9)*AH11 -> 9.712892714 | AJ12: =(1-Culling!AH9)*AI11 -> 6.488567226 | AK12: =(1-Culling!AI9)*AJ11 -> 7.16915558 | AL12: =(1-Culling!AJ9)*AK11 -> 8.1207054 | AM12: =(1-Culling!AK9)*AL11 -> 9.440672609 | AN12: =(1-Culling!AL9)*AM11 -> 7.280905517 | AO12: =(1-Culling!AM9)*AN11 -> 7.616544161 | AP12: =(1-Culling!AN9)*AO11 -> 7.453811854 | AQ12: =(1-Culling!AO9)*AP11 -> 7.845809086 | AR12: =(1-Culling!AP9)*AQ11 -> 6.628108661 | AS12: =(1-Culling!AQ9)*AR11 -> 7.691444421 | AT12: =(1-Culling!AR9)*AS11 -> 7.605918953 | AU12: =(1-Culling!AS9)*AT11 -> 5.92052169 | AV12: =(1-Culling!AT9)*AU11 -> 7.475973762 | AW12: =(1-Culling!AU9)*AV11 -> 5.595720244 | AX12: =(1-Culling!AV9)*AW11 -> 7.181925899 | AY12: =(1-Culling!AW9)*AX11 -> 6.01711391 | AZ12: =(1-Culling!AX9)*AY11 -> 7.424636707 | BA12: =(1-Culling!AY9)*AZ11 -> 6.537024813 | BB12: =(1-Culling!AZ9)*BA11 -> 5.902241984 | BC12: =(1-Culling!BA9)*BB11 -> 6.019267469 | BD12: =(1-Culling!BB9)*BC11 -> 9.032655306 | BE12: =(1-Culling!BC9)*BD11 -> 7.767625675 | BF12: =(1-Culling!BD9)*BE11 -> 8.11055867
A13: 5 | B13: Milking | C13: Pregnant | D13: ='Lactation #1'!E20 -> 6 | E13: =(1-Culling!C10)*D12 -> 5.94 | F13: =(1-Culling!D10)*E12 -> 5.8806 | G13: =(1-Culling!E10)*F12 -> 5.821794 | H13: =(1-Culling!F10)*G12 -> 5.44337739 | I13: =(1-Culling!G10)*H12 -> 5.44337739 | J13: =(1-Culling!H10)*I12 -> 2.719461859 | K13: =(1-Culling!I10)*J12 -> 2.717236845 | L13: =(1-Culling!J10)*K12 -> 5.430027302 | M13: =(1-Culling!K10)*L12 -> 2.712792276 | N13: =(1-Culling!L10)*M12 -> 3.614096958 | O13: =(1-Culling!M10)*N12 -> 2.708354977 | P13: =(1-Culling!N10)*O12 -> 6.314324451 | Q13: =(1-Culling!O10)*P12 -> 2.703924937 | R13: =(1-Culling!P10)*Q12 -> 2.701712635 | S13: =(1-Culling!Q10)*R12 -> 2.699502142 | T13: =(1-Culling!R10)*S12 -> 4.495489098 | U13: =(1-Culling!S10)*T12 -> 2.695086582 | V13: =(1-Culling!T10)*U12 -> 3.590508682 | W13: =(1-Culling!U10)*V12 -> 6.278249238 | X13: =(1-Culling!V10)*W12 -> 2.688476781 | Y13: =(1-Culling!W10)*X12 -> 2.686277118 | Z13: =(1-Culling!X10)*Y12 -> 2.684079255 | AA13: =(1-Culling!Y10)*Z12 -> 5.36376638 | AB13: =(1-Culling!Z10)*AA12 -> 2.679688922 | AC13: =(1-Culling!AA10)*AB12 -> 2.677496449 | AD13: =(1-Culling!AB10)*AC12 -> 4.458842951 | AE13: =(1-Culling!AC10)*AD12 -> 2.673116884 | AF13: =(1-Culling!AD10)*AE12 -> 3.501783118 | AG13: =(1-Culling!AE10)*AF12 -> 8.956056543 | AH13: =(1-Culling!AF10)*AG12 -> 8.217464449 | AI13: =(1-Culling!AG10)*AH12 -> 7.900334685 | AJ13: =(1-Culling!AH10)*AI12 -> 9.615763787 | AK13: =(1-Culling!AI10)*AJ12 -> 6.423681554 | AL13: =(1-Culling!AJ10)*AK12 -> 7.097464024 | AM13: =(1-Culling!AK10)*AL12 -> 8.039498346 | AN13: =(1-Culling!AL10)*AM12 -> 9.346265883 | AO13: =(1-Culling!AM10)*AN12 -> 7.208096462 | AP13: =(1-Culling!AN10)*AO12 -> 7.540378719 | AQ13: =(1-Culling!AO10)*AP12 -> 7.379273735 | AR13: =(1-Culling!AP10)*AQ12 -> 7.767350995 | AS13: =(1-Culling!AQ10)*AR12 -> 6.561827574 | AT13: =(1-Culling!AR10)*AS12 -> 7.614529977 | AU13: =(1-Culling!AS10)*AT12 -> 7.529859764 | AV13: =(1-Culling!AT10)*AU12 -> 5.861316473 | AW13: =(1-Culling!AU10)*AV12 -> 7.401214025 | AX13: =(1-Culling!AV10)*AW12 -> 5.539763041 | AY13: =(1-Culling!AW10)*AX12 -> 7.11010664 | AZ13: =(1-Culling!AX10)*AY12 -> 5.956942771 | BA13: =(1-Culling!AY10)*AZ12 -> 7.35039034 | BB13: =(1-Culling!AZ10)*BA12 -> 6.471654564 | BC13: =(1-Culling!BA10)*BB12 -> 5.843219564 | BD13: =(1-Culling!BB10)*BC12 -> 5.959074794 | BE13: =(1-Culling!BC10)*BD12 -> 8.942328753 | BF13: =(1-Culling!BD10)*BE12 -> 7.689949418
A14: 6 | B14: Milking | C14: Pregnant | D14: ='Lactation #1'!E22 -> 6 | E14: =(1-Culling!C11)*D13 -> 5.94 | F14: =(1-Culling!D11)*E13 -> 5.8806 | G14: =(1-Culling!E11)*F13 -> 5.821794 | H14: =(1-Culling!F11)*G13 -> 5.76357606 | I14: =(1-Culling!G11)*H13 -> 5.388943616 | J14: =(1-Culling!H11)*I13 -> 5.388943616 | K14: =(1-Culling!I11)*J13 -> 2.69226724 | L14: =(1-Culling!J11)*K13 -> 2.690064476 | M14: =(1-Culling!K11)*L13 -> 5.375727029 | N14: =(1-Culling!L11)*M13 -> 2.685664353 | O14: =(1-Culling!M11)*N13 -> 3.577955989 | P14: =(1-Culling!N11)*O13 -> 2.681271428 | Q14: =(1-Culling!O11)*P13 -> 6.251181207 | R14: =(1-Culling!P11)*Q13 -> 2.676885687 | S14: =(1-Culling!Q11)*R13 -> 2.674695508 | T14: =(1-Culling!R11)*S13 -> 2.672507121 | U14: =(1-Culling!S11)*T13 -> 4.450534207 | V14: =(1-Culling!T11)*U13 -> 2.668135717 | W14: =(1-Culling!U11)*V13 -> 3.554603595 | X14: =(1-Culling!V11)*W13 -> 6.215466746 | Y14: =(1-Culling!W11)*X13 -> 2.661592013 | Z14: =(1-Culling!X11)*Y13 -> 2.659414347 | AA14: =(1-Culling!Y11)*Z13 -> 2.657238462 | AB14: =(1-Culling!Z11)*AA13 -> 5.310128716 | AC14: =(1-Culling!AA11)*AB13 -> 2.652892033 | AD14: =(1-Culling!AB11)*AC13 -> 2.650721485 | AE14: =(1-Culling!AC11)*AD13 -> 4.414254521 | AF14: =(1-Culling!AD11)*AE13 -> 2.646385715 | AG14: =(1-Culling!AE11)*AF13 -> 3.466765287 | AH14: =(1-Culling!AF11)*AG13 -> 8.866495977 | AI14: =(1-Culling!AG11)*AH13 -> 8.135289804 | AJ14: =(1-Culling!AH11)*AI13 -> 7.821331339 | AK14: =(1-Culling!AI11)*AJ13 -> 9.519606149 | AL14: =(1-Culling!AJ11)*AK13 -> 6.359444738 | AM14: =(1-Culling!AK11)*AL13 -> 7.026489384 | AN14: =(1-Culling!AL11)*AM13 -> 7.959103363 | AO14: =(1-Culling!AM11)*AN13 -> 9.252803224 | AP14: =(1-Culling!AN11)*AO13 -> 7.136015497 | AQ14: =(1-Culling!AO11)*AP13 -> 7.464974932 | AR14: =(1-Culling!AP11)*AQ13 -> 7.305480998 | AS14: =(1-Culling!AQ11)*AR13 -> 7.689677485 | AT14: =(1-Culling!AR11)*AS13 -> 6.496209298 | AU14: =(1-Culling!AS11)*AT13 -> 7.538384677 | AV14: =(1-Culling!AT11)*AU13 -> 7.454561166 | AW14: =(1-Culling!AU11)*AV13 -> 5.802703308 | AX14: =(1-Culling!AV11)*AW13 -> 7.327201884 | AY14: =(1-Culling!AW11)*AX13 -> 5.484365411 | AZ14: =(1-Culling!AX11)*AY13 -> 7.039005574 | BA14: =(1-Culling!AY11)*AZ13 -> 5.897373344 | BB14: =(1-Culling!AZ11)*BA13 -> 7.276886436 | BC14: =(1-Culling!BA11)*BB13 -> 6.406938019 | BD14: =(1-Culling!BB11)*BC13 -> 5.784787368 | BE14: =(1-Culling!BC11)*BD13 -> 5.899484047 | BF14: =(1-Culling!BD11)*BE13 -> 8.852905466
A15: 7 | B15: Milking | C15: Pregnant | D15: ='Lactation #1'!E24 -> 6 | E15: =(1-Culling!C12)*D14 -> 5.94 | F15: =(1-Culling!D12)*E14 -> 5.8806 | G15: =(1-Culling!E12)*F14 -> 5.821794 | H15: =(1-Culling!F12)*G14 -> 5.76357606 | I15: =(1-Culling!G12)*H14 -> 5.705940299 | J15: =(1-Culling!H12)*I14 -> 5.33505418 | K15: =(1-Culling!I12)*J14 -> 5.33505418 | L15: =(1-Culling!J12)*K14 -> 2.665344568 | M15: =(1-Culling!K12)*L14 -> 2.663163831 | N15: =(1-Culling!L12)*M14 -> 5.321969758 | O15: =(1-Culling!M12)*N14 -> 2.65880771 | P15: =(1-Culling!N12)*O14 -> 3.542176429 | Q15: =(1-Culling!O12)*P14 -> 2.654458713 | R15: =(1-Culling!P12)*Q14 -> 6.188669395 | S15: =(1-Culling!Q12)*R14 -> 2.650116831 | T15: =(1-Culling!R12)*S14 -> 2.647948553 | U15: =(1-Culling!S12)*T14 -> 2.64578205 | V15: =(1-Culling!T12)*U14 -> 4.406028865 | W15: =(1-Culling!U12)*V14 -> 2.641454359 | X15: =(1-Culling!V12)*W14 -> 3.519057559 | Y15: =(1-Culling!W12)*X14 -> 6.153312078 | Z15: =(1-Culling!X12)*Y14 -> 2.634976093 | AA15: =(1-Culling!Y12)*Z14 -> 2.632820203 | AB15: =(1-Culling!Z12)*AA14 -> 2.630666078 | AC15: =(1-Culling!AA12)*AB14 -> 5.257027429 | AD15: =(1-Culling!AB12)*AC14 -> 2.626363112 | AE15: =(1-Culling!AC12)*AD14 -> 2.62421427 | AF15: =(1-Culling!AD12)*AE14 -> 4.370111976 | AG15: =(1-Culling!AE12)*AF14 -> 2.619921858 | AH15: =(1-Culling!AF12)*AG14 -> 3.432097634 | AI15: =(1-Culling!AG12)*AH14 -> 8.777831018 | AJ15: =(1-Culling!AH12)*AI14 -> 8.053936906 | AK15: =(1-Culling!AI12)*AJ14 -> 7.743118025 | AL15: =(1-Culling!AJ12)*AK14 -> 9.424410087 | AM15: =(1-Culling!AK12)*AL14 -> 6.295850291 | AN15: =(1-Culling!AL12)*AM14 -> 6.95622449 | AO15: =(1-Culling!AM12)*AN14 -> 7.879512329 | AP15: =(1-Culling!AN12)*AO14 -> 9.160275192 | AQ15: =(1-Culling!AO12)*AP14 -> 7.064655342 | AR15: =(1-Culling!AP12)*AQ14 -> 7.390325183 | AS15: =(1-Culling!AQ12)*AR14 -> 7.232426188 | AT15: =(1-Culling!AR12)*AS14 -> 7.61278071 | AU15: =(1-Culling!AS12)*AT14 -> 6.431247205 | AV15: =(1-Culling!AT12)*AU14 -> 7.463000831 | AW15: =(1-Culling!AU12)*AV14 -> 7.380015554 | AX15: =(1-Culling!AV12)*AW14 -> 5.744676275 | AY15: =(1-Culling!AW12)*AX14 -> 7.253929866 | AZ15: =(1-Culling!AX12)*AY14 -> 5.429521757 | BA15: =(1-Culling!AY12)*AZ14 -> 6.968615518 | BB15: =(1-Culling!AZ12)*BA14 -> 5.83839961 | BC15: =(1-Culling!BA12)*BB14 -> 7.204117572 | BD15: =(1-Culling!BB12)*BC14 -> 6.342868639 | BE15: =(1-Culling!BC12)*BD14 -> 5.726939495 | BF15: =(1-Culling!BD12)*BE14 -> 5.840489206
A16: 8 | B16: Milking | C16: Pregnant | D16: ='Lactation #1'!E26 -> 6 | E16: =(1-Culling!C13)*D15 -> 5.94 | F16: =(1-Culling!D13)*E15 -> 5.8806 | G16: =(1-Culling!E13)*F15 -> 5.821794 | H16: =(1-Culling!F13)*G15 -> 5.76357606 | I16: =(1-Culling!G13)*H15 -> 5.705940299 | J16: =(1-Culling!H13)*I15 -> 5.648880896 | K16: =(1-Culling!I13)*J15 -> 5.281703638 | L16: =(1-Culling!J13)*K15 -> 5.281703638 | M16: =(1-Culling!K13)*L15 -> 2.638691122 | N16: =(1-Culling!L13)*M15 -> 2.636532193 | O16: =(1-Culling!M13)*N15 -> 5.268750061 | P16: =(1-Culling!N13)*O15 -> 2.632219633 | Q16: =(1-Culling!O13)*P15 -> 3.506754664 | R16: =(1-Culling!P13)*Q15 -> 2.627914126 | S16: =(1-Culling!Q13)*R15 -> 6.126782701 | T16: =(1-Culling!R13)*S15 -> 2.623615662 | U16: =(1-Culling!S13)*T15 -> 2.621469068 | V16: =(1-Culling!T13)*U15 -> 2.619324229 | W16: =(1-Culling!U13)*V15 -> 4.361968576 | X16: =(1-Culling!V13)*W15 -> 2.615039816 | Y16: =(1-Culling!W13)*X15 -> 3.483866984 | Z16: =(1-Culling!X13)*Y15 -> 6.091778957 | AA16: =(1-Culling!Y13)*Z15 -> 2.608626332 | AB16: =(1-Culling!Z13)*AA15 -> 2.606492001 | AC16: =(1-Culling!AA13)*AB15 -> 2.604359417 | AD16: =(1-Culling!AB13)*AC15 -> 5.204457155 | AE16: =(1-Culling!AC13)*AD15 -> 2.600099481 | AF16: =(1-Culling!AD13)*AE15 -> 2.597972127 | AG16: =(1-Culling!AE13)*AF15 -> 4.326410856 | AH16: =(1-Culling!AF13)*AG15 -> 2.593722639 | AI16: =(1-Culling!AG13)*AH15 -> 3.397776657 | AJ16: =(1-Culling!AH13)*AI15 -> 8.690052707 | AK16: =(1-Culling!AI13)*AJ15 -> 7.973397537 | AL16: =(1-Culling!AJ13)*AK15 -> 7.665686845 | AM16: =(1-Culling!AK13)*AL15 -> 9.330165987 | AN16: =(1-Culling!AL13)*AM15 -> 6.232891788 | AO16: =(1-Culling!AM13)*AN15 -> 6.886662245 | AP16: =(1-Culling!AN13)*AO15 -> 7.800717206 | AQ16: =(1-Culling!AO13)*AP15 -> 9.06867244 | AR16: =(1-Culling!AP13)*AQ15 -> 6.994008789 | AS16: =(1-Culling!AQ13)*AR15 -> 7.316421931 | AT16: =(1-Culling!AR13)*AS15 -> 7.160101926 | AU16: =(1-Culling!AS13)*AT15 -> 7.536652903 | AV16: =(1-Culling!AT13)*AU15 -> 6.366934733 | AW16: =(1-Culling!AU13)*AV15 -> 7.388370822 | AX16: =(1-Culling!AV13)*AW15 -> 7.306215399 | AY16: =(1-Culling!AW13)*AX15 -> 5.687229513 | AZ16: =(1-Culling!AX13)*AY15 -> 7.181390567 | BA16: =(1-Culling!AY13)*AZ15 -> 5.375226539 | BB16: =(1-Culling!AZ13)*BA15 -> 6.898929363 | BC16: =(1-Culling!BA13)*BB15 -> 5.780015614 | BD16: =(1-Culling!BB13)*BC15 -> 7.132076396 | BE16: =(1-Culling!BC13)*BD15 -> 6.279439952 | BF16: =(1-Culling!BD13)*BE15 -> 5.6696701
A17: 9 | B17: Milking | C17: Pregnant | D17: ='Lactation #1'!E28 -> 6 | E17: =(1-Culling!C14)*D16 -> 5.94 | F17: =(1-Culling!D14)*E16 -> 5.8806 | G17: =(1-Culling!E14)*F16 -> 5.821794 | H17: =(1-Culling!F14)*G16 -> 5.76357606 | I17: =(1-Culling!G14)*H16 -> 5.705940299 | J17: =(1-Culling!H14)*I16 -> 5.648880896 | K17: =(1-Culling!I14)*J16 -> 5.592392087 | L17: =(1-Culling!J14)*K16 -> 5.228886602 | M17: =(1-Culling!K14)*L16 -> 5.228886602 | N17: =(1-Culling!L14)*M16 -> 2.612304211 | O17: =(1-Culling!M14)*N16 -> 2.610166871 | P17: =(1-Culling!N14)*O16 -> 5.21606256 | Q17: =(1-Culling!O14)*P16 -> 2.605897436 | R17: =(1-Culling!P14)*Q16 -> 3.471687118 | S17: =(1-Culling!Q14)*R16 -> 2.601634985 | T17: =(1-Culling!R14)*S16 -> 6.065514874 | U17: =(1-Culling!S14)*T16 -> 2.597379506 | V17: =(1-Culling!T14)*U16 -> 2.595254377 | W17: =(1-Culling!U14)*V16 -> 2.593130987 | X17: =(1-Culling!V14)*W16 -> 4.318348891 | Y17: =(1-Culling!W14)*X16 -> 2.588889418 | Z17: =(1-Culling!X14)*Y16 -> 3.449028314 | AA17: =(1-Culling!Y14)*Z16 -> 6.030861168 | AB17: =(1-Culling!Z14)*AA16 -> 2.582540069 | AC17: =(1-Culling!AA14)*AB16 -> 2.580427081 | AD17: =(1-Culling!AB14)*AC16 -> 2.578315823 | AE17: =(1-Culling!AC14)*AD16 -> 5.152412583 | AF17: =(1-Culling!AD14)*AE16 -> 2.574098486 | AG17: =(1-Culling!AE14)*AF16 -> 2.571992406 | AH17: =(1-Culling!AF14)*AG16 -> 4.283146747 | AI17: =(1-Culling!AG14)*AH16 -> 2.567785413 | AJ17: =(1-Culling!AH14)*AI16 -> 3.363798891 | AK17: =(1-Culling!AI14)*AJ16 -> 8.60315218 | AL17: =(1-Culling!AJ14)*AK16 -> 7.893663562 | AM17: =(1-Culling!AK14)*AL16 -> 7.589029977 | AN17: =(1-Culling!AL14)*AM16 -> 9.236864327 | AO17: =(1-Culling!AM14)*AN16 -> 6.17056287 | AP17: =(1-Culling!AN14)*AO16 -> 6.817795623 | AQ17: =(1-Culling!AO14)*AP16 -> 7.722710034 | AR17: =(1-Culling!AP14)*AQ16 -> 8.977985715 | AS17: =(1-Culling!AQ14)*AR16 -> 6.924068701 | AT17: =(1-Culling!AR14)*AS16 -> 7.243257711 | AU17: =(1-Culling!AS14)*AT16 -> 7.088500907 | AV17: =(1-Culling!AT14)*AU16 -> 7.461286374 | AW17: =(1-Culling!AU14)*AV16 -> 6.303265386 | AX17: =(1-Culling!AV14)*AW16 -> 7.314487114 | AY17: =(1-Culling!AW14)*AX16 -> 7.233153245 | AZ17: =(1-Culling!AX14)*AY16 -> 5.630357217 | BA17: =(1-Culling!AY14)*AZ16 -> 7.109576661 | BB17: =(1-Culling!AZ14)*BA16 -> 5.321474274 | BC17: =(1-Culling!BA14)*BB16 -> 6.829940069 | BD17: =(1-Culling!BB14)*BC16 -> 5.722215458 | BE17: =(1-Culling!BC14)*BD16 -> 7.060755632 | BF17: =(1-Culling!BD14)*BE16 -> 6.216645553
A18: 10 | B18: Milking | C18: Pregnant | D18: ='Lactation #1'!E30 -> 6 | E18: =(1-Culling!C15)*D17 -> 5.94 | F18: =(1-Culling!D15)*E17 -> 5.8806 | G18: =(1-Culling!E15)*F17 -> 5.821794 | H18: =(1-Culling!F15)*G17 -> 5.76357606 | I18: =(1-Culling!G15)*H17 -> 5.705940299 | J18: =(1-Culling!H15)*I17 -> 5.648880896 | K18: =(1-Culling!I15)*J17 -> 5.592392087 | L18: =(1-Culling!J15)*K17 -> 5.536468167 | M18: =(1-Culling!K15)*L17 -> 5.176597736 | N18: =(1-Culling!L15)*M17 -> 5.176597736 | O18: =(1-Culling!M15)*N17 -> 2.586181169 | P18: =(1-Culling!N15)*O17 -> 2.584065202 | Q18: =(1-Culling!O15)*P17 -> 5.163901934 | R18: =(1-Culling!P15)*Q17 -> 2.579838462 | S18: =(1-Culling!Q15)*R17 -> 3.436970247 | T18: =(1-Culling!R15)*S17 -> 2.575618635 | U18: =(1-Culling!S15)*T17 -> 6.004859725 | V18: =(1-Culling!T15)*U17 -> 2.571405711 | W18: =(1-Culling!U15)*V17 -> 2.569301833 | X18: =(1-Culling!V15)*W17 -> 2.567199677 | Y18: =(1-Culling!W15)*X17 -> 4.275165402 | Z18: =(1-Culling!X15)*Y17 -> 2.563000523 | AA18: =(1-Culling!Y15)*Z17 -> 3.414538031 | AB18: =(1-Culling!Z15)*AA17 -> 5.970552556 | AC18: =(1-Culling!AA15)*AB17 -> 2.556714668 | AD18: =(1-Culling!AB15)*AC17 -> 2.55462281 | AE18: =(1-Culling!AC15)*AD17 -> 2.552532665 | AF18: =(1-Culling!AD15)*AE17 -> 5.100888457 | AG18: =(1-Culling!AE15)*AF17 -> 2.548357502 | AH18: =(1-Culling!AF15)*AG17 -> 2.546272482 | AI18: =(1-Culling!AG15)*AH17 -> 4.24031528 | AJ18: =(1-Culling!AH15)*AI17 -> 2.542107559 | AK18: =(1-Culling!AI15)*AJ17 -> 3.330160902 | AL18: =(1-Culling!AJ15)*AK17 -> 8.517120658 | AM18: =(1-Culling!AK15)*AL17 -> 7.814726926 | AN18: =(1-Culling!AL15)*AM17 -> 7.513139677 | AO18: =(1-Culling!AM15)*AN17 -> 9.144495683 | AP18: =(1-Culling!AN15)*AO17 -> 6.108857241 | AQ18: =(1-Culling!AO15)*AP17 -> 6.749617666 | AR18: =(1-Culling!AP15)*AQ17 -> 7.645482933 | AS18: =(1-Culling!AQ15)*AR17 -> 8.888205858 | AT18: =(1-Culling!AR15)*AS17 -> 6.854828014 | AU18: =(1-Culling!AS15)*AT17 -> 7.170825134 | AV18: =(1-Culling!AT15)*AU17 -> 7.017615898 | AW18: =(1-Culling!AU15)*AV17 -> 7.38667351 | AX18: =(1-Culling!AV15)*AW17 -> 6.240232732 | AY18: =(1-Culling!AW15)*AX17 -> 7.241342243 | AZ18: =(1-Culling!AX15)*AY17 -> 7.160821712 | BA18: =(1-Culling!AY15)*AZ17 -> 5.574053645 | BB18: =(1-Culling!AZ15)*BA17 -> 7.038480895 | BC18: =(1-Culling!BA15)*BB17 -> 5.268259531 | BD18: =(1-Culling!BB15)*BC17 -> 6.761640669 | BE18: =(1-Culling!BC15)*BD17 -> 5.664993303 | BF18: =(1-Culling!BD15)*BE17 -> 6.990148076
A19: 11 | B19: Milking | C19: Pregnant | D19: ='Lactation #1'!E32 -> 6 | E19: =(1-Culling!C16)*D18 -> 5.94 | F19: =(1-Culling!D16)*E18 -> 5.8806 | G19: =(1-Culling!E16)*F18 -> 5.821794 | H19: =(1-Culling!F16)*G18 -> 5.76357606 | I19: =(1-Culling!G16)*H18 -> 5.705940299 | J19: =(1-Culling!H16)*I18 -> 5.648880896 | K19: =(1-Culling!I16)*J18 -> 5.592392087 | L19: =(1-Culling!J16)*K18 -> 5.536468167 | M19: =(1-Culling!K16)*L18 -> 5.481103485 | N19: =(1-Culling!L16)*M18 -> 5.124831758 | O19: =(1-Culling!M16)*N18 -> 5.124831758 | P19: =(1-Culling!N16)*O18 -> 2.560319357 | Q19: =(1-Culling!O16)*P18 -> 2.55822455 | R19: =(1-Culling!P16)*Q18 -> 5.112262915 | S19: =(1-Culling!Q16)*R18 -> 2.554040077 | T19: =(1-Culling!R16)*S18 -> 3.402600544 | U19: =(1-Culling!S16)*T18 -> 2.549862449 | V19: =(1-Culling!T16)*U18 -> 5.944811128 | W19: =(1-Culling!U16)*V18 -> 2.545691653 | X19: =(1-Culling!V16)*W18 -> 2.543608815 | Y19: =(1-Culling!W16)*X18 -> 2.54152768 | Z19: =(1-Culling!X16)*Y18 -> 4.232413748 | AA19: =(1-Culling!Y16)*Z18 -> 2.537370518 | AB19: =(1-Culling!Z16)*AA18 -> 3.38039265 | AC19: =(1-Culling!AA16)*AB18 -> 5.91084703 | AD19: =(1-Culling!AB16)*AC18 -> 2.531147521 | AE19: =(1-Culling!AC16)*AD18 -> 2.529076582 | AF19: =(1-Culling!AD16)*AE18 -> 2.527007338 | AG19: =(1-Culling!AE16)*AF18 -> 5.049879573 | AH19: =(1-Culling!AF16)*AG18 -> 2.522873927 | AI19: =(1-Culling!AG16)*AH18 -> 2.520809757 | AJ19: =(1-Culling!AH16)*AI18 -> 4.197912127 | AK19: =(1-Culling!AI16)*AJ18 -> 2.516686483 | AL19: =(1-Culling!AJ16)*AK18 -> 3.296859293 | AM19: =(1-Culling!AK16)*AL18 -> 8.431949452 | AN19: =(1-Culling!AL16)*AM18 -> 7.736579657 | AO19: =(1-Culling!AM16)*AN18 -> 7.43800828 | AP19: =(1-Culling!AN16)*AO18 -> 9.053050727 | AQ19: =(1-Culling!AO16)*AP18 -> 6.047768669 | AR19: =(1-Culling!AP16)*AQ18 -> 6.68212149 | AS19: =(1-Culling!AQ16)*AR18 -> 7.569028104 | AT19: =(1-Culling!AR16)*AS18 -> 8.799323799 | AU19: =(1-Culling!AS16)*AT18 -> 6.786279734 | AV19: =(1-Culling!AT16)*AU18 -> 7.099116883 | AW19: =(1-Culling!AU16)*AV18 -> 6.947439739 | AX19: =(1-Culling!AV16)*AW18 -> 7.312806775 | AY19: =(1-Culling!AW16)*AX18 -> 6.177830405 | AZ19: =(1-Culling!AX16)*AY18 -> 7.168928821 | BA19: =(1-Culling!AY16)*AZ18 -> 7.089213495 | BB19: =(1-Culling!AZ16)*BA18 -> 5.518313109 | BC19: =(1-Culling!BA16)*BB18 -> 6.968096086 | BD19: =(1-Culling!BB16)*BC18 -> 5.215576936 | BE19: =(1-Culling!BC16)*BD18 -> 6.694024262 | BF19: =(1-Culling!BD16)*BE18 -> 5.60834337
A20: 12 | B20: Dry | C20: Pregnant | D20: ='Lactation #1'!E34 -> 6 | E20: =(1-Culling!C17)*D19 -> 6 | F20: =(1-Culling!D17)*E19 -> 5.94 | G20: =(1-Culling!E17)*F19 -> 5.8806 | H20: =(1-Culling!F17)*G19 -> 5.821794 | I20: =(1-Culling!G17)*H19 -> 5.76357606 | J20: =(1-Culling!H17)*I19 -> 5.705940299 | K20: =(1-Culling!I17)*J19 -> 5.648880896 | L20: =(1-Culling!J17)*K19 -> 5.592392087 | M20: =(1-Culling!K17)*L19 -> 5.536468167 | N20: =(1-Culling!L17)*M19 -> 5.481103485 | O20: =(1-Culling!M17)*N19 -> 5.124831758 | P20: =(1-Culling!N17)*O19 -> 5.124831758 | Q20: =(1-Culling!O17)*P19 -> 2.560319357 | R20: =(1-Culling!P17)*Q19 -> 2.55822455 | S20: =(1-Culling!Q17)*R19 -> 5.112262915 | T20: =(1-Culling!R17)*S19 -> 2.554040077 | U20: =(1-Culling!S17)*T19 -> 3.402600544 | V20: =(1-Culling!T17)*U19 -> 2.549862449 | W20: =(1-Culling!U17)*V19 -> 5.944811128 | X20: =(1-Culling!V17)*W19 -> 2.545691653 | Y20: =(1-Culling!W17)*X19 -> 2.543608815 | Z20: =(1-Culling!X17)*Y19 -> 2.54152768 | AA20: =(1-Culling!Y17)*Z19 -> 4.232413748 | AB20: =(1-Culling!Z17)*AA19 -> 2.537370518 | AC20: =(1-Culling!AA17)*AB19 -> 3.38039265 | AD20: =(1-Culling!AB17)*AC19 -> 5.91084703 | AE20: =(1-Culling!AC17)*AD19 -> 2.531147521 | AF20: =(1-Culling!AD17)*AE19 -> 2.529076582 | AG20: =(1-Culling!AE17)*AF19 -> 2.527007338 | AH20: =(1-Culling!AF17)*AG19 -> 5.049879573 | AI20: =(1-Culling!AG17)*AH19 -> 2.522873927 | AJ20: =(1-Culling!AH17)*AI19 -> 2.520809757 | AK20: =(1-Culling!AI17)*AJ19 -> 4.197912127 | AL20: =(1-Culling!AJ17)*AK19 -> 2.516686483 | AM20: =(1-Culling!AK17)*AL19 -> 3.296859293 | AN20: =(1-Culling!AL17)*AM19 -> 8.431949452 | AO20: =(1-Culling!AM17)*AN19 -> 7.736579657 | AP20: =(1-Culling!AN17)*AO19 -> 7.43800828 | AQ20: =(1-Culling!AO17)*AP19 -> 9.053050727 | AR20: =(1-Culling!AP17)*AQ19 -> 6.047768669 | AS20: =(1-Culling!AQ17)*AR19 -> 6.68212149 | AT20: =(1-Culling!AR17)*AS19 -> 7.569028104 | AU20: =(1-Culling!AS17)*AT19 -> 8.799323799 | AV20: =(1-Culling!AT17)*AU19 -> 6.786279734 | AW20: =(1-Culling!AU17)*AV19 -> 7.099116883 | AX20: =(1-Culling!AV17)*AW19 -> 6.947439739 | AY20: =(1-Culling!AW17)*AX19 -> 7.312806775 | AZ20: =(1-Culling!AX17)*AY19 -> 6.177830405 | BA20: =(1-Culling!AY17)*AZ19 -> 7.168928821 | BB20: =(1-Culling!AZ17)*BA19 -> 7.089213495 | BC20: =(1-Culling!BA17)*BB19 -> 5.518313109 | BD20: =(1-Culling!BB17)*BC19 -> 6.968096086 | BE20: =(1-Culling!BC17)*BD19 -> 5.215576936 | BF20: =(1-Culling!BD17)*BE19 -> 6.694024262
A21: 13 | B21: Dry | C21: Pregnant | D21: ='Lactation #1'!E36 -> 6 | E21: =(1-Culling!C18)*D20 -> 6 | F21: =(1-Culling!D18)*E20 -> 6 | G21: =(1-Culling!E18)*F20 -> 5.94 | H21: =(1-Culling!F18)*G20 -> 5.8806 | I21: =(1-Culling!G18)*H20 -> 5.821794 | J21: =(1-Culling!H18)*I20 -> 5.76357606 | K21: =(1-Culling!I18)*J20 -> 5.705940299 | L21: =(1-Culling!J18)*K20 -> 5.648880896 | M21: =(1-Culling!K18)*L20 -> 5.592392087 | N21: =(1-Culling!L18)*M20 -> 5.536468167 | O21: =(1-Culling!M18)*N20 -> 5.481103485 | P21: =(1-Culling!N18)*O20 -> 5.124831758 | Q21: =(1-Culling!O18)*P20 -> 5.124831758 | R21: =(1-Culling!P18)*Q20 -> 2.560319357 | S21: =(1-Culling!Q18)*R20 -> 2.55822455 | T21: =(1-Culling!R18)*S20 -> 5.112262915 | U21: =(1-Culling!S18)*T20 -> 2.554040077 | V21: =(1-Culling!T18)*U20 -> 3.402600544 | W21: =(1-Culling!U18)*V20 -> 2.549862449 | X21: =(1-Culling!V18)*W20 -> 5.944811128 | Y21: =(1-Culling!W18)*X20 -> 2.545691653 | Z21: =(1-Culling!X18)*Y20 -> 2.543608815 | AA21: =(1-Culling!Y18)*Z20 -> 2.54152768 | AB21: =(1-Culling!Z18)*AA20 -> 4.232413748 | AC21: =(1-Culling!AA18)*AB20 -> 2.537370518 | AD21: =(1-Culling!AB18)*AC20 -> 3.38039265 | AE21: =(1-Culling!AC18)*AD20 -> 5.91084703 | AF21: =(1-Culling!AD18)*AE20 -> 2.531147521 | AG21: =(1-Culling!AE18)*AF20 -> 2.529076582 | AH21: =(1-Culling!AF18)*AG20 -> 2.527007338 | AI21: =(1-Culling!AG18)*AH20 -> 5.049879573 | AJ21: =(1-Culling!AH18)*AI20 -> 2.522873927 | AK21: =(1-Culling!AI18)*AJ20 -> 2.520809757 | AL21: =(1-Culling!AJ18)*AK20 -> 4.197912127 | AM21: =(1-Culling!AK18)*AL20 -> 2.516686483 | AN21: =(1-Culling!AL18)*AM20 -> 3.296859293 | AO21: =(1-Culling!AM18)*AN20 -> 8.431949452 | AP21: =(1-Culling!AN18)*AO20 -> 7.736579657 | AQ21: =(1-Culling!AO18)*AP20 -> 7.43800828 | AR21: =(1-Culling!AP18)*AQ20 -> 9.053050727 | AS21: =(1-Culling!AQ18)*AR20 -> 6.047768669 | AT21: =(1-Culling!AR18)*AS20 -> 6.68212149 | AU21: =(1-Culling!AS18)*AT20 -> 7.569028104 | AV21: =(1-Culling!AT18)*AU20 -> 8.799323799 | AW21: =(1-Culling!AU18)*AV20 -> 6.786279734 | AX21: =(1-Culling!AV18)*AW20 -> 7.099116883 | AY21: =(1-Culling!AW18)*AX20 -> 6.947439739 | AZ21: =(1-Culling!AX18)*AY20 -> 7.312806775 | BA21: =(1-Culling!AY18)*AZ20 -> 6.177830405 | BB21: =(1-Culling!AZ18)*BA20 -> 7.168928821 | BC21: =(1-Culling!BA18)*BB20 -> 7.089213495 | BD21: =(1-Culling!BB18)*BC20 -> 5.518313109 | BE21: =(1-Culling!BC18)*BD20 -> 6.968096086 | BF21: =(1-Culling!BD18)*BE20 -> 5.215576936
A22: 1 | B22: Milking | C22: Open | D22: ='Lactation #2'!E12 -> 5 | E22: =(1-Culling!C24)*D21 -> 5.61 | F22: =(1-Culling!D24)*E21 -> 5.61 | G22: =(1-Culling!E24)*F21 -> 5.61 | H22: =(1-Culling!F24)*G21 -> 5.5539 | I22: =(1-Culling!G24)*H21 -> 5.498361 | J22: =(1-Culling!H24)*I21 -> 5.44337739 | K22: =(1-Culling!I24)*J21 -> 5.388943616 | L22: =(1-Culling!J24)*K21 -> 5.33505418 | M22: =(1-Culling!K24)*L21 -> 5.281703638 | N22: =(1-Culling!L24)*M21 -> 5.228886602 | O22: =(1-Culling!M24)*N21 -> 5.176597736 | P22: =(1-Culling!N24)*O21 -> 5.124831758 | Q22: =(1-Culling!O24)*P21 -> 4.791717694 | R22: =(1-Culling!P24)*Q21 -> 4.791717694 | S22: =(1-Culling!Q24)*R21 -> 2.393898599 | T22: =(1-Culling!R24)*S21 -> 2.391939955 | U22: =(1-Culling!S24)*T21 -> 4.779965826 | V22: =(1-Culling!T24)*U21 -> 2.388027472 | W22: =(1-Culling!U24)*V21 -> 3.181431509 | X22: =(1-Culling!V24)*W21 -> 2.38412139 | Y22: =(1-Culling!W24)*X21 -> 5.558398404 | Z22: =(1-Culling!X24)*Y21 -> 2.380221696 | AA22: =(1-Culling!Y24)*Z21 -> 2.378274242 | AB22: =(1-Culling!Z24)*AA21 -> 2.376328381 | AC22: =(1-Culling!AA24)*AB21 -> 3.957306854 | AD22: =(1-Culling!AB24)*AC21 -> 2.372441435 | AE22: =(1-Culling!AC24)*AD21 -> 3.160667128 | AF22: =(1-Culling!AD24)*AE21 -> 5.526641973 | AG22: =(1-Culling!AE24)*AF21 -> 2.366622932 | AH22: =(1-Culling!AF24)*AG21 -> 2.364686605 | AI22: =(1-Culling!AG24)*AH21 -> 2.362751861 | AJ22: =(1-Culling!AH24)*AI21 -> 4.721637401 | AK22: =(1-Culling!AI24)*AJ21 -> 2.358887121 | AL22: =(1-Culling!AJ24)*AK21 -> 2.356957123 | AM22: =(1-Culling!AK24)*AL21 -> 3.925047839 | AN22: =(1-Culling!AL24)*AM21 -> 2.353101862 | AO22: =(1-Culling!AM24)*AN21 -> 3.082563439 | AP22: =(1-Culling!AN24)*AO21 -> 7.883872738 | AQ22: =(1-Culling!AO24)*AP21 -> 7.233701979 | AR22: =(1-Culling!AP24)*AQ21 -> 6.954537742 | AS22: =(1-Culling!AQ24)*AR21 -> 8.464602429 | AT22: =(1-Culling!AR24)*AS21 -> 5.654663705 | AU22: =(1-Culling!AS24)*AT21 -> 6.247783593 | AV22: =(1-Culling!AT24)*AU21 -> 7.077041277 | AW22: =(1-Culling!AU24)*AV21 -> 8.227367753 | AX22: =(1-Culling!AV24)*AW21 -> 6.345171551 | AY22: =(1-Culling!AW24)*AX21 -> 6.637674286 | AZ22: =(1-Culling!AX24)*AY21 -> 6.495856156 | BA22: =(1-Culling!AY24)*AZ21 -> 6.837474335 | BB22: =(1-Culling!AZ24)*BA21 -> 5.776271428 | BC22: =(1-Culling!BA24)*BB21 -> 6.702948447 | BD22: =(1-Culling!BB24)*BC21 -> 6.628414618 | BE22: =(1-Culling!BC24)*BD21 -> 5.159622757 | BF22: =(1-Culling!BD24)*BE21 -> 6.51516984
A23: 2 | B23: Milking | C23: Open | D23: ='Lactation #2'!E14 -> 5 | E23: =(1-Culling!C25)*D22 -> 4.675 | F23: =(1-Culling!D25)*E22 -> 5.24535 | G23: =(1-Culling!E25)*F22 -> 5.24535 | H23: =(1-Culling!F25)*G22 -> 5.24535 | I23: =(1-Culling!G25)*H22 -> 5.1928965 | J23: =(1-Culling!H25)*I22 -> 5.140967535 | K23: =(1-Culling!I25)*J22 -> 5.08955786 | L23: =(1-Culling!J25)*K22 -> 5.038662281 | M23: =(1-Culling!K25)*L22 -> 4.988275658 | N23: =(1-Culling!L25)*M22 -> 4.938392902 | O23: =(1-Culling!M25)*N22 -> 4.889008973 | P23: =(1-Culling!N25)*O22 -> 4.840118883 | Q23: =(1-Culling!O25)*P22 -> 4.791717694 | R23: =(1-Culling!P25)*Q22 -> 4.480256044 | S23: =(1-Culling!Q25)*R22 -> 4.480256044 | T23: =(1-Culling!R25)*S22 -> 2.23829519 | U23: =(1-Culling!S25)*T22 -> 2.236463858 | V23: =(1-Culling!T25)*U22 -> 4.469268047 | W23: =(1-Culling!U25)*V22 -> 2.232805687 | X23: =(1-Culling!V25)*W22 -> 2.974638461 | Y23: =(1-Culling!W25)*X22 -> 2.229153499 | Z23: =(1-Culling!X25)*Y22 -> 5.197102508 | AA23: =(1-Culling!Y25)*Z22 -> 2.225507286 | AB23: =(1-Culling!Z25)*AA22 -> 2.223686416 | AC23: =(1-Culling!AA25)*AB22 -> 2.221867036 | AD23: =(1-Culling!AB25)*AC22 -> 3.700081909 | AE23: =(1-Culling!AC25)*AD22 -> 2.218232741 | AF23: =(1-Culling!AD25)*AE22 -> 2.955223765 | AG23: =(1-Culling!AE25)*AF22 -> 5.167410245 | AH23: =(1-Culling!AF25)*AG22 -> 2.212792442 | AI23: =(1-Culling!AG25)*AH22 -> 2.210981975 | AJ23: =(1-Culling!AH25)*AI22 -> 2.20917299 | AK23: =(1-Culling!AI25)*AJ22 -> 4.41473097 | AL23: =(1-Culling!AJ25)*AK22 -> 2.205559458 | AM23: =(1-Culling!AK25)*AL22 -> 2.20375491 | AN23: =(1-Culling!AL25)*AM22 -> 3.669919729 | AO23: =(1-Culling!AM25)*AN22 -> 2.200150241 | AP23: =(1-Culling!AN25)*AO22 -> 2.882196815 | AQ23: =(1-Culling!AO25)*AP22 -> 7.37142101 | AR23: =(1-Culling!AP25)*AQ22 -> 6.763511351 | AS23: =(1-Culling!AQ25)*AR22 -> 6.502492789 | AT23: =(1-Culling!AR25)*AS22 -> 7.914403271 | AU23: =(1-Culling!AS25)*AT22 -> 5.287110564 | AV23: =(1-Culling!AT25)*AU22 -> 5.841677659 | AW23: =(1-Culling!AU25)*AV22 -> 6.617033594 | AX23: =(1-Culling!AV25)*AW22 -> 7.692588849 | AY23: =(1-Culling!AW25)*AX22 -> 5.9327354 | AZ23: =(1-Culling!AX25)*AY22 -> 6.206225457 | BA23: =(1-Culling!AY25)*AZ22 -> 6.073625506 | BB23: =(1-Culling!AZ25)*BA22 -> 6.393038503 | BC23: =(1-Culling!BA25)*BB22 -> 5.400813786 | BD23: =(1-Culling!BB25)*BC22 -> 6.267256798 | BE23: =(1-Culling!BC25)*BD22 -> 6.197567668 | BF23: =(1-Culling!BD25)*BE22 -> 4.824247278
A24: 3 | B24: Milking | C24: Open | D24: ='Lactation #2'!E16 -> 6 | E24: =(1-Culling!C26)*D23 -> 4.95 | F24: =(1-Culling!D26)*E23 -> 4.62825 | G24: =(1-Culling!E26)*F23 -> 5.1928965 | H24: =(1-Culling!F26)*G23 -> 5.1928965 | I24: =(1-Culling!G26)*H23 -> 5.1928965 | J24: =(1-Culling!H26)*I23 -> 5.140967535 | K24: =(1-Culling!I26)*J23 -> 5.08955786 | L24: =(1-Culling!J26)*K23 -> 5.038662281 | M24: =(1-Culling!K26)*L23 -> 4.988275658 | N24: =(1-Culling!L26)*M23 -> 4.938392902 | O24: =(1-Culling!M26)*N23 -> 4.889008973 | P24: =(1-Culling!N26)*O23 -> 4.840118883 | Q24: =(1-Culling!O26)*P23 -> 4.791717694 | R24: =(1-Culling!P26)*Q23 -> 4.743800517 | S24: =(1-Culling!Q26)*R23 -> 4.435453484 | T24: =(1-Culling!R26)*S23 -> 4.435453484 | U24: =(1-Culling!S26)*T23 -> 2.215912238 | V24: =(1-Culling!T26)*U23 -> 2.214099219 | W24: =(1-Culling!U26)*V23 -> 4.424575366 | X24: =(1-Culling!V26)*W23 -> 2.21047763 | Y24: =(1-Culling!W26)*X23 -> 2.944892076 | Z24: =(1-Culling!X26)*Y23 -> 2.206861964 | AA24: =(1-Culling!Y26)*Z23 -> 5.145131483 | AB24: =(1-Culling!Z26)*AA23 -> 2.203252213 | AC24: =(1-Culling!AA26)*AB23 -> 2.201449552 | AD24: =(1-Culling!AB26)*AC23 -> 2.199648366 | AE24: =(1-Culling!AC26)*AD23 -> 3.663081089 | AF24: =(1-Culling!AD26)*AE23 -> 2.196050414 | AG24: =(1-Culling!AE26)*AF23 -> 2.925671527 | AH24: =(1-Culling!AF26)*AG23 -> 5.115736143 | AI24: =(1-Culling!AG26)*AH23 -> 2.190664517 | AJ24: =(1-Culling!AH26)*AI23 -> 2.188872155 | AK24: =(1-Culling!AI26)*AJ23 -> 2.18708126 | AL24: =(1-Culling!AJ26)*AK23 -> 4.37058366 | AM24: =(1-Culling!AK26)*AL23 -> 2.183503864 | AN24: =(1-Culling!AL26)*AM23 -> 2.181717361 | AO24: =(1-Culling!AM26)*AN23 -> 3.633220532 | AP24: =(1-Culling!AN26)*AO23 -> 2.178148738 | AQ24: =(1-Culling!AO26)*AP23 -> 2.853374847 | AR24: =(1-Culling!AP26)*AQ23 -> 7.297706799 | AS24: =(1-Culling!AQ26)*AR23 -> 6.695876237 | AT24: =(1-Culling!AR26)*AS23 -> 6.437467861 | AU24: =(1-Culling!AS26)*AT23 -> 7.835259239 | AV24: =(1-Culling!AT26)*AU23 -> 5.234239459 | AW24: =(1-Culling!AU26)*AV23 -> 5.783260883 | AX24: =(1-Culling!AV26)*AW23 -> 6.550863258 | AY24: =(1-Culling!AW26)*AX23 -> 7.61566296 | AZ24: =(1-Culling!AX26)*AY23 -> 5.873408046 | BA24: =(1-Culling!AY26)*AZ23 -> 6.144163202 | BB24: =(1-Culling!AZ26)*BA23 -> 6.01288925 | BC24: =(1-Culling!BA26)*BB23 -> 6.329108118 | BD24: =(1-Culling!BB26)*BC23 -> 5.346805648 | BE24: =(1-Culling!BC26)*BD23 -> 6.20458423 | BF24: =(1-Culling!BD26)*BE23 -> 6.135591991
A25: 4 | B25: Milking | C25: Open | D25: ='Lactation #2'!E18 -> 7 | E25: =(1-Culling!C27)*D24 -> 5.94 | F25: =(1-Culling!D27)*E24 -> 4.9005 | G25: =(1-Culling!E27)*F24 -> 4.5819675 | H25: =(1-Culling!F27)*G24 -> 5.140967535 | I25: =(1-Culling!G27)*H24 -> 5.140967535 | J25: =(1-Culling!H27)*I24 -> 5.140967535 | K25: =(1-Culling!I27)*J24 -> 5.08955786 | L25: =(1-Culling!J27)*K24 -> 5.038662281 | M25: =(1-Culling!K27)*L24 -> 4.988275658 | N25: =(1-Culling!L27)*M24 -> 4.938392902 | O25: =(1-Culling!M27)*N24 -> 4.889008973 | P25: =(1-Culling!N27)*O24 -> 4.840118883 | Q25: =(1-Culling!O27)*P24 -> 4.791717694 | R25: =(1-Culling!P27)*Q24 -> 4.743800517 | S25: =(1-Culling!Q27)*R24 -> 4.696362512 | T25: =(1-Culling!R27)*S24 -> 4.391098949 | U25: =(1-Culling!S27)*T24 -> 4.391098949 | V25: =(1-Culling!T27)*U24 -> 2.193753116 | W25: =(1-Culling!U27)*V24 -> 2.191958227 | X25: =(1-Culling!V27)*W24 -> 4.380329613 | Y25: =(1-Culling!W27)*X24 -> 2.188372853 | Z25: =(1-Culling!X27)*Y24 -> 2.915443155 | AA25: =(1-Culling!Y27)*Z24 -> 2.184793345 | AB25: =(1-Culling!Z27)*AA24 -> 5.093680168 | AC25: =(1-Culling!AA27)*AB24 -> 2.181219691 | AD25: =(1-Culling!AB27)*AC24 -> 2.179435056 | AE25: =(1-Culling!AC27)*AD24 -> 2.177651882 | AF25: =(1-Culling!AD27)*AE24 -> 3.626450279 | AG25: =(1-Culling!AE27)*AF24 -> 2.17408991 | AH25: =(1-Culling!AF27)*AG24 -> 2.896414812 | AI25: =(1-Culling!AG27)*AH24 -> 5.064578781 | AJ25: =(1-Culling!AH27)*AI24 -> 2.168757872 | AK25: =(1-Culling!AI27)*AJ24 -> 2.166983434 | AL25: =(1-Culling!AJ27)*AK24 -> 2.165210447 | AM25: =(1-Culling!AK27)*AL24 -> 4.326877823 | AN25: =(1-Culling!AL27)*AM24 -> 2.161668825 | AO25: =(1-Culling!AM27)*AN24 -> 2.159900187 | AP25: =(1-Culling!AN27)*AO24 -> 3.596888327 | AQ25: =(1-Culling!AO27)*AP24 -> 2.156367251 | AR25: =(1-Culling!AP27)*AQ24 -> 2.824841099 | AS25: =(1-Culling!AQ27)*AR24 -> 7.224729731 | AT25: =(1-Culling!AR27)*AS24 -> 6.628917475 | AU25: =(1-Culling!AS27)*AT24 -> 6.373093182 | AV25: =(1-Culling!AT27)*AU24 -> 7.756906646 | AW25: =(1-Culling!AU27)*AV24 -> 5.181897064 | AX25: =(1-Culling!AV27)*AW24 -> 5.725428274 | AY25: =(1-Culling!AW27)*AX24 -> 6.485354626 | AZ25: =(1-Culling!AX27)*AY24 -> 7.539506331 | BA25: =(1-Culling!AY27)*AZ24 -> 5.814673966 | BB25: =(1-Culling!AZ27)*BA24 -> 6.08272157 | BC25: =(1-Culling!BA27)*BB24 -> 5.952760358 | BD25: =(1-Culling!BB27)*BC24 -> 6.265817037 | BE25: =(1-Culling!BC27)*BD24 -> 5.293337591 | BF25: =(1-Culling!BD27)*BE24 -> 6.142538388
A26: 5 | B26: Milking | C26: Pregnant | D26: ='Lactation #2'!E20 -> 6 | E26: =(1-Culling!C28)*D25 -> 6.93 | F26: =(1-Culling!D28)*E25 -> 5.8806 | G26: =(1-Culling!E28)*F25 -> 4.851495 | H26: =(1-Culling!F28)*G25 -> 4.536147825 | I26: =(1-Culling!G28)*H25 -> 5.08955786 | J26: =(1-Culling!H28)*I25 -> 5.08955786 | K26: =(1-Culling!I28)*J25 -> 5.08955786 | L26: =(1-Culling!J28)*K25 -> 5.038662281 | M26: =(1-Culling!K28)*L25 -> 4.988275658 | N26: =(1-Culling!L28)*M25 -> 4.938392902 | O26: =(1-Culling!M28)*N25 -> 4.889008973 | P26: =(1-Culling!N28)*O25 -> 4.840118883 | Q26: =(1-Culling!O28)*P25 -> 4.791717694 | R26: =(1-Culling!P28)*Q25 -> 4.743800517 | S26: =(1-Culling!Q28)*R25 -> 4.696362512 | T26: =(1-Culling!R28)*S25 -> 4.649398887 | U26: =(1-Culling!S28)*T25 -> 4.347187959 | V26: =(1-Culling!T28)*U25 -> 4.347187959 | W26: =(1-Culling!U28)*V25 -> 2.171815585 | X26: =(1-Culling!V28)*W25 -> 2.170038645 | Y26: =(1-Culling!W28)*X25 -> 4.336526317 | Z26: =(1-Culling!X28)*Y25 -> 2.166489125 | AA26: =(1-Culling!Y28)*Z25 -> 2.886288724 | AB26: =(1-Culling!Z28)*AA25 -> 2.162945411 | AC26: =(1-Culling!AA28)*AB25 -> 5.042743367 | AD26: =(1-Culling!AB28)*AC25 -> 2.159407494 | AE26: =(1-Culling!AC28)*AD25 -> 2.157640706 | AF26: =(1-Culling!AD28)*AE25 -> 2.155875363 | AG26: =(1-Culling!AE28)*AF25 -> 3.590185776 | AH26: =(1-Culling!AF28)*AG25 -> 2.152349011 | AI26: =(1-Culling!AG28)*AH25 -> 2.867450664 | AJ26: =(1-Culling!AH28)*AI25 -> 5.013932994 | AK26: =(1-Culling!AI28)*AJ25 -> 2.147070293 | AL26: =(1-Culling!AJ28)*AK25 -> 2.1453136 | AM26: =(1-Culling!AK28)*AL25 -> 2.143558343 | AN26: =(1-Culling!AL28)*AM25 -> 4.283609045 | AO26: =(1-Culling!AM28)*AN25 -> 2.140052137 | AP26: =(1-Culling!AN28)*AO25 -> 2.138301185 | AQ26: =(1-Culling!AO28)*AP25 -> 3.560919444 | AR26: =(1-Culling!AP28)*AQ25 -> 2.134803578 | AS26: =(1-Culling!AQ28)*AR25 -> 2.796592688 | AT26: =(1-Culling!AR28)*AS25 -> 7.152482434 | AU26: =(1-Culling!AS28)*AT25 -> 6.5626283 | AV26: =(1-Culling!AT28)*AU25 -> 6.30936225 | AW26: =(1-Culling!AU28)*AV25 -> 7.67933758 | AX26: =(1-Culling!AV28)*AW25 -> 5.130078094 | AY26: =(1-Culling!AW28)*AX25 -> 5.668173991 | AZ26: =(1-Culling!AX28)*AY25 -> 6.42050108 | BA26: =(1-Culling!AY28)*AZ25 -> 7.464111267 | BB26: =(1-Culling!AZ28)*BA25 -> 5.756527226 | BC26: =(1-Culling!BA28)*BB25 -> 6.021894355 | BD26: =(1-Culling!BB28)*BC25 -> 5.893232754 | BE26: =(1-Culling!BC28)*BD25 -> 6.203158867 | BF26: =(1-Culling!BD28)*BE25 -> 5.240404215
A27: 6 | B27: Milking | C27: Pregnant | D27: ='Lactation #2'!E22 -> 7 | E27: =(1-Culling!C29)*D26 -> 5.94 | F27: =(1-Culling!D29)*E26 -> 6.8607 | G27: =(1-Culling!E29)*F26 -> 5.821794 | H27: =(1-Culling!F29)*G26 -> 4.80298005 | I27: =(1-Culling!G29)*H26 -> 4.490786347 | J27: =(1-Culling!H29)*I26 -> 5.038662281 | K27: =(1-Culling!I29)*J26 -> 5.038662281 | L27: =(1-Culling!J29)*K26 -> 5.038662281 | M27: =(1-Culling!K29)*L26 -> 4.988275658 | N27: =(1-Culling!L29)*M26 -> 4.938392902 | O27: =(1-Culling!M29)*N26 -> 4.889008973 | P27: =(1-Culling!N29)*O26 -> 4.840118883 | Q27: =(1-Culling!O29)*P26 -> 4.791717694 | R27: =(1-Culling!P29)*Q26 -> 4.743800517 | S27: =(1-Culling!Q29)*R26 -> 4.696362512 | T27: =(1-Culling!R29)*S26 -> 4.649398887 | U27: =(1-Culling!S29)*T26 -> 4.602904898 | V27: =(1-Culling!T29)*U26 -> 4.30371608 | W27: =(1-Culling!U29)*V26 -> 4.30371608 | X27: =(1-Culling!V29)*W26 -> 2.150097429 | Y27: =(1-Culling!W29)*X26 -> 2.148338258 | Z27: =(1-Culling!X29)*Y26 -> 4.293161054 | AA27: =(1-Culling!Y29)*Z26 -> 2.144824234 | AB27: =(1-Culling!Z29)*AA26 -> 2.857425837 | AC27: =(1-Culling!AA29)*AB26 -> 2.141315957 | AD27: =(1-Culling!AB29)*AC26 -> 4.992315933 | AE27: =(1-Culling!AC29)*AD26 -> 2.137813419 | AF27: =(1-Culling!AD29)*AE26 -> 2.136064299 | AG27: =(1-Culling!AE29)*AF26 -> 2.13431661 | AH27: =(1-Culling!AF29)*AG26 -> 3.554283918 | AI27: =(1-Culling!AG29)*AH26 -> 2.130825521 | AJ27: =(1-Culling!AH29)*AI26 -> 2.838776157 | AK27: =(1-Culling!AI29)*AJ26 -> 4.963793664 | AL27: =(1-Culling!AJ29)*AK26 -> 2.125599591 | AM27: =(1-Culling!AK29)*AL26 -> 2.123860464 | AN27: =(1-Culling!AL29)*AM26 -> 2.12212276 | AO27: =(1-Culling!AM29)*AN26 -> 4.240772955 | AP27: =(1-Culling!AN29)*AO26 -> 2.118651616 | AQ27: =(1-Culling!AO29)*AP26 -> 2.116918173 | AR27: =(1-Culling!AP29)*AQ26 -> 3.525310249 | AS27: =(1-Culling!AQ29)*AR26 -> 2.113455543 | AT27: =(1-Culling!AR29)*AS26 -> 2.768626761 | AU27: =(1-Culling!AS29)*AT26 -> 7.08095761 | AV27: =(1-Culling!AT29)*AU26 -> 6.497002017 | AW27: =(1-Culling!AU29)*AV26 -> 6.246268628 | AX27: =(1-Culling!AV29)*AW26 -> 7.602544204 | AY27: =(1-Culling!AW29)*AX26 -> 5.078777313 | AZ27: =(1-Culling!AX29)*AY26 -> 5.611492251 | BA27: =(1-Culling!AY29)*AZ26 -> 6.356296069 | BB27: =(1-Culling!AZ29)*BA26 -> 7.389470155 | BC27: =(1-Culling!BA29)*BB26 -> 5.698961954 | BD27: =(1-Culling!BB29)*BC26 -> 5.961675411 | BE27: =(1-Culling!BC29)*BD26 -> 5.834300427 | BF27: =(1-Culling!BD29)*BE26 -> 6.141127278
A28: 7 | B28: Milking | C28: Pregnant | D28: ='Lactation #2'!E24 -> 7 | E28: =(1-Culling!C30)*D27 -> 6.93 | F28: =(1-Culling!D30)*E27 -> 5.8806 | G28: =(1-Culling!E30)*F27 -> 6.792093 | H28: =(1-Culling!F30)*G27 -> 5.76357606 | I28: =(1-Culling!G30)*H27 -> 4.754950249 | J28: =(1-Culling!H30)*I27 -> 4.445878483 | K28: =(1-Culling!I30)*J27 -> 4.988275658 | L28: =(1-Culling!J30)*K27 -> 4.988275658 | M28: =(1-Culling!K30)*L27 -> 4.988275658 | N28: =(1-Culling!L30)*M27 -> 4.938392902 | O28: =(1-Culling!M30)*N27 -> 4.889008973 | P28: =(1-Culling!N30)*O27 -> 4.840118883 | Q28: =(1-Culling!O30)*P27 -> 4.791717694 | R28: =(1-Culling!P30)*Q27 -> 4.743800517 | S28: =(1-Culling!Q30)*R27 -> 4.696362512 | T28: =(1-Culling!R30)*S27 -> 4.649398887 | U28: =(1-Culling!S30)*T27 -> 4.602904898 | V28: =(1-Culling!T30)*U27 -> 4.556875849 | W28: =(1-Culling!U30)*V27 -> 4.260678919 | X28: =(1-Culling!V30)*W27 -> 4.260678919 | Y28: =(1-Culling!W30)*X27 -> 2.128596454 | Z28: =(1-Culling!X30)*Y27 -> 2.126854875 | AA28: =(1-Culling!Y30)*Z27 -> 4.250229443 | AB28: =(1-Culling!Z30)*AA27 -> 2.123375991 | AC28: =(1-Culling!AA30)*AB27 -> 2.828851578 | AD28: =(1-Culling!AB30)*AC27 -> 2.119902797 | AE28: =(1-Culling!AC30)*AD27 -> 4.942392774 | AF28: =(1-Culling!AD30)*AE27 -> 2.116435285 | AG28: =(1-Culling!AE30)*AF27 -> 2.114703656 | AH28: =(1-Culling!AF30)*AG27 -> 2.112973444 | AI28: =(1-Culling!AG30)*AH27 -> 3.518741079 | AJ28: =(1-Culling!AH30)*AI27 -> 2.109517265 | AK28: =(1-Culling!AI30)*AJ27 -> 2.810388396 | AL28: =(1-Culling!AJ30)*AK27 -> 4.914155727 | AM28: =(1-Culling!AK30)*AL27 -> 2.104343595 | AN28: =(1-Culling!AL30)*AM27 -> 2.102621859 | AO28: =(1-Culling!AM30)*AN27 -> 2.100901532 | AP28: =(1-Culling!AN30)*AO27 -> 4.198365225 | AQ28: =(1-Culling!AO30)*AP27 -> 2.097465099 | AR28: =(1-Culling!AP30)*AQ27 -> 2.095748992 | AS28: =(1-Culling!AQ30)*AR27 -> 3.490057147 | AT28: =(1-Culling!AR30)*AS27 -> 2.092320987 | AU28: =(1-Culling!AS30)*AT27 -> 2.740940493 | AV28: =(1-Culling!AT30)*AU27 -> 7.010148034 | AW28: =(1-Culling!AU30)*AV27 -> 6.432031997 | AX28: =(1-Culling!AV30)*AW27 -> 6.183805941 | AY28: =(1-Culling!AW30)*AX27 -> 7.526518762 | AZ28: =(1-Culling!AX30)*AY27 -> 5.02798954 | BA28: =(1-Culling!AY30)*AZ27 -> 5.555377329 | BB28: =(1-Culling!AZ30)*BA27 -> 6.292733108 | BC28: =(1-Culling!BA30)*BB27 -> 7.315575453 | BD28: =(1-Culling!BB30)*BC27 -> 5.641972334 | BE28: =(1-Culling!BC30)*BD27 -> 5.902058657 | BF28: =(1-Culling!BD30)*BE27 -> 5.775957423
A29: 8 | B29: Milking | C29: Pregnant | D29: ='Lactation #2'!E26 -> 5 | E29: =(1-Culling!C31)*D28 -> 6.93 | F29: =(1-Culling!D31)*E28 -> 6.8607 | G29: =(1-Culling!E31)*F28 -> 5.821794 | H29: =(1-Culling!F31)*G28 -> 6.72417207 | I29: =(1-Culling!G31)*H28 -> 5.705940299 | J29: =(1-Culling!H31)*I28 -> 4.707400747 | K29: =(1-Culling!I31)*J28 -> 4.401419698 | L29: =(1-Culling!J31)*K28 -> 4.938392902 | M29: =(1-Culling!K31)*L28 -> 4.938392902 | N29: =(1-Culling!L31)*M28 -> 4.938392902 | O29: =(1-Culling!M31)*N28 -> 4.889008973 | P29: =(1-Culling!N31)*O28 -> 4.840118883 | Q29: =(1-Culling!O31)*P28 -> 4.791717694 | R29: =(1-Culling!P31)*Q28 -> 4.743800517 | S29: =(1-Culling!Q31)*R28 -> 4.696362512 | T29: =(1-Culling!R31)*S28 -> 4.649398887 | U29: =(1-Culling!S31)*T28 -> 4.602904898 | V29: =(1-Culling!T31)*U28 -> 4.556875849 | W29: =(1-Culling!U31)*V28 -> 4.511307091 | X29: =(1-Culling!V31)*W28 -> 4.21807213 | Y29: =(1-Culling!W31)*X28 -> 4.21807213 | Z29: =(1-Culling!X31)*Y28 -> 2.10731049 | AA29: =(1-Culling!Y31)*Z28 -> 2.105586327 | AB29: =(1-Culling!Z31)*AA28 -> 4.207727149 | AC29: =(1-Culling!AA31)*AB28 -> 2.102142231 | AD29: =(1-Culling!AB31)*AC28 -> 2.800563062 | AE29: =(1-Culling!AC31)*AD28 -> 2.098703769 | AF29: =(1-Culling!AD31)*AE28 -> 4.892968846 | AG29: =(1-Culling!AE31)*AF28 -> 2.095270932 | AH29: =(1-Culling!AF31)*AG28 -> 2.093556619 | AI29: =(1-Culling!AG31)*AH28 -> 2.091843709 | AJ29: =(1-Culling!AH31)*AI28 -> 3.483553668 | AK29: =(1-Culling!AI31)*AJ28 -> 2.088422093 | AL29: =(1-Culling!AJ31)*AK28 -> 2.782284512 | AM29: =(1-Culling!AK31)*AL28 -> 4.86501417 | AN29: =(1-Culling!AL31)*AM28 -> 2.083300159 | AO29: =(1-Culling!AM31)*AN28 -> 2.08159564 | AP29: =(1-Culling!AN31)*AO28 -> 2.079892517 | AQ29: =(1-Culling!AO31)*AP28 -> 4.156381573 | AR29: =(1-Culling!AP31)*AQ28 -> 2.076490448 | AS29: =(1-Culling!AQ31)*AR28 -> 2.074791502 | AT29: =(1-Culling!AR31)*AS28 -> 3.455156575 | AU29: =(1-Culling!AS31)*AT28 -> 2.071397777 | AV29: =(1-Culling!AT31)*AU28 -> 2.713531088 | AW29: =(1-Culling!AU31)*AV28 -> 6.940046553 | AX29: =(1-Culling!AV31)*AW28 -> 6.367711677 | AY29: =(1-Culling!AW31)*AX28 -> 6.121967882 | AZ29: =(1-Culling!AX31)*AY28 -> 7.451253574 | BA29: =(1-Culling!AY31)*AZ28 -> 4.977709644 | BB29: =(1-Culling!AZ31)*BA28 -> 5.499823555 | BC29: =(1-Culling!BA31)*BB28 -> 6.229805777 | BD29: =(1-Culling!BB31)*BC28 -> 7.242419698 | BE29: =(1-Culling!BC31)*BD28 -> 5.585552611 | BF29: =(1-Culling!BD31)*BE28 -> 5.843038071
A30: 9 | B30: Milking | C30: Pregnant | D30: ='Lactation #2'!E28 -> 5 | E30: =(1-Culling!C32)*D29 -> 4.95 | F30: =(1-Culling!D32)*E29 -> 6.8607 | G30: =(1-Culling!E32)*F29 -> 6.792093 | H30: =(1-Culling!F32)*G29 -> 5.76357606 | I30: =(1-Culling!G32)*H29 -> 6.656930349 | J30: =(1-Culling!H32)*I29 -> 5.648880896 | K30: =(1-Culling!I32)*J29 -> 4.66032674 | L30: =(1-Culling!J32)*K29 -> 4.357405501 | M30: =(1-Culling!K32)*L29 -> 4.889008973 | N30: =(1-Culling!L32)*M29 -> 4.889008973 | O30: =(1-Culling!M32)*N29 -> 4.889008973 | P30: =(1-Culling!N32)*O29 -> 4.840118883 | Q30: =(1-Culling!O32)*P29 -> 4.791717694 | R30: =(1-Culling!P32)*Q29 -> 4.743800517 | S30: =(1-Culling!Q32)*R29 -> 4.696362512 | T30: =(1-Culling!R32)*S29 -> 4.649398887 | U30: =(1-Culling!S32)*T29 -> 4.602904898 | V30: =(1-Culling!T32)*U29 -> 4.556875849 | W30: =(1-Culling!U32)*V29 -> 4.511307091 | X30: =(1-Culling!V32)*W29 -> 4.46619402 | Y30: =(1-Culling!W32)*X29 -> 4.175891408 | Z30: =(1-Culling!X32)*Y29 -> 4.175891408 | AA30: =(1-Culling!Y32)*Z29 -> 2.086237385 | AB30: =(1-Culling!Z32)*AA29 -> 2.084530463 | AC30: =(1-Culling!AA32)*AB29 -> 4.165649877 | AD30: =(1-Culling!AB32)*AC29 -> 2.081120809 | AE30: =(1-Culling!AC32)*AD29 -> 2.772557432 | AF30: =(1-Culling!AD32)*AE29 -> 2.077716732 | AG30: =(1-Culling!AE32)*AF29 -> 4.844039157 | AH30: =(1-Culling!AF32)*AG29 -> 2.074318223 | AI30: =(1-Culling!AG32)*AH29 -> 2.072621053 | AJ30: =(1-Culling!AH32)*AI29 -> 2.070925272 | AK30: =(1-Culling!AI32)*AJ29 -> 3.448718131 | AL30: =(1-Culling!AJ32)*AK29 -> 2.067537872 | AM30: =(1-Culling!AK32)*AL29 -> 2.754461666 | AN30: =(1-Culling!AL32)*AM29 -> 4.816364028 | AO30: =(1-Culling!AM32)*AN29 -> 2.062467157 | AP30: =(1-Culling!AN32)*AO29 -> 2.060779684 | AQ30: =(1-Culling!AO32)*AP29 -> 2.059093591 | AR30: =(1-Culling!AP32)*AQ29 -> 4.114817757 | AS30: =(1-Culling!AQ32)*AR29 -> 2.055725544 | AT30: =(1-Culling!AR32)*AS29 -> 2.054043587 | AU30: =(1-Culling!AS32)*AT29 -> 3.420605009 | AV30: =(1-Culling!AT32)*AU29 -> 2.0506838 | AW30: =(1-Culling!AU32)*AV29 -> 2.686395777 | AX30: =(1-Culling!AV32)*AW29 -> 6.870646088 | AY30: =(1-Culling!AW32)*AX29 -> 6.30403456 | AZ30: =(1-Culling!AX32)*AY29 -> 6.060748203 | BA30: =(1-Culling!AY32)*AZ29 -> 7.376741039 | BB30: =(1-Culling!AZ32)*BA29 -> 4.927932548 | BC30: =(1-Culling!BA32)*BB29 -> 5.44482532 | BD30: =(1-Culling!BB32)*BC29 -> 6.167507719 | BE30: =(1-Culling!BC32)*BD29 -> 7.169995501 | BF30: =(1-Culling!BD32)*BE29 -> 5.529697085
A31: 10 | B31: Milking | C31: Pregnant | D31: ='Lactation #2'!E30 -> 8 | E31: =(1-Culling!C33)*D30 -> 4.95 | F31: =(1-Culling!D33)*E30 -> 4.9005 | G31: =(1-Culling!E33)*F30 -> 6.792093 | H31: =(1-Culling!F33)*G30 -> 6.72417207 | I31: =(1-Culling!G33)*H30 -> 5.705940299 | J31: =(1-Culling!H33)*I30 -> 6.590361046 | K31: =(1-Culling!I33)*J30 -> 5.592392087 | L31: =(1-Culling!J33)*K30 -> 4.613723472 | M31: =(1-Culling!K33)*L30 -> 4.313831446 | N31: =(1-Culling!L33)*M30 -> 4.840118883 | O31: =(1-Culling!M33)*N30 -> 4.840118883 | P31: =(1-Culling!N33)*O30 -> 4.840118883 | Q31: =(1-Culling!O33)*P30 -> 4.791717694 | R31: =(1-Culling!P33)*Q30 -> 4.743800517 | S31: =(1-Culling!Q33)*R30 -> 4.696362512 | T31: =(1-Culling!R33)*S30 -> 4.649398887 | U31: =(1-Culling!S33)*T30 -> 4.602904898 | V31: =(1-Culling!T33)*U30 -> 4.556875849 | W31: =(1-Culling!U33)*V30 -> 4.511307091 | X31: =(1-Culling!V33)*W30 -> 4.46619402 | Y31: =(1-Culling!W33)*X30 -> 4.421532079 | Z31: =(1-Culling!X33)*Y30 -> 4.134132494 | AA31: =(1-Culling!Y33)*Z30 -> 4.134132494 | AB31: =(1-Culling!Z33)*AA30 -> 2.065375011 | AC31: =(1-Culling!AA33)*AB30 -> 2.063685159 | AD31: =(1-Culling!AB33)*AC30 -> 4.123993378 | AE31: =(1-Culling!AC33)*AD30 -> 2.060309601 | AF31: =(1-Culling!AD33)*AE30 -> 2.744831857 | AG31: =(1-Culling!AE33)*AF30 -> 2.056939564 | AH31: =(1-Culling!AF33)*AG30 -> 4.795598766 | AI31: =(1-Culling!AG33)*AH30 -> 2.05357504 | AJ31: =(1-Culling!AH33)*AI30 -> 2.051894843 | AK31: =(1-Culling!AI33)*AJ30 -> 2.050216019 | AL31: =(1-Culling!AJ33)*AK30 -> 3.41423095 | AM31: =(1-Culling!AK33)*AL30 -> 2.046862493 | AN31: =(1-Culling!AL33)*AM30 -> 2.72691705 | AO31: =(1-Culling!AM33)*AN30 -> 4.768200388 | AP31: =(1-Culling!AN33)*AO30 -> 2.041842486 | AQ31: =(1-Culling!AO33)*AP30 -> 2.040171887 | AR31: =(1-Culling!AP33)*AQ30 -> 2.038502656 | AS31: =(1-Culling!AQ33)*AR30 -> 4.07366958 | AT31: =(1-Culling!AR33)*AS30 -> 2.035168289 | AU31: =(1-Culling!AS33)*AT30 -> 2.033503151 | AV31: =(1-Culling!AT33)*AU30 -> 3.386398959 | AW31: =(1-Culling!AU33)*AV30 -> 2.030176962 | AX31: =(1-Culling!AV33)*AW30 -> 2.65953182 | AY31: =(1-Culling!AW33)*AX30 -> 6.801939627 | AZ31: =(1-Culling!AX33)*AY30 -> 6.240994214 | BA31: =(1-Culling!AY33)*AZ30 -> 6.000140721 | BB31: =(1-Culling!AZ33)*BA30 -> 7.302973628 | BC31: =(1-Culling!BA33)*BB30 -> 4.878653222 | BD31: =(1-Culling!BB33)*BC30 -> 5.390377067 | BE31: =(1-Culling!BC33)*BD30 -> 6.105832642 | BF31: =(1-Culling!BD33)*BE30 -> 7.098295546
A32: 11 | B32: Milking | C32: Pregnant | D32: ='Lactation #2'!E32 -> 6 | E32: =(1-Culling!C34)*D31 -> 7.92 | F32: =(1-Culling!D34)*E31 -> 4.9005 | G32: =(1-Culling!E34)*F31 -> 4.851495 | H32: =(1-Culling!F34)*G31 -> 6.72417207 | I32: =(1-Culling!G34)*H31 -> 6.656930349 | J32: =(1-Culling!H34)*I31 -> 5.648880896 | K32: =(1-Culling!I34)*J31 -> 6.524457435 | L32: =(1-Culling!J34)*K31 -> 5.536468167 | M32: =(1-Culling!K34)*L31 -> 4.567586237 | N32: =(1-Culling!L34)*M31 -> 4.270693132 | O32: =(1-Culling!M34)*N31 -> 4.791717694 | P32: =(1-Culling!N34)*O31 -> 4.791717694 | Q32: =(1-Culling!O34)*P31 -> 4.791717694 | R32: =(1-Culling!P34)*Q31 -> 4.743800517 | S32: =(1-Culling!Q34)*R31 -> 4.696362512 | T32: =(1-Culling!R34)*S31 -> 4.649398887 | U32: =(1-Culling!S34)*T31 -> 4.602904898 | V32: =(1-Culling!T34)*U31 -> 4.556875849 | W32: =(1-Culling!U34)*V31 -> 4.511307091 | X32: =(1-Culling!V34)*W31 -> 4.46619402 | Y32: =(1-Culling!W34)*X31 -> 4.421532079 | Z32: =(1-Culling!X34)*Y31 -> 4.377316759 | AA32: =(1-Culling!Y34)*Z31 -> 4.092791169 | AB32: =(1-Culling!Z34)*AA31 -> 4.092791169 | AC32: =(1-Culling!AA34)*AB31 -> 2.044721261 | AD32: =(1-Culling!AB34)*AC31 -> 2.043048307 | AE32: =(1-Culling!AC34)*AD31 -> 4.082753445 | AF32: =(1-Culling!AD34)*AE31 -> 2.039706505 | AG32: =(1-Culling!AE34)*AF31 -> 2.717383539 | AH32: =(1-Culling!AF34)*AG31 -> 2.036370169 | AI32: =(1-Culling!AG34)*AH31 -> 4.747642778 | AJ32: =(1-Culling!AH34)*AI31 -> 2.03303929 | AK32: =(1-Culling!AI34)*AJ31 -> 2.031375894 | AL32: =(1-Culling!AJ34)*AK31 -> 2.029713859 | AM32: =(1-Culling!AK34)*AL31 -> 3.380088641 | AN32: =(1-Culling!AL34)*AM31 -> 2.026393868 | AO32: =(1-Culling!AM34)*AN31 -> 2.699647879 | AP32: =(1-Culling!AN34)*AO31 -> 4.720518384 | AQ32: =(1-Culling!AO34)*AP31 -> 2.021424061 | AR32: =(1-Culling!AP34)*AQ31 -> 2.019770168 | AS32: =(1-Culling!AQ34)*AR31 -> 2.018117629 | AT32: =(1-Culling!AR34)*AS31 -> 4.032932884 | AU32: =(1-Culling!AS34)*AT31 -> 2.014816606 | AV32: =(1-Culling!AT34)*AU31 -> 2.013168119 | AW32: =(1-Culling!AU34)*AV31 -> 3.35253497 | AX32: =(1-Culling!AV34)*AW31 -> 2.009875192 | AY32: =(1-Culling!AW34)*AX31 -> 2.632936501 | AZ32: =(1-Culling!AX34)*AY31 -> 6.733920231 | BA32: =(1-Culling!AY34)*AZ31 -> 6.178584272 | BB32: =(1-Culling!AZ34)*BA31 -> 5.940139314 | BC32: =(1-Culling!BA34)*BB31 -> 7.229943892 | BD32: =(1-Culling!BB34)*BC31 -> 4.82986669 | BE32: =(1-Culling!BC34)*BD31 -> 5.336473296 | BF32: =(1-Culling!BD34)*BE31 -> 6.044774316
A33: 12 | B33: Dry | C33: Pregnant | D33: ='Lactation #2'!E34 -> 6 | E33: =(1-Culling!C35)*D32 -> 6 | F33: =(1-Culling!D35)*E32 -> 7.92 | G33: =(1-Culling!E35)*F32 -> 4.9005 | H33: =(1-Culling!F35)*G32 -> 4.851495 | I33: =(1-Culling!G35)*H32 -> 6.72417207 | J33: =(1-Culling!H35)*I32 -> 6.656930349 | K33: =(1-Culling!I35)*J32 -> 5.648880896 | L33: =(1-Culling!J35)*K32 -> 6.524457435 | M33: =(1-Culling!K35)*L32 -> 5.536468167 | N33: =(1-Culling!L35)*M32 -> 4.567586237 | O33: =(1-Culling!M35)*N32 -> 4.270693132 | P33: =(1-Culling!N35)*O32 -> 4.791717694 | Q33: =(1-Culling!O35)*P32 -> 4.791717694 | R33: =(1-Culling!P35)*Q32 -> 4.791717694 | S33: =(1-Culling!Q35)*R32 -> 4.743800517 | T33: =(1-Culling!R35)*S32 -> 4.696362512 | U33: =(1-Culling!S35)*T32 -> 4.649398887 | V33: =(1-Culling!T35)*U32 -> 4.602904898 | W33: =(1-Culling!U35)*V32 -> 4.556875849 | X33: =(1-Culling!V35)*W32 -> 4.511307091 | Y33: =(1-Culling!W35)*X32 -> 4.46619402 | Z33: =(1-Culling!X35)*Y32 -> 4.421532079 | AA33: =(1-Culling!Y35)*Z32 -> 4.377316759 | AB33: =(1-Culling!Z35)*AA32 -> 4.092791169 | AC33: =(1-Culling!AA35)*AB32 -> 4.092791169 | AD33: =(1-Culling!AB35)*AC32 -> 2.044721261 | AE33: =(1-Culling!AC35)*AD32 -> 2.043048307 | AF33: =(1-Culling!AD35)*AE32 -> 4.082753445 | AG33: =(1-Culling!AE35)*AF32 -> 2.039706505 | AH33: =(1-Culling!AF35)*AG32 -> 2.717383539 | AI33: =(1-Culling!AG35)*AH32 -> 2.036370169 | AJ33: =(1-Culling!AH35)*AI32 -> 4.747642778 | AK33: =(1-Culling!AI35)*AJ32 -> 2.03303929 | AL33: =(1-Culling!AJ35)*AK32 -> 2.031375894 | AM33: =(1-Culling!AK35)*AL32 -> 2.029713859 | AN33: =(1-Culling!AL35)*AM32 -> 3.380088641 | AO33: =(1-Culling!AM35)*AN32 -> 2.026393868 | AP33: =(1-Culling!AN35)*AO32 -> 2.699647879 | AQ33: =(1-Culling!AO35)*AP32 -> 4.720518384 | AR33: =(1-Culling!AP35)*AQ32 -> 2.021424061 | AS33: =(1-Culling!AQ35)*AR32 -> 2.019770168 | AT33: =(1-Culling!AR35)*AS32 -> 2.018117629 | AU33: =(1-Culling!AS35)*AT32 -> 4.032932884 | AV33: =(1-Culling!AT35)*AU32 -> 2.014816606 | AW33: =(1-Culling!AU35)*AV32 -> 2.013168119 | AX33: =(1-Culling!AV35)*AW32 -> 3.35253497 | AY33: =(1-Culling!AW35)*AX32 -> 2.009875192 | AZ33: =(1-Culling!AX35)*AY32 -> 2.632936501 | BA33: =(1-Culling!AY35)*AZ32 -> 6.733920231 | BB33: =(1-Culling!AZ35)*BA32 -> 6.178584272 | BC33: =(1-Culling!BA35)*BB32 -> 5.940139314 | BD33: =(1-Culling!BB35)*BC32 -> 7.229943892 | BE33: =(1-Culling!BC35)*BD32 -> 4.82986669 | BF33: =(1-Culling!BD35)*BE32 -> 5.336473296
A34: 13 | B34: Dry | C34: Pregnant | D34: ='Lactation #2'!E36 -> 7 | E34: =(1-Culling!C36)*D33 -> 6 | F34: =(1-Culling!D36)*E33 -> 6 | G34: =(1-Culling!E36)*F33 -> 7.92 | H34: =(1-Culling!F36)*G33 -> 4.9005 | I34: =(1-Culling!G36)*H33 -> 4.851495 | J34: =(1-Culling!H36)*I33 -> 6.72417207 | K34: =(1-Culling!I36)*J33 -> 6.656930349 | L34: =(1-Culling!J36)*K33 -> 5.648880896 | M34: =(1-Culling!K36)*L33 -> 6.524457435 | N34: =(1-Culling!L36)*M33 -> 5.536468167 | O34: =(1-Culling!M36)*N33 -> 4.567586237 | P34: =(1-Culling!N36)*O33 -> 4.270693132 | Q34: =(1-Culling!O36)*P33 -> 4.791717694 | R34: =(1-Culling!P36)*Q33 -> 4.791717694 | S34: =(1-Culling!Q36)*R33 -> 4.791717694 | T34: =(1-Culling!R36)*S33 -> 4.743800517 | U34: =(1-Culling!S36)*T33 -> 4.696362512 | V34: =(1-Culling!T36)*U33 -> 4.649398887 | W34: =(1-Culling!U36)*V33 -> 4.602904898 | X34: =(1-Culling!V36)*W33 -> 4.556875849 | Y34: =(1-Culling!W36)*X33 -> 4.511307091 | Z34: =(1-Culling!X36)*Y33 -> 4.46619402 | AA34: =(1-Culling!Y36)*Z33 -> 4.421532079 | AB34: =(1-Culling!Z36)*AA33 -> 4.377316759 | AC34: =(1-Culling!AA36)*AB33 -> 4.092791169 | AD34: =(1-Culling!AB36)*AC33 -> 4.092791169 | AE34: =(1-Culling!AC36)*AD33 -> 2.044721261 | AF34: =(1-Culling!AD36)*AE33 -> 2.043048307 | AG34: =(1-Culling!AE36)*AF33 -> 4.082753445 | AH34: =(1-Culling!AF36)*AG33 -> 2.039706505 | AI34: =(1-Culling!AG36)*AH33 -> 2.717383539 | AJ34: =(1-Culling!AH36)*AI33 -> 2.036370169 | AK34: =(1-Culling!AI36)*AJ33 -> 4.747642778 | AL34: =(1-Culling!AJ36)*AK33 -> 2.03303929 | AM34: =(1-Culling!AK36)*AL33 -> 2.031375894 | AN34: =(1-Culling!AL36)*AM33 -> 2.029713859 | AO34: =(1-Culling!AM36)*AN33 -> 3.380088641 | AP34: =(1-Culling!AN36)*AO33 -> 2.026393868 | AQ34: =(1-Culling!AO36)*AP33 -> 2.699647879 | AR34: =(1-Culling!AP36)*AQ33 -> 4.720518384 | AS34: =(1-Culling!AQ36)*AR33 -> 2.021424061 | AT34: =(1-Culling!AR36)*AS33 -> 2.019770168 | AU34: =(1-Culling!AS36)*AT33 -> 2.018117629 | AV34: =(1-Culling!AT36)*AU33 -> 4.032932884 | AW34: =(1-Culling!AU36)*AV33 -> 2.014816606 | AX34: =(1-Culling!AV36)*AW33 -> 2.013168119 | AY34: =(1-Culling!AW36)*AX33 -> 3.35253497 | AZ34: =(1-Culling!AX36)*AY33 -> 2.009875192 | BA34: =(1-Culling!AY36)*AZ33 -> 2.632936501 | BB34: =(1-Culling!AZ36)*BA33 -> 6.733920231 | BC34: =(1-Culling!BA36)*BB33 -> 6.178584272 | BD34: =(1-Culling!BB36)*BC33 -> 5.940139314 | BE34: =(1-Culling!BC36)*BD33 -> 7.229943892 | BF34: =(1-Culling!BD36)*BE33 -> 4.82986669
A35: 1 | B35: Milking | C35: Open | D35: ='Lactation #3'!E12 -> 5 | E35: =(1-Culling!C24)*D34 -> 6.545 | F35: =(1-Culling!D24)*E34 -> 5.61 | G35: =(1-Culling!E24)*F34 -> 5.61 | H35: =(1-Culling!F24)*G34 -> 7.4052 | I35: =(1-Culling!G24)*H34 -> 4.5819675 | J35: =(1-Culling!H24)*I34 -> 4.536147825 | K35: =(1-Culling!I24)*J34 -> 6.287100885 | L35: =(1-Culling!J24)*K34 -> 6.224229877 | M35: =(1-Culling!K24)*L34 -> 5.281703638 | N35: =(1-Culling!L24)*M34 -> 6.100367702 | O35: =(1-Culling!M24)*N34 -> 5.176597736 | P35: =(1-Culling!N24)*O34 -> 4.270693132 | Q35: =(1-Culling!O24)*P34 -> 3.993098078 | R35: =(1-Culling!P24)*Q34 -> 4.480256044 | S35: =(1-Culling!Q24)*R34 -> 4.480256044 | T35: =(1-Culling!R24)*S34 -> 4.480256044 | U35: =(1-Culling!S24)*T34 -> 4.435453484 | V35: =(1-Culling!T24)*U34 -> 4.391098949 | W35: =(1-Culling!U24)*V34 -> 4.347187959 | X35: =(1-Culling!V24)*W34 -> 4.30371608 | Y35: =(1-Culling!W24)*X34 -> 4.260678919 | Z35: =(1-Culling!X24)*Y34 -> 4.21807213 | AA35: =(1-Culling!Y24)*Z34 -> 4.175891408 | AB35: =(1-Culling!Z24)*AA34 -> 4.134132494 | AC35: =(1-Culling!AA24)*AB34 -> 4.092791169 | AD35: =(1-Culling!AB24)*AC34 -> 3.826759743 | AE35: =(1-Culling!AC24)*AD34 -> 3.826759743 | AF35: =(1-Culling!AD24)*AE34 -> 1.911814379 | AG35: =(1-Culling!AE24)*AF34 -> 1.910250167 | AH35: =(1-Culling!AF24)*AG34 -> 3.817374471 | AI35: =(1-Culling!AG24)*AH34 -> 1.907125582 | AJ35: =(1-Culling!AH24)*AI34 -> 2.540753609 | AK35: =(1-Culling!AI24)*AJ34 -> 1.904006108 | AL35: =(1-Culling!AJ24)*AK34 -> 4.439045998 | AM35: =(1-Culling!AK24)*AL34 -> 1.900891736 | AN35: =(1-Culling!AL24)*AM34 -> 1.899336461 | AO35: =(1-Culling!AM24)*AN34 -> 1.897782458 | AP35: =(1-Culling!AN24)*AO34 -> 3.160382879 | AQ35: =(1-Culling!AO24)*AP34 -> 1.894678267 | AR35: =(1-Culling!AP24)*AQ34 -> 2.524170767 | AS35: =(1-Culling!AQ24)*AR34 -> 4.413684689 | AT35: =(1-Culling!AR24)*AS34 -> 1.890031497 | AU35: =(1-Culling!AS24)*AT34 -> 1.888485107 | AV35: =(1-Culling!AT24)*AU34 -> 1.886939983 | AW35: =(1-Culling!AU24)*AV34 -> 3.770792246 | AX35: =(1-Culling!AV24)*AW34 -> 1.883853526 | AY35: =(1-Culling!AW24)*AX34 -> 1.882312192 | AZ35: =(1-Culling!AX24)*AY34 -> 3.134620197 | BA35: =(1-Culling!AY24)*AZ34 -> 1.879233304 | BB35: =(1-Culling!AZ24)*BA34 -> 2.461795629 | BC35: =(1-Culling!BA24)*BB34 -> 6.296215416 | BD35: =(1-Culling!BB24)*BC34 -> 5.776976295 | BE35: =(1-Culling!BC24)*BD34 -> 5.554030259 | BF35: =(1-Culling!BD24)*BE34 -> 6.759997539
A36: 2 | B36: Milking | C36: Open | D36: ='Lactation #3'!E14 -> 5 | E36: =(1-Culling!C25)*D35 -> 4.675 | F36: =(1-Culling!D25)*E35 -> 6.119575 | G36: =(1-Culling!E25)*F35 -> 5.24535 | H36: =(1-Culling!F25)*G35 -> 5.24535 | I36: =(1-Culling!G25)*H35 -> 6.923862 | J36: =(1-Culling!H25)*I35 -> 4.284139613 | K36: =(1-Culling!I25)*J35 -> 4.241298216 | L36: =(1-Culling!J25)*K35 -> 5.878439328 | M36: =(1-Culling!K25)*L35 -> 5.819654935 | N36: =(1-Culling!L25)*M35 -> 4.938392902 | O36: =(1-Culling!M25)*N35 -> 5.703843801 | P36: =(1-Culling!N25)*O35 -> 4.840118883 | Q36: =(1-Culling!O25)*P35 -> 3.993098078 | R36: =(1-Culling!P25)*Q35 -> 3.733546703 | S36: =(1-Culling!Q25)*R35 -> 4.189039401 | T36: =(1-Culling!R25)*S35 -> 4.189039401 | U36: =(1-Culling!S25)*T35 -> 4.189039401 | V36: =(1-Culling!T25)*U35 -> 4.147149007 | W36: =(1-Culling!U25)*V35 -> 4.105677517 | X36: =(1-Culling!V25)*W35 -> 4.064620742 | Y36: =(1-Culling!W25)*X35 -> 4.023974534 | Z36: =(1-Culling!X25)*Y35 -> 3.983734789 | AA36: =(1-Culling!Y25)*Z35 -> 3.943897441 | AB36: =(1-Culling!Z25)*AA35 -> 3.904458467 | AC36: =(1-Culling!AA25)*AB35 -> 3.865413882 | AD36: =(1-Culling!AB25)*AC35 -> 3.826759743 | AE36: =(1-Culling!AC25)*AD35 -> 3.57802036 | AF36: =(1-Culling!AD25)*AE35 -> 3.57802036 | AG36: =(1-Culling!AE25)*AF35 -> 1.787546444 | AH36: =(1-Culling!AF25)*AG35 -> 1.786083906 | AI36: =(1-Culling!AG25)*AH35 -> 3.56924513 | AJ36: =(1-Culling!AH25)*AI35 -> 1.783162419 | AK36: =(1-Culling!AI25)*AJ35 -> 2.375604624 | AL36: =(1-Culling!AJ25)*AK35 -> 1.780245711 | AM36: =(1-Culling!AK25)*AL35 -> 4.150508008 | AN36: =(1-Culling!AL25)*AM35 -> 1.777333773 | AO36: =(1-Culling!AM25)*AN35 -> 1.775879591 | AP36: =(1-Culling!AN25)*AO35 -> 1.774426599 | AQ36: =(1-Culling!AO25)*AP35 -> 2.954957992 | AR36: =(1-Culling!AP25)*AQ35 -> 1.771524179 | AS36: =(1-Culling!AQ25)*AR35 -> 2.360099667 | AT36: =(1-Culling!AR25)*AS35 -> 4.126795184 | AU36: =(1-Culling!AS25)*AT35 -> 1.767179449 | AV36: =(1-Culling!AT25)*AU35 -> 1.765733575 | AW36: =(1-Culling!AU25)*AV35 -> 1.764288884 | AX36: =(1-Culling!AV25)*AW35 -> 3.52569075 | AY36: =(1-Culling!AW25)*AX35 -> 1.761403047 | AZ36: =(1-Culling!AX25)*AY35 -> 1.759961899 | BA36: =(1-Culling!AY25)*AZ35 -> 2.930869884 | BB36: =(1-Culling!AZ25)*BA35 -> 1.75708314 | BC36: =(1-Culling!BA25)*BB35 -> 2.301778913 | BD36: =(1-Culling!BB25)*BC35 -> 5.886961414 | BE36: =(1-Culling!BC25)*BD35 -> 5.401472835 | BF36: =(1-Culling!BD25)*BE35 -> 5.193018292
A37: 3 | B37: Milking | C37: Open | D37: ='Lactation #3'!E16 -> 5 | E37: =(1-Culling!C26)*D36 -> 4.95 | F37: =(1-Culling!D26)*E36 -> 4.62825 | G37: =(1-Culling!E26)*F36 -> 6.05837925 | H37: =(1-Culling!F26)*G36 -> 5.1928965 | I37: =(1-Culling!G26)*H36 -> 5.1928965 | J37: =(1-Culling!H26)*I36 -> 6.85462338 | K37: =(1-Culling!I26)*J36 -> 4.241298216 | L37: =(1-Culling!J26)*K36 -> 4.198885234 | M37: =(1-Culling!K26)*L36 -> 5.819654935 | N37: =(1-Culling!L26)*M36 -> 5.761458385 | O37: =(1-Culling!M26)*N36 -> 4.889008973 | P37: =(1-Culling!N26)*O36 -> 5.646805363 | Q37: =(1-Culling!O26)*P36 -> 4.791717694 | R37: =(1-Culling!P26)*Q36 -> 3.953167098 | S37: =(1-Culling!Q26)*R36 -> 3.696211236 | T37: =(1-Culling!R26)*S36 -> 4.147149007 | U37: =(1-Culling!S26)*T36 -> 4.147149007 | V37: =(1-Culling!T26)*U36 -> 4.147149007 | W37: =(1-Culling!U26)*V36 -> 4.105677517 | X37: =(1-Culling!V26)*W36 -> 4.064620742 | Y37: =(1-Culling!W26)*X36 -> 4.023974534 | Z37: =(1-Culling!X26)*Y36 -> 3.983734789 | AA37: =(1-Culling!Y26)*Z36 -> 3.943897441 | AB37: =(1-Culling!Z26)*AA36 -> 3.904458467 | AC37: =(1-Culling!AA26)*AB36 -> 3.865413882 | AD37: =(1-Culling!AB26)*AC36 -> 3.826759743 | AE37: =(1-Culling!AC26)*AD36 -> 3.788492146 | AF37: =(1-Culling!AD26)*AE36 -> 3.542240156 | AG37: =(1-Culling!AE26)*AF36 -> 3.542240156 | AH37: =(1-Culling!AF26)*AG36 -> 1.76967098 | AI37: =(1-Culling!AG26)*AH36 -> 1.768223067 | AJ37: =(1-Culling!AH26)*AI36 -> 3.533552679 | AK37: =(1-Culling!AI26)*AJ36 -> 1.765330795 | AL37: =(1-Culling!AJ26)*AK36 -> 2.351848578 | AM37: =(1-Culling!AK26)*AL36 -> 1.762443254 | AN37: =(1-Culling!AL26)*AM36 -> 4.109002928 | AO37: =(1-Culling!AM26)*AN36 -> 1.759560435 | AP37: =(1-Culling!AN26)*AO36 -> 1.758120795 | AQ37: =(1-Culling!AO26)*AP36 -> 1.756682333 | AR37: =(1-Culling!AP26)*AQ36 -> 2.925408412 | AS37: =(1-Culling!AQ26)*AR36 -> 1.753808938 | AT37: =(1-Culling!AR26)*AS36 -> 2.336498671 | AU37: =(1-Culling!AS26)*AT36 -> 4.085527232 | AV37: =(1-Culling!AT26)*AU36 -> 1.749507655 | AW37: =(1-Culling!AU26)*AV36 -> 1.74807624 | AX37: =(1-Culling!AV26)*AW36 -> 1.746645995 | AY37: =(1-Culling!AW26)*AX36 -> 3.490433843 | AZ37: =(1-Culling!AX26)*AY36 -> 1.743789017 | BA37: =(1-Culling!AY26)*AZ36 -> 1.74236228 | BB37: =(1-Culling!AZ26)*BA36 -> 2.901561185 | BC37: =(1-Culling!BA26)*BB36 -> 1.739512308 | BD37: =(1-Culling!BB26)*BC36 -> 2.278761124 | BE37: =(1-Culling!BC26)*BD36 -> 5.8280918 | BF37: =(1-Culling!BD26)*BE36 -> 5.347458107
A38: 4 | B38: Milking | C38: Open | D38: ='Lactation #3'!E18 -> 4 | E38: =(1-Culling!C27)*D37 -> 4.95 | F38: =(1-Culling!D27)*E37 -> 4.9005 | G38: =(1-Culling!E27)*F37 -> 4.5819675 | H38: =(1-Culling!F27)*G37 -> 5.997795457 | I38: =(1-Culling!G27)*H37 -> 5.140967535 | J38: =(1-Culling!H27)*I37 -> 5.140967535 | K38: =(1-Culling!I27)*J37 -> 6.786077146 | L38: =(1-Culling!J27)*K37 -> 4.198885234 | M38: =(1-Culling!K27)*L37 -> 4.156896382 | N38: =(1-Culling!L27)*M37 -> 5.761458385 | O38: =(1-Culling!M27)*N37 -> 5.703843801 | P38: =(1-Culling!N27)*O37 -> 4.840118883 | Q38: =(1-Culling!O27)*P37 -> 5.59033731 | R38: =(1-Culling!P27)*Q37 -> 4.743800517 | S38: =(1-Culling!Q27)*R37 -> 3.913635427 | T38: =(1-Culling!R27)*S37 -> 3.659249124 | U38: =(1-Culling!S27)*T37 -> 4.105677517 | V38: =(1-Culling!T27)*U37 -> 4.105677517 | W38: =(1-Culling!U27)*V37 -> 4.105677517 | X38: =(1-Culling!V27)*W37 -> 4.064620742 | Y38: =(1-Culling!W27)*X37 -> 4.023974534 | Z38: =(1-Culling!X27)*Y37 -> 3.983734789 | AA38: =(1-Culling!Y27)*Z37 -> 3.943897441 | AB38: =(1-Culling!Z27)*AA37 -> 3.904458467 | AC38: =(1-Culling!AA27)*AB37 -> 3.865413882 | AD38: =(1-Culling!AB27)*AC37 -> 3.826759743 | AE38: =(1-Culling!AC27)*AD37 -> 3.788492146 | AF38: =(1-Culling!AD27)*AE37 -> 3.750607224 | AG38: =(1-Culling!AE27)*AF37 -> 3.506817755 | AH38: =(1-Culling!AF27)*AG37 -> 3.506817755 | AI38: =(1-Culling!AG27)*AH37 -> 1.75197427 | AJ38: =(1-Culling!AH27)*AI37 -> 1.750540837 | AK38: =(1-Culling!AI27)*AJ37 -> 3.498217152 | AL38: =(1-Culling!AJ27)*AK37 -> 1.747677487 | AM38: =(1-Culling!AK27)*AL37 -> 2.328330092 | AN38: =(1-Culling!AL27)*AM37 -> 1.744818821 | AO38: =(1-Culling!AM27)*AN37 -> 4.067912898 | AP38: =(1-Culling!AN27)*AO37 -> 1.741964831 | AQ38: =(1-Culling!AO27)*AP37 -> 1.740539587 | AR38: =(1-Culling!AP27)*AQ37 -> 1.739115509 | AS38: =(1-Culling!AQ27)*AR37 -> 2.896154328 | AT38: =(1-Culling!AR27)*AS37 -> 1.736270848 | AU38: =(1-Culling!AS27)*AT37 -> 2.313133684 | AV38: =(1-Culling!AT27)*AU37 -> 4.04467196 | AW38: =(1-Culling!AU27)*AV37 -> 1.732012578 | AX38: =(1-Culling!AV27)*AW37 -> 1.730595477 | AY38: =(1-Culling!AW27)*AX37 -> 1.729179535 | AZ38: =(1-Culling!AX27)*AY37 -> 3.455529504 | BA38: =(1-Culling!AY27)*AZ37 -> 1.726351126 | BB38: =(1-Culling!AZ27)*BA37 -> 1.724938657 | BC38: =(1-Culling!BA27)*BB37 -> 2.872545573 | BD38: =(1-Culling!BB27)*BC37 -> 1.722117185 | BE38: =(1-Culling!BC27)*BD37 -> 2.255973513 | BF38: =(1-Culling!BD27)*BE37 -> 5.769810882
A39: 5 | B39: Milking | C39: Pregnant | D39: ='Lactation #3'!E20 -> 4 | E39: =(1-Culling!C28)*D38 -> 3.96 | F39: =(1-Culling!D28)*E38 -> 4.9005 | G39: =(1-Culling!E28)*F38 -> 4.851495 | H39: =(1-Culling!F28)*G38 -> 4.536147825 | I39: =(1-Culling!G28)*H38 -> 5.937817503 | J39: =(1-Culling!H28)*I38 -> 5.08955786 | K39: =(1-Culling!I28)*J38 -> 5.08955786 | L39: =(1-Culling!J28)*K38 -> 6.718216375 | M39: =(1-Culling!K28)*L38 -> 4.156896382 | N39: =(1-Culling!L28)*M38 -> 4.115327418 | O39: =(1-Culling!M28)*N38 -> 5.703843801 | P39: =(1-Culling!N28)*O38 -> 5.646805363 | Q39: =(1-Culling!O28)*P38 -> 4.791717694 | R39: =(1-Culling!P28)*Q38 -> 5.534433937 | S39: =(1-Culling!Q28)*R38 -> 4.696362512 | T39: =(1-Culling!R28)*S38 -> 3.874499072 | U39: =(1-Culling!S28)*T38 -> 3.622656633 | V39: =(1-Culling!T28)*U38 -> 4.064620742 | W39: =(1-Culling!U28)*V38 -> 4.064620742 | X39: =(1-Culling!V28)*W38 -> 4.064620742 | Y39: =(1-Culling!W28)*X38 -> 4.023974534 | Z39: =(1-Culling!X28)*Y38 -> 3.983734789 | AA39: =(1-Culling!Y28)*Z38 -> 3.943897441 | AB39: =(1-Culling!Z28)*AA38 -> 3.904458467 | AC39: =(1-Culling!AA28)*AB38 -> 3.865413882 | AD39: =(1-Culling!AB28)*AC38 -> 3.826759743 | AE39: =(1-Culling!AC28)*AD38 -> 3.788492146 | AF39: =(1-Culling!AD28)*AE38 -> 3.750607224 | AG39: =(1-Culling!AE28)*AF38 -> 3.713101152 | AH39: =(1-Culling!AF28)*AG38 -> 3.471749577 | AI39: =(1-Culling!AG28)*AH38 -> 3.471749577 | AJ39: =(1-Culling!AH28)*AI38 -> 1.734454527 | AK39: =(1-Culling!AI28)*AJ38 -> 1.733035428 | AL39: =(1-Culling!AJ28)*AK38 -> 3.46323498 | AM39: =(1-Culling!AK28)*AL38 -> 1.730200712 | AN39: =(1-Culling!AL28)*AM38 -> 2.305046791 | AO39: =(1-Culling!AM28)*AN38 -> 1.727370633 | AP39: =(1-Culling!AN28)*AO38 -> 4.027233769 | AQ39: =(1-Culling!AO28)*AP38 -> 1.724545183 | AR39: =(1-Culling!AP28)*AQ38 -> 1.723134191 | AS39: =(1-Culling!AQ28)*AR38 -> 1.721724354 | AT39: =(1-Culling!AR28)*AS38 -> 2.867192784 | AU39: =(1-Culling!AS28)*AT38 -> 1.71890814 | AV39: =(1-Culling!AT28)*AU38 -> 2.290002347 | AW39: =(1-Culling!AU28)*AV38 -> 4.00422524 | AX39: =(1-Culling!AV28)*AW38 -> 1.714692453 | AY39: =(1-Culling!AW28)*AX38 -> 1.713289522 | AZ39: =(1-Culling!AX28)*AY38 -> 1.71188774 | BA39: =(1-Culling!AY28)*AZ38 -> 3.420974209 | BB39: =(1-Culling!AZ28)*BA38 -> 1.709087615 | BC39: =(1-Culling!BA28)*BB38 -> 1.707689271 | BD39: =(1-Culling!BB28)*BC38 -> 2.843820117 | BE39: =(1-Culling!BC28)*BD38 -> 1.704896013 | BF39: =(1-Culling!BD28)*BE38 -> 2.233413777
A40: 6 | B40: Milking | C40: Pregnant | D40: ='Lactation #3'!E22 -> 4 | E40: =(1-Culling!C29)*D39 -> 3.96 | F40: =(1-Culling!D29)*E39 -> 3.9204 | G40: =(1-Culling!E29)*F39 -> 4.851495 | H40: =(1-Culling!F29)*G39 -> 4.80298005 | I40: =(1-Culling!G29)*H39 -> 4.490786347 | J40: =(1-Culling!H29)*I39 -> 5.878439328 | K40: =(1-Culling!I29)*J39 -> 5.038662281 | L40: =(1-Culling!J29)*K39 -> 5.038662281 | M40: =(1-Culling!K29)*L39 -> 6.651034211 | N40: =(1-Culling!L29)*M39 -> 4.115327418 | O40: =(1-Culling!M29)*N39 -> 4.074174144 | P40: =(1-Culling!N29)*O39 -> 5.646805363 | Q40: =(1-Culling!O29)*P39 -> 5.59033731 | R40: =(1-Culling!P29)*Q39 -> 4.743800517 | S40: =(1-Culling!Q29)*R39 -> 5.479089597 | T40: =(1-Culling!R29)*S39 -> 4.649398887 | U40: =(1-Culling!S29)*T39 -> 3.835754082 | V40: =(1-Culling!T29)*U39 -> 3.586430066 | W40: =(1-Culling!U29)*V39 -> 4.023974534 | X40: =(1-Culling!V29)*W39 -> 4.023974534 | Y40: =(1-Culling!W29)*X39 -> 4.023974534 | Z40: =(1-Culling!X29)*Y39 -> 3.983734789 | AA40: =(1-Culling!Y29)*Z39 -> 3.943897441 | AB40: =(1-Culling!Z29)*AA39 -> 3.904458467 | AC40: =(1-Culling!AA29)*AB39 -> 3.865413882 | AD40: =(1-Culling!AB29)*AC39 -> 3.826759743 | AE40: =(1-Culling!AC29)*AD39 -> 3.788492146 | AF40: =(1-Culling!AD29)*AE39 -> 3.750607224 | AG40: =(1-Culling!AE29)*AF39 -> 3.713101152 | AH40: =(1-Culling!AF29)*AG39 -> 3.675970141 | AI40: =(1-Culling!AG29)*AH39 -> 3.437032082 | AJ40: =(1-Culling!AH29)*AI39 -> 3.437032082 | AK40: =(1-Culling!AI29)*AJ39 -> 1.717109982 | AL40: =(1-Culling!AJ29)*AK39 -> 1.715705074 | AM40: =(1-Culling!AK29)*AL39 -> 3.428602631 | AN40: =(1-Culling!AL29)*AM39 -> 1.712898705 | AO40: =(1-Culling!AM29)*AN39 -> 2.281996323 | AP40: =(1-Culling!AN29)*AO39 -> 1.710096927 | AQ40: =(1-Culling!AO29)*AP39 -> 3.986961432 | AR40: =(1-Culling!AP29)*AQ39 -> 1.707299731 | AS40: =(1-Culling!AQ29)*AR39 -> 1.705902849 | AT40: =(1-Culling!AR29)*AS39 -> 1.704507111 | AU40: =(1-Culling!AS29)*AT39 -> 2.838520857 | AV40: =(1-Culling!AT29)*AU39 -> 1.701719058 | AW40: =(1-Culling!AU29)*AV39 -> 2.267102324 | AX40: =(1-Culling!AV29)*AW39 -> 3.964182988 | AY40: =(1-Culling!AW29)*AX39 -> 1.697545528 | AZ40: =(1-Culling!AX29)*AY39 -> 1.696156627 | BA40: =(1-Culling!AY29)*AZ39 -> 1.694768863 | BB40: =(1-Culling!AZ29)*BA39 -> 3.386764467 | BC40: =(1-Culling!BA29)*BB39 -> 1.691996739 | BD40: =(1-Culling!BB29)*BC39 -> 1.690612378 | BE40: =(1-Culling!BC29)*BD39 -> 2.815381916 | BF40: =(1-Culling!BD29)*BE39 -> 1.687847053
A41: 7 | B41: Milking | C41: Pregnant | D41: ='Lactation #3'!E24 -> 5 | E41: =(1-Culling!C30)*D40 -> 3.96 | F41: =(1-Culling!D30)*E40 -> 3.9204 | G41: =(1-Culling!E30)*F40 -> 3.881196 | H41: =(1-Culling!F30)*G40 -> 4.80298005 | I41: =(1-Culling!G30)*H40 -> 4.754950249 | J41: =(1-Culling!H30)*I40 -> 4.445878483 | K41: =(1-Culling!I30)*J40 -> 5.819654935 | L41: =(1-Culling!J30)*K40 -> 4.988275658 | M41: =(1-Culling!K30)*L40 -> 4.988275658 | N41: =(1-Culling!L30)*M40 -> 6.584523869 | O41: =(1-Culling!M30)*N40 -> 4.074174144 | P41: =(1-Culling!N30)*O40 -> 4.033432402 | Q41: =(1-Culling!O30)*P40 -> 5.59033731 | R41: =(1-Culling!P30)*Q40 -> 5.534433937 | S41: =(1-Culling!Q30)*R40 -> 4.696362512 | T41: =(1-Culling!R30)*S40 -> 5.424298701 | U41: =(1-Culling!S30)*T40 -> 4.602904898 | V41: =(1-Culling!T30)*U40 -> 3.797396541 | W41: =(1-Culling!U30)*V40 -> 3.550565766 | X41: =(1-Culling!V30)*W40 -> 3.983734789 | Y41: =(1-Culling!W30)*X40 -> 3.983734789 | Z41: =(1-Culling!X30)*Y40 -> 3.983734789 | AA41: =(1-Culling!Y30)*Z40 -> 3.943897441 | AB41: =(1-Culling!Z30)*AA40 -> 3.904458467 | AC41: =(1-Culling!AA30)*AB40 -> 3.865413882 | AD41: =(1-Culling!AB30)*AC40 -> 3.826759743 | AE41: =(1-Culling!AC30)*AD40 -> 3.788492146 | AF41: =(1-Culling!AD30)*AE40 -> 3.750607224 | AG41: =(1-Culling!AE30)*AF40 -> 3.713101152 | AH41: =(1-Culling!AF30)*AG40 -> 3.675970141 | AI41: =(1-Culling!AG30)*AH40 -> 3.639210439 | AJ41: =(1-Culling!AH30)*AI40 -> 3.402661761 | AK41: =(1-Culling!AI30)*AJ40 -> 3.402661761 | AL41: =(1-Culling!AJ30)*AK40 -> 1.699938882 | AM41: =(1-Culling!AK30)*AL40 -> 1.698548023 | AN41: =(1-Culling!AL30)*AM40 -> 3.394316604 | AO41: =(1-Culling!AM30)*AN40 -> 1.695769718 | AP41: =(1-Culling!AN30)*AO40 -> 2.25917636 | AQ41: =(1-Culling!AO30)*AP40 -> 1.692995957 | AR41: =(1-Culling!AP30)*AQ40 -> 3.947091817 | AS41: =(1-Culling!AQ30)*AR40 -> 1.690226734 | AT41: =(1-Culling!AR30)*AS40 -> 1.688843821 | AU41: =(1-Culling!AS30)*AT40 -> 1.68746204 | AV41: =(1-Culling!AT30)*AU40 -> 2.810135648 | AW41: =(1-Culling!AU30)*AV40 -> 1.684701868 | AX41: =(1-Culling!AV30)*AW40 -> 2.2444313 | AY41: =(1-Culling!AW30)*AX40 -> 3.924541158 | AZ41: =(1-Culling!AX30)*AY40 -> 1.680570073 | BA41: =(1-Culling!AY30)*AZ40 -> 1.679195061 | BB41: =(1-Culling!AZ30)*BA40 -> 1.677821174 | BC41: =(1-Culling!BA30)*BB40 -> 3.352896823 | BD41: =(1-Culling!BB30)*BC40 -> 1.675076772 | BE41: =(1-Culling!BC30)*BD40 -> 1.673706254 | BF41: =(1-Culling!BD30)*BE40 -> 2.787228097
A42: 8 | B42: Milking | C42: Pregnant | D42: ='Lactation #3'!E26 -> 3 | E42: =(1-Culling!C31)*D41 -> 4.95 | F42: =(1-Culling!D31)*E41 -> 3.9204 | G42: =(1-Culling!E31)*F41 -> 3.881196 | H42: =(1-Culling!F31)*G41 -> 3.84238404 | I42: =(1-Culling!G31)*H41 -> 4.754950249 | J42: =(1-Culling!H31)*I41 -> 4.707400747 | K42: =(1-Culling!I31)*J41 -> 4.401419698 | L42: =(1-Culling!J31)*K41 -> 5.761458385 | M42: =(1-Culling!K31)*L41 -> 4.938392902 | N42: =(1-Culling!L31)*M41 -> 4.938392902 | O42: =(1-Culling!M31)*N41 -> 6.51867863 | P42: =(1-Culling!N31)*O41 -> 4.033432402 | Q42: =(1-Culling!O31)*P41 -> 3.993098078 | R42: =(1-Culling!P31)*Q41 -> 5.534433937 | S42: =(1-Culling!Q31)*R41 -> 5.479089597 | T42: =(1-Culling!R31)*S41 -> 4.649398887 | U42: =(1-Culling!S31)*T41 -> 5.370055714 | V42: =(1-Culling!T31)*U41 -> 4.556875849 | W42: =(1-Culling!U31)*V41 -> 3.759422575 | X42: =(1-Culling!V31)*W41 -> 3.515060108 | Y42: =(1-Culling!W31)*X41 -> 3.943897441 | Z42: =(1-Culling!X31)*Y41 -> 3.943897441 | AA42: =(1-Culling!Y31)*Z41 -> 3.943897441 | AB42: =(1-Culling!Z31)*AA41 -> 3.904458467 | AC42: =(1-Culling!AA31)*AB41 -> 3.865413882 | AD42: =(1-Culling!AB31)*AC41 -> 3.826759743 | AE42: =(1-Culling!AC31)*AD41 -> 3.788492146 | AF42: =(1-Culling!AD31)*AE41 -> 3.750607224 | AG42: =(1-Culling!AE31)*AF41 -> 3.713101152 | AH42: =(1-Culling!AF31)*AG41 -> 3.675970141 | AI42: =(1-Culling!AG31)*AH41 -> 3.639210439 | AJ42: =(1-Culling!AH31)*AI41 -> 3.602818335 | AK42: =(1-Culling!AI31)*AJ41 -> 3.368635143 | AL42: =(1-Culling!AJ31)*AK41 -> 3.368635143 | AM42: =(1-Culling!AK31)*AL41 -> 1.682939494 | AN42: =(1-Culling!AL31)*AM41 -> 1.681562543 | AO42: =(1-Culling!AM31)*AN41 -> 3.360373438 | AP42: =(1-Culling!AN31)*AO41 -> 1.678812021 | AQ42: =(1-Culling!AO31)*AP41 -> 2.236584597 | AR42: =(1-Culling!AP31)*AQ41 -> 1.676065998 | AS42: =(1-Culling!AQ31)*AR41 -> 3.907620899 | AT42: =(1-Culling!AR31)*AS41 -> 1.673324466 | AU42: =(1-Culling!AS31)*AT41 -> 1.671955383 | AV42: =(1-Culling!AT31)*AU41 -> 1.670587419 | AW42: =(1-Culling!AU31)*AV41 -> 2.782034292 | AX42: =(1-Culling!AV31)*AW41 -> 1.667854849 | AY42: =(1-Culling!AW31)*AX41 -> 2.221986987 | AZ42: =(1-Culling!AX31)*AY41 -> 3.885295746 | BA42: =(1-Culling!AY31)*AZ41 -> 1.663764372 | BB42: =(1-Culling!AZ31)*BA41 -> 1.66240311 | BC42: =(1-Culling!BA31)*BB41 -> 1.661042962 | BD42: =(1-Culling!BB31)*BC41 -> 3.319367854 | BE42: =(1-Culling!BC31)*BD41 -> 1.658326004 | BF42: =(1-Culling!BD31)*BE41 -> 1.656969192
A43: 9 | B43: Milking | C43: Pregnant | D43: ='Lactation #3'!E28 -> 2 | E43: =(1-Culling!C32)*D42 -> 2.97 | F43: =(1-Culling!D32)*E42 -> 4.9005 | G43: =(1-Culling!E32)*F42 -> 3.881196 | H43: =(1-Culling!F32)*G42 -> 3.84238404 | I43: =(1-Culling!G32)*H42 -> 3.8039602 | J43: =(1-Culling!H32)*I42 -> 4.707400747 | K43: =(1-Culling!I32)*J42 -> 4.66032674 | L43: =(1-Culling!J32)*K42 -> 4.357405501 | M43: =(1-Culling!K32)*L42 -> 5.703843801 | N43: =(1-Culling!L32)*M42 -> 4.889008973 | O43: =(1-Culling!M32)*N42 -> 4.889008973 | P43: =(1-Culling!N32)*O42 -> 6.453491844 | Q43: =(1-Culling!O32)*P42 -> 3.993098078 | R43: =(1-Culling!P32)*Q42 -> 3.953167098 | S43: =(1-Culling!Q32)*R42 -> 5.479089597 | T43: =(1-Culling!R32)*S42 -> 5.424298701 | U43: =(1-Culling!S32)*T42 -> 4.602904898 | V43: =(1-Culling!T32)*U42 -> 5.316355157 | W43: =(1-Culling!U32)*V42 -> 4.511307091 | X43: =(1-Culling!V32)*W42 -> 3.72182835 | Y43: =(1-Culling!W32)*X42 -> 3.479909507 | Z43: =(1-Culling!X32)*Y42 -> 3.904458467 | AA43: =(1-Culling!Y32)*Z42 -> 3.904458467 | AB43: =(1-Culling!Z32)*AA42 -> 3.904458467 | AC43: =(1-Culling!AA32)*AB42 -> 3.865413882 | AD43: =(1-Culling!AB32)*AC42 -> 3.826759743 | AE43: =(1-Culling!AC32)*AD42 -> 3.788492146 | AF43: =(1-Culling!AD32)*AE42 -> 3.750607224 | AG43: =(1-Culling!AE32)*AF42 -> 3.713101152 | AH43: =(1-Culling!AF32)*AG42 -> 3.675970141 | AI43: =(1-Culling!AG32)*AH42 -> 3.639210439 | AJ43: =(1-Culling!AH32)*AI42 -> 3.602818335 | AK43: =(1-Culling!AI32)*AJ42 -> 3.566790152 | AL43: =(1-Culling!AJ32)*AK42 -> 3.334948792 | AM43: =(1-Culling!AK32)*AL42 -> 3.334948792 | AN43: =(1-Culling!AL32)*AM42 -> 1.666110099 | AO43: =(1-Culling!AM32)*AN42 -> 1.664746918 | AP43: =(1-Culling!AN32)*AO42 -> 3.326769704 | AQ43: =(1-Culling!AO32)*AP42 -> 1.662023901 | AR43: =(1-Culling!AP32)*AQ42 -> 2.214218751 | AS43: =(1-Culling!AQ32)*AR42 -> 1.659305338 | AT43: =(1-Culling!AR32)*AS42 -> 3.86854469 | AU43: =(1-Culling!AS32)*AT42 -> 1.656591222 | AV43: =(1-Culling!AT32)*AU42 -> 1.655235829 | AW43: =(1-Culling!AU32)*AV42 -> 1.653881545 | AX43: =(1-Culling!AV32)*AW42 -> 2.754213949 | AY43: =(1-Culling!AW32)*AX42 -> 1.651176301 | AZ43: =(1-Culling!AX32)*AY42 -> 2.199767117 | BA43: =(1-Culling!AY32)*AZ42 -> 3.846442789 | BB43: =(1-Culling!AZ32)*BA42 -> 1.647126728 | BC43: =(1-Culling!BA32)*BB42 -> 1.645779079 | BD43: =(1-Culling!BB32)*BC42 -> 1.644432533 | BE43: =(1-Culling!BC32)*BD42 -> 3.286174176 | BF43: =(1-Culling!BD32)*BE42 -> 1.641742744
A44: 10 | B44: Milking | C44: Pregnant | D44: ='Lactation #3'!E30 -> 4 | E44: =(1-Culling!C33)*D43 -> 1.98 | F44: =(1-Culling!D33)*E43 -> 2.9403 | G44: =(1-Culling!E33)*F43 -> 4.851495 | H44: =(1-Culling!F33)*G43 -> 3.84238404 | I44: =(1-Culling!G33)*H43 -> 3.8039602 | J44: =(1-Culling!H33)*I43 -> 3.765920598 | K44: =(1-Culling!I33)*J43 -> 4.66032674 | L44: =(1-Culling!J33)*K43 -> 4.613723472 | M44: =(1-Culling!K33)*L43 -> 4.313831446 | N44: =(1-Culling!L33)*M43 -> 5.646805363 | O44: =(1-Culling!M33)*N43 -> 4.840118883 | P44: =(1-Culling!N33)*O43 -> 4.840118883 | Q44: =(1-Culling!O33)*P43 -> 6.388956925 | R44: =(1-Culling!P33)*Q43 -> 3.953167098 | S44: =(1-Culling!Q33)*R43 -> 3.913635427 | T44: =(1-Culling!R33)*S43 -> 5.424298701 | U44: =(1-Culling!S33)*T43 -> 5.370055714 | V44: =(1-Culling!T33)*U43 -> 4.556875849 | W44: =(1-Culling!U33)*V43 -> 5.263191606 | X44: =(1-Culling!V33)*W43 -> 4.46619402 | Y44: =(1-Culling!W33)*X43 -> 3.684610066 | Z44: =(1-Culling!X33)*Y43 -> 3.445110412 | AA44: =(1-Culling!Y33)*Z43 -> 3.865413882 | AB44: =(1-Culling!Z33)*AA43 -> 3.865413882 | AC44: =(1-Culling!AA33)*AB43 -> 3.865413882 | AD44: =(1-Culling!AB33)*AC43 -> 3.826759743 | AE44: =(1-Culling!AC33)*AD43 -> 3.788492146 | AF44: =(1-Culling!AD33)*AE43 -> 3.750607224 | AG44: =(1-Culling!AE33)*AF43 -> 3.713101152 | AH44: =(1-Culling!AF33)*AG43 -> 3.675970141 | AI44: =(1-Culling!AG33)*AH43 -> 3.639210439 | AJ44: =(1-Culling!AH33)*AI43 -> 3.602818335 | AK44: =(1-Culling!AI33)*AJ43 -> 3.566790152 | AL44: =(1-Culling!AJ33)*AK43 -> 3.53112225 | AM44: =(1-Culling!AK33)*AL43 -> 3.301599304 | AN44: =(1-Culling!AL33)*AM43 -> 3.301599304 | AO44: =(1-Culling!AM33)*AN43 -> 1.649448998 | AP44: =(1-Culling!AN33)*AO43 -> 1.648099448 | AQ44: =(1-Culling!AO33)*AP43 -> 3.293502007 | AR44: =(1-Culling!AP33)*AQ43 -> 1.645403662 | AS44: =(1-Culling!AQ33)*AR43 -> 2.192076563 | AT44: =(1-Culling!AR33)*AS43 -> 1.642712284 | AU44: =(1-Culling!AS33)*AT43 -> 3.829859243 | AV44: =(1-Culling!AT33)*AU43 -> 1.640025309 | AW44: =(1-Culling!AU33)*AV43 -> 1.638683471 | AX44: =(1-Culling!AV33)*AW43 -> 1.63734273 | AY44: =(1-Culling!AW33)*AX43 -> 2.726671809 | AZ44: =(1-Culling!AX33)*AY43 -> 1.634664538 | BA44: =(1-Culling!AY33)*AZ43 -> 2.177769446 | BB44: =(1-Culling!AZ33)*BA43 -> 3.807978361 | BC44: =(1-Culling!BA33)*BB43 -> 1.630655461 | BD44: =(1-Culling!BB33)*BC43 -> 1.629321288 | BE44: =(1-Culling!BC33)*BD43 -> 1.627988207 | BF44: =(1-Culling!BD33)*BE43 -> 3.253312434
A45: 11 | B45: Milking | C45: Pregnant | D45: ='Lactation #3'!E32 -> 5 | E45: =(1-Culling!C34)*D44 -> 3.96 | F45: =(1-Culling!D34)*E44 -> 1.9602 | G45: =(1-Culling!E34)*F44 -> 2.910897 | H45: =(1-Culling!F34)*G44 -> 4.80298005 | I45: =(1-Culling!G34)*H44 -> 3.8039602 | J45: =(1-Culling!H34)*I44 -> 3.765920598 | K45: =(1-Culling!I34)*J44 -> 3.728261392 | L45: =(1-Culling!J34)*K44 -> 4.613723472 | M45: =(1-Culling!K34)*L44 -> 4.567586237 | N45: =(1-Culling!L34)*M44 -> 4.270693132 | O45: =(1-Culling!M34)*N44 -> 5.59033731 | P45: =(1-Culling!N34)*O44 -> 4.791717694 | Q45: =(1-Culling!O34)*P44 -> 4.791717694 | R45: =(1-Culling!P34)*Q44 -> 6.325067356 | S45: =(1-Culling!Q34)*R44 -> 3.913635427 | T45: =(1-Culling!R34)*S44 -> 3.874499072 | U45: =(1-Culling!S34)*T44 -> 5.370055714 | V45: =(1-Culling!T34)*U44 -> 5.316355157 | W45: =(1-Culling!U34)*V44 -> 4.511307091 | X45: =(1-Culling!V34)*W44 -> 5.21055969 | Y45: =(1-Culling!W34)*X44 -> 4.421532079 | Z45: =(1-Culling!X34)*Y44 -> 3.647763966 | AA45: =(1-Culling!Y34)*Z44 -> 3.410659308 | AB45: =(1-Culling!Z34)*AA44 -> 3.826759743 | AC45: =(1-Culling!AA34)*AB44 -> 3.826759743 | AD45: =(1-Culling!AB34)*AC44 -> 3.826759743 | AE45: =(1-Culling!AC34)*AD44 -> 3.788492146 | AF45: =(1-Culling!AD34)*AE44 -> 3.750607224 | AG45: =(1-Culling!AE34)*AF44 -> 3.713101152 | AH45: =(1-Culling!AF34)*AG44 -> 3.675970141 | AI45: =(1-Culling!AG34)*AH44 -> 3.639210439 | AJ45: =(1-Culling!AH34)*AI44 -> 3.602818335 | AK45: =(1-Culling!AI34)*AJ44 -> 3.566790152 | AL45: =(1-Culling!AJ34)*AK44 -> 3.53112225 | AM45: =(1-Culling!AK34)*AL44 -> 3.495811027 | AN45: =(1-Culling!AL34)*AM44 -> 3.268583311 | AO45: =(1-Culling!AM34)*AN44 -> 3.268583311 | AP45: =(1-Culling!AN34)*AO44 -> 1.632954508 | AQ45: =(1-Culling!AO34)*AP44 -> 1.631618454 | AR45: =(1-Culling!AP34)*AQ44 -> 3.260566987 | AS45: =(1-Culling!AQ34)*AR44 -> 1.628949625 | AT45: =(1-Culling!AR34)*AS44 -> 2.170155797 | AU45: =(1-Culling!AS34)*AT44 -> 1.626285162 | AV45: =(1-Culling!AT34)*AU44 -> 3.791560651 | AW45: =(1-Culling!AU34)*AV44 -> 1.623625056 | AX45: =(1-Culling!AV34)*AW44 -> 1.622296636 | AY45: =(1-Culling!AW34)*AX44 -> 1.620969302 | AZ45: =(1-Culling!AX34)*AY44 -> 2.699405091 | BA45: =(1-Culling!AY34)*AZ44 -> 1.618317892 | BB45: =(1-Culling!AZ34)*BA44 -> 2.155991752 | BC45: =(1-Culling!BA34)*BB44 -> 3.769898578 | BD45: =(1-Culling!BB34)*BC44 -> 1.614348906 | BE45: =(1-Culling!BC34)*BD44 -> 1.613028076 | BF45: =(1-Culling!BD34)*BE44 -> 1.611708325
A46: 12 | B46: Dry | C46: Pregnant | D46: ='Lactation #3'!E34 -> 6 | E46: =(1-Culling!C35)*D45 -> 5 | F46: =(1-Culling!D35)*E45 -> 3.96 | G46: =(1-Culling!E35)*F45 -> 1.9602 | H46: =(1-Culling!F35)*G45 -> 2.910897 | I46: =(1-Culling!G35)*H45 -> 4.80298005 | J46: =(1-Culling!H35)*I45 -> 3.8039602 | K46: =(1-Culling!I35)*J45 -> 3.765920598 | L46: =(1-Culling!J35)*K45 -> 3.728261392 | M46: =(1-Culling!K35)*L45 -> 4.613723472 | N46: =(1-Culling!L35)*M45 -> 4.567586237 | O46: =(1-Culling!M35)*N45 -> 4.270693132 | P46: =(1-Culling!N35)*O45 -> 5.59033731 | Q46: =(1-Culling!O35)*P45 -> 4.791717694 | R46: =(1-Culling!P35)*Q45 -> 4.791717694 | S46: =(1-Culling!Q35)*R45 -> 6.325067356 | T46: =(1-Culling!R35)*S45 -> 3.913635427 | U46: =(1-Culling!S35)*T45 -> 3.874499072 | V46: =(1-Culling!T35)*U45 -> 5.370055714 | W46: =(1-Culling!U35)*V45 -> 5.316355157 | X46: =(1-Culling!V35)*W45 -> 4.511307091 | Y46: =(1-Culling!W35)*X45 -> 5.21055969 | Z46: =(1-Culling!X35)*Y45 -> 4.421532079 | AA46: =(1-Culling!Y35)*Z45 -> 3.647763966 | AB46: =(1-Culling!Z35)*AA45 -> 3.410659308 | AC46: =(1-Culling!AA35)*AB45 -> 3.826759743 | AD46: =(1-Culling!AB35)*AC45 -> 3.826759743 | AE46: =(1-Culling!AC35)*AD45 -> 3.826759743 | AF46: =(1-Culling!AD35)*AE45 -> 3.788492146 | AG46: =(1-Culling!AE35)*AF45 -> 3.750607224 | AH46: =(1-Culling!AF35)*AG45 -> 3.713101152 | AI46: =(1-Culling!AG35)*AH45 -> 3.675970141 | AJ46: =(1-Culling!AH35)*AI45 -> 3.639210439 | AK46: =(1-Culling!AI35)*AJ45 -> 3.602818335 | AL46: =(1-Culling!AJ35)*AK45 -> 3.566790152 | AM46: =(1-Culling!AK35)*AL45 -> 3.53112225 | AN46: =(1-Culling!AL35)*AM45 -> 3.495811027 | AO46: =(1-Culling!AM35)*AN45 -> 3.268583311 | AP46: =(1-Culling!AN35)*AO45 -> 3.268583311 | AQ46: =(1-Culling!AO35)*AP45 -> 1.632954508 | AR46: =(1-Culling!AP35)*AQ45 -> 1.631618454 | AS46: =(1-Culling!AQ35)*AR45 -> 3.260566987 | AT46: =(1-Culling!AR35)*AS45 -> 1.628949625 | AU46: =(1-Culling!AS35)*AT45 -> 2.170155797 | AV46: =(1-Culling!AT35)*AU45 -> 1.626285162 | AW46: =(1-Culling!AU35)*AV45 -> 3.791560651 | AX46: =(1-Culling!AV35)*AW45 -> 1.623625056 | AY46: =(1-Culling!AW35)*AX45 -> 1.622296636 | AZ46: =(1-Culling!AX35)*AY45 -> 1.620969302 | BA46: =(1-Culling!AY35)*AZ45 -> 2.699405091 | BB46: =(1-Culling!AZ35)*BA45 -> 1.618317892 | BC46: =(1-Culling!BA35)*BB45 -> 2.155991752 | BD46: =(1-Culling!BB35)*BC45 -> 3.769898578 | BE46: =(1-Culling!BC35)*BD45 -> 1.614348906 | BF46: =(1-Culling!BD35)*BE45 -> 1.613028076
A47: 13 | B47: Dry | C47: Pregnant | D47: ='Lactation #3'!E36 -> 3 | E47: =(1-Culling!C36)*D46 -> 6 | F47: =(1-Culling!D36)*E46 -> 5 | G47: =(1-Culling!E36)*F46 -> 3.96 | H47: =(1-Culling!F36)*G46 -> 1.9602 | I47: =(1-Culling!G36)*H46 -> 2.910897 | J47: =(1-Culling!H36)*I46 -> 4.80298005 | K47: =(1-Culling!I36)*J46 -> 3.8039602 | L47: =(1-Culling!J36)*K46 -> 3.765920598 | M47: =(1-Culling!K36)*L46 -> 3.728261392 | N47: =(1-Culling!L36)*M46 -> 4.613723472 | O47: =(1-Culling!M36)*N46 -> 4.567586237 | P47: =(1-Culling!N36)*O46 -> 4.270693132 | Q47: =(1-Culling!O36)*P46 -> 5.59033731 | R47: =(1-Culling!P36)*Q46 -> 4.791717694 | S47: =(1-Culling!Q36)*R46 -> 4.791717694 | T47: =(1-Culling!R36)*S46 -> 6.325067356 | U47: =(1-Culling!S36)*T46 -> 3.913635427 | V47: =(1-Culling!T36)*U46 -> 3.874499072 | W47: =(1-Culling!U36)*V46 -> 5.370055714 | X47: =(1-Culling!V36)*W46 -> 5.316355157 | Y47: =(1-Culling!W36)*X46 -> 4.511307091 | Z47: =(1-Culling!X36)*Y46 -> 5.21055969 | AA47: =(1-Culling!Y36)*Z46 -> 4.421532079 | AB47: =(1-Culling!Z36)*AA46 -> 3.647763966 | AC47: =(1-Culling!AA36)*AB46 -> 3.410659308 | AD47: =(1-Culling!AB36)*AC46 -> 3.826759743 | AE47: =(1-Culling!AC36)*AD46 -> 3.826759743 | AF47: =(1-Culling!AD36)*AE46 -> 3.826759743 | AG47: =(1-Culling!AE36)*AF46 -> 3.788492146 | AH47: =(1-Culling!AF36)*AG46 -> 3.750607224 | AI47: =(1-Culling!AG36)*AH46 -> 3.713101152 | AJ47: =(1-Culling!AH36)*AI46 -> 3.675970141 | AK47: =(1-Culling!AI36)*AJ46 -> 3.639210439 | AL47: =(1-Culling!AJ36)*AK46 -> 3.602818335 | AM47: =(1-Culling!AK36)*AL46 -> 3.566790152 | AN47: =(1-Culling!AL36)*AM46 -> 3.53112225 | AO47: =(1-Culling!AM36)*AN46 -> 3.495811027 | AP47: =(1-Culling!AN36)*AO46 -> 3.268583311 | AQ47: =(1-Culling!AO36)*AP46 -> 3.268583311 | AR47: =(1-Culling!AP36)*AQ46 -> 1.632954508 | AS47: =(1-Culling!AQ36)*AR46 -> 1.631618454 | AT47: =(1-Culling!AR36)*AS46 -> 3.260566987 | AU47: =(1-Culling!AS36)*AT46 -> 1.628949625 | AV47: =(1-Culling!AT36)*AU46 -> 2.170155797 | AW47: =(1-Culling!AU36)*AV46 -> 1.626285162 | AX47: =(1-Culling!AV36)*AW46 -> 3.791560651 | AY47: =(1-Culling!AW36)*AX46 -> 1.623625056 | AZ47: =(1-Culling!AX36)*AY46 -> 1.622296636 | BA47: =(1-Culling!AY36)*AZ46 -> 1.620969302 | BB47: =(1-Culling!AZ36)*BA46 -> 2.699405091 | BC47: =(1-Culling!BA36)*BB46 -> 1.618317892 | BD47: =(1-Culling!BB36)*BC46 -> 2.155991752 | BE47: =(1-Culling!BC36)*BD46 -> 3.769898578 | BF47: =(1-Culling!BD36)*BE46 -> 1.614348906
A48: Total 1st Lactation Cows | D48: =SUM(D9:D21) -> 78 | E48: =SUM(E9:E21) -> 77.07 | F48: 73.14624545 | G48: 69.42321692 | H48: 68.78596335 | I48: 65.05316662 | J48: 62.57295651 | K48: 59.12103621 | L48: 59.78917338 | M48: 56.30779754 | N48: 53.13248527 | O48: 50.03787204 | P48: 49.00522618 | Q48: 46.21658453 | R48: 44.52629619 | S48: 48.3255937 | T48: 47.96913705 | U48: 45.28585259 | V48: 45.15971055 | W48: 47.1740139 | X48: 46.89134678 | Y48: 43.37679829 | Z48: 45.22611623 | AA48: 44.99956968 | AB48: 45.79896847 | AC48: 50.86964891 | AD48: 56.45667135 | AE48: 60.83995726 | AF48: 64.55051195 | AG48: 67.94733132 | AH48: 72.27363929 | AI48: 77.55620771 | AJ48: 81.6462997 | AK48: 85.7779432 | AL48: 90.36615762 | AM48: 93.04142462 | AN48: 97.85103264 | AO48: 100.5322474 | AP48: 99.3264036 | AQ48: 98.67705154 | AR48: 96.48184607 | AS48: 94.48450794 | AT48: 93.35243298 | AU48: 93.46861233 | AV48: 91.33148137 | AW48: 89.58657359 | AX48: 88.80057104 | AY48: 87.07543245 | AZ48: 85.67581007 | BA48: 87.20832025 | BB48: 88.2969449 | BC48: 88.82713436 | BD48: 90.51165075 | BE48: 90.46545431 | BF48: 90.43627756
A49: Total 2nd Lactation Cows | D49: =SUM(D22:D34) -> 80 | E49: =SUM(E22:E34) -> 77.725 | F49: 76.4484 | G49: 75.173571 | H49: 71.92390524 | I49: 71.66182436 | J49: 71.41700462 | K49: 69.2585202 | L49: 67.13596962 | M49: 65.98110275 | N49: 63.9015123 | O49: 62.75878546 | P49: 62.54003022 | Q49: 62.29233002 | R49: 61.54961378 | S49: 58.41602643 | T49: 55.44274281 | U49: 54.93381962 | V49: 51.95273492 | W49: 49.97199048 | X49: 47.21521921 | Y49: 47.74880667 | Z49: 44.96851163 | AA49: 42.43264497 | AB49: 39.96122614 | AC49: 39.1365349 | AD49: 36.90947098 | AE49: 35.55957355 | AF49: 38.59376707 | AG49: 38.3090938 | AH49: 36.16617019 | AI49: 36.06543069 | AJ49: 37.67409285 | AK49: 37.44834934 | AL49: 34.64156198 | AM49: 36.11846356 | AN49: 35.93753904 | AO49: 36.5759546 | AP49: 40.62549946 | AQ49: 45.08740518 | AR49: 48.58798328 | AS49: 51.55130505 | AT49: 54.26407163 | AU49: 57.71914604 | AV49: 61.9379088 | AW49: 65.20433649 | AX49: 68.50394804 | AY49: 72.16818607 | AZ49: 74.30470678 | BA49: 78.14575408 | BB49: 80.28702479 | BC49: 79.32401427 | BD49: 78.80542898 | BE49: 77.05229483 | BF49: 75.45718142
A50: Total 3rd Lactation Cows | D50: =SUM(D35:D47) -> 55 | E50: =SUM(E35:E47) -> 57.86 | F50: 56.681025 | G50: 56.52486675 | H50: 59.18457905 | I50: 60.90395553 | J50: 61.78333696 | K50: 62.52386491 | L50: 64.08608681 | M50: 64.73975539 | N50: 66.30306616 | O50: 66.00190957 | P50: 64.90457066 | Q50: 63.88956925 | R50: 62.07270963 | S50: 61.05319183 | T50: 60.03508838 | U50: 57.43984156 | V50: 57.23053863 | W50: 57.03502079 | X50: 55.31121279 | Y50: 53.61610225 | Z50: 52.69380292 | AA50: 51.0330012 | AB50: 50.12039713 | AC50: 49.9456949 | AD50: 49.74787666 | AE50: 49.1547289 | AF50: 46.65218458 | AG50: 44.27766196 | AH50: 43.87122591 | AI50: 41.4904732 | AJ50: 39.90861183 | AK50: 37.70700022 | AL50: 38.13313363 | AM50: 35.91273547 | AN50: 33.88754262 | AO50: 31.91381906 | AP50: 31.25520446 | AQ50: 29.47662753 | AR50: 28.39857297 | AS50: 30.82173942 | AT50: 30.59439377 | AU50: 28.88301294 | AV50: 28.80256039 | AW50: 30.08726956 | AX50: 29.90698636 | AY50: 27.66543092 | AZ50: 28.84491349 | BA50: 28.70042362 | BB50: 29.2102748 | BC50: 32.44432077 | BD50: 36.0076862 | BE50: 38.80331654 | BF50: 41.16988342
A51: Total Cows | D51: =SUM(D48:D50) -> 213 | E51: =SUM(E48:E50) -> 212.655 | F51: 206.2756705 | G51: 201.1216547 | H51: 199.8944476 | I51: 197.6189465 | J51: 195.7732981 | K51: 190.9034213 | L51: 191.0112298 | M51: 187.0286557 | N51: 183.3370637 | O51: 178.7985671 | P51: 176.4498271 | Q51: 172.3984838 | R51: 168.1486196 | S51: 167.794812 | T51: 163.4469682 | U51: 157.6595138 | V51: 154.3429841 | W51: 154.1810252 | X51: 149.4177788 | Y51: 144.7417072 | Z51: 142.8884308 | AA51: 138.4652158 | AB51: 135.8805917 | AC51: 139.9518787 | AD51: 143.114019 | AE51: 145.5542597 | AF51: 149.7964636 | AG51: 150.5340871 | AH51: 152.3110354 | AI51: 155.1121116 | AJ51: 159.2290044 | AK51: 160.9332928 | AL51: 163.1408532 | AM51: 165.0726237 | AN51: 167.6761143 | AO51: 169.0220211 | AP51: 171.2071075 | AQ51: 173.2410842 | AR51: 173.4684023 | AS51: 176.8575524 | AT51: 178.2108984 | AU51: 180.0707713 | AV51: 182.0719506 | AW51: 184.8781796 | AX51: 187.2115054 | AY51: 186.9090494 | AZ51: 188.8254303 | BA51: 194.054498 | BB51: 197.7942445 | BC51: 200.5954694 | BD51: 205.3247659 | BE51: 206.3210657 | BF51: 207.0633424
A52: Total Cows Culled | D52: =(Culling!B8*SUM(D9:D21))+(Culling!B26*SUM(D22:D34))+(Culling!B45*SUM(D35:D46))+(D47) -> 5.677777778 | E52: =(Culling!C8*SUM(E9:E21))+(Culling!C26*SUM(E22:E34))+(Culling!C45*SUM(E35:E46))+(E47) -> 8.642772222 | F52: =(Culling!D8*SUM(F9:F21))+(Culling!D26*SUM(F22:F34))+(Culling!D45*SUM(F35:F46))+(F47) -> 7.586990316 | G52: =(Culling!E8*SUM(G9:G21))+(Culling!E26*SUM(G22:G34))+(Culling!E45*SUM(G35:G46))+(G47) -> 6.515670622 | H52: =(Culling!F8*SUM(H9:H21))+(Culling!F26*SUM(H22:H34))+(Culling!F45*SUM(H35:H46))+(H47) -> 4.57536891 | I52: =(Culling!G8*SUM(I9:I21))+(Culling!G26*SUM(I22:I34))+(Culling!G45*SUM(I35:I46))+(I47) -> 5.502344812 | J52: =(Culling!H8*SUM(J9:J21))+(Culling!H26*SUM(J22:J34))+(Culling!H45*SUM(J35:J46))+(J47) -> 7.345798307 | K52: =(Culling!I8*SUM(K9:K21))+(Culling!I26*SUM(K22:K34))+(Culling!I45*SUM(K35:K46))+(K47) -> 6.327398196 | L52: =(Culling!J8*SUM(L9:L21))+(Culling!J26*SUM(L22:L34))+(Culling!J45*SUM(L35:L46))+(L47) -> 6.308597759 | M52: =(Culling!K8*SUM(M9:M21))+(Culling!K26*SUM(M22:M34))+(Culling!K45*SUM(M35:M46))+(M47) -> 6.239170823 | N52: =(Culling!L8*SUM(N9:N21))+(Culling!L26*SUM(N22:N34))+(Culling!L45*SUM(N35:N46))+(N47) -> 7.086394016 | O52: =(Culling!M8*SUM(O9:O21))+(Culling!M26*SUM(O22:O34))+(Culling!M45*SUM(O35:O46))+(O47) -> 6.992499638 | P52: =(Culling!N8*SUM(P9:P21))+(Culling!N26*SUM(P22:P34))+(Culling!N45*SUM(P35:P46))+(P47) -> 6.666194222 | Q52: =(Culling!O8*SUM(Q9:Q21))+(Culling!O26*SUM(Q22:Q34))+(Culling!O45*SUM(Q35:Q46))+(Q47) -> 7.906188019 | R52: =(Culling!P8*SUM(R9:R21))+(Culling!P26*SUM(R22:R34))+(Culling!P45*SUM(R35:R46))+(R47) -> 7.061742179 | S52: =(Culling!Q8*SUM(S9:S21))+(Culling!Q26*SUM(S22:S34))+(Culling!Q45*SUM(S35:S46))+(S47) -> 7.046876127 | T52: =(Culling!R8*SUM(T9:T21))+(Culling!R26*SUM(T22:T34))+(Culling!R45*SUM(T35:T46))+(T47) -> 8.493064377 | U52: =(Culling!S8*SUM(U9:U21))+(Culling!S26*SUM(U22:U34))+(Culling!S45*SUM(U35:U46))+(U47) -> 6.045829834 | V52: =(Culling!T8*SUM(V9:V21))+(Culling!T26*SUM(V22:V34))+(Culling!T45*SUM(V35:V46))+(V47) -> 5.972028807 | W52: =(Culling!U8*SUM(W9:W21))+(Culling!U26*SUM(W22:W34))+(Culling!U45*SUM(W35:W46))+(W47) -> 7.432220576 | X52: =(Culling!V8*SUM(X9:X21))+(Culling!V26*SUM(X22:X34))+(Culling!V45*SUM(X35:X46))+(X47) -> 7.312867811 | Y52: =(Culling!W8*SUM(Y9:Y21))+(Culling!W26*SUM(Y22:Y34))+(Culling!W45*SUM(Y35:Y46))+(Y47) -> 6.459219927 | Z52: =(Culling!X8*SUM(Z9:Z21))+(Culling!X26*SUM(Z22:Z34))+(Culling!X45*SUM(Z35:Z46))+(Z47) -> 7.114929992 | AA52: =(Culling!Y8*SUM(AA9:AA21))+(Culling!Y26*SUM(AA22:AA34))+(Culling!Y45*SUM(AA35:AA46))+(AA47) -> 6.27987413 | AB52: =(Culling!Z8*SUM(AB9:AB21))+(Culling!Z26*SUM(AB22:AB34))+(Culling!Z45*SUM(AB35:AB46))+(AB47) -> 5.486454834 | AC52: =(Culling!AA8*SUM(AC9:AC21))+(Culling!AA26*SUM(AC22:AC34))+(Culling!AA45*SUM(AC35:AC46))+(AC47) -> 5.293127453 | AD52: =(Culling!AB8*SUM(AD9:AD21))+(Culling!AB26*SUM(AD22:AD34))+(Culling!AB45*SUM(AD35:AD46))+(AD47) -> 5.729866968 | AE52: =(Culling!AC8*SUM(AE9:AE21))+(Culling!AC26*SUM(AE22:AE34))+(Culling!AC45*SUM(AE35:AE46))+(AE47) -> 5.747678845 | AF52: =(Culling!AD8*SUM(AF9:AF21))+(Culling!AD26*SUM(AF22:AF34))+(Culling!AD45*SUM(AF35:AF46))+(AF47) -> 5.762294836 | AG52: =(Culling!AE8*SUM(AG9:AG21))+(Culling!AE26*SUM(AG22:AG34))+(Culling!AE45*SUM(AG35:AG46))+(AG47) -> 5.70582776 | AH52: =(Culling!AF8*SUM(AH9:AH21))+(Culling!AF26*SUM(AH22:AH34))+(Culling!AF45*SUM(AH35:AH46))+(AH47) -> 5.681996158 | AI52: =(Culling!AG8*SUM(AI9:AI21))+(Culling!AG26*SUM(AI22:AI34))+(Culling!AG45*SUM(AI35:AI46))+(AI47) -> 5.646839835 | AJ52: =(Culling!AH8*SUM(AJ9:AJ21))+(Culling!AH26*SUM(AJ22:AJ34))+(Culling!AH45*SUM(AJ35:AJ46))+(AJ47) -> 5.634085391 | AK52: =(Culling!AI8*SUM(AK9:AK21))+(Culling!AI26*SUM(AK22:AK34))+(Culling!AI45*SUM(AK35:AK46))+(AK47) -> 5.59068226 | AL52: =(Culling!AJ8*SUM(AL9:AL21))+(Culling!AJ26*SUM(AL22:AL34))+(Culling!AJ45*SUM(AL35:AL46))+(AL47) -> 5.581868854 | AM52: =(Culling!AK8*SUM(AM9:AM21))+(Culling!AK26*SUM(AM22:AM34))+(Culling!AK45*SUM(AM35:AM46))+(AM47) -> 5.541247879 | AN52: =(Culling!AL8*SUM(AN9:AN21))+(Culling!AL26*SUM(AN22:AN34))+(Culling!AL45*SUM(AN35:AN46))+(AN47) -> 5.50986573 | AO52: =(Culling!AM8*SUM(AO9:AO21))+(Culling!AM26*SUM(AO22:AO34))+(Culling!AM45*SUM(AO35:AO46))+(AO47) -> 5.466828773 | AP52: =(Culling!AN8*SUM(AP9:AP21))+(Culling!AN26*SUM(AP22:AP34))+(Culling!AN45*SUM(AP35:AP46))+(AP47) -> 5.25893101 | AQ52: =(Culling!AO8*SUM(AQ9:AQ21))+(Culling!AO26*SUM(AQ22:AQ34))+(Culling!AO45*SUM(AQ35:AQ46))+(AQ47) -> 5.259508811 | AR52: =(Culling!AP8*SUM(AR9:AR21))+(Culling!AP26*SUM(AR22:AR34))+(Culling!AP45*SUM(AR35:AR46))+(AR47) -> 3.648704746 | AS52: =(Culling!AQ8*SUM(AS9:AS21))+(Culling!AQ26*SUM(AS22:AS34))+(Culling!AQ45*SUM(AS35:AS46))+(AS47) -> 3.708212471 | AT52: =(Culling!AR8*SUM(AT9:AT21))+(Culling!AR26*SUM(AT22:AT34))+(Culling!AR45*SUM(AT35:AT46))+(AT47) -> 5.313779487 | AU52: =(Culling!AS8*SUM(AU9:AU21))+(Culling!AS26*SUM(AU22:AU34))+(Culling!AS45*SUM(AU35:AU46))+(AU47) -> 3.716190768 | AV52: =(Culling!AT8*SUM(AV9:AV21))+(Culling!AT26*SUM(AV22:AV34))+(Culling!AT45*SUM(AV35:AV46))+(AV47) -> 4.265089352 | AW52: =(Culling!AU8*SUM(AW9:AW21))+(Culling!AU26*SUM(AW22:AW34))+(Culling!AU45*SUM(AW35:AW46))+(AW47) -> 3.775037266 | AX52: =(Culling!AV8*SUM(AX9:AX21))+(Culling!AV26*SUM(AX22:AX34))+(Culling!AV45*SUM(AX35:AX46))+(AX47) -> 5.915931496 | AY52: =(Culling!AW8*SUM(AY9:AY21))+(Culling!AW26*SUM(AY22:AY34))+(Culling!AW45*SUM(AY35:AY46))+(AY47) -> 3.765832699 | AZ52: =(Culling!AX8*SUM(AZ9:AZ21))+(Culling!AX26*SUM(AZ22:AZ34))+(Culling!AX45*SUM(AZ35:AZ46))+(AZ47) -> 3.796801493 | BA52: =(Culling!AY8*SUM(BA9:BA21))+(Culling!AY26*SUM(BA22:BA34))+(Culling!AY45*SUM(BA35:BA46))+(BA47) -> 3.846187415 | BB52: =(Culling!AZ8*SUM(BB9:BB21))+(Culling!AZ26*SUM(BB22:BB34))+(Culling!AZ45*SUM(BB35:BB46))+(BB47) -> 4.944918704 | BC52: =(Culling!BA8*SUM(BC9:BC21))+(Culling!BA26*SUM(BC22:BC34))+(Culling!BA45*SUM(BC35:BC46))+(BC47) -> 3.95060055 | BD52: =(Culling!BB8*SUM(BD9:BD21))+(Culling!BB26*SUM(BD22:BD34))+(Culling!BB45*SUM(BD35:BD46))+(BD47) -> 4.563809432 | BE52: =(Culling!BC8*SUM(BE9:BE21))+(Culling!BC26*SUM(BE22:BE34))+(Culling!BC45*SUM(BE35:BE46))+(BE47) -> 6.184670448 | BF52: =(Culling!BD8*SUM(BF9:BF21))+(Culling!BD26*SUM(BF22:BF34))+(Culling!BD45*SUM(BF35:BF46))+(BF47) -> 4.10834478
A53: Total Calvings | D53: =SUM(D9,D22,D35) -> 16 | E53: =SUM(E4:E6) -> 21.25 | F53: =SUM(F4:F6) -> 19.49754545 | G53: =SUM(G4:G6) -> 18.74509292 | H53: 22.81528477 | I53: 15.24144386 | J53: 16.84012487 | K53: 19.07528599 | L53: 22.17584816 | M53: 17.10262202 | N53: 17.89102682 | O53: 17.50877366 | P53: 18.42956304 | Q53: 15.56922238 | R53: 18.06696521 | S53: 17.86606853 | T53: 13.90712246 | U53: 17.5608313 | V53: 13.1441739 | W53: 16.87012195 | X53: 14.1340146 | Y53: 17.44024214 | Z53: 15.35526923 | AA53: 13.86418399 | AB53: 14.13907324 | AC53: 21.21742813 | AD53: 18.24591262 | AE53: 19.05145163 | AF53: 21.42467957 | AG53: 14.52481261 | AH53: 17.27642745 | AI53: 16.24126136 | AJ53: 20.85407454 | AK53: 15.26139538 | AL53: 18.30929444 | AM53: 17.06692017 | AN53: 15.78477081 | AO53: 15.20773421 | AP53: 22.82706417 | AQ53: 20.51425049 | AR53: 19.04976986 | AS53: 23.15632383 | AT53: 15.39914831 | AU53: 18.98448063 | AV53: 17.37493891 | AW53: 22.56189161 | AX53: 17.15423577 | AY53: 18.39668426 | AZ53: 18.0861245 | BA53: 20.39614754 | BB53: 18.50279328 | BC53: 24.77792251 | BD53: 24.43455977 | BE53: 19.82307586 | BF53: 25.05138044
A54: Total Milking | D54: =SUM(D9:D19,D22:D32,D35:D45) -> 179 | E54: =SUM(E9:E19,E22:E32,E35:E45) -> 177.655 | F54: 171.4556705 | G54: 170.5603547 | H54: 173.5689616 | I54: 166.7440323 | J54: 162.3157391 | K54: 159.6729081 | L54: 160.1024365 | M54: 155.496885 | N54: 153.034128 | O54: 150.5160731 | P54: 147.2767223 | Q54: 144.7478423 | R54: 143.8632049 | S54: 139.4720212 | T54: 136.1017994 | U54: 134.5689773 | V54: 129.8936625 | W54: 125.84016 | X54: 122.0314308 | Y54: 120.9530389 | Z54: 119.2834764 | AA54: 114.8231295 | AB54: 113.5822763 | AC54: 118.6111142 | AD54: 120.0317474 | AE54: 125.3709761 | AF54: 130.9951859 | AG54: 131.8164438 | AH54: 132.5133501 | AI54: 135.3965331 | AJ54: 140.0861272 | AK54: 140.19186 | AL54: 145.192231 | AM54: 148.1000757 | AN54: 143.5105698 | AO54: 140.6826151 | AP54: 144.7693112 | AQ54: 144.4283212 | AR54: 148.3610675 | AS54: 155.1942826 | AT54: 155.0323444 | AU54: 153.8522635 | AV54: 156.6421566 | AW54: 161.5469525 | AX54: 162.38406 | AY54: 164.0404711 | AZ54: 167.4487155 | BA54: 167.0205076 | BB54: 166.3058747 | BC54: 172.0949096 | BD54: 173.7423832 | BE54: 176.6933346 | BF54: 181.7600242
A55: Total Pregnant | D55: =SUM(D13:D21,D26:D34,D39:D47) -> 147 | E55: =SUM(E13:E21,E26:E34,E39:E47) -> 146.87 | F55: 144.5912 | G55: 142.145685 | H55: 137.861356 | I55: 140.6483574 | J55: 139.0266828 | K55: 133.7272528 | L55: 133.8808116 | M55: 129.80224 | N55: 125.7884044 | O55: 122.5847598 | P55: 123.9817788 | Q55: 121.7762719 | R55: 118.4294925 | S55: 117.5983355 | T55: 117.6949475 | U55: 111.3945151 | V55: 111.4749829 | W55: 111.3510938 | X55: 107.0369877 | Y55: 101.5914207 | Z55: 98.19323646 | AA55: 97.5435186 | AB55: 94.26741345 | AC55: 92.98888113 | AD55: 92.79441244 | AE55: 89.50060676 | AF55: 86.53737442 | AG55: 93.80157456 | AH55: 96.60677976 | AI55: 101.8432548 | AJ55: 106.0148417 | AK55: 107.3130328 | AL55: 108.326815 | AM55: 109.5910976 | AN55: 116.6380598 | AO55: 118.0614741 | AP55: 115.6963803 | AQ55: 114.5910413 | AR55: 112.0493159 | AS55: 106.9731417 | AT55: 114.1655979 | AU55: 117.2546892 | AV55: 119.6931869 | AW55: 122.9619558 | AX55: 124.0420366 | AY55: 124.7470649 | AZ55: 125.9983293 | BA55: 132.4086329 | BB55: 135.0092808 | BC55: 131.0807652 | BD55: 130.0446545 | BE55: 132.4125692 | BF55: 128.7169849
A56: Dry Cows | D56: =SUM(D20:D21,D33:D34,D46:D47) -> 34 | E56: =SUM(E20:E21,E33:E34,E46:E47) -> 35 | F56: 34.82 | G56: 30.5613 | H56: 26.325486 | I56: 30.87491418 | J56: 33.45755903 | K56: 31.23051324 | L56: 30.9087933 | M56: 31.53177072 | N56: 30.30293577 | O56: 28.28249398 | P56: 29.17310478 | Q56: 27.65064151 | R56: 24.28541468 | S56: 28.32279073 | T56: 27.3451688 | U56: 23.09053652 | V56: 24.44932156 | W56: 28.34086519 | X56: 27.38634797 | Y56: 23.78866836 | Z56: 23.60495436 | AA56: 23.64208631 | AB56: 22.29831547 | AC56: 21.34076456 | AD56: 23.0822716 | AE56: 20.18328361 | AF56: 18.80127774 | AG56: 18.71764324 | AH56: 19.79768533 | AI56: 19.7155785 | AJ56: 19.14287721 | AK56: 20.74143273 | AL56: 17.94862228 | AM56: 16.97254793 | AN56: 24.16554452 | AO56: 28.33940596 | AP56: 26.43779631 | AQ56: 28.81276309 | AR56: 25.1073348 | AS56: 21.66326983 | AT56: 23.178554 | AU56: 26.21850784 | AV56: 25.42979398 | AW56: 23.33122715 | AX56: 24.82744542 | AY56: 22.86857837 | AZ56: 21.37671481 | BA56: 27.03399035 | BB56: 31.4883698 | BC56: 28.50055983 | BD56: 31.58238273 | BE56: 29.62773109 | BF56: 25.30331817
A58: Heifer Module
A59: Age | C59: Reproductive Status | D59: # of Heifers
A60: 1 month | C60: Open | D60: ='Final Summary'!C73 -> 4 | E60: ='Final Summary'!$D$24*(1-Heifers!C34)*E53 -> 10.23028125 | F60: ='Final Summary'!$D$24*(1-Heifers!D34)*F53 -> 9.38660582 | G60: ='Final Summary'!$D$24*(1-Heifers!E34)*G53 -> 9.024356358 | H60: ='Final Summary'!$D$24*(1-Heifers!F34)*H53 -> 10.98384847 | I60: ='Final Summary'!$D$24*(1-Heifers!G34)*I53 -> 7.337612111 | J60: ='Final Summary'!$D$24*(1-Heifers!H34)*J53 -> 8.107257115 | K60: ='Final Summary'!$D$24*(1-Heifers!I34)*K53 -> 9.183319556 | L60: ='Final Summary'!$D$24*(1-Heifers!J34)*L53 -> 10.6760077 | M60: ='Final Summary'!$D$24*(1-Heifers!K34)*M53 -> 8.233629804 | N60: ='Final Summary'!$D$24*(1-Heifers!L34)*N53 -> 8.613187585 | O60: ='Final Summary'!$D$24*(1-Heifers!M34)*O53 -> 8.429161358 | P60: ='Final Summary'!$D$24*(1-Heifers!N34)*P53 -> 8.872452387 | Q60: ='Final Summary'!$D$24*(1-Heifers!O34)*Q53 -> 7.495412884 | R60: ='Final Summary'!$D$24*(1-Heifers!P34)*R53 -> 8.697888728 | S60: ='Final Summary'!$D$24*(1-Heifers!Q34)*S53 -> 8.601172043 | T60: ='Final Summary'!$D$24*(1-Heifers!R34)*T53 -> 6.695236428 | U60: ='Final Summary'!$D$24*(1-Heifers!S34)*U53 -> 8.454223207 | V60: ='Final Summary'!$D$24*(1-Heifers!T34)*V53 -> 6.327933918 | W60: ='Final Summary'!$D$24*(1-Heifers!U34)*W53 -> 8.121698462 | X60: ='Final Summary'!$D$24*(1-Heifers!V34)*X53 -> 6.804467976 | Y60: ='Final Summary'!$D$24*(1-Heifers!W34)*Y53 -> 8.396168572 | Z60: ='Final Summary'!$D$24*(1-Heifers!X34)*Z53 -> 7.392410491 | AA60: ='Final Summary'!$D$24*(1-Heifers!Y34)*AA53 -> 6.674564777 | AB60: ='Final Summary'!$D$24*(1-Heifers!Z34)*AB53 -> 6.806903334 | AC60: ='Final Summary'!$D$24*(1-Heifers!AA34)*AC53 -> 10.21460034 | AD60: ='Final Summary'!$D$24*(1-Heifers!AB34)*AD53 -> 8.784038485 | AE60: ='Final Summary'!$D$24*(1-Heifers!AC34)*AE53 -> 9.171845101 | AF60: ='Final Summary'!$D$24*(1-Heifers!AD34)*AF53 -> 10.31437636 | AG60: ='Final Summary'!$D$24*(1-Heifers!AE34)*AG53 -> 6.992607912 | AH60: ='Final Summary'!$D$24*(1-Heifers!AF34)*AH53 -> 8.317304087 | AI60: ='Final Summary'!$D$24*(1-Heifers!AG34)*AI53 -> 7.818949251 | AJ60: ='Final Summary'!$D$24*(1-Heifers!AH34)*AJ53 -> 10.03967284 | AK60: ='Final Summary'!$D$24*(1-Heifers!AI34)*AK53 -> 7.347217271 | AL60: ='Final Summary'!$D$24*(1-Heifers!AJ34)*AL53 -> 8.814552075 | AM60: ='Final Summary'!$D$24*(1-Heifers!AK34)*AM53 -> 8.216442043 | AN60: ='Final Summary'!$D$24*(1-Heifers!AL34)*AN53 -> 7.599183287 | AO60: ='Final Summary'!$D$24*(1-Heifers!AM34)*AO53 -> 7.321383444 | AP60: ='Final Summary'!$D$24*(1-Heifers!AN34)*AP53 -> 10.98951937 | AQ60: ='Final Summary'!$D$24*(1-Heifers!AO34)*AQ53 -> 9.876073042 | AR60: ='Final Summary'!$D$24*(1-Heifers!AP34)*AR53 -> 9.171035454 | AS60: ='Final Summary'!$D$24*(1-Heifers!AQ34)*AS53 -> 11.1480332 | AT60: ='Final Summary'!$D$24*(1-Heifers!AR34)*AT53 -> 7.413534977 | AU60: ='Final Summary'!$D$24*(1-Heifers!AS34)*AU53 -> 9.139603586 | AV60: ='Final Summary'!$D$24*(1-Heifers!AT34)*AV53 -> 8.364729965 | AW60: ='Final Summary'!$D$24*(1-Heifers!AU34)*AW53 -> 10.86185867 | AX60: ='Final Summary'!$D$24*(1-Heifers!AV34)*AX53 -> 8.258477954 | AY60: ='Final Summary'!$D$24*(1-Heifers!AW34)*AY53 -> 8.856623722 | AZ60: ='Final Summary'!$D$24*(1-Heifers!AX34)*AZ53 -> 8.707112485 | BA60: ='Final Summary'!$D$24*(1-Heifers!AY34)*BA53 -> 9.819215331 | BB60: ='Final Summary'!$D$24*(1-Heifers!AZ34)*BB53 -> 8.907707256 | BC60: ='Final Summary'!$D$24*(1-Heifers!BA34)*BC53 -> 11.92871134 | BD60: ='Final Summary'!$D$24*(1-Heifers!BB34)*BD53 -> 11.76340794 | BE60: ='Final Summary'!$D$24*(1-Heifers!BC34)*BE53 -> 9.543324294 | BF60: ='Final Summary'!$D$24*(1-Heifers!BD34)*BF53 -> 12.06036083
A61: 2 months | C61: Open | D61: ='Final Summary'!C75 -> 3 | E61: =D60*(1-Heifers!C35) -> 3.93 | F61: =E60*(1-Heifers!D35) -> 10.05125133 | G61: =F60*(1-Heifers!E35) -> 9.222340219 | H61: =G60*(1-Heifers!F35) -> 8.866430121 | I61: =H60*(1-Heifers!G35) -> 10.79163112 | J61: =I60*(1-Heifers!H35) -> 7.209203899 | K61: =J60*(1-Heifers!I35) -> 7.965380115 | L61: =K60*(1-Heifers!J35) -> 9.022611464 | M61: =L60*(1-Heifers!K35) -> 10.48917757 | N61: =M60*(1-Heifers!L35) -> 8.089541283 | O61: =N60*(1-Heifers!M35) -> 8.462456803 | P61: =O60*(1-Heifers!N35) -> 8.281651034 | Q61: =P60*(1-Heifers!O35) -> 8.71718447 | R61: =Q60*(1-Heifers!P35) -> 7.364243158 | S61: =R60*(1-Heifers!Q35) -> 8.545675676 | T61: =S60*(1-Heifers!R35) -> 8.450651533 | U61: =T60*(1-Heifers!S35) -> 6.57806979 | V61: =U60*(1-Heifers!T35) -> 8.306274301 | W61: =V60*(1-Heifers!U35) -> 6.217195074 | X61: =W60*(1-Heifers!V35) -> 7.979568739 | Y61: =X60*(1-Heifers!W35) -> 6.685389787 | Z61: =Y60*(1-Heifers!X35) -> 8.249235622 | AA61: =Z60*(1-Heifers!Y35) -> 7.263043308 | AB61: =AA60*(1-Heifers!Z35) -> 6.557759894 | AC61: =AB60*(1-Heifers!AA35) -> 6.687782525 | AD61: =AC60*(1-Heifers!AB35) -> 10.03584483 | AE61: =AD60*(1-Heifers!AC35) -> 8.630317811 | AF61: =AE60*(1-Heifers!AD35) -> 9.011337811 | AG61: =AF60*(1-Heifers!AE35) -> 10.13387478 | AH61: =AG60*(1-Heifers!AF35) -> 6.870237274 | AI61: =AH60*(1-Heifers!AG35) -> 8.171751266 | AJ61: =AI60*(1-Heifers!AH35) -> 7.682117639 | AK61: =AJ60*(1-Heifers!AI35) -> 9.863978561 | AL61: =AK60*(1-Heifers!AJ35) -> 7.218640969 | AM61: =AL60*(1-Heifers!AK35) -> 8.660297414 | AN61: =AM60*(1-Heifers!AL35) -> 8.072654307 | AO61: =AN60*(1-Heifers!AM35) -> 7.46619758 | AP61: =AO60*(1-Heifers!AN35) -> 7.193259233 | AQ61: =AP60*(1-Heifers!AO35) -> 10.79720278 | AR61: =AQ60*(1-Heifers!AP35) -> 9.703241764 | AS61: =AR60*(1-Heifers!AQ35) -> 9.010542334 | AT61: =AS60*(1-Heifers!AR35) -> 10.95294262 | AU61: =AT60*(1-Heifers!AS35) -> 7.283798115 | AV61: =AU60*(1-Heifers!AT35) -> 8.979660523 | AW61: =AV60*(1-Heifers!AU35) -> 8.21834719 | AX61: =AW60*(1-Heifers!AV35) -> 10.67177614 | AY61: =AX60*(1-Heifers!AW35) -> 8.11395459 | AZ61: =AY60*(1-Heifers!AX35) -> 8.701632807 | BA61: =AZ60*(1-Heifers!AY35) -> 8.554738017 | BB61: =BA60*(1-Heifers!AZ35) -> 9.647379062 | BC61: =BB60*(1-Heifers!BA35) -> 8.751822379 | BD61: =BC60*(1-Heifers!BB35) -> 11.7199589 | BE61: =BD60*(1-Heifers!BC35) -> 11.5575483 | BF61: =BE60*(1-Heifers!BD35) -> 9.376316119
A62: 3 months | C62: Open | D62: ='Final Summary'!C77 -> 5 | E62: =D61*(1-Heifers!C36) -> 2.997545455 | F62: =E61*(1-Heifers!D36) -> 3.926784545 | G62: =F61*(1-Heifers!E36) -> 10.04302758 | H62: =G61*(1-Heifers!F36) -> 9.214794668 | I62: =H61*(1-Heifers!G36) -> 8.85917577 | J62: =I61*(1-Heifers!H36) -> 10.78280161 | K62: =J61*(1-Heifers!I36) -> 7.203305459 | L62: =K61*(1-Heifers!J36) -> 7.958862986 | M62: =L61*(1-Heifers!K36) -> 9.015229327 | N62: =M61*(1-Heifers!L36) -> 10.48059551 | O62: =N61*(1-Heifers!M36) -> 8.082922567 | P62: =O61*(1-Heifers!N36) -> 8.455532974 | Q62: =P61*(1-Heifers!O36) -> 8.274875138 | R62: =Q61*(1-Heifers!P36) -> 8.710052228 | S62: =R61*(1-Heifers!Q36) -> 7.358217868 | T62: =S61*(1-Heifers!R36) -> 8.538683759 | U62: =T61*(1-Heifers!S36) -> 8.443737363 | V62: =U61*(1-Heifers!T36) -> 6.572687733 | W62: =V61*(1-Heifers!U36) -> 8.299478258 | X62: =W61*(1-Heifers!V36) -> 6.212108279 | Y62: =X61*(1-Heifers!W36) -> 7.973040001 | Z62: =Y61*(1-Heifers!X36) -> 6.679919922 | AA62: =Z61*(1-Heifers!Y36) -> 8.242486247 | AB62: =AA61*(1-Heifers!Z36) -> 7.257100818 | AC62: =AB61*(1-Heifers!AA36) -> 6.552394454 | AD62: =AC61*(1-Heifers!AB36) -> 6.682310703 | AE62: =AD61*(1-Heifers!AC36) -> 10.02763369 | AF62: =AE61*(1-Heifers!AD36) -> 8.623256642 | AG62: =AF61*(1-Heifers!AE36) -> 9.003964899 | AH62: =AG61*(1-Heifers!AF36) -> 10.12558343 | AI62: =AH61*(1-Heifers!AG36) -> 6.86461617 | AJ62: =AI61*(1-Heifers!AH36) -> 8.165065287 | AK62: =AJ61*(1-Heifers!AI36) -> 7.67583227 | AL62: =AK61*(1-Heifers!AJ36) -> 9.855908033 | AM62: =AL61*(1-Heifers!AK36) -> 7.212734808 | AN62: =AM61*(1-Heifers!AL36) -> 8.653211716 | AO62: =AN61*(1-Heifers!AM36) -> 8.066049408 | AP62: =AO61*(1-Heifers!AN36) -> 7.460088872 | AQ62: =AP61*(1-Heifers!AO36) -> 7.187373839 | AR62: =AQ61*(1-Heifers!AP36) -> 10.7883687 | AS62: =AR61*(1-Heifers!AQ36) -> 9.695302748 | AT62: =AS61*(1-Heifers!AR36) -> 9.003170072 | AU62: =AT61*(1-Heifers!AS36) -> 10.94398112 | AV62: =AU61*(1-Heifers!AT36) -> 7.277838644 | AW62: =AV61*(1-Heifers!AU36) -> 8.972313528 | AX62: =AW61*(1-Heifers!AV36) -> 8.211623088 | AY62: =AX61*(1-Heifers!AW36) -> 10.66304469 | AZ62: =AY61*(1-Heifers!AX36) -> 8.1073159 | BA62: =AZ61*(1-Heifers!AY36) -> 8.694513289 | BB62: =BA61*(1-Heifers!AZ36) -> 8.547738686 | BC62: =BB61*(1-Heifers!BA36) -> 9.639485752 | BD62: =BC61*(1-Heifers!BB36) -> 8.744661797 | BE62: =BD61*(1-Heifers!BC36) -> 11.71036984 | BF62: =BE61*(1-Heifers!BD36) -> 11.54809212
A63: 4 months | C63: Open | D63: ='Final Summary'!C79 -> 3 | E63: =D62*(1-Heifers!C37) -> 4.995909091 | F63: =E62*(1-Heifers!D37) -> 2.995092917 | G63: =F62*(1-Heifers!E37) -> 3.923571722 | H63: =G62*(1-Heifers!F37) -> 10.03481055 | I63: =H62*(1-Heifers!G37) -> 9.20725529 | J63: =I62*(1-Heifers!H37) -> 8.851927353 | K63: =J62*(1-Heifers!I37) -> 10.77397932 | L63: =K62*(1-Heifers!J37) -> 7.197411846 | M63: =L62*(1-Heifers!K37) -> 7.952351189 | N63: =M62*(1-Heifers!L37) -> 9.00785323 | O63: =N62*(1-Heifers!M37) -> 10.47202048 | P63: =O62*(1-Heifers!N37) -> 8.076309267 | Q63: =P62*(1-Heifers!O37) -> 8.448614811 | R63: =Q62*(1-Heifers!P37) -> 8.268104786 | S63: =R62*(1-Heifers!Q37) -> 8.702925822 | T63: =S62*(1-Heifers!R37) -> 7.352197508 | U63: =T62*(1-Heifers!S37) -> 8.531697563 | V63: =U62*(1-Heifers!T37) -> 8.436828851 | W63: =V62*(1-Heifers!U37) -> 6.56731008 | X63: =W62*(1-Heifers!V37) -> 8.292687776 | Y63: =X62*(1-Heifers!W37) -> 6.207025644 | Z63: =Y62*(1-Heifers!X37) -> 7.966516604 | AA63: =Z62*(1-Heifers!Y37) -> 6.674454533 | AB63: =AA62*(1-Heifers!Z37) -> 8.235742395 | AC63: =AB62*(1-Heifers!AA37) -> 7.25116319 | AD63: =AC62*(1-Heifers!AB37) -> 6.547033404 | AE63: =AD62*(1-Heifers!AC37) -> 6.676843358 | AF63: =AE62*(1-Heifers!AD37) -> 10.01942926 | AG63: =AF62*(1-Heifers!AE37) -> 8.61620125 | AH63: =AG62*(1-Heifers!AF37) -> 8.996598018 | AI63: =AH62*(1-Heifers!AG37) -> 10.11729886 | AJ63: =AI62*(1-Heifers!AH37) -> 6.858999666 | AK63: =AJ62*(1-Heifers!AI37) -> 8.158384779 | AL63: =AK62*(1-Heifers!AJ37) -> 7.669552044 | AM63: =AL62*(1-Heifers!AK37) -> 9.847844108 | AN63: =AM62*(1-Heifers!AL37) -> 7.20683348 | AO63: =AN62*(1-Heifers!AM37) -> 8.646131815 | AP63: =AO62*(1-Heifers!AN37) -> 8.059449913 | AQ63: =AP62*(1-Heifers!AO37) -> 7.453985163 | AR63: =AQ62*(1-Heifers!AP37) -> 7.181493261 | AS63: =AR62*(1-Heifers!AQ37) -> 10.77954186 | AT63: =AS62*(1-Heifers!AR37) -> 9.687370228 | AU63: =AT62*(1-Heifers!AS37) -> 8.995803842 | AV63: =AU62*(1-Heifers!AT37) -> 10.93502695 | AW63: =AV62*(1-Heifers!AU37) -> 7.271884048 | AX63: =AW62*(1-Heifers!AV37) -> 8.964972544 | AY63: =AX62*(1-Heifers!AW37) -> 8.204904487 | AZ63: =AY62*(1-Heifers!AX37) -> 10.65432038 | BA63: =AZ62*(1-Heifers!AY37) -> 8.100682641 | BB63: =BA62*(1-Heifers!AZ37) -> 8.687399596 | BC63: =BB62*(1-Heifers!BA37) -> 8.540745081 | BD63: =BC62*(1-Heifers!BB37) -> 9.6315989 | BE63: =BD62*(1-Heifers!BC37) -> 8.737507074 | BF63: =BE62*(1-Heifers!BD37) -> 11.70078863
A64: 5 months | C64: Open | D64: ='Final Summary'!C81 -> 3 | E64: =D63*(1-Heifers!C38) -> 2.997545455 | F64: =E63*(1-Heifers!D38) -> 4.991821529 | G64: =F63*(1-Heifers!E38) -> 2.992642387 | H64: =G63*(1-Heifers!F38) -> 3.920361527 | I64: =H63*(1-Heifers!G38) -> 10.02660025 | J64: =I63*(1-Heifers!H38) -> 9.199722081 | K64: =J63*(1-Heifers!I38) -> 8.844684867 | L64: =K63*(1-Heifers!J38) -> 10.76516424 | M64: =L63*(1-Heifers!K38) -> 7.191523054 | N64: =M63*(1-Heifers!L38) -> 7.94584472 | O64: =N63*(1-Heifers!M38) -> 9.000483168 | P64: =O63*(1-Heifers!N38) -> 10.46345246 | Q64: =P63*(1-Heifers!O38) -> 8.069701378 | R64: =Q63*(1-Heifers!P38) -> 8.441702308 | S64: =R63*(1-Heifers!Q38) -> 8.261339973 | T64: =S63*(1-Heifers!R38) -> 8.695805246 | U64: =T63*(1-Heifers!S38) -> 7.346182074 | V64: =U63*(1-Heifers!T38) -> 8.524717084 | W64: =V63*(1-Heifers!U38) -> 8.429925991 | X64: =W63*(1-Heifers!V38) -> 6.561936826 | Y64: =X63*(1-Heifers!W38) -> 8.285902849 | Z64: =Y63*(1-Heifers!X38) -> 6.201947169 | AA64: =Z63*(1-Heifers!Y38) -> 7.959998545 | AB64: =AA63*(1-Heifers!Z38) -> 6.668993616 | AC64: =AB63*(1-Heifers!AA38) -> 8.22900406 | AD64: =AC63*(1-Heifers!AB38) -> 7.24523042 | AE64: =AD63*(1-Heifers!AC38) -> 6.54167674 | AF64: =AE63*(1-Heifers!AD38) -> 6.671380486 | AG64: =AF63*(1-Heifers!AE38) -> 10.01123154 | AH64: =AG63*(1-Heifers!AF38) -> 8.609151631 | AI64: =AH63*(1-Heifers!AG38) -> 8.989237165 | AJ64: =AI63*(1-Heifers!AH38) -> 10.10902107 | AK64: =AJ63*(1-Heifers!AI38) -> 6.853387757 | AL64: =AK63*(1-Heifers!AJ38) -> 8.151709737 | AM64: =AL63*(1-Heifers!AK38) -> 7.663276956 | AN64: =AM63*(1-Heifers!AL38) -> 9.839786781 | AO64: =AN63*(1-Heifers!AM38) -> 7.20093698 | AP64: =AO63*(1-Heifers!AN38) -> 8.639057707 | AQ64: =AP63*(1-Heifers!AO38) -> 8.052855818 | AR64: =AQ63*(1-Heifers!AP38) -> 7.447886448 | AS64: =AR63*(1-Heifers!AQ38) -> 7.175617494 | AT64: =AS63*(1-Heifers!AR38) -> 10.77072223 | AU64: =AT63*(1-Heifers!AS38) -> 9.679444198 | AV64: =AU63*(1-Heifers!AT38) -> 8.988443639 | AW64: =AV63*(1-Heifers!AU38) -> 10.92608011 | AX64: =AW63*(1-Heifers!AV38) -> 7.265934325 | AY64: =AX63*(1-Heifers!AW38) -> 8.957637567 | AZ64: =AY63*(1-Heifers!AX38) -> 8.198191384 | BA64: =AZ63*(1-Heifers!AY38) -> 10.64560321 | BB64: =BA63*(1-Heifers!AZ38) -> 8.09405481 | BC64: =BB63*(1-Heifers!BA38) -> 8.680291724 | BD64: =BC63*(1-Heifers!BB38) -> 8.533757199 | BE64: =BD63*(1-Heifers!BC38) -> 9.623718501 | BF64: =BE63*(1-Heifers!BD38) -> 8.730358205
A65: 6 months | C65: Open | D65: ='Final Summary'!C83 -> 6 | E65: =D64*(1-Heifers!C39) -> 2.997545455 | F65: =E64*(1-Heifers!D39) -> 2.995092917 | G65: =F64*(1-Heifers!E39) -> 4.987737311 | H65: =G64*(1-Heifers!F39) -> 2.990193861 | I65: =H64*(1-Heifers!G39) -> 3.917153958 | J65: =I64*(1-Heifers!H39) -> 10.01839667 | K65: =J64*(1-Heifers!I39) -> 9.192195036 | L65: =K64*(1-Heifers!J39) -> 8.837448307 | M65: =L64*(1-Heifers!K39) -> 10.75635638 | N65: =M64*(1-Heifers!L39) -> 7.185639081 | O65: =N64*(1-Heifers!M39) -> 7.939343574 | P65: =O64*(1-Heifers!N39) -> 8.993119137 | Q65: =P64*(1-Heifers!O39) -> 10.45489146 | R65: =Q64*(1-Heifers!P39) -> 8.063098895 | S65: =R64*(1-Heifers!Q39) -> 8.434795461 | T65: =S64*(1-Heifers!R39) -> 8.254580695 | U65: =T64*(1-Heifers!S39) -> 8.688690496 | V65: =U64*(1-Heifers!T39) -> 7.340171561 | W65: =V64*(1-Heifers!U39) -> 8.517742315 | X65: =W64*(1-Heifers!V39) -> 8.423028779 | Y65: =X64*(1-Heifers!W39) -> 6.556567969 | Z65: =Y64*(1-Heifers!X39) -> 8.279123474 | AA65: =Z64*(1-Heifers!Y39) -> 6.196872849 | AB65: =AA64*(1-Heifers!Z39) -> 7.953485819 | AC65: =AB64*(1-Heifers!AA39) -> 6.663537167 | AD65: =AC64*(1-Heifers!AB39) -> 8.222271239 | AE65: =AD64*(1-Heifers!AC39) -> 7.239302504 | AF65: =AE64*(1-Heifers!AD39) -> 6.536324459 | AG65: =AF64*(1-Heifers!AE39) -> 6.665922084 | AH65: =AG64*(1-Heifers!AF39) -> 10.00304054 | AI65: =AH64*(1-Heifers!AG39) -> 8.60210778 | AJ65: =AI64*(1-Heifers!AH39) -> 8.981882335 | AK65: =AJ64*(1-Heifers!AI39) -> 10.10075005 | AL65: =AK64*(1-Heifers!AJ39) -> 6.84778044 | AM65: =AL64*(1-Heifers!AK39) -> 8.145040157 | AN65: =AM64*(1-Heifers!AL39) -> 7.657007002 | AO65: =AN64*(1-Heifers!AM39) -> 9.831736047 | AP65: =AO64*(1-Heifers!AN39) -> 7.195045304 | AQ65: =AP64*(1-Heifers!AO39) -> 8.631989387 | AR65: =AQ64*(1-Heifers!AP39) -> 8.046267118 | AS65: =AR64*(1-Heifers!AQ39) -> 7.441792723 | AT65: =AS64*(1-Heifers!AR39) -> 7.169746534 | AU65: =AT64*(1-Heifers!AS39) -> 10.76190982 | AV65: =AU64*(1-Heifers!AT39) -> 9.671524652 | AW65: =AV64*(1-Heifers!AU39) -> 8.981089457 | AX65: =AW64*(1-Heifers!AV39) -> 10.91714059 | AY65: =AX64*(1-Heifers!AW39) -> 7.25998947 | AZ65: =AY64*(1-Heifers!AX39) -> 8.95030859 | BA65: =AZ64*(1-Heifers!AY39) -> 8.191483773 | BB65: =BA64*(1-Heifers!AZ39) -> 10.63689317 | BC65: =BB64*(1-Heifers!BA39) -> 8.087432402 | BD65: =BC64*(1-Heifers!BB39) -> 8.673189667 | BE65: =BD64*(1-Heifers!BC39) -> 8.526775034 | BF65: =BE64*(1-Heifers!BD39) -> 9.61584455
A66: 7 months | C66: Open | D66: ='Final Summary'!C85 -> 3 | E66: =D65*(1-Heifers!C40) -> 5.995090909 | F66: =E65*(1-Heifers!D40) -> 2.995092917 | G66: =F65*(1-Heifers!E40) -> 2.992642387 | H66: =G65*(1-Heifers!F40) -> 4.983656435 | I66: =H65*(1-Heifers!G40) -> 2.987747339 | J66: =I65*(1-Heifers!H40) -> 3.913949014 | K66: =J65*(1-Heifers!I40) -> 10.0101998 | L66: =K65*(1-Heifers!J40) -> 9.184674149 | M66: =L65*(1-Heifers!K40) -> 8.830217667 | N66: =M65*(1-Heifers!L40) -> 10.74755572 | O66: =N65*(1-Heifers!M40) -> 7.179759922 | P66: =O65*(1-Heifers!N40) -> 7.932847748 | Q66: =P65*(1-Heifers!O40) -> 8.98576113 | R66: =Q65*(1-Heifers!P40) -> 10.44633745 | S66: =R65*(1-Heifers!Q40) -> 8.056501814 | T66: =S65*(1-Heifers!R40) -> 8.427894264 | U66: =T65*(1-Heifers!S40) -> 8.247826947 | V66: =U65*(1-Heifers!T40) -> 8.681581568 | W66: =V65*(1-Heifers!U40) -> 7.334165966 | X66: =W65*(1-Heifers!V40) -> 8.510773253 | Y66: =X65*(1-Heifers!W40) -> 8.41613721 | Z66: =Y65*(1-Heifers!X40) -> 6.551203504 | AA66: =Z65*(1-Heifers!Y40) -> 8.272349646 | AB66: =AA65*(1-Heifers!Z40) -> 6.19180268 | AC66: =AB65*(1-Heifers!AA40) -> 7.946978422 | AD66: =AC65*(1-Heifers!AB40) -> 6.658085182 | AE66: =AD65*(1-Heifers!AC40) -> 8.215543926 | AF66: =AE65*(1-Heifers!AD40) -> 7.233379438 | AG66: =AF65*(1-Heifers!AE40) -> 6.530976557 | AH66: =AG65*(1-Heifers!AF40) -> 6.660468148 | AI66: =AH65*(1-Heifers!AG40) -> 9.994856229 | AJ66: =AI65*(1-Heifers!AH40) -> 8.595069692 | AK66: =AJ65*(1-Heifers!AI40) -> 8.974533522 | AL66: =AK65*(1-Heifers!AJ40) -> 10.0924858 | AM66: =AL65*(1-Heifers!AK40) -> 6.842177711 | AN66: =AM65*(1-Heifers!AL40) -> 8.138376033 | AO66: =AN65*(1-Heifers!AM40) -> 7.650742178 | AP66: =AO65*(1-Heifers!AN40) -> 9.823691899 | AQ66: =AP65*(1-Heifers!AO40) -> 7.189158449 | AR66: =AQ65*(1-Heifers!AP40) -> 8.624926851 | AS66: =AR65*(1-Heifers!AQ40) -> 8.039683808 | AT66: =AS65*(1-Heifers!AR40) -> 7.435703983 | AU66: =AT65*(1-Heifers!AS40) -> 7.163880378 | AV66: =AU65*(1-Heifers!AT40) -> 10.75310462 | AW66: =AV65*(1-Heifers!AU40) -> 9.663611587 | AX66: =AW65*(1-Heifers!AV40) -> 8.973741293 | AY66: =AX65*(1-Heifers!AW40) -> 10.90820839 | AZ66: =AY65*(1-Heifers!AX40) -> 7.254049478 | BA66: =AZ65*(1-Heifers!AY40) -> 8.942985611 | BB66: =BA65*(1-Heifers!AZ40) -> 8.184781649 | BC66: =BB65*(1-Heifers!BA40) -> 10.62819026 | BD66: =BC65*(1-Heifers!BB40) -> 8.080815411 | BE66: =BD65*(1-Heifers!BC40) -> 8.666093421 | BF66: =BE65*(1-Heifers!BD40) -> 8.519798582
A67: 8 months | C67: Open | D67: ='Final Summary'!C87 -> 3 | E67: =D66*(1-Heifers!C41) -> 2.997545455 | F67: =E66*(1-Heifers!D41) -> 5.990185835 | G67: =F66*(1-Heifers!E41) -> 2.992642387 | H67: =G66*(1-Heifers!F41) -> 2.990193861 | I67: =H66*(1-Heifers!G41) -> 4.979578898 | J67: =I66*(1-Heifers!H41) -> 2.985302818 | K67: =J66*(1-Heifers!I41) -> 3.910746692 | L67: =K66*(1-Heifers!J41) -> 10.00200964 | M67: =L66*(1-Heifers!K41) -> 9.177159416 | N67: =M66*(1-Heifers!L41) -> 8.822992944 | O67: =N66*(1-Heifers!M41) -> 10.73876227 | P67: =O66*(1-Heifers!N41) -> 7.173885573 | Q67: =P66*(1-Heifers!O41) -> 7.926357236 | R67: =Q66*(1-Heifers!P41) -> 8.978409144 | S67: =R66*(1-Heifers!Q41) -> 10.43779045 | T67: =S66*(1-Heifers!R41) -> 8.04991013 | U67: =T66*(1-Heifers!S41) -> 8.420998715 | V67: =U66*(1-Heifers!T41) -> 8.241078725 | W67: =V66*(1-Heifers!U41) -> 8.674478455 | X67: =W66*(1-Heifers!V41) -> 7.328165285 | Y67: =X66*(1-Heifers!W41) -> 8.503809893 | Z67: =Y66*(1-Heifers!X41) -> 8.409251279 | AA67: =Z66*(1-Heifers!Y41) -> 6.545843428 | AB67: =AA66*(1-Heifers!Z41) -> 8.26558136 | AC67: =AB66*(1-Heifers!AA41) -> 6.186736659 | AD67: =AC66*(1-Heifers!AB41) -> 7.940476349 | AE67: =AD66*(1-Heifers!AC41) -> 6.652637658 | AF67: =AE66*(1-Heifers!AD41) -> 8.208822117 | AG67: =AF66*(1-Heifers!AE41) -> 7.227461219 | AH67: =AG66*(1-Heifers!AF41) -> 6.525633031 | AI67: =AH66*(1-Heifers!AG41) -> 6.655018674 | AJ67: =AI66*(1-Heifers!AH41) -> 9.98667862 | AK67: =AJ66*(1-Heifers!AI41) -> 8.588037362 | AL67: =AK66*(1-Heifers!AJ41) -> 8.967190722 | AM67: =AL66*(1-Heifers!AK41) -> 10.08422831 | AN67: =AM66*(1-Heifers!AL41) -> 6.836579565 | AO67: =AN66*(1-Heifers!AM41) -> 8.131717362 | AP67: =AO66*(1-Heifers!AN41) -> 7.64448248 | AQ67: =AP66*(1-Heifers!AO41) -> 9.815654333 | AR67: =AQ66*(1-Heifers!AP41) -> 7.18327641 | AS67: =AR66*(1-Heifers!AQ41) -> 8.617870092 | AT67: =AS66*(1-Heifers!AR41) -> 8.033105885 | AU67: =AT66*(1-Heifers!AS41) -> 7.429620226 | AV67: =AU66*(1-Heifers!AT41) -> 7.158019021 | AW67: =AV66*(1-Heifers!AU41) -> 10.74430663 | AX67: =AW66*(1-Heifers!AV41) -> 9.655704995 | AY67: =AX66*(1-Heifers!AW41) -> 8.966399141 | AZ67: =AY66*(1-Heifers!AX41) -> 10.89928349 | BA67: =AZ66*(1-Heifers!AY41) -> 7.248114347 | BB67: =BA66*(1-Heifers!AZ41) -> 8.935668622 | BC67: =BB66*(1-Heifers!BA41) -> 8.17808501 | BD67: =BC66*(1-Heifers!BB41) -> 10.61949447 | BE67: =BD66*(1-Heifers!BC41) -> 8.074203835 | BF67: =BE66*(1-Heifers!BD41) -> 8.659002981
A68: 9 months | C68: Open | D68: ='Final Summary'!C89 -> 3 | E68: =D67*(1-Heifers!C42) -> 2.997545455 | F68: =E67*(1-Heifers!D42) -> 2.995092917 | G68: =F67*(1-Heifers!E42) -> 5.985284774 | H68: =G67*(1-Heifers!F42) -> 2.990193861 | I68: =H67*(1-Heifers!G42) -> 2.987747339 | J68: =I67*(1-Heifers!H42) -> 4.975504697 | K68: =J67*(1-Heifers!I42) -> 2.982860298 | L68: =K67*(1-Heifers!J42) -> 3.90754699 | M68: =L67*(1-Heifers!K42) -> 9.993826177 | N68: =M67*(1-Heifers!L42) -> 9.169650831 | O68: =N67*(1-Heifers!M42) -> 8.815774131 | P68: =O67*(1-Heifers!N42) -> 10.72997601 | Q68: =P67*(1-Heifers!O42) -> 7.16801603 | R68: =Q67*(1-Heifers!P42) -> 7.919872035 | S68: =R67*(1-Heifers!Q42) -> 8.971063173 | T68: =S67*(1-Heifers!R42) -> 10.42925044 | U68: =T67*(1-Heifers!S42) -> 8.04332384 | V68: =U67*(1-Heifers!T42) -> 8.414108806 | W68: =V67*(1-Heifers!U42) -> 8.234336024 | X68: =W67*(1-Heifers!V42) -> 8.667381155 | Y68: =X67*(1-Heifers!W42) -> 7.322169514 | Z68: =Y67*(1-Heifers!X42) -> 8.496852231 | AA68: =Z67*(1-Heifers!Y42) -> 8.402370983 | AB68: =AA67*(1-Heifers!Z42) -> 6.540487738 | AC68: =AB67*(1-Heifers!AA42) -> 8.258818612 | AD68: =AC67*(1-Heifers!AB42) -> 6.181674784 | AE68: =AD67*(1-Heifers!AC42) -> 7.933979595 | AF68: =AE67*(1-Heifers!AD42) -> 6.64719459 | AG68: =AF67*(1-Heifers!AE42) -> 8.202105808 | AH68: =AG67*(1-Heifers!AF42) -> 7.221547841 | AI68: =AH67*(1-Heifers!AG42) -> 6.520293877 | AJ68: =AI67*(1-Heifers!AH42) -> 6.649573659 | AK68: =AJ67*(1-Heifers!AI42) -> 9.978507701 | AL68: =AK67*(1-Heifers!AJ42) -> 8.581010786 | AM68: =AL67*(1-Heifers!AK42) -> 8.95985393 | AN68: =AM67*(1-Heifers!AL42) -> 10.07597758 | AO68: =AN67*(1-Heifers!AM42) -> 6.830986 | AP68: =AO67*(1-Heifers!AN42) -> 8.125064138 | AQ68: =AP67*(1-Heifers!AO42) -> 7.638227903 | AR68: =AQ67*(1-Heifers!AP42) -> 9.807623343 | AS68: =AR67*(1-Heifers!AQ42) -> 7.177399184 | AT68: =AS67*(1-Heifers!AR42) -> 8.610819108 | AU68: =AT67*(1-Heifers!AS42) -> 8.026533344 | AV68: =AU67*(1-Heifers!AT42) -> 7.423541445 | AW68: =AV67*(1-Heifers!AU42) -> 7.15216246 | AX68: =AW67*(1-Heifers!AV42) -> 10.73551583 | AY68: =AX67*(1-Heifers!AW42) -> 9.647804873 | AZ68: =AY67*(1-Heifers!AX42) -> 8.959062997 | BA68: =AZ67*(1-Heifers!AY42) -> 10.89036589 | BB68: =BA67*(1-Heifers!AZ42) -> 7.242184072 | BC68: =BB67*(1-Heifers!BA42) -> 8.928357621 | BD68: =BC67*(1-Heifers!BB42) -> 8.171393849 | BE68: =BD67*(1-Heifers!BC42) -> 10.61080579 | BF68: =BE67*(1-Heifers!BD42) -> 8.067597668
A69: 10 months | C69: Open | D69: ='Final Summary'!C91 -> 7 | E69: =D68*(1-Heifers!C43) -> 2.997545455 | F69: =E68*(1-Heifers!D43) -> 2.995092917 | G69: =F68*(1-Heifers!E43) -> 2.992642387 | H69: =G68*(1-Heifers!F43) -> 5.980387722 | I69: =H68*(1-Heifers!G43) -> 2.987747339 | J69: =I68*(1-Heifers!H43) -> 2.985302818 | K69: =J68*(1-Heifers!I43) -> 4.97143383 | L69: =K68*(1-Heifers!J43) -> 2.980419776 | M69: =L68*(1-Heifers!K43) -> 3.904349906 | N69: =M68*(1-Heifers!L43) -> 9.98564941 | O69: =N68*(1-Heifers!M43) -> 9.162148389 | P69: =O68*(1-Heifers!N43) -> 8.808561225 | Q69: =P68*(1-Heifers!O43) -> 10.72119694 | R69: =Q68*(1-Heifers!P43) -> 7.16215129 | S69: =R68*(1-Heifers!Q43) -> 7.913392139 | T69: =S68*(1-Heifers!R43) -> 8.963723212 | U69: =T68*(1-Heifers!S43) -> 10.42071742 | V69: =U68*(1-Heifers!T43) -> 8.036742939 | W69: =V68*(1-Heifers!U43) -> 8.407224536 | X69: =W68*(1-Heifers!V43) -> 8.22759884 | Y69: =X68*(1-Heifers!W43) -> 8.660289661 | Z69: =Y68*(1-Heifers!X43) -> 7.316178648 | AA69: =Z68*(1-Heifers!Y43) -> 8.489900261 | AB69: =AA68*(1-Heifers!Z43) -> 8.395496315 | AC69: =AB68*(1-Heifers!AA43) -> 6.53513643 | AD69: =AC68*(1-Heifers!AB43) -> 8.252061396 | AE69: =AD68*(1-Heifers!AC43) -> 6.17661705 | AF69: =AE68*(1-Heifers!AD43) -> 7.927488157 | AG69: =AF68*(1-Heifers!AE43) -> 6.641755977 | AH69: =AG68*(1-Heifers!AF43) -> 8.195394994 | AI69: =AH68*(1-Heifers!AG43) -> 7.215639302 | AJ69: =AI68*(1-Heifers!AH43) -> 6.514959091 | AK69: =AJ68*(1-Heifers!AI43) -> 6.644133098 | AL69: =AK68*(1-Heifers!AJ43) -> 9.970343467 | AM69: =AL68*(1-Heifers!AK43) -> 8.573989959 | AN69: =AM68*(1-Heifers!AL43) -> 8.95252314 | AO69: =AN68*(1-Heifers!AM43) -> 10.0677336 | AP69: =AO68*(1-Heifers!AN43) -> 6.825397012 | AQ69: =AP68*(1-Heifers!AO43) -> 8.118416359 | AR69: =AQ68*(1-Heifers!AP43) -> 7.631978444 | AS69: =AR68*(1-Heifers!AQ43) -> 9.799598924 | AT69: =AS68*(1-Heifers!AR43) -> 7.171526766 | AU69: =AT68*(1-Heifers!AS43) -> 8.603773892 | AV69: =AU68*(1-Heifers!AT43) -> 8.01996618 | AW69: =AV68*(1-Heifers!AU43) -> 7.417467639 | AX69: =AW68*(1-Heifers!AV43) -> 7.146310691 | AY69: =AX68*(1-Heifers!AW43) -> 10.72673223 | AZ69: =AY68*(1-Heifers!AX43) -> 9.639911215 | BA69: =AZ68*(1-Heifers!AY43) -> 8.951732854 | BB69: =BA68*(1-Heifers!AZ43) -> 10.88145559 | BC69: =BB68*(1-Heifers!BA43) -> 7.236258648 | BD69: =BC68*(1-Heifers!BB43) -> 8.921052601 | BE69: =BD68*(1-Heifers!BC43) -> 8.164708164 | BF69: =BE68*(1-Heifers!BD43) -> 10.60212422
A70: 11 months | C70: Open | D70: ='Final Summary'!C93 -> 4 | E70: =D69*(1-Heifers!C44) -> 6.994272727 | F70: =E69*(1-Heifers!D44) -> 2.995092917 | G70: =F69*(1-Heifers!E44) -> 2.992642387 | H70: =G69*(1-Heifers!F44) -> 2.990193861 | I70: =H69*(1-Heifers!G44) -> 5.975494678 | J70: =I69*(1-Heifers!H44) -> 2.985302818 | K70: =J69*(1-Heifers!I44) -> 2.982860298 | L70: =K69*(1-Heifers!J44) -> 4.967366293 | M70: =L69*(1-Heifers!K44) -> 2.977981251 | N70: =M69*(1-Heifers!L44) -> 3.901155438 | O70: =N69*(1-Heifers!M44) -> 9.977479333 | P70: =O69*(1-Heifers!N44) -> 9.154652086 | Q70: =P69*(1-Heifers!O44) -> 8.80135422 | R70: =Q69*(1-Heifers!P44) -> 10.71242505 | S70: =R69*(1-Heifers!Q44) -> 7.156291348 | T70: =S69*(1-Heifers!R44) -> 7.906917546 | U70: =T69*(1-Heifers!S44) -> 8.956389257 | V70: =U69*(1-Heifers!T44) -> 10.41219137 | W70: =V69*(1-Heifers!U44) -> 8.030167422 | X70: =W69*(1-Heifers!V44) -> 8.400345897 | Y70: =X69*(1-Heifers!W44) -> 8.220867168 | Z70: =Y69*(1-Heifers!X44) -> 8.65320397 | AA70: =Z69*(1-Heifers!Y44) -> 7.310192683 | AB70: =AA69*(1-Heifers!Z44) -> 8.482953979 | AC70: =AB69*(1-Heifers!AA44) -> 8.388627273 | AD70: =AC69*(1-Heifers!AB44) -> 6.5297895 | AE70: =AD69*(1-Heifers!AC44) -> 8.24530971 | AF70: =AE69*(1-Heifers!AD44) -> 6.171563454 | AG70: =AF69*(1-Heifers!AE44) -> 7.921002031 | AH70: =AG69*(1-Heifers!AF44) -> 6.636321813 | AI70: =AH69*(1-Heifers!AG44) -> 8.188689671 | AJ70: =AI69*(1-Heifers!AH44) -> 7.209735597 | AK70: =AJ69*(1-Heifers!AI44) -> 6.50962867 | AL70: =AK69*(1-Heifers!AJ44) -> 6.638696989 | AM70: =AL69*(1-Heifers!AK44) -> 9.962185913 | AN70: =AM69*(1-Heifers!AL44) -> 8.566974876 | AO70: =AN69*(1-Heifers!AM44) -> 8.945198348 | AP70: =AO69*(1-Heifers!AN44) -> 10.05949636 | AQ70: =AP69*(1-Heifers!AO44) -> 6.819812596 | AR70: =AQ69*(1-Heifers!AP44) -> 8.111774018 | AS70: =AR69*(1-Heifers!AQ44) -> 7.625734098 | AT70: =AS69*(1-Heifers!AR44) -> 9.79158107 | AU70: =AT69*(1-Heifers!AS44) -> 7.165659154 | AV70: =AU69*(1-Heifers!AT44) -> 8.596734441 | AW70: =AV69*(1-Heifers!AU44) -> 8.01340439 | AX70: =AW69*(1-Heifers!AV44) -> 7.411398802 | AY70: =AX69*(1-Heifers!AW44) -> 7.140463709 | AZ70: =AY69*(1-Heifers!AX44) -> 10.71795581 | BA70: =AZ69*(1-Heifers!AY44) -> 9.632024015 | BB70: =BA69*(1-Heifers!AZ44) -> 8.944408709 | BC70: =BB69*(1-Heifers!BA44) -> 10.87255258 | BD70: =BC69*(1-Heifers!BB44) -> 7.230338073 | BE70: =BD69*(1-Heifers!BC44) -> 8.913753558 | BF70: =BE69*(1-Heifers!BD44) -> 8.158027948
A71: 12 months | C71: Open | D71: ='Final Summary'!C95 -> 3 | E71: =D70*(1-Heifers!C45) -> 3.996727273 | F71: =E70*(1-Heifers!D45) -> 6.98855014 | G71: =F70*(1-Heifers!E45) -> 2.992642387 | H71: =G70*(1-Heifers!F45) -> 2.990193861 | I71: =H70*(1-Heifers!G45) -> 2.987747339 | J71: =I70*(1-Heifers!H45) -> 5.970605637 | K71: =J70*(1-Heifers!I45) -> 2.982860298 | L71: =K70*(1-Heifers!J45) -> 2.980419776 | M71: =L70*(1-Heifers!K45) -> 4.963302084 | N71: =M70*(1-Heifers!L45) -> 2.97554472 | O71: =N70*(1-Heifers!M45) -> 3.897963584 | P71: =O70*(1-Heifers!N45) -> 9.969315941 | Q71: =P70*(1-Heifers!O45) -> 9.147161916 | R71: =Q70*(1-Heifers!P45) -> 8.794153112 | S71: =R70*(1-Heifers!Q45) -> 10.70366034 | T71: =S70*(1-Heifers!R45) -> 7.1504362 | U71: =T70*(1-Heifers!S45) -> 7.90044825 | V71: =U70*(1-Heifers!T45) -> 8.949061302 | W71: =V70*(1-Heifers!U45) -> 10.40367231 | X71: =W70*(1-Heifers!V45) -> 8.023597285 | Y71: =X70*(1-Heifers!W45) -> 8.393472887 | Z71: =Y70*(1-Heifers!X45) -> 8.214141004 | AA71: =Z70*(1-Heifers!Y45) -> 8.646124076 | AB71: =AA70*(1-Heifers!Z45) -> 7.304211616 | AC71: =AB70*(1-Heifers!AA45) -> 8.47601338 | AD71: =AC70*(1-Heifers!AB45) -> 8.381763851 | AE71: =AD70*(1-Heifers!AC45) -> 6.524446945 | AF71: =AE70*(1-Heifers!AD45) -> 8.238563547 | AG71: =AF70*(1-Heifers!AE45) -> 6.166513993 | AH71: =AG70*(1-Heifers!AF45) -> 7.914521211 | AI71: =AH70*(1-Heifers!AG45) -> 6.630892095 | AJ71: =AI70*(1-Heifers!AH45) -> 8.181989834 | AK71: =AJ70*(1-Heifers!AI45) -> 7.203836723 | AL71: =AK70*(1-Heifers!AJ45) -> 6.50430261 | AM71: =AL70*(1-Heifers!AK45) -> 6.633265328 | AN71: =AM70*(1-Heifers!AL45) -> 9.954035034 | AO71: =AN70*(1-Heifers!AM45) -> 8.559965533 | AP71: =AO70*(1-Heifers!AN45) -> 8.93787955 | AQ71: =AP70*(1-Heifers!AO45) -> 10.05126586 | AR71: =AQ70*(1-Heifers!AP45) -> 6.814232749 | AS71: =AR70*(1-Heifers!AQ45) -> 8.105137112 | AT71: =AS70*(1-Heifers!AR45) -> 7.619494861 | AU71: =AT70*(1-Heifers!AS45) -> 9.783569777 | AV71: =AU70*(1-Heifers!AT45) -> 7.159796341 | AW71: =AV70*(1-Heifers!AU45) -> 8.589700749 | AX71: =AW70*(1-Heifers!AV45) -> 8.006847968 | AY71: =AX70*(1-Heifers!AW45) -> 7.40533493 | AZ71: =AY70*(1-Heifers!AX45) -> 7.134621512 | BA71: =AZ70*(1-Heifers!AY45) -> 10.70918657 | BB71: =BA70*(1-Heifers!AZ45) -> 9.624143268 | BC71: =BB70*(1-Heifers!BA45) -> 8.937090556 | BD71: =BC70*(1-Heifers!BB45) -> 10.86365686 | BE71: =BD70*(1-Heifers!BC45) -> 7.224422342 | BF71: =BE70*(1-Heifers!BD45) -> 8.906460487
A72: 13 months | C72: Open | D72: ='Final Summary'!C97 -> 5 | E72: =D71*(1-Heifers!C46) -> 2.997545455 | F72: =E71*(1-Heifers!D46) -> 3.993457223 | G72: =F71*(1-Heifers!E46) -> 6.982832236 | H72: =G71*(1-Heifers!F46) -> 2.990193861 | I72: =H71*(1-Heifers!G46) -> 2.987747339 | J72: =I71*(1-Heifers!H46) -> 2.985302818 | K72: =J71*(1-Heifers!I46) -> 5.965720596 | L72: =K71*(1-Heifers!J46) -> 2.980419776 | M72: =L71*(1-Heifers!K46) -> 2.977981251 | N72: =M71*(1-Heifers!L46) -> 4.959241201 | O72: =N71*(1-Heifers!M46) -> 2.973110184 | P72: =O71*(1-Heifers!N46) -> 3.894774341 | Q72: =P71*(1-Heifers!O46) -> 9.961159228 | R72: =Q71*(1-Heifers!P46) -> 9.139677874 | S72: =R71*(1-Heifers!Q46) -> 8.786957896 | T72: =S71*(1-Heifers!R46) -> 10.6949028 | U72: =T71*(1-Heifers!S46) -> 7.144585843 | V72: =U71*(1-Heifers!T46) -> 7.893984246 | W72: =V71*(1-Heifers!U46) -> 8.941739342 | X72: =W71*(1-Heifers!V46) -> 10.39516021 | Y72: =X71*(1-Heifers!W46) -> 8.017032524 | Z72: =Y71*(1-Heifers!X46) -> 8.3866055 | AA72: =Z71*(1-Heifers!Y46) -> 8.207420343 | AB72: =AA71*(1-Heifers!Z46) -> 8.639049974 | AC72: =AB71*(1-Heifers!AA46) -> 7.298235443 | AD72: =AC71*(1-Heifers!AB46) -> 8.46907846 | AE72: =AD71*(1-Heifers!AC46) -> 8.374906044 | AF72: =AE71*(1-Heifers!AD46) -> 6.519108761 | AG72: =AF71*(1-Heifers!AE46) -> 8.231822904 | AH72: =AG71*(1-Heifers!AF46) -> 6.161468664 | AI72: =AH71*(1-Heifers!AG46) -> 7.908045693 | AJ72: =AI71*(1-Heifers!AH46) -> 6.625466819 | AK72: =AJ71*(1-Heifers!AI46) -> 8.175295479 | AL72: =AK71*(1-Heifers!AJ46) -> 7.197942675 | AM72: =AL71*(1-Heifers!AK46) -> 6.498980908 | AN72: =AM71*(1-Heifers!AL46) -> 6.627838111 | AO72: =AN71*(1-Heifers!AM46) -> 9.945890823 | AP72: =AO71*(1-Heifers!AN46) -> 8.552961925 | AQ72: =AP71*(1-Heifers!AO46) -> 8.930566739 | AR72: =AQ71*(1-Heifers!AP46) -> 10.0430421 | AS72: =AR71*(1-Heifers!AQ46) -> 6.808657468 | AT72: =AS71*(1-Heifers!AR46) -> 8.098505636 | AU72: =AT71*(1-Heifers!AS46) -> 7.613260729 | AV72: =AU71*(1-Heifers!AT46) -> 9.775565038 | AW72: =AV71*(1-Heifers!AU46) -> 7.153938326 | AX72: =AW71*(1-Heifers!AV46) -> 8.582672812 | AY72: =AX71*(1-Heifers!AW46) -> 8.000296911 | AZ72: =AY71*(1-Heifers!AX46) -> 7.39927602 | BA72: =AZ71*(1-Heifers!AY46) -> 7.128784094 | BB72: =BA71*(1-Heifers!AZ46) -> 10.70042451 | BC72: =BB71*(1-Heifers!BA46) -> 9.616268969 | BD72: =BC71*(1-Heifers!BB46) -> 8.929778391 | BE72: =BD71*(1-Heifers!BC46) -> 10.85476841 | BF72: =BE71*(1-Heifers!BD46) -> 7.218511451
A73: 14 months | C73: Open | D73: ='Final Summary'!C99 -> 3 | E73: =D72*(1-Heifers!C47) -> 4.995909091 | F73: =E72*(1-Heifers!D47) -> 2.995092917 | G73: =F72*(1-Heifers!E47) -> 3.990189849 | H73: =G72*(1-Heifers!F47) -> 6.977119009 | I73: =H72*(1-Heifers!G47) -> 2.987747339 | J73: =I72*(1-Heifers!H47) -> 2.985302818 | K73: =J72*(1-Heifers!I47) -> 2.982860298 | L73: =K72*(1-Heifers!J47) -> 5.960839552 | M73: =L72*(1-Heifers!K47) -> 2.977981251 | N73: =M72*(1-Heifers!L47) -> 2.97554472 | O73: =N72*(1-Heifers!M47) -> 4.95518364 | P73: =O72*(1-Heifers!N47) -> 2.970677639 | Q73: =P72*(1-Heifers!O47) -> 3.891587707 | R73: =Q72*(1-Heifers!P47) -> 9.953009189 | S73: =R72*(1-Heifers!Q47) -> 9.132199956 | T73: =S72*(1-Heifers!R47) -> 8.779768567 | U73: =T72*(1-Heifers!S47) -> 10.68615242 | V73: =U72*(1-Heifers!T47) -> 7.138740273 | W73: =V72*(1-Heifers!U47) -> 7.887525532 | X73: =W72*(1-Heifers!V47) -> 8.934423374 | Y73: =X72*(1-Heifers!W47) -> 10.38665508 | Z73: =Y72*(1-Heifers!X47) -> 8.010473133 | AA73: =Z72*(1-Heifers!Y47) -> 8.379743732 | AB73: =AA72*(1-Heifers!Z47) -> 8.200705181 | AC73: =AB72*(1-Heifers!AA47) -> 8.63198166 | AD73: =AC72*(1-Heifers!AB47) -> 7.29226416 | AE73: =AD72*(1-Heifers!AC47) -> 8.462149214 | AF73: =AE72*(1-Heifers!AD47) -> 8.368053848 | AG73: =AF72*(1-Heifers!AE47) -> 6.513774945 | AH73: =AG72*(1-Heifers!AF47) -> 8.225087777 | AI73: =AH72*(1-Heifers!AG47) -> 6.156427462 | AJ73: =AI72*(1-Heifers!AH47) -> 7.901575474 | AK73: =AJ72*(1-Heifers!AI47) -> 6.620045983 | AL73: =AK72*(1-Heifers!AJ47) -> 8.168606601 | AM73: =AL72*(1-Heifers!AK47) -> 7.192053449 | AN73: =AM72*(1-Heifers!AL47) -> 6.49366356 | AO73: =AN72*(1-Heifers!AM47) -> 6.622415335 | AP73: =AO72*(1-Heifers!AN47) -> 9.937753276 | AQ73: =AP72*(1-Heifers!AO47) -> 8.545964047 | AR73: =AQ72*(1-Heifers!AP47) -> 8.923259912 | AS73: =AR72*(1-Heifers!AQ47) -> 10.03482507 | AT73: =AS72*(1-Heifers!AR47) -> 6.803086748 | AU73: =AT72*(1-Heifers!AS47) -> 8.091879586 | AV73: =AU72*(1-Heifers!AT47) -> 7.607031697 | AW73: =AV72*(1-Heifers!AU47) -> 9.767566848 | AX73: =AW72*(1-Heifers!AV47) -> 7.148085104 | AY73: =AX72*(1-Heifers!AW47) -> 8.575650625 | AZ73: =AY72*(1-Heifers!AX47) -> 7.993751213 | BA73: =AZ72*(1-Heifers!AY47) -> 7.393222066 | BB73: =BA72*(1-Heifers!AZ47) -> 7.122951452 | BC73: =BB72*(1-Heifers!BA47) -> 10.69166962 | BD73: =BC72*(1-Heifers!BB47) -> 9.608401112 | BE73: =BD72*(1-Heifers!BC47) -> 8.922472209 | BF73: =BE72*(1-Heifers!BD47) -> 10.84588724
A74: 15 months | C74: Open | D74: ='Final Summary'!C101 -> 3 | E74: =D73*(1-Heifers!C48) -> 2.997545455 | F74: =E73*(1-Heifers!D48) -> 4.991821529 | G74: =F73*(1-Heifers!E48) -> 2.992642387 | H74: =G73*(1-Heifers!F48) -> 3.986925148 | I74: =H73*(1-Heifers!G48) -> 6.971410458 | J74: =I73*(1-Heifers!H48) -> 2.985302818 | K74: =J73*(1-Heifers!I48) -> 2.982860298 | L74: =K73*(1-Heifers!J48) -> 2.980419776 | M74: =L73*(1-Heifers!K48) -> 5.955962501 | N74: =M73*(1-Heifers!L48) -> 2.97554472 | O74: =N73*(1-Heifers!M48) -> 2.973110184 | P74: =O73*(1-Heifers!N48) -> 4.951129399 | Q74: =P73*(1-Heifers!O48) -> 2.968247085 | R74: =Q73*(1-Heifers!P48) -> 3.888403681 | S74: =R73*(1-Heifers!Q48) -> 9.944865818 | T74: =S73*(1-Heifers!R48) -> 9.124728156 | U74: =T73*(1-Heifers!S48) -> 8.77258512 | V74: =U73*(1-Heifers!T48) -> 10.67740921 | W74: =V73*(1-Heifers!U48) -> 7.132899485 | X74: =W73*(1-Heifers!V48) -> 7.881072102 | Y74: =X73*(1-Heifers!W48) -> 8.927113391 | Z74: =Y73*(1-Heifers!X48) -> 10.37815691 | AA74: =Z73*(1-Heifers!Y48) -> 8.00391911 | AB74: =AA73*(1-Heifers!Z48) -> 8.372887578 | AC74: =AB73*(1-Heifers!AA48) -> 8.193995513 | AD74: =AC73*(1-Heifers!AB48) -> 8.62491913 | AE74: =AD73*(1-Heifers!AC48) -> 7.286297762 | AF74: =AE73*(1-Heifers!AD48) -> 8.455225637 | AG74: =AF73*(1-Heifers!AE48) -> 8.361207259 | AH74: =AG73*(1-Heifers!AF48) -> 6.508445493 | AI74: =AH73*(1-Heifers!AG48) -> 8.218358159 | AJ74: =AI73*(1-Heifers!AH48) -> 6.151390385 | AK74: =AJ73*(1-Heifers!AI48) -> 7.895110549 | AL74: =AK73*(1-Heifers!AJ48) -> 6.614629582 | AM74: =AL73*(1-Heifers!AK48) -> 8.161923195 | AN74: =AM73*(1-Heifers!AL48) -> 7.186169041 | AO74: =AN73*(1-Heifers!AM48) -> 6.488350562 | AP74: =AO73*(1-Heifers!AN48) -> 6.616996995 | AQ74: =AP73*(1-Heifers!AO48) -> 9.929622387 | AR74: =AQ73*(1-Heifers!AP48) -> 8.538971895 | AS74: =AR73*(1-Heifers!AQ48) -> 8.915959063 | AT74: =AS73*(1-Heifers!AR48) -> 10.02661476 | AU74: =AT73*(1-Heifers!AS48) -> 6.797520586 | AV74: =AU73*(1-Heifers!AT48) -> 8.085258957 | AW74: =AV73*(1-Heifers!AU48) -> 7.600807762 | AX74: =AW73*(1-Heifers!AV48) -> 9.759575203 | AY74: =AX73*(1-Heifers!AW48) -> 7.142236671 | AZ74: =AY73*(1-Heifers!AX48) -> 8.568634184 | BA74: =AZ73*(1-Heifers!AY48) -> 7.987210871 | BB74: =BA73*(1-Heifers!AZ48) -> 7.387173067 | BC74: =BB73*(1-Heifers!BA48) -> 7.117123583 | BD74: =BC73*(1-Heifers!BB48) -> 10.68292189 | BE74: =BD73*(1-Heifers!BC48) -> 9.600539693 | BF74: =BE73*(1-Heifers!BD48) -> 8.915172005
A75: 16 months | C75: Pregnant | D75: ='Final Summary'!C103 -> 3 | E75: =D74*(1-Heifers!C49) -> 2.997545455 | F75: =E74*(1-Heifers!D49) -> 2.995092917 | G75: =F74*(1-Heifers!E49) -> 4.987737311 | H75: =G74*(1-Heifers!F49) -> 2.990193861 | I75: =H74*(1-Heifers!G49) -> 3.983663119 | J75: =I74*(1-Heifers!H49) -> 6.965706576 | K75: =J74*(1-Heifers!I49) -> 2.982860298 | L75: =K74*(1-Heifers!J49) -> 2.980419776 | M75: =L74*(1-Heifers!K49) -> 2.977981251 | N75: =M74*(1-Heifers!L49) -> 5.951089441 | O75: =N74*(1-Heifers!M49) -> 2.973110184 | P75: =O74*(1-Heifers!N49) -> 2.970677639 | Q75: =P74*(1-Heifers!O49) -> 4.947078475 | R75: =Q74*(1-Heifers!P49) -> 2.965818519 | S75: =R74*(1-Heifers!Q49) -> 3.88522226 | T75: =S74*(1-Heifers!R49) -> 9.936729109 | U75: =T74*(1-Heifers!S49) -> 9.117262469 | V75: =U74*(1-Heifers!T49) -> 8.76540755 | W75: =V74*(1-Heifers!U49) -> 10.66867315 | X75: =W74*(1-Heifers!V49) -> 7.127063477 | Y75: =X74*(1-Heifers!W49) -> 7.874623952 | Z75: =Y74*(1-Heifers!X49) -> 8.919809389 | AA75: =Z74*(1-Heifers!Y49) -> 10.36966569 | AB75: =AA74*(1-Heifers!Z49) -> 7.997370449 | AC75: =AB74*(1-Heifers!AA49) -> 8.366037034 | AD75: =AC74*(1-Heifers!AB49) -> 8.187291335 | AE75: =AD74*(1-Heifers!AC49) -> 8.617862378 | AF75: =AE74*(1-Heifers!AD49) -> 7.280336245 | AG75: =AF74*(1-Heifers!AE49) -> 8.448307725 | AH75: =AG74*(1-Heifers!AF49) -> 8.354366271 | AI75: =AH74*(1-Heifers!AG49) -> 6.503120401 | AJ75: =AI74*(1-Heifers!AH49) -> 8.211634048 | AK75: =AJ74*(1-Heifers!AI49) -> 6.146357429 | AL75: =AK74*(1-Heifers!AJ49) -> 7.888650913 | AM75: =AL74*(1-Heifers!AK49) -> 6.609217612 | AN75: =AM74*(1-Heifers!AL49) -> 8.155245258 | AO75: =AN74*(1-Heifers!AM49) -> 7.180289449 | AP75: =AO74*(1-Heifers!AN49) -> 6.483041912 | AQ75: =AP74*(1-Heifers!AO49) -> 6.611583088 | AR75: =AQ74*(1-Heifers!AP49) -> 9.921498151 | AS75: =AR74*(1-Heifers!AQ49) -> 8.531985463 | AT75: =AS74*(1-Heifers!AR49) -> 8.908664187 | AU75: =AT74*(1-Heifers!AS49) -> 10.01841116 | AV75: =AU74*(1-Heifers!AT49) -> 6.791958978 | AW75: =AV74*(1-Heifers!AU49) -> 8.078643745 | AX75: =AW74*(1-Heifers!AV49) -> 7.594588919 | AY75: =AX74*(1-Heifers!AW49) -> 9.751590096 | AZ75: =AY74*(1-Heifers!AX49) -> 7.136393023 | BA75: =AZ74*(1-Heifers!AY49) -> 8.561623483 | BB75: =BA74*(1-Heifers!AZ49) -> 7.98067588 | BC75: =BB74*(1-Heifers!BA49) -> 7.381129016 | BD75: =BC74*(1-Heifers!BB49) -> 7.111300482 | BE75: =BD74*(1-Heifers!BC49) -> 10.67418132 | BF75: =BE74*(1-Heifers!BD49) -> 9.592684706
A76: 17 months | C76: Pregnant | D76: ='Final Summary'!C105 -> 7 | E76: =D75*(1-Heifers!C50) -> 2.997545455 | F76: =E75*(1-Heifers!D50) -> 2.995092917 | G76: =F75*(1-Heifers!E50) -> 2.992642387 | H76: =G75*(1-Heifers!F50) -> 4.983656435 | I76: =H75*(1-Heifers!G50) -> 2.987747339 | J76: =I75*(1-Heifers!H50) -> 3.980403758 | K76: =J75*(1-Heifers!I50) -> 6.960007362 | L76: =K75*(1-Heifers!J50) -> 2.980419776 | M76: =L75*(1-Heifers!K50) -> 2.977981251 | N76: =M75*(1-Heifers!L50) -> 2.97554472 | O76: =N75*(1-Heifers!M50) -> 5.946220368 | P76: =O75*(1-Heifers!N50) -> 2.970677639 | Q76: =P75*(1-Heifers!O50) -> 2.968247085 | R76: =Q75*(1-Heifers!P50) -> 4.943030865 | S76: =R75*(1-Heifers!Q50) -> 2.96339194 | T76: =S75*(1-Heifers!R50) -> 3.882043442 | U76: =T75*(1-Heifers!S50) -> 9.928599058 | V76: =U75*(1-Heifers!T50) -> 9.109802891 | W76: =V75*(1-Heifers!U50) -> 8.758235853 | X76: =W75*(1-Heifers!V50) -> 10.65994423 | Y76: =X75*(1-Heifers!W50) -> 7.121232243 | Z76: =Y75*(1-Heifers!X50) -> 7.868181078 | AA76: =Z75*(1-Heifers!Y50) -> 8.912511363 | AB76: =AA75*(1-Heifers!Z50) -> 10.36118142 | AC76: =AB75*(1-Heifers!AA50) -> 7.990827146 | AD76: =AC75*(1-Heifers!AB50) -> 8.359192094 | AE76: =AD75*(1-Heifers!AC50) -> 8.180592642 | AF76: =AE75*(1-Heifers!AD50) -> 8.6108114 | AG76: =AF75*(1-Heifers!AE50) -> 7.274379607 | AH76: =AG75*(1-Heifers!AF50) -> 8.441395473 | AI76: =AH75*(1-Heifers!AG50) -> 8.34753088 | AJ76: =AI75*(1-Heifers!AH50) -> 6.497799666 | AK76: =AJ75*(1-Heifers!AI50) -> 8.204915438 | AL76: =AK75*(1-Heifers!AJ50) -> 6.141328591 | AM76: =AL75*(1-Heifers!AK50) -> 7.882196562 | AN76: =AM75*(1-Heifers!AL50) -> 6.60381007 | AO76: =AN75*(1-Heifers!AM50) -> 8.148572785 | AP76: =AO75*(1-Heifers!AN50) -> 7.174414666 | AQ76: =AP75*(1-Heifers!AO50) -> 6.477737605 | AR76: =AQ75*(1-Heifers!AP50) -> 6.606173611 | AS76: =AR75*(1-Heifers!AQ50) -> 9.913380561 | AT76: =AS75*(1-Heifers!AR50) -> 8.525004748 | AU76: =AT75*(1-Heifers!AS50) -> 8.90137528 | AV76: =AU75*(1-Heifers!AT50) -> 10.01021428 | AW76: =AV75*(1-Heifers!AU50) -> 6.786401921 | AX76: =AW75*(1-Heifers!AV50) -> 8.072033946 | AY76: =AX75*(1-Heifers!AW50) -> 7.588375165 | AZ76: =AY75*(1-Heifers!AX50) -> 9.743611522 | BA76: =AZ75*(1-Heifers!AY50) -> 7.130554156 | BB76: =BA75*(1-Heifers!AZ50) -> 8.554618518 | BC76: =BB75*(1-Heifers!BA50) -> 7.974146237 | BD76: =BC75*(1-Heifers!BB50) -> 7.37508991 | BE76: =BD75*(1-Heifers!BC50) -> 7.105482145 | BF76: =BE75*(1-Heifers!BD50) -> 10.6654479
A77: 18 months | C77: Pregnant | D77: ='Final Summary'!C107 -> 3 | E77: =D76*(1-Heifers!C51) -> 6.994272727 | F77: =E76*(1-Heifers!D51) -> 2.995092917 | G77: =F76*(1-Heifers!E51) -> 2.992642387 | H77: =G76*(1-Heifers!F51) -> 2.990193861 | I77: =H76*(1-Heifers!G51) -> 4.979578898 | J77: =I76*(1-Heifers!H51) -> 2.985302818 | K77: =J76*(1-Heifers!I51) -> 3.977147064 | L77: =K76*(1-Heifers!J51) -> 6.95431281 | M77: =L76*(1-Heifers!K51) -> 2.977981251 | N77: =M76*(1-Heifers!L51) -> 2.97554472 | O77: =N76*(1-Heifers!M51) -> 2.973110184 | P77: =O76*(1-Heifers!N51) -> 5.941355278 | Q77: =P76*(1-Heifers!O51) -> 2.968247085 | R77: =Q76*(1-Heifers!P51) -> 2.965818519 | S77: =R76*(1-Heifers!Q51) -> 4.938986567 | T77: =S76*(1-Heifers!R51) -> 2.960967347 | U77: =T76*(1-Heifers!S51) -> 3.878867224 | V77: =U76*(1-Heifers!T51) -> 9.920475659 | W77: =V76*(1-Heifers!U51) -> 9.102349416 | X77: =W76*(1-Heifers!V51) -> 8.751070024 | Y77: =X76*(1-Heifers!W51) -> 10.65122246 | Z77: =Y76*(1-Heifers!X51) -> 7.11540578 | AA77: =Z76*(1-Heifers!Y51) -> 7.861743475 | AB77: =AA76*(1-Heifers!Z51) -> 8.905219309 | AC77: =AB76*(1-Heifers!AA51) -> 10.35270409 | AD77: =AC76*(1-Heifers!AB51) -> 7.984289196 | AE77: =AD76*(1-Heifers!AC51) -> 8.352352755 | AF77: =AE76*(1-Heifers!AD51) -> 8.17389943 | AG77: =AF76*(1-Heifers!AE51) -> 8.60376619 | AH77: =AG76*(1-Heifers!AF51) -> 7.268427842 | AI77: =AH76*(1-Heifers!AG51) -> 8.434488877 | AJ77: =AI76*(1-Heifers!AH51) -> 8.340701082 | AK77: =AJ76*(1-Heifers!AI51) -> 6.492483285 | AL77: =AK76*(1-Heifers!AJ51) -> 8.198202326 | AM77: =AL76*(1-Heifers!AK51) -> 6.136303868 | AN77: =AM76*(1-Heifers!AL51) -> 7.875747492 | AO77: =AN76*(1-Heifers!AM51) -> 6.598406953 | AP77: =AO76*(1-Heifers!AN51) -> 8.141905771 | AQ77: =AP76*(1-Heifers!AO51) -> 7.168544691 | AR77: =AQ76*(1-Heifers!AP51) -> 6.472437638 | AS77: =AR76*(1-Heifers!AQ51) -> 6.60076856 | AT77: =AS76*(1-Heifers!AR51) -> 9.905269614 | AU77: =AT76*(1-Heifers!AS51) -> 8.518029744 | AV77: =AU76*(1-Heifers!AT51) -> 8.894092337 | AW77: =AV76*(1-Heifers!AU51) -> 10.0020241 | AX77: =AW76*(1-Heifers!AV51) -> 6.78084941 | AY77: =AX76*(1-Heifers!AW51) -> 8.065429555 | AZ77: =AY76*(1-Heifers!AX51) -> 7.582166494 | BA77: =AZ76*(1-Heifers!AY51) -> 9.735639476 | BB77: =BA76*(1-Heifers!AZ51) -> 7.124720066 | BC77: =BB76*(1-Heifers!BA51) -> 8.547619285 | BD77: =BC76*(1-Heifers!BB51) -> 7.967621935 | BE77: =BD76*(1-Heifers!BC51) -> 7.369055746 | BF77: =BE76*(1-Heifers!BD51) -> 7.099668569
